Workbook

Sheet Obsah
B1: STRUKTURA SEŠITU
B3: List | C3: Obsah | D3: Vysvětlení
B4: KOEF | C4: 1) předpoklady: | D4: míra pravděpodobnosti - stanovená jako historický nebo očekávaný počet pojistných plnění na celkový počet smluv
D5: claims ratio - škodní poměr neboli výše škod na zaslouženém pojistném
C6: 2) koeficienty pro výpočet pojistného a zajsitného | D6: PREMIUM - sazba podle které se počítá pojistné
D7: RE_PREMIUM - pojistná sazba podle zajistitele
D8: coef… - sazba zajsititele pro výpočet sazby RE_PREMIUM
C9: 3)koeficienty pro výpočet zisku zajistitele | D9: Reinsurance commission=provize od zajistitele
D10: Profit commission=zisk od zajistitele
D11: Reinsurance expenses alfa=výdaje zajistitele
D12: CoC-cost of capital=náklady na kapitál
B13: CALC | C13: Pojistná plnění | D13: hodnoty škod
C14: Pojistný kmen | D14: pojistné částky
C15: Gross required capital | D15: hrubý požadovaný kapitál - požadovaný kapitál před zajištěním
C16: Net required capital | D16: čistý požadovaný kapitál - požadovaný kapitál po zajištění, který se mění podle výše vlastního vrubu
C17: PREMIUM | D17: pojistné počítané dle sazby z listu KOEF - PREMIUM
C18: RE_PREMIUM | D18: pojistné počítané dle sazby z listu KOEF - RE_PREMIUM
C19: Pojistovna | D19: pojistné, které odpovídá zajištěné části
C20: RE | D20: pojistné, které odpovídá zajištěné části podle koeficientu zajistitele
C21: Reinsurers profit | D21: zisk zajistitele
C22: RIEVA | D22: výsledná hodnota pro zjištění optimálního vlastního vrubu
C23: Změny v počtu poj. plnění | D23: optimální vlastní vrub a RIEVA při různém počtu pojistných plnění
B24: SIM | C24: Simulace pojistnch plnění | D24: tlačítko 1 je určené pro další simulaci, kdy je možnost měnit průměrnou hodnotu pojistných plnění v listu CALC F4
C25: Riziko cedované do zajištění | D25: sloupec GF ukazuje část pojistných plnění, která jde do zajištění
B26: SIM2 | C26: hrubý požadovaný kapitál | D26: kapitál před zajištěním pomocí simulace, který ovlivňuje tabulku Změny v počtu poj. plnění (CALC)
B27: TR 66 | C27: Premium ceded | D27: zajistné
C28: Claims ceded to Re | D28: část pojistného plnění, která přechází do zajištění při využití VaR nebo Expected Shortfall
C29: Change in reinsurance… | D29: změna v technických rezervách
C30: Profit commission received | D30: část zisku zajistitele jdoucí k pojišťovně
C31: Technical result | D31: Technický výsledek

Sheet KOEF
B5: Predpoklady (urcene z historii)
B6: CLAIMS RATIO (CR) | C6: 0.3
B7: pravdepodobnost skody (pi) | C7: 0.001
B9: CR = (pi * SAR)/Premium
B10: the size of the claim
B27: PREMIUM - celkove pojistne prijate pojistovnou (tady su pouzite 100% sazby na vypocet pojistneho) | I27: v nasom pripade je sazba | L27: =CALC!R3/CALC!D3 -> 0.003333333333
B28: RE_PREMIUM - pojistne spoctne so sazbami zajistitela (45%) | L28: =L27*C29 -> 0.0015
B29: coef RE_RATES/INSURANCE_RATES (je dany v zajistnej smluve) | C29: 0.45 | D29: Sazba zajistitele | G29: při zvýšení: zvýšení RE_profit; EVAb nezměněna, EVAz snížena => snížení RIEVA, zvýšení VV
B32: Reinsurance Commission: | C32: 0 | D32: provize od zajistitele (reinsurance commission; Rückversicherungsprovision) slouží ke kompenzaci správních nákladů (počátečních i běžných), které má prvopojistitel s cedovaným pojistným obchodem (zajistitel, který se takovým nákladům v rámci cedovaného obchodu vyhne, obvykle kompenzuje prvopojistitele právě touto provizí) | L32: při zvýšení: Snížuje se RE_profit, stejná EVAb, vyšší EVAz => zvýšení RIEVA, snížení VV
B33: Profit Commission: | C33: 0.6 | D33: podíl na zisku zajistitele (profit commission; Gewinnanteil) motivuje prvopojistitele k tomu, aby měl zájem na dosahování zisku zajistitelem | K33: při zvýšení: snižuje se RE_profit, stejná EVAb, vyšší EVAz=> vyšší RIEVA, nižší VV | P33: spojení s významným podílem cedenta na zisku zajistitele v rámci delšího časového období a na druhé straně v případě negativního vývoje zajištění je spojené s účastí cedenta na krytí ztráty zajistitele; finanční zajištění tak znamená určitou přímou souvislost mezi skutečnými náklady na zajištění a individuálním škodním průběhem
B34: Reinsurer's expenses alfa: | C34: 0.1 | D34: náhrada výdajů zajistitele | G34: při zvýšení: zvýšení RE_profit; stejné EVAb, snížení EVAz => nižší RIEVA, vyšší VV
B35: CoC: | C35: 0.06 | D35: náklady kapitálu | G35: při zvýšení: stejný RE_profit; nižší EVAb, snížení EVAz; vyšší RIEVA, vyšší VV, nižší VV

Sheet CALC
F1: pocet smluv | H1: Gross reqired capital | M1: Net required capital | O1: VV= | P1: 3300000 | U1: PREMIUM odpovedajuce zajistenej casti
F2: =COUNTIF(D6:D80001,">0") -> 66051 | H2: ES | I2: VarS | J2: E(S-ES)^3 | K2: u | M2: ES | N2: VarS | O2: E(S-ES)^3 | P2: u | R2: PREMIUM | S2: RE_PREMIUM | U2: Pojistovna | V2: RE | Y2: Reinsurer's Profit | AA2: RIEVA
D3: =SUM(D6:D70001) -> 18004092498 | F3: stredna hodnota pocetu skod | H3: =SUM(H6:H70001) -> 18004092.5 | I3: =SUM(I6:I70001) -> 1.213026426e+13 | J3: =SUM(J6:J70001) -> 2.801813721e+19 | K3: =K5 -> 11140455.02 | M3: =SUM(M6:M70001) -> 17840502.2 | N3: =SUM(N6:N70001) -> 1.044729397e+13 | O3: =SUM(O6:O70001) -> 1.32076301e+19 | P3: =SQRT(N3)*(NORMINV(0.995,0,1)+O3/N3^(3/2)/6*(NORMINV(0.995,0,1)^2-1)) -> 9512953.248 | R3: =SUM(R6:R70001) -> 60013641.66 | S3: =SUM(S6:S70001) -> 27006138.75 | U3: =SUM(U6:U70001) -> 545300.9933 | V3: =SUM(V6:V70001) -> 245385.447 | Y3: =(V3*(1-KOEF!C32)-U3*KOEF!C6)-KOEF!C33*(V3*(1-KOEF!C32-KOEF!C34)-U3*KOEF!C6) -> 47441.18642 | AA3: =-Y3+(K3-P3)*KOEF!C35 -> 50208.91986
B4: Skody (CZK) | D4: pojistne castky na smluvach v portfoliu | F4: 66.051 | J4: 0.95 | K4: =SQRT(I3)*(NORMINV(0.95,0,1)+J3/I3^(3/2)/6*(NORMINV(0.95,0,1)^2-1)) -> 6385352.453 | Y4: =Y3*KOEF!C33 -> 28464.71185
I5: Původní výpočet | K5: =SQRT(I3)*(NORMINV(0.995,0,1)+J3/I3^(3/2)/6*(NORMINV(0.995,0,1)^2-1)) -> 11140455.02 | M5: =H3-M3 -> 163590.298
B6: 100000 | D6: 100000 | H6: =D6*KOEF!$C$7 -> 100 | I6: =D6^2*(KOEF!$C$7*(1-KOEF!$C$7)) -> 9990000 | J6: =D6^3*(KOEF!$C$7-3*KOEF!$C$7^2+2*KOEF!$C$7^3) -> 9.97002e+11 | L6: =MIN(D6,$P$1) -> 100000 | M6: =L6*KOEF!$C$7 -> 100 | N6: =L6^2*(KOEF!$C$7*(1-KOEF!$C$7)) -> 9990000 | O6: =L6^3*(KOEF!$C$7-3*KOEF!$C$7^2+2*KOEF!$C$7^3) -> 9.97002e+11 | R6: =D6*KOEF!$C$7/KOEF!$C$6 -> 333.3333333 | S6: =D6*KOEF!$L$28 -> 150 | U6: =R6*MAX((D6-$P$1),0)/D6 -> 0 | V6: =S6*MAX((D6-$P$1),0)/D6 -> 0 | AA6: cil je najit VV ktore maximalizuje RIEVA
B7: 100000 | D7: 100000 | H7: =D7*KOEF!$C$7 -> 100 | I7: =D7^2*(KOEF!$C$7*(1-KOEF!$C$7)) -> 9990000 | J7: =D7^3*(KOEF!$C$7-3*KOEF!$C$7^2+2*KOEF!$C$7^3) -> 9.97002e+11 | L7: =MIN(D7,$P$1) -> 100000 | M7: =L7*KOEF!$C$7 -> 100 | N7: =L7^2*(KOEF!$C$7*(1-KOEF!$C$7)) -> 9990000 | O7: =L7^3*(KOEF!$C$7-3*KOEF!$C$7^2+2*KOEF!$C$7^3) -> 9.97002e+11 | R7: =D7*KOEF!$C$7/KOEF!$C$6 -> 333.3333333 | S7: =D7*KOEF!$L$28 -> 150 | U7: =R7*MAX((D7-$P$1),0)/D7 -> 0 | V7: =S7*MAX((D7-$P$1),0)/D7 -> 0
B8: 100000 | D8: 100000 | H8: =D8*KOEF!$C$7 -> 100 | I8: =D8^2*(KOEF!$C$7*(1-KOEF!$C$7)) -> 9990000 | J8: =D8^3*(KOEF!$C$7-3*KOEF!$C$7^2+2*KOEF!$C$7^3) -> 9.97002e+11 | L8: 100000 | M8: =L8*KOEF!$C$7 -> 100 | N8: =L8^2*(KOEF!$C$7*(1-KOEF!$C$7)) -> 9990000 | O8: =L8^3*(KOEF!$C$7-3*KOEF!$C$7^2+2*KOEF!$C$7^3) -> 9.97002e+11 | R8: =D8*KOEF!$C$7/KOEF!$C$6 -> 333.3333333 | S8: =D8*KOEF!$L$28 -> 150 | U8: 0 | V8: 0 | Y8: VV
B9: 100000 | D9: 100000 | H9: =D9*KOEF!$C$7 -> 100 | I9: =D9^2*(KOEF!$C$7*(1-KOEF!$C$7)) -> 9990000 | J9: =D9^3*(KOEF!$C$7-3*KOEF!$C$7^2+2*KOEF!$C$7^3) -> 9.97002e+11 | L9: 100000 | M9: =L9*KOEF!$C$7 -> 100 | N9: =L9^2*(KOEF!$C$7*(1-KOEF!$C$7)) -> 9990000 | O9: =L9^3*(KOEF!$C$7-3*KOEF!$C$7^2+2*KOEF!$C$7^3) -> 9.97002e+11 | R9: =D9*KOEF!$C$7/KOEF!$C$6 -> 333.3333333 | S9: =D9*KOEF!$L$28 -> 150 | U9: 0 | V9: 0 | Y9: 1000000 | AA9: EVAb | AB9: =($R$3-K3)-K3*KOEF!$C$35 -> 48204759.34 | AC9: RIEVA
B10: 100000 | D10: 100000 | H10: =D10*KOEF!$C$7 -> 100 | I10: =D10^2*(KOEF!$C$7*(1-KOEF!$C$7)) -> 9990000 | J10: =D10^3*(KOEF!$C$7-3*KOEF!$C$7^2+2*KOEF!$C$7^3) -> 9.97002e+11 | L10: 100000 | M10: =L10*KOEF!$C$7 -> 100 | N10: =L10^2*(KOEF!$C$7*(1-KOEF!$C$7)) -> 9990000 | O10: =L10^3*(KOEF!$C$7-3*KOEF!$C$7^2+2*KOEF!$C$7^3) -> 9.97002e+11 | R10: =D10*KOEF!$C$7/KOEF!$C$6 -> 333.3333333 | S10: =D10*KOEF!$L$28 -> 150 | U10: 0 | V10: 0 | Y10: 1100000 | AA10: EVAz | AB10: =($R$3-K3-Y3)-P3*KOEF!$C$35 -> 48254968.26 | AC10: =AB10-AB9 -> 50208.91986
B11: 100000 | D11: 100000 | H11: =D11*KOEF!$C$7 -> 100 | I11: =D11^2*(KOEF!$C$7*(1-KOEF!$C$7)) -> 9990000 | J11: =D11^3*(KOEF!$C$7-3*KOEF!$C$7^2+2*KOEF!$C$7^3) -> 9.97002e+11 | L11: 100000 | M11: =L11*KOEF!$C$7 -> 100 | N11: =L11^2*(KOEF!$C$7*(1-KOEF!$C$7)) -> 9990000 | O11: =L11^3*(KOEF!$C$7-3*KOEF!$C$7^2+2*KOEF!$C$7^3) -> 9.97002e+11 | R11: =D11*KOEF!$C$7/KOEF!$C$6 -> 333.3333333 | S11: =D11*KOEF!$L$28 -> 150 | U11: 0 | V11: 0 | Y11: 1200000
B12: 100000 | D12: 100000 | H12: =D12*KOEF!$C$7 -> 100 | I12: =D12^2*(KOEF!$C$7*(1-KOEF!$C$7)) -> 9990000 | J12: =D12^3*(KOEF!$C$7-3*KOEF!$C$7^2+2*KOEF!$C$7^3) -> 9.97002e+11 | L12: 100000 | M12: =L12*KOEF!$C$7 -> 100 | N12: =L12^2*(KOEF!$C$7*(1-KOEF!$C$7)) -> 9990000 | O12: =L12^3*(KOEF!$C$7-3*KOEF!$C$7^2+2*KOEF!$C$7^3) -> 9.97002e+11 | R12: =D12*KOEF!$C$7/KOEF!$C$6 -> 333.3333333 | S12: =D12*KOEF!$L$28 -> 150 | U12: 0 | V12: 0 | Y12: 1300000 | Z12: Změny v počtu poj. plnění
B13: 100000 | D13: 100000 | H13: =D13*KOEF!$C$7 -> 100 | I13: =D13^2*(KOEF!$C$7*(1-KOEF!$C$7)) -> 9990000 | J13: =D13^3*(KOEF!$C$7-3*KOEF!$C$7^2+2*KOEF!$C$7^3) -> 9.97002e+11 | L13: 100000 | M13: =L13*KOEF!$C$7 -> 100 | N13: =L13^2*(KOEF!$C$7*(1-KOEF!$C$7)) -> 9990000 | O13: =L13^3*(KOEF!$C$7-3*KOEF!$C$7^2+2*KOEF!$C$7^3) -> 9.97002e+11 | R13: =D13*KOEF!$C$7/KOEF!$C$6 -> 333.3333333 | S13: =D13*KOEF!$L$28 -> 150 | U13: 0 | V13: 0 | Y13: 1400000 | Z13: VV | AA13: Původní portfolio | AB13: o 5 poj. plnění více | AC13: o 10 poj. plnění více | AD13: o 5 poj. plnění více se změnou pojistného | AE13: o 10 poj. plnění více se změnou pojistného
B14: 100000 | D14: 100000 | H14: =D14*KOEF!$C$7 -> 100 | I14: =D14^2*(KOEF!$C$7*(1-KOEF!$C$7)) -> 9990000 | J14: =D14^3*(KOEF!$C$7-3*KOEF!$C$7^2+2*KOEF!$C$7^3) -> 9.97002e+11 | L14: 100000 | M14: =L14*KOEF!$C$7 -> 100 | N14: =L14^2*(KOEF!$C$7*(1-KOEF!$C$7)) -> 9990000 | O14: =L14^3*(KOEF!$C$7-3*KOEF!$C$7^2+2*KOEF!$C$7^3) -> 9.97002e+11 | R14: =D14*KOEF!$C$7/KOEF!$C$6 -> 333.3333333 | S14: =D14*KOEF!$L$28 -> 150 | U14: 0 | V14: 0 | Y14: 1500000 | Z14: 1000000 | AA14: -97571.30646 | AB14: -67503.17665 | AC14: 130912.9936 | AD14: -116533.9362 | AE14: -135646.5488
B15: 100000 | D15: 100000 | H15: =D15*KOEF!$C$7 -> 100 | I15: =D15^2*(KOEF!$C$7*(1-KOEF!$C$7)) -> 9990000 | J15: =D15^3*(KOEF!$C$7-3*KOEF!$C$7^2+2*KOEF!$C$7^3) -> 9.97002e+11 | L15: 100000 | M15: =L15*KOEF!$C$7 -> 100 | N15: =L15^2*(KOEF!$C$7*(1-KOEF!$C$7)) -> 9990000 | O15: =L15^3*(KOEF!$C$7-3*KOEF!$C$7^2+2*KOEF!$C$7^3) -> 9.97002e+11 | R15: =D15*KOEF!$C$7/KOEF!$C$6 -> 333.3333333 | S15: =D15*KOEF!$L$28 -> 150 | U15: 0 | V15: 0 | Y15: 1600000 | Z15: 2500000 | AA15: 45058.40899 | AB15: 72737.84916 | AC15: 268848.3956 | AD15: 41285.66333 | AE15: 37446.00069
B16: 100000 | D16: 100000 | H16: =D16*KOEF!$C$7 -> 100 | I16: =D16^2*(KOEF!$C$7*(1-KOEF!$C$7)) -> 9990000 | J16: =D16^3*(KOEF!$C$7-3*KOEF!$C$7^2+2*KOEF!$C$7^3) -> 9.97002e+11 | L16: 100000 | M16: =L16*KOEF!$C$7 -> 100 | N16: =L16^2*(KOEF!$C$7*(1-KOEF!$C$7)) -> 9990000 | O16: =L16^3*(KOEF!$C$7-3*KOEF!$C$7^2+2*KOEF!$C$7^3) -> 9.97002e+11 | R16: =D16*KOEF!$C$7/KOEF!$C$6 -> 333.3333333 | S16: =D16*KOEF!$L$28 -> 150 | U16: 0 | V16: 0 | Y16: 1700000 | Z16: 3300000 | AA16: 50208.91986 | AB16: 77400.2103 | AC16: 273039.6046 | AD16: 48046.53206 | AE16: 45834.22485
B17: 100000 | D17: 100000 | H17: =D17*KOEF!$C$7 -> 100 | I17: =D17^2*(KOEF!$C$7*(1-KOEF!$C$7)) -> 9990000 | J17: =D17^3*(KOEF!$C$7-3*KOEF!$C$7^2+2*KOEF!$C$7^3) -> 9.97002e+11 | L17: 100000 | M17: =L17*KOEF!$C$7 -> 100 | N17: =L17^2*(KOEF!$C$7*(1-KOEF!$C$7)) -> 9990000 | O17: =L17^3*(KOEF!$C$7-3*KOEF!$C$7^2+2*KOEF!$C$7^3) -> 9.97002e+11 | R17: =D17*KOEF!$C$7/KOEF!$C$6 -> 333.3333333 | S17: =D17*KOEF!$L$28 -> 150 | U17: 0 | V17: 0 | Y17: 1800000 | Z17: 5000000 | AA17: 39536.08388 | AB17: 65974.75787 | AC17: 260887.7781 | AD17: 38966.08935 | AE17: 38372.41778
B18: 100000 | D18: 100000 | H18: =D18*KOEF!$C$7 -> 100 | I18: =D18^2*(KOEF!$C$7*(1-KOEF!$C$7)) -> 9990000 | J18: =D18^3*(KOEF!$C$7-3*KOEF!$C$7^2+2*KOEF!$C$7^3) -> 9.97002e+11 | L18: 100000 | M18: =L18*KOEF!$C$7 -> 100 | N18: =L18^2*(KOEF!$C$7*(1-KOEF!$C$7)) -> 9990000 | O18: =L18^3*(KOEF!$C$7-3*KOEF!$C$7^2+2*KOEF!$C$7^3) -> 9.97002e+11 | R18: =D18*KOEF!$C$7/KOEF!$C$6 -> 333.3333333 | S18: =D18*KOEF!$L$28 -> 150 | U18: 0 | V18: 0 | Y18: 1900000 | Z18: VV opt | AC18: 3200000 | AD18: 3400000 | AE18: 3600000
B19: 100000 | D19: 100000 | H19: =D19*KOEF!$C$7 -> 100 | I19: =D19^2*(KOEF!$C$7*(1-KOEF!$C$7)) -> 9990000 | J19: =D19^3*(KOEF!$C$7-3*KOEF!$C$7^2+2*KOEF!$C$7^3) -> 9.97002e+11 | L19: 100000 | M19: =L19*KOEF!$C$7 -> 100 | N19: =L19^2*(KOEF!$C$7*(1-KOEF!$C$7)) -> 9990000 | O19: =L19^3*(KOEF!$C$7-3*KOEF!$C$7^2+2*KOEF!$C$7^3) -> 9.97002e+11 | R19: =D19*KOEF!$C$7/KOEF!$C$6 -> 333.3333333 | S19: =D19*KOEF!$L$28 -> 150 | U19: 0 | V19: 0 | Y19: 2000000 | AC19: 273068.1561 | AD19: 48138.88541 | AE19: 46190.14229
B20: 100000 | D20: 100000 | H20: =D20*KOEF!$C$7 -> 100 | I20: =D20^2*(KOEF!$C$7*(1-KOEF!$C$7)) -> 9990000 | J20: =D20^3*(KOEF!$C$7-3*KOEF!$C$7^2+2*KOEF!$C$7^3) -> 9.97002e+11 | L20: 100000 | M20: =L20*KOEF!$C$7 -> 100 | N20: =L20^2*(KOEF!$C$7*(1-KOEF!$C$7)) -> 9990000 | O20: =L20^3*(KOEF!$C$7-3*KOEF!$C$7^2+2*KOEF!$C$7^3) -> 9.97002e+11 | R20: =D20*KOEF!$C$7/KOEF!$C$6 -> 333.3333333 | S20: =D20*KOEF!$L$28 -> 150 | U20: 0 | V20: 0 | Y20: 2100000
B21: 100000 | D21: 100000 | H21: =D21*KOEF!$C$7 -> 100 | I21: =D21^2*(KOEF!$C$7*(1-KOEF!$C$7)) -> 9990000 | J21: =D21^3*(KOEF!$C$7-3*KOEF!$C$7^2+2*KOEF!$C$7^3) -> 9.97002e+11 | L21: 100000 | M21: =L21*KOEF!$C$7 -> 100 | N21: =L21^2*(KOEF!$C$7*(1-KOEF!$C$7)) -> 9990000 | O21: =L21^3*(KOEF!$C$7-3*KOEF!$C$7^2+2*KOEF!$C$7^3) -> 9.97002e+11 | R21: =D21*KOEF!$C$7/KOEF!$C$6 -> 333.3333333 | S21: =D21*KOEF!$L$28 -> 150 | U21: 0 | V21: 0 | Y21: 2200000 | Z21: VV | AA21: Původní portfolio | AB21: o 5 poj. plnění méně | AC21: o 10 poj. plnění méně | AD21: o 5 poj. plnění méně se změnou pojistného | AE21: o 10 poj. plnění méně se změnou pojistného
B22: 101000 | D22: 100000 | H22: =D22*KOEF!$C$7 -> 100 | I22: =D22^2*(KOEF!$C$7*(1-KOEF!$C$7)) -> 9990000 | J22: =D22^3*(KOEF!$C$7-3*KOEF!$C$7^2+2*KOEF!$C$7^3) -> 9.97002e+11 | L22: 100000 | M22: =L22*KOEF!$C$7 -> 100 | N22: =L22^2*(KOEF!$C$7*(1-KOEF!$C$7)) -> 9990000 | O22: =L22^3*(KOEF!$C$7-3*KOEF!$C$7^2+2*KOEF!$C$7^3) -> 9.97002e+11 | R22: =D22*KOEF!$C$7/KOEF!$C$6 -> 333.3333333 | S22: =D22*KOEF!$L$28 -> 150 | U22: 0 | V22: 0 | Y22: 2300000 | Z22: 1000000 | AA22: -97571.30646 | AB22: -152566.936 | AC22: -194887.5825 | AD22: -78776.02996 | AE22: -60169.11743
B23: 106082 | D23: 100000 | H23: =D23*KOEF!$C$7 -> 100 | I23: =D23^2*(KOEF!$C$7*(1-KOEF!$C$7)) -> 9990000 | J23: =D23^3*(KOEF!$C$7-3*KOEF!$C$7^2+2*KOEF!$C$7^3) -> 9.97002e+11 | L23: 100000 | M23: =L23*KOEF!$C$7 -> 100 | N23: =L23^2*(KOEF!$C$7*(1-KOEF!$C$7)) -> 9990000 | O23: =L23^3*(KOEF!$C$7-3*KOEF!$C$7^2+2*KOEF!$C$7^3) -> 9.97002e+11 | R23: =D23*KOEF!$C$7/KOEF!$C$6 -> 333.3333333 | S23: =D23*KOEF!$L$28 -> 150 | U23: 0 | V23: 0 | Y23: 2400000 | Z23: 2500000 | AA23: 45058.40899 | AB23: -7455.844786 | AC23: -47190.79283 | AD23: 48756.48755 | AE23: 52370.52478
B24: 108800 | D24: 100000 | H24: =D24*KOEF!$C$7 -> 100 | I24: =D24^2*(KOEF!$C$7*(1-KOEF!$C$7)) -> 9990000 | J24: =D24^3*(KOEF!$C$7-3*KOEF!$C$7^2+2*KOEF!$C$7^3) -> 9.97002e+11 | L24: 100000 | M24: =L24*KOEF!$C$7 -> 100 | N24: =L24^2*(KOEF!$C$7*(1-KOEF!$C$7)) -> 9990000 | O24: =L24^3*(KOEF!$C$7-3*KOEF!$C$7^2+2*KOEF!$C$7^3) -> 9.97002e+11 | R24: =D24*KOEF!$C$7/KOEF!$C$6 -> 333.3333333 | S24: =D24*KOEF!$L$28 -> 150 | U24: 0 | V24: 0 | Y24: 2500000 | Z24: 3300000 | AA24: 49684.15331 | AB24: -1798.217991 | AC24: -41004.70278 | AD24: 52315.60676 | AE24: 54359.59966
B25: 114000 | D25: 100000 | H25: =D25*KOEF!$C$7 -> 100 | I25: =D25^2*(KOEF!$C$7*(1-KOEF!$C$7)) -> 9990000 | J25: =D25^3*(KOEF!$C$7-3*KOEF!$C$7^2+2*KOEF!$C$7^3) -> 9.97002e+11 | L25: 100000 | M25: =L25*KOEF!$C$7 -> 100 | N25: =L25^2*(KOEF!$C$7*(1-KOEF!$C$7)) -> 9990000 | O25: =L25^3*(KOEF!$C$7-3*KOEF!$C$7^2+2*KOEF!$C$7^3) -> 9.97002e+11 | R25: =D25*KOEF!$C$7/KOEF!$C$6 -> 333.3333333 | S25: =D25*KOEF!$L$28 -> 150 | U25: 0 | V25: 0 | Y25: 2600000 | Z25: 5000000 | AA25: 39536.08388 | AB25: -11689.15586 | AC25: -50080.78464 | AD25: 40079.65917 | AE25: 40593.49837
B26: 122952 | D26: 100000 | H26: =D26*KOEF!$C$7 -> 100 | I26: =D26^2*(KOEF!$C$7*(1-KOEF!$C$7)) -> 9990000 | J26: =D26^3*(KOEF!$C$7-3*KOEF!$C$7^2+2*KOEF!$C$7^3) -> 9.97002e+11 | L26: 100000 | M26: =L26*KOEF!$C$7 -> 100 | N26: =L26^2*(KOEF!$C$7*(1-KOEF!$C$7)) -> 9990000 | O26: =L26^3*(KOEF!$C$7-3*KOEF!$C$7^2+2*KOEF!$C$7^3) -> 9.97002e+11 | R26: =D26*KOEF!$C$7/KOEF!$C$6 -> 333.3333333 | S26: =D26*KOEF!$L$28 -> 150 | U26: 0 | V26: 0 | Y26: 2700000 | Z26: VV opt | AB26: 3400000 | AC26: 3400000 | AD26: 3200000 | AE26: 3000000
B27: 125000 | D27: 100000 | H27: =D27*KOEF!$C$7 -> 100 | I27: =D27^2*(KOEF!$C$7*(1-KOEF!$C$7)) -> 9990000 | J27: =D27^3*(KOEF!$C$7-3*KOEF!$C$7^2+2*KOEF!$C$7^3) -> 9.97002e+11 | L27: 100000 | M27: =L27*KOEF!$C$7 -> 100 | N27: =L27^2*(KOEF!$C$7*(1-KOEF!$C$7)) -> 9990000 | O27: =L27^3*(KOEF!$C$7-3*KOEF!$C$7^2+2*KOEF!$C$7^3) -> 9.97002e+11 | R27: =D27*KOEF!$C$7/KOEF!$C$6 -> 333.3333333 | S27: =D27*KOEF!$L$28 -> 150 | U27: 0 | V27: 0 | Y27: 2800000 | AB27: -1785.266207 | AC27: -40940.41687 | AD27: 52382.44149 | AE27: 54664.46933
B28: 127415 | D28: 100000 | H28: =D28*KOEF!$C$7 -> 100 | I28: =D28^2*(KOEF!$C$7*(1-KOEF!$C$7)) -> 9990000 | J28: =D28^3*(KOEF!$C$7-3*KOEF!$C$7^2+2*KOEF!$C$7^3) -> 9.97002e+11 | L28: 100000 | M28: =L28*KOEF!$C$7 -> 100 | N28: =L28^2*(KOEF!$C$7*(1-KOEF!$C$7)) -> 9990000 | O28: =L28^3*(KOEF!$C$7-3*KOEF!$C$7^2+2*KOEF!$C$7^3) -> 9.97002e+11 | R28: =D28*KOEF!$C$7/KOEF!$C$6 -> 333.3333333 | S28: =D28*KOEF!$L$28 -> 150 | U28: 0 | V28: 0 | Y28: 2900000
B29: 128319 | D29: 100000 | H29: =D29*KOEF!$C$7 -> 100 | I29: =D29^2*(KOEF!$C$7*(1-KOEF!$C$7)) -> 9990000 | J29: =D29^3*(KOEF!$C$7-3*KOEF!$C$7^2+2*KOEF!$C$7^3) -> 9.97002e+11 | L29: 100000 | M29: =L29*KOEF!$C$7 -> 100 | N29: =L29^2*(KOEF!$C$7*(1-KOEF!$C$7)) -> 9990000 | O29: =L29^3*(KOEF!$C$7-3*KOEF!$C$7^2+2*KOEF!$C$7^3) -> 9.97002e+11 | R29: =D29*KOEF!$C$7/KOEF!$C$6 -> 333.3333333 | S29: =D29*KOEF!$L$28 -> 150 | U29: 0 | V29: 0 | Y29: 3000000
B30: 133423 | D30: 100000 | H30: =D30*KOEF!$C$7 -> 100 | I30: =D30^2*(KOEF!$C$7*(1-KOEF!$C$7)) -> 9990000 | J30: =D30^3*(KOEF!$C$7-3*KOEF!$C$7^2+2*KOEF!$C$7^3) -> 9.97002e+11 | L30: 100000 | M30: =L30*KOEF!$C$7 -> 100 | N30: =L30^2*(KOEF!$C$7*(1-KOEF!$C$7)) -> 9990000 | O30: =L30^3*(KOEF!$C$7-3*KOEF!$C$7^2+2*KOEF!$C$7^3) -> 9.97002e+11 | R30: =D30*KOEF!$C$7/KOEF!$C$6 -> 333.3333333 | S30: =D30*KOEF!$L$28 -> 150 | U30: 0 | V30: 0 | Y30: 3100000
B31: 134526 | D31: 100000 | H31: =D31*KOEF!$C$7 -> 100 | I31: =D31^2*(KOEF!$C$7*(1-KOEF!$C$7)) -> 9990000 | J31: =D31^3*(KOEF!$C$7-3*KOEF!$C$7^2+2*KOEF!$C$7^3) -> 9.97002e+11 | L31: 100000 | M31: =L31*KOEF!$C$7 -> 100 | N31: =L31^2*(KOEF!$C$7*(1-KOEF!$C$7)) -> 9990000 | O31: =L31^3*(KOEF!$C$7-3*KOEF!$C$7^2+2*KOEF!$C$7^3) -> 9.97002e+11 | R31: =D31*KOEF!$C$7/KOEF!$C$6 -> 333.3333333 | S31: =D31*KOEF!$L$28 -> 150 | U31: 0 | V31: 0 | Y31: 3200000
B32: 139747 | D32: 100000 | H32: =D32*KOEF!$C$7 -> 100 | I32: =D32^2*(KOEF!$C$7*(1-KOEF!$C$7)) -> 9990000 | J32: =D32^3*(KOEF!$C$7-3*KOEF!$C$7^2+2*KOEF!$C$7^3) -> 9.97002e+11 | L32: 100000 | M32: =L32*KOEF!$C$7 -> 100 | N32: =L32^2*(KOEF!$C$7*(1-KOEF!$C$7)) -> 9990000 | O32: =L32^3*(KOEF!$C$7-3*KOEF!$C$7^2+2*KOEF!$C$7^3) -> 9.97002e+11 | R32: =D32*KOEF!$C$7/KOEF!$C$6 -> 333.3333333 | S32: =D32*KOEF!$L$28 -> 150 | U32: 0 | V32: 0 | Y32: 3300000
B33: 150000 | D33: 100000 | H33: =D33*KOEF!$C$7 -> 100 | I33: =D33^2*(KOEF!$C$7*(1-KOEF!$C$7)) -> 9990000 | J33: =D33^3*(KOEF!$C$7-3*KOEF!$C$7^2+2*KOEF!$C$7^3) -> 9.97002e+11 | L33: 100000 | M33: =L33*KOEF!$C$7 -> 100 | N33: =L33^2*(KOEF!$C$7*(1-KOEF!$C$7)) -> 9990000 | O33: =L33^3*(KOEF!$C$7-3*KOEF!$C$7^2+2*KOEF!$C$7^3) -> 9.97002e+11 | R33: =D33*KOEF!$C$7/KOEF!$C$6 -> 333.3333333 | S33: =D33*KOEF!$L$28 -> 150 | U33: 0 | V33: 0 | Y33: 3400000
B34: 150000 | D34: 100000 | H34: =D34*KOEF!$C$7 -> 100 | I34: =D34^2*(KOEF!$C$7*(1-KOEF!$C$7)) -> 9990000 | J34: =D34^3*(KOEF!$C$7-3*KOEF!$C$7^2+2*KOEF!$C$7^3) -> 9.97002e+11 | L34: 100000 | M34: =L34*KOEF!$C$7 -> 100 | N34: =L34^2*(KOEF!$C$7*(1-KOEF!$C$7)) -> 9990000 | O34: =L34^3*(KOEF!$C$7-3*KOEF!$C$7^2+2*KOEF!$C$7^3) -> 9.97002e+11 | R34: =D34*KOEF!$C$7/KOEF!$C$6 -> 333.3333333 | S34: =D34*KOEF!$L$28 -> 150 | U34: 0 | V34: 0 | Y34: 3500000
B35: 152043 | D35: 100000 | H35: =D35*KOEF!$C$7 -> 100 | I35: =D35^2*(KOEF!$C$7*(1-KOEF!$C$7)) -> 9990000 | J35: =D35^3*(KOEF!$C$7-3*KOEF!$C$7^2+2*KOEF!$C$7^3) -> 9.97002e+11 | L35: 100000 | M35: =L35*KOEF!$C$7 -> 100 | N35: =L35^2*(KOEF!$C$7*(1-KOEF!$C$7)) -> 9990000 | O35: =L35^3*(KOEF!$C$7-3*KOEF!$C$7^2+2*KOEF!$C$7^3) -> 9.97002e+11 | R35: =D35*KOEF!$C$7/KOEF!$C$6 -> 333.3333333 | S35: =D35*KOEF!$L$28 -> 150 | U35: 0 | V35: 0 | Y35: 3600000
B36: 163175 | D36: 100000 | H36: =D36*KOEF!$C$7 -> 100 | I36: =D36^2*(KOEF!$C$7*(1-KOEF!$C$7)) -> 9990000 | J36: =D36^3*(KOEF!$C$7-3*KOEF!$C$7^2+2*KOEF!$C$7^3) -> 9.97002e+11 | L36: 100000 | M36: =L36*KOEF!$C$7 -> 100 | N36: =L36^2*(KOEF!$C$7*(1-KOEF!$C$7)) -> 9990000 | O36: =L36^3*(KOEF!$C$7-3*KOEF!$C$7^2+2*KOEF!$C$7^3) -> 9.97002e+11 | R36: =D36*KOEF!$C$7/KOEF!$C$6 -> 333.3333333 | S36: =D36*KOEF!$L$28 -> 150 | U36: 0 | V36: 0 | Y36: 3700000
B37: 163175 | D37: 100000 | H37: =D37*KOEF!$C$7 -> 100 | I37: =D37^2*(KOEF!$C$7*(1-KOEF!$C$7)) -> 9990000 | J37: =D37^3*(KOEF!$C$7-3*KOEF!$C$7^2+2*KOEF!$C$7^3) -> 9.97002e+11 | L37: 100000 | M37: =L37*KOEF!$C$7 -> 100 | N37: =L37^2*(KOEF!$C$7*(1-KOEF!$C$7)) -> 9990000 | O37: =L37^3*(KOEF!$C$7-3*KOEF!$C$7^2+2*KOEF!$C$7^3) -> 9.97002e+11 | R37: =D37*KOEF!$C$7/KOEF!$C$6 -> 333.3333333 | S37: =D37*KOEF!$L$28 -> 150 | U37: 0 | V37: 0 | Y37: 3800000
B38: 200000 | D38: 100000 | H38: =D38*KOEF!$C$7 -> 100 | I38: =D38^2*(KOEF!$C$7*(1-KOEF!$C$7)) -> 9990000 | J38: =D38^3*(KOEF!$C$7-3*KOEF!$C$7^2+2*KOEF!$C$7^3) -> 9.97002e+11 | L38: 100000 | M38: =L38*KOEF!$C$7 -> 100 | N38: =L38^2*(KOEF!$C$7*(1-KOEF!$C$7)) -> 9990000 | O38: =L38^3*(KOEF!$C$7-3*KOEF!$C$7^2+2*KOEF!$C$7^3) -> 9.97002e+11 | R38: =D38*KOEF!$C$7/KOEF!$C$6 -> 333.3333333 | S38: =D38*KOEF!$L$28 -> 150 | U38: 0 | V38: 0 | Y38: 3900000
B39: 200000 | D39: 100000 | H39: =D39*KOEF!$C$7 -> 100 | I39: =D39^2*(KOEF!$C$7*(1-KOEF!$C$7)) -> 9990000 | J39: =D39^3*(KOEF!$C$7-3*KOEF!$C$7^2+2*KOEF!$C$7^3) -> 9.97002e+11 | L39: 100000 | M39: =L39*KOEF!$C$7 -> 100 | N39: =L39^2*(KOEF!$C$7*(1-KOEF!$C$7)) -> 9990000 | O39: =L39^3*(KOEF!$C$7-3*KOEF!$C$7^2+2*KOEF!$C$7^3) -> 9.97002e+11 | R39: =D39*KOEF!$C$7/KOEF!$C$6 -> 333.3333333 | S39: =D39*KOEF!$L$28 -> 150 | U39: 0 | V39: 0 | Y39: 4000000
B40: 200000 | D40: 100000 | H40: =D40*KOEF!$C$7 -> 100 | I40: =D40^2*(KOEF!$C$7*(1-KOEF!$C$7)) -> 9990000 | J40: =D40^3*(KOEF!$C$7-3*KOEF!$C$7^2+2*KOEF!$C$7^3) -> 9.97002e+11 | L40: 100000 | M40: =L40*KOEF!$C$7 -> 100 | N40: =L40^2*(KOEF!$C$7*(1-KOEF!$C$7)) -> 9990000 | O40: =L40^3*(KOEF!$C$7-3*KOEF!$C$7^2+2*KOEF!$C$7^3) -> 9.97002e+11 | R40: =D40*KOEF!$C$7/KOEF!$C$6 -> 333.3333333 | S40: =D40*KOEF!$L$28 -> 150 | U40: 0 | V40: 0 | Y40: 4100000
B41: 200000 | D41: 100000 | H41: =D41*KOEF!$C$7 -> 100 | I41: =D41^2*(KOEF!$C$7*(1-KOEF!$C$7)) -> 9990000 | J41: =D41^3*(KOEF!$C$7-3*KOEF!$C$7^2+2*KOEF!$C$7^3) -> 9.97002e+11 | L41: 100000 | M41: =L41*KOEF!$C$7 -> 100 | N41: =L41^2*(KOEF!$C$7*(1-KOEF!$C$7)) -> 9990000 | O41: =L41^3*(KOEF!$C$7-3*KOEF!$C$7^2+2*KOEF!$C$7^3) -> 9.97002e+11 | R41: =D41*KOEF!$C$7/KOEF!$C$6 -> 333.3333333 | S41: =D41*KOEF!$L$28 -> 150 | U41: 0 | V41: 0 | Y41: 4200000
B42: 200000 | D42: 100000 | H42: =D42*KOEF!$C$7 -> 100 | I42: =D42^2*(KOEF!$C$7*(1-KOEF!$C$7)) -> 9990000 | J42: =D42^3*(KOEF!$C$7-3*KOEF!$C$7^2+2*KOEF!$C$7^3) -> 9.97002e+11 | L42: 100000 | M42: =L42*KOEF!$C$7 -> 100 | N42: =L42^2*(KOEF!$C$7*(1-KOEF!$C$7)) -> 9990000 | O42: =L42^3*(KOEF!$C$7-3*KOEF!$C$7^2+2*KOEF!$C$7^3) -> 9.97002e+11 | R42: =D42*KOEF!$C$7/KOEF!$C$6 -> 333.3333333 | S42: =D42*KOEF!$L$28 -> 150 | U42: 0 | V42: 0 | Y42: 4300000
B43: 200000 | D43: 100000 | H43: =D43*KOEF!$C$7 -> 100 | I43: =D43^2*(KOEF!$C$7*(1-KOEF!$C$7)) -> 9990000 | J43: =D43^3*(KOEF!$C$7-3*KOEF!$C$7^2+2*KOEF!$C$7^3) -> 9.97002e+11 | L43: 100000 | M43: =L43*KOEF!$C$7 -> 100 | N43: =L43^2*(KOEF!$C$7*(1-KOEF!$C$7)) -> 9990000 | O43: =L43^3*(KOEF!$C$7-3*KOEF!$C$7^2+2*KOEF!$C$7^3) -> 9.97002e+11 | R43: =D43*KOEF!$C$7/KOEF!$C$6 -> 333.3333333 | S43: =D43*KOEF!$L$28 -> 150 | U43: 0 | V43: 0 | Y43: 4400000
B44: 220000 | D44: 100000 | H44: =D44*KOEF!$C$7 -> 100 | I44: =D44^2*(KOEF!$C$7*(1-KOEF!$C$7)) -> 9990000 | J44: =D44^3*(KOEF!$C$7-3*KOEF!$C$7^2+2*KOEF!$C$7^3) -> 9.97002e+11 | L44: 100000 | M44: =L44*KOEF!$C$7 -> 100 | N44: =L44^2*(KOEF!$C$7*(1-KOEF!$C$7)) -> 9990000 | O44: =L44^3*(KOEF!$C$7-3*KOEF!$C$7^2+2*KOEF!$C$7^3) -> 9.97002e+11 | R44: =D44*KOEF!$C$7/KOEF!$C$6 -> 333.3333333 | S44: =D44*KOEF!$L$28 -> 150 | U44: 0 | V44: 0 | Y44: 4500000
B45: 221483 | D45: 100000 | H45: =D45*KOEF!$C$7 -> 100 | I45: =D45^2*(KOEF!$C$7*(1-KOEF!$C$7)) -> 9990000 | J45: =D45^3*(KOEF!$C$7-3*KOEF!$C$7^2+2*KOEF!$C$7^3) -> 9.97002e+11 | L45: 100000 | M45: =L45*KOEF!$C$7 -> 100 | N45: =L45^2*(KOEF!$C$7*(1-KOEF!$C$7)) -> 9990000 | O45: =L45^3*(KOEF!$C$7-3*KOEF!$C$7^2+2*KOEF!$C$7^3) -> 9.97002e+11 | R45: =D45*KOEF!$C$7/KOEF!$C$6 -> 333.3333333 | S45: =D45*KOEF!$L$28 -> 150 | U45: 0 | V45: 0 | Y45: 4600000
B46: 223082 | D46: 100000 | H46: =D46*KOEF!$C$7 -> 100 | I46: =D46^2*(KOEF!$C$7*(1-KOEF!$C$7)) -> 9990000 | J46: =D46^3*(KOEF!$C$7-3*KOEF!$C$7^2+2*KOEF!$C$7^3) -> 9.97002e+11 | L46: 100000 | M46: =L46*KOEF!$C$7 -> 100 | N46: =L46^2*(KOEF!$C$7*(1-KOEF!$C$7)) -> 9990000 | O46: =L46^3*(KOEF!$C$7-3*KOEF!$C$7^2+2*KOEF!$C$7^3) -> 9.97002e+11 | R46: =D46*KOEF!$C$7/KOEF!$C$6 -> 333.3333333 | S46: =D46*KOEF!$L$28 -> 150 | U46: 0 | V46: 0 | Y46: 4700000
B47: 227912 | D47: 100000 | H47: =D47*KOEF!$C$7 -> 100 | I47: =D47^2*(KOEF!$C$7*(1-KOEF!$C$7)) -> 9990000 | J47: =D47^3*(KOEF!$C$7-3*KOEF!$C$7^2+2*KOEF!$C$7^3) -> 9.97002e+11 | L47: 100000 | M47: =L47*KOEF!$C$7 -> 100 | N47: =L47^2*(KOEF!$C$7*(1-KOEF!$C$7)) -> 9990000 | O47: =L47^3*(KOEF!$C$7-3*KOEF!$C$7^2+2*KOEF!$C$7^3) -> 9.97002e+11 | R47: =D47*KOEF!$C$7/KOEF!$C$6 -> 333.3333333 | S47: =D47*KOEF!$L$28 -> 150 | U47: 0 | V47: 0 | Y47: 4800000
B48: 250000 | D48: 100000 | H48: =D48*KOEF!$C$7 -> 100 | I48: =D48^2*(KOEF!$C$7*(1-KOEF!$C$7)) -> 9990000 | J48: =D48^3*(KOEF!$C$7-3*KOEF!$C$7^2+2*KOEF!$C$7^3) -> 9.97002e+11 | L48: 100000 | M48: =L48*KOEF!$C$7 -> 100 | N48: =L48^2*(KOEF!$C$7*(1-KOEF!$C$7)) -> 9990000 | O48: =L48^3*(KOEF!$C$7-3*KOEF!$C$7^2+2*KOEF!$C$7^3) -> 9.97002e+11 | R48: =D48*KOEF!$C$7/KOEF!$C$6 -> 333.3333333 | S48: =D48*KOEF!$L$28 -> 150 | U48: 0 | V48: 0 | Y48: 4900000
B49: 250000 | D49: 100000 | H49: =D49*KOEF!$C$7 -> 100 | I49: =D49^2*(KOEF!$C$7*(1-KOEF!$C$7)) -> 9990000 | J49: =D49^3*(KOEF!$C$7-3*KOEF!$C$7^2+2*KOEF!$C$7^3) -> 9.97002e+11 | L49: 100000 | M49: =L49*KOEF!$C$7 -> 100 | N49: =L49^2*(KOEF!$C$7*(1-KOEF!$C$7)) -> 9990000 | O49: =L49^3*(KOEF!$C$7-3*KOEF!$C$7^2+2*KOEF!$C$7^3) -> 9.97002e+11 | R49: =D49*KOEF!$C$7/KOEF!$C$6 -> 333.3333333 | S49: =D49*KOEF!$L$28 -> 150 | U49: 0 | V49: 0 | Y49: 5000000
B50: 250000 | D50: 100000 | H50: =D50*KOEF!$C$7 -> 100 | I50: =D50^2*(KOEF!$C$7*(1-KOEF!$C$7)) -> 9990000 | J50: =D50^3*(KOEF!$C$7-3*KOEF!$C$7^2+2*KOEF!$C$7^3) -> 9.97002e+11 | L50: 100000 | M50: =L50*KOEF!$C$7 -> 100 | N50: =L50^2*(KOEF!$C$7*(1-KOEF!$C$7)) -> 9990000 | O50: =L50^3*(KOEF!$C$7-3*KOEF!$C$7^2+2*KOEF!$C$7^3) -> 9.97002e+11 | R50: =D50*KOEF!$C$7/KOEF!$C$6 -> 333.3333333 | S50: =D50*KOEF!$L$28 -> 150 | U50: 0 | V50: 0 | Y50: 5100000
B51: 300000 | D51: 100000 | H51: =D51*KOEF!$C$7 -> 100 | I51: =D51^2*(KOEF!$C$7*(1-KOEF!$C$7)) -> 9990000 | J51: =D51^3*(KOEF!$C$7-3*KOEF!$C$7^2+2*KOEF!$C$7^3) -> 9.97002e+11 | L51: 100000 | M51: =L51*KOEF!$C$7 -> 100 | N51: =L51^2*(KOEF!$C$7*(1-KOEF!$C$7)) -> 9990000 | O51: =L51^3*(KOEF!$C$7-3*KOEF!$C$7^2+2*KOEF!$C$7^3) -> 9.97002e+11 | R51: =D51*KOEF!$C$7/KOEF!$C$6 -> 333.3333333 | S51: =D51*KOEF!$L$28 -> 150 | U51: 0 | V51: 0 | Y51: 5200000
B52: 300000 | D52: 100000 | H52: =D52*KOEF!$C$7 -> 100 | I52: =D52^2*(KOEF!$C$7*(1-KOEF!$C$7)) -> 9990000 | J52: =D52^3*(KOEF!$C$7-3*KOEF!$C$7^2+2*KOEF!$C$7^3) -> 9.97002e+11 | L52: 100000 | M52: =L52*KOEF!$C$7 -> 100 | N52: =L52^2*(KOEF!$C$7*(1-KOEF!$C$7)) -> 9990000 | O52: =L52^3*(KOEF!$C$7-3*KOEF!$C$7^2+2*KOEF!$C$7^3) -> 9.97002e+11 | R52: =D52*KOEF!$C$7/KOEF!$C$6 -> 333.3333333 | S52: =D52*KOEF!$L$28 -> 150 | U52: 0 | V52: 0 | Y52: 5300000
B53: 300000 | D53: 100000 | H53: =D53*KOEF!$C$7 -> 100 | I53: =D53^2*(KOEF!$C$7*(1-KOEF!$C$7)) -> 9990000 | J53: =D53^3*(KOEF!$C$7-3*KOEF!$C$7^2+2*KOEF!$C$7^3) -> 9.97002e+11 | L53: 100000 | M53: =L53*KOEF!$C$7 -> 100 | N53: =L53^2*(KOEF!$C$7*(1-KOEF!$C$7)) -> 9990000 | O53: =L53^3*(KOEF!$C$7-3*KOEF!$C$7^2+2*KOEF!$C$7^3) -> 9.97002e+11 | R53: =D53*KOEF!$C$7/KOEF!$C$6 -> 333.3333333 | S53: =D53*KOEF!$L$28 -> 150 | U53: 0 | V53: 0 | Y53: 5400000
B54: 350000 | D54: 100000 | H54: =D54*KOEF!$C$7 -> 100 | I54: =D54^2*(KOEF!$C$7*(1-KOEF!$C$7)) -> 9990000 | J54: =D54^3*(KOEF!$C$7-3*KOEF!$C$7^2+2*KOEF!$C$7^3) -> 9.97002e+11 | L54: 100000 | M54: =L54*KOEF!$C$7 -> 100 | N54: =L54^2*(KOEF!$C$7*(1-KOEF!$C$7)) -> 9990000 | O54: =L54^3*(KOEF!$C$7-3*KOEF!$C$7^2+2*KOEF!$C$7^3) -> 9.97002e+11 | R54: =D54*KOEF!$C$7/KOEF!$C$6 -> 333.3333333 | S54: =D54*KOEF!$L$28 -> 150 | U54: 0 | V54: 0 | Y54: 5500000
B55: 400000 | D55: 100000 | H55: =D55*KOEF!$C$7 -> 100 | I55: =D55^2*(KOEF!$C$7*(1-KOEF!$C$7)) -> 9990000 | J55: =D55^3*(KOEF!$C$7-3*KOEF!$C$7^2+2*KOEF!$C$7^3) -> 9.97002e+11 | L55: 100000 | M55: =L55*KOEF!$C$7 -> 100 | N55: =L55^2*(KOEF!$C$7*(1-KOEF!$C$7)) -> 9990000 | O55: =L55^3*(KOEF!$C$7-3*KOEF!$C$7^2+2*KOEF!$C$7^3) -> 9.97002e+11 | R55: =D55*KOEF!$C$7/KOEF!$C$6 -> 333.3333333 | S55: =D55*KOEF!$L$28 -> 150 | U55: 0 | V55: 0 | Y55: 5600000
B56: 497169 | D56: 100000 | H56: =D56*KOEF!$C$7 -> 100 | I56: =D56^2*(KOEF!$C$7*(1-KOEF!$C$7)) -> 9990000 | J56: =D56^3*(KOEF!$C$7-3*KOEF!$C$7^2+2*KOEF!$C$7^3) -> 9.97002e+11 | L56: 100000 | M56: =L56*KOEF!$C$7 -> 100 | N56: =L56^2*(KOEF!$C$7*(1-KOEF!$C$7)) -> 9990000 | O56: =L56^3*(KOEF!$C$7-3*KOEF!$C$7^2+2*KOEF!$C$7^3) -> 9.97002e+11 | R56: =D56*KOEF!$C$7/KOEF!$C$6 -> 333.3333333 | S56: =D56*KOEF!$L$28 -> 150 | U56: 0 | V56: 0 | Y56: 5700000
B57: 500000 | D57: 100000 | H57: =D57*KOEF!$C$7 -> 100 | I57: =D57^2*(KOEF!$C$7*(1-KOEF!$C$7)) -> 9990000 | J57: =D57^3*(KOEF!$C$7-3*KOEF!$C$7^2+2*KOEF!$C$7^3) -> 9.97002e+11 | L57: 100000 | M57: =L57*KOEF!$C$7 -> 100 | N57: =L57^2*(KOEF!$C$7*(1-KOEF!$C$7)) -> 9990000 | O57: =L57^3*(KOEF!$C$7-3*KOEF!$C$7^2+2*KOEF!$C$7^3) -> 9.97002e+11 | R57: =D57*KOEF!$C$7/KOEF!$C$6 -> 333.3333333 | S57: =D57*KOEF!$L$28 -> 150 | U57: 0 | V57: 0 | Y57: 5800000
B58: 500000 | D58: 100000 | H58: =D58*KOEF!$C$7 -> 100 | I58: =D58^2*(KOEF!$C$7*(1-KOEF!$C$7)) -> 9990000 | J58: =D58^3*(KOEF!$C$7-3*KOEF!$C$7^2+2*KOEF!$C$7^3) -> 9.97002e+11 | L58: 100000 | M58: =L58*KOEF!$C$7 -> 100 | N58: =L58^2*(KOEF!$C$7*(1-KOEF!$C$7)) -> 9990000 | O58: =L58^3*(KOEF!$C$7-3*KOEF!$C$7^2+2*KOEF!$C$7^3) -> 9.97002e+11 | R58: =D58*KOEF!$C$7/KOEF!$C$6 -> 333.3333333 | S58: =D58*KOEF!$L$28 -> 150 | U58: 0 | V58: 0 | Y58: 5900000
B59: 510500 | D59: 100000 | H59: =D59*KOEF!$C$7 -> 100 | I59: =D59^2*(KOEF!$C$7*(1-KOEF!$C$7)) -> 9990000 | J59: =D59^3*(KOEF!$C$7-3*KOEF!$C$7^2+2*KOEF!$C$7^3) -> 9.97002e+11 | L59: 100000 | M59: =L59*KOEF!$C$7 -> 100 | N59: =L59^2*(KOEF!$C$7*(1-KOEF!$C$7)) -> 9990000 | O59: =L59^3*(KOEF!$C$7-3*KOEF!$C$7^2+2*KOEF!$C$7^3) -> 9.97002e+11 | R59: =D59*KOEF!$C$7/KOEF!$C$6 -> 333.3333333 | S59: =D59*KOEF!$L$28 -> 150 | U59: 0 | V59: 0 | Y59: 6000000
B60: 532923 | D60: 100000 | H60: =D60*KOEF!$C$7 -> 100 | I60: =D60^2*(KOEF!$C$7*(1-KOEF!$C$7)) -> 9990000 | J60: =D60^3*(KOEF!$C$7-3*KOEF!$C$7^2+2*KOEF!$C$7^3) -> 9.97002e+11 | L60: 100000 | M60: =L60*KOEF!$C$7 -> 100 | N60: =L60^2*(KOEF!$C$7*(1-KOEF!$C$7)) -> 9990000 | O60: =L60^3*(KOEF!$C$7-3*KOEF!$C$7^2+2*KOEF!$C$7^3) -> 9.97002e+11 | R60: =D60*KOEF!$C$7/KOEF!$C$6 -> 333.3333333 | S60: =D60*KOEF!$L$28 -> 150 | U60: 0 | V60: 0 | Y60: 6100000
B61: 539991.9 | D61: 100000 | H61: =D61*KOEF!$C$7 -> 100 | I61: =D61^2*(KOEF!$C$7*(1-KOEF!$C$7)) -> 9990000 | J61: =D61^3*(KOEF!$C$7-3*KOEF!$C$7^2+2*KOEF!$C$7^3) -> 9.97002e+11 | L61: 100000 | M61: =L61*KOEF!$C$7 -> 100 | N61: =L61^2*(KOEF!$C$7*(1-KOEF!$C$7)) -> 9990000 | O61: =L61^3*(KOEF!$C$7-3*KOEF!$C$7^2+2*KOEF!$C$7^3) -> 9.97002e+11 | R61: =D61*KOEF!$C$7/KOEF!$C$6 -> 333.3333333 | S61: =D61*KOEF!$L$28 -> 150 | U61: 0 | V61: 0 | Y61: 6200000
B62: 553500 | D62: 100000 | H62: =D62*KOEF!$C$7 -> 100 | I62: =D62^2*(KOEF!$C$7*(1-KOEF!$C$7)) -> 9990000 | J62: =D62^3*(KOEF!$C$7-3*KOEF!$C$7^2+2*KOEF!$C$7^3) -> 9.97002e+11 | L62: 100000 | M62: =L62*KOEF!$C$7 -> 100 | N62: =L62^2*(KOEF!$C$7*(1-KOEF!$C$7)) -> 9990000 | O62: =L62^3*(KOEF!$C$7-3*KOEF!$C$7^2+2*KOEF!$C$7^3) -> 9.97002e+11 | R62: =D62*KOEF!$C$7/KOEF!$C$6 -> 333.3333333 | S62: =D62*KOEF!$L$28 -> 150 | U62: 0 | V62: 0 | Y62: 6300000
B63: 553500 | D63: 100000 | H63: =D63*KOEF!$C$7 -> 100 | I63: =D63^2*(KOEF!$C$7*(1-KOEF!$C$7)) -> 9990000 | J63: =D63^3*(KOEF!$C$7-3*KOEF!$C$7^2+2*KOEF!$C$7^3) -> 9.97002e+11 | L63: 100000 | M63: =L63*KOEF!$C$7 -> 100 | N63: =L63^2*(KOEF!$C$7*(1-KOEF!$C$7)) -> 9990000 | O63: =L63^3*(KOEF!$C$7-3*KOEF!$C$7^2+2*KOEF!$C$7^3) -> 9.97002e+11 | R63: =D63*KOEF!$C$7/KOEF!$C$6 -> 333.3333333 | S63: =D63*KOEF!$L$28 -> 150 | U63: 0 | V63: 0 | Y63: 6400000
B64: 565900 | D64: 100000 | H64: =D64*KOEF!$C$7 -> 100 | I64: =D64^2*(KOEF!$C$7*(1-KOEF!$C$7)) -> 9990000 | J64: =D64^3*(KOEF!$C$7-3*KOEF!$C$7^2+2*KOEF!$C$7^3) -> 9.97002e+11 | L64: 100000 | M64: =L64*KOEF!$C$7 -> 100 | N64: =L64^2*(KOEF!$C$7*(1-KOEF!$C$7)) -> 9990000 | O64: =L64^3*(KOEF!$C$7-3*KOEF!$C$7^2+2*KOEF!$C$7^3) -> 9.97002e+11 | R64: =D64*KOEF!$C$7/KOEF!$C$6 -> 333.3333333 | S64: =D64*KOEF!$L$28 -> 150 | U64: 0 | V64: 0 | Y64: 6500000
B65: 590240 | D65: 100000 | H65: =D65*KOEF!$C$7 -> 100 | I65: =D65^2*(KOEF!$C$7*(1-KOEF!$C$7)) -> 9990000 | J65: =D65^3*(KOEF!$C$7-3*KOEF!$C$7^2+2*KOEF!$C$7^3) -> 9.97002e+11 | L65: 100000 | M65: =L65*KOEF!$C$7 -> 100 | N65: =L65^2*(KOEF!$C$7*(1-KOEF!$C$7)) -> 9990000 | O65: =L65^3*(KOEF!$C$7-3*KOEF!$C$7^2+2*KOEF!$C$7^3) -> 9.97002e+11 | R65: =D65*KOEF!$C$7/KOEF!$C$6 -> 333.3333333 | S65: =D65*KOEF!$L$28 -> 150 | U65: 0 | V65: 0 | Y65: 6600000
B66: 600000 | D66: 100000 | H66: =D66*KOEF!$C$7 -> 100 | I66: =D66^2*(KOEF!$C$7*(1-KOEF!$C$7)) -> 9990000 | J66: =D66^3*(KOEF!$C$7-3*KOEF!$C$7^2+2*KOEF!$C$7^3) -> 9.97002e+11 | L66: 100000 | M66: =L66*KOEF!$C$7 -> 100 | N66: =L66^2*(KOEF!$C$7*(1-KOEF!$C$7)) -> 9990000 | O66: =L66^3*(KOEF!$C$7-3*KOEF!$C$7^2+2*KOEF!$C$7^3) -> 9.97002e+11 | R66: =D66*KOEF!$C$7/KOEF!$C$6 -> 333.3333333 | S66: =D66*KOEF!$L$28 -> 150 | U66: 0 | V66: 0 | Y66: 6700000
B67: 774664 | D67: 100000 | H67: =D67*KOEF!$C$7 -> 100 | I67: =D67^2*(KOEF!$C$7*(1-KOEF!$C$7)) -> 9990000 | J67: =D67^3*(KOEF!$C$7-3*KOEF!$C$7^2+2*KOEF!$C$7^3) -> 9.97002e+11 | L67: 100000 | M67: =L67*KOEF!$C$7 -> 100 | N67: =L67^2*(KOEF!$C$7*(1-KOEF!$C$7)) -> 9990000 | O67: =L67^3*(KOEF!$C$7-3*KOEF!$C$7^2+2*KOEF!$C$7^3) -> 9.97002e+11 | R67: =D67*KOEF!$C$7/KOEF!$C$6 -> 333.3333333 | S67: =D67*KOEF!$L$28 -> 150 | U67: 0 | V67: 0 | Y67: 6800000
B68: 1000000 | D68: 100000 | H68: =D68*KOEF!$C$7 -> 100 | I68: =D68^2*(KOEF!$C$7*(1-KOEF!$C$7)) -> 9990000 | J68: =D68^3*(KOEF!$C$7-3*KOEF!$C$7^2+2*KOEF!$C$7^3) -> 9.97002e+11 | L68: 100000 | M68: =L68*KOEF!$C$7 -> 100 | N68: =L68^2*(KOEF!$C$7*(1-KOEF!$C$7)) -> 9990000 | O68: =L68^3*(KOEF!$C$7-3*KOEF!$C$7^2+2*KOEF!$C$7^3) -> 9.97002e+11 | R68: =D68*KOEF!$C$7/KOEF!$C$6 -> 333.3333333 | S68: =D68*KOEF!$L$28 -> 150 | U68: 0 | V68: 0 | Y68: 6900000
B69: 1000000 | D69: 100000 | H69: =D69*KOEF!$C$7 -> 100 | I69: =D69^2*(KOEF!$C$7*(1-KOEF!$C$7)) -> 9990000 | J69: =D69^3*(KOEF!$C$7-3*KOEF!$C$7^2+2*KOEF!$C$7^3) -> 9.97002e+11 | L69: 100000 | M69: =L69*KOEF!$C$7 -> 100 | N69: =L69^2*(KOEF!$C$7*(1-KOEF!$C$7)) -> 9990000 | O69: =L69^3*(KOEF!$C$7-3*KOEF!$C$7^2+2*KOEF!$C$7^3) -> 9.97002e+11 | R69: =D69*KOEF!$C$7/KOEF!$C$6 -> 333.3333333 | S69: =D69*KOEF!$L$28 -> 150 | U69: 0 | V69: 0 | Y69: 7000000
B70: 1000000 | D70: 100000 | H70: =D70*KOEF!$C$7 -> 100 | I70: =D70^2*(KOEF!$C$7*(1-KOEF!$C$7)) -> 9990000 | J70: =D70^3*(KOEF!$C$7-3*KOEF!$C$7^2+2*KOEF!$C$7^3) -> 9.97002e+11 | L70: 100000 | M70: =L70*KOEF!$C$7 -> 100 | N70: =L70^2*(KOEF!$C$7*(1-KOEF!$C$7)) -> 9990000 | O70: =L70^3*(KOEF!$C$7-3*KOEF!$C$7^2+2*KOEF!$C$7^3) -> 9.97002e+11 | R70: =D70*KOEF!$C$7/KOEF!$C$6 -> 333.3333333 | S70: =D70*KOEF!$L$28 -> 150 | U70: =R70*MAX((D70-$P$1),0)/D70 -> 0 | V70: =S70*MAX((D70-$P$1),0)/D70 -> 0 | Y70: 7100000
B71: 1500000 | D71: 100000 | H71: =D71*KOEF!$C$7 -> 100 | I71: =D71^2*(KOEF!$C$7*(1-KOEF!$C$7)) -> 9990000 | J71: =D71^3*(KOEF!$C$7-3*KOEF!$C$7^2+2*KOEF!$C$7^3) -> 9.97002e+11 | L71: =MIN(D71,$P$1) -> 100000 | M71: =L71*KOEF!$C$7 -> 100 | N71: =L71^2*(KOEF!$C$7*(1-KOEF!$C$7)) -> 9990000 | O71: =L71^3*(KOEF!$C$7-3*KOEF!$C$7^2+2*KOEF!$C$7^3) -> 9.97002e+11 | R71: =D71*KOEF!$C$7/KOEF!$C$6 -> 333.3333333 | S71: =D71*KOEF!$L$28 -> 150 | U71: 0 | V71: 0 | Y71: 7200000
D72: 100000 | H72: =D72*KOEF!$C$7 -> 100 | I72: =D72^2*(KOEF!$C$7*(1-KOEF!$C$7)) -> 9990000 | J72: =D72^3*(KOEF!$C$7-3*KOEF!$C$7^2+2*KOEF!$C$7^3) -> 9.97002e+11 | L72: 100000 | M72: =L72*KOEF!$C$7 -> 100 | N72: =L72^2*(KOEF!$C$7*(1-KOEF!$C$7)) -> 9990000 | O72: =L72^3*(KOEF!$C$7-3*KOEF!$C$7^2+2*KOEF!$C$7^3) -> 9.97002e+11 | R72: =D72*KOEF!$C$7/KOEF!$C$6 -> 333.3333333 | S72: =D72*KOEF!$L$28 -> 150 | U72: 0 | V72: 0 | Y72: 7300000
D73: 100000 | H73: =D73*KOEF!$C$7 -> 100 | I73: =D73^2*(KOEF!$C$7*(1-KOEF!$C$7)) -> 9990000 | J73: =D73^3*(KOEF!$C$7-3*KOEF!$C$7^2+2*KOEF!$C$7^3) -> 9.97002e+11 | L73: 100000 | M73: =L73*KOEF!$C$7 -> 100 | N73: =L73^2*(KOEF!$C$7*(1-KOEF!$C$7)) -> 9990000 | O73: =L73^3*(KOEF!$C$7-3*KOEF!$C$7^2+2*KOEF!$C$7^3) -> 9.97002e+11 | R73: =D73*KOEF!$C$7/KOEF!$C$6 -> 333.3333333 | S73: =D73*KOEF!$L$28 -> 150 | U73: 0 | V73: 0 | Y73: 7400000
D74: 100000 | H74: =D74*KOEF!$C$7 -> 100 | I74: =D74^2*(KOEF!$C$7*(1-KOEF!$C$7)) -> 9990000 | J74: =D74^3*(KOEF!$C$7-3*KOEF!$C$7^2+2*KOEF!$C$7^3) -> 9.97002e+11 | L74: 100000 | M74: =L74*KOEF!$C$7 -> 100 | N74: =L74^2*(KOEF!$C$7*(1-KOEF!$C$7)) -> 9990000 | O74: =L74^3*(KOEF!$C$7-3*KOEF!$C$7^2+2*KOEF!$C$7^3) -> 9.97002e+11 | R74: =D74*KOEF!$C$7/KOEF!$C$6 -> 333.3333333 | S74: =D74*KOEF!$L$28 -> 150 | U74: 0 | V74: 0 | Y74: 7500000
D75: 100000 | H75: =D75*KOEF!$C$7 -> 100 | I75: =D75^2*(KOEF!$C$7*(1-KOEF!$C$7)) -> 9990000 | J75: =D75^3*(KOEF!$C$7-3*KOEF!$C$7^2+2*KOEF!$C$7^3) -> 9.97002e+11 | L75: 100000 | M75: =L75*KOEF!$C$7 -> 100 | N75: =L75^2*(KOEF!$C$7*(1-KOEF!$C$7)) -> 9990000 | O75: =L75^3*(KOEF!$C$7-3*KOEF!$C$7^2+2*KOEF!$C$7^3) -> 9.97002e+11 | R75: =D75*KOEF!$C$7/KOEF!$C$6 -> 333.3333333 | S75: =D75*KOEF!$L$28 -> 150 | U75: 0 | V75: 0 | Y75: 7600000
D76: 100000 | H76: =D76*KOEF!$C$7 -> 100 | I76: =D76^2*(KOEF!$C$7*(1-KOEF!$C$7)) -> 9990000 | J76: =D76^3*(KOEF!$C$7-3*KOEF!$C$7^2+2*KOEF!$C$7^3) -> 9.97002e+11 | L76: 100000 | M76: =L76*KOEF!$C$7 -> 100 | N76: =L76^2*(KOEF!$C$7*(1-KOEF!$C$7)) -> 9990000 | O76: =L76^3*(KOEF!$C$7-3*KOEF!$C$7^2+2*KOEF!$C$7^3) -> 9.97002e+11 | R76: =D76*KOEF!$C$7/KOEF!$C$6 -> 333.3333333 | S76: =D76*KOEF!$L$28 -> 150 | U76: 0 | V76: 0 | Y76: 7700000
D77: 100000 | H77: =D77*KOEF!$C$7 -> 100 | I77: =D77^2*(KOEF!$C$7*(1-KOEF!$C$7)) -> 9990000 | J77: =D77^3*(KOEF!$C$7-3*KOEF!$C$7^2+2*KOEF!$C$7^3) -> 9.97002e+11 | L77: 100000 | M77: =L77*KOEF!$C$7 -> 100 | N77: =L77^2*(KOEF!$C$7*(1-KOEF!$C$7)) -> 9990000 | O77: =L77^3*(KOEF!$C$7-3*KOEF!$C$7^2+2*KOEF!$C$7^3) -> 9.97002e+11 | R77: =D77*KOEF!$C$7/KOEF!$C$6 -> 333.3333333 | S77: =D77*KOEF!$L$28 -> 150 | U77: 0 | V77: 0 | Y77: 7800000
D78: 100000 | H78: =D78*KOEF!$C$7 -> 100 | I78: =D78^2*(KOEF!$C$7*(1-KOEF!$C$7)) -> 9990000 | J78: =D78^3*(KOEF!$C$7-3*KOEF!$C$7^2+2*KOEF!$C$7^3) -> 9.97002e+11 | L78: 100000 | M78: =L78*KOEF!$C$7 -> 100 | N78: =L78^2*(KOEF!$C$7*(1-KOEF!$C$7)) -> 9990000 | O78: =L78^3*(KOEF!$C$7-3*KOEF!$C$7^2+2*KOEF!$C$7^3) -> 9.97002e+11 | R78: =D78*KOEF!$C$7/KOEF!$C$6 -> 333.3333333 | S78: =D78*KOEF!$L$28 -> 150 | U78: 0 | V78: 0 | Y78: 7900000
D79: 100000 | H79: =D79*KOEF!$C$7 -> 100 | I79: =D79^2*(KOEF!$C$7*(1-KOEF!$C$7)) -> 9990000 | J79: =D79^3*(KOEF!$C$7-3*KOEF!$C$7^2+2*KOEF!$C$7^3) -> 9.97002e+11 | L79: 100000 | M79: =L79*KOEF!$C$7 -> 100 | N79: =L79^2*(KOEF!$C$7*(1-KOEF!$C$7)) -> 9990000 | O79: =L79^3*(KOEF!$C$7-3*KOEF!$C$7^2+2*KOEF!$C$7^3) -> 9.97002e+11 | R79: =D79*KOEF!$C$7/KOEF!$C$6 -> 333.3333333 | S79: =D79*KOEF!$L$28 -> 150 | U79: 0 | V79: 0 | Y79: 8000000
D80: 100000 | H80: =D80*KOEF!$C$7 -> 100 | I80: =D80^2*(KOEF!$C$7*(1-KOEF!$C$7)) -> 9990000 | J80: =D80^3*(KOEF!$C$7-3*KOEF!$C$7^2+2*KOEF!$C$7^3) -> 9.97002e+11 | L80: 100000 | M80: =L80*KOEF!$C$7 -> 100 | N80: =L80^2*(KOEF!$C$7*(1-KOEF!$C$7)) -> 9990000 | O80: =L80^3*(KOEF!$C$7-3*KOEF!$C$7^2+2*KOEF!$C$7^3) -> 9.97002e+11 | R80: =D80*KOEF!$C$7/KOEF!$C$6 -> 333.3333333 | S80: =D80*KOEF!$L$28 -> 150 | U80: 0 | V80: 0 | Y80: 8100000
D81: 100000 | H81: =D81*KOEF!$C$7 -> 100 | I81: =D81^2*(KOEF!$C$7*(1-KOEF!$C$7)) -> 9990000 | J81: =D81^3*(KOEF!$C$7-3*KOEF!$C$7^2+2*KOEF!$C$7^3) -> 9.97002e+11 | L81: 100000 | M81: =L81*KOEF!$C$7 -> 100 | N81: =L81^2*(KOEF!$C$7*(1-KOEF!$C$7)) -> 9990000 | O81: =L81^3*(KOEF!$C$7-3*KOEF!$C$7^2+2*KOEF!$C$7^3) -> 9.97002e+11 | R81: =D81*KOEF!$C$7/KOEF!$C$6 -> 333.3333333 | S81: =D81*KOEF!$L$28 -> 150 | U81: 0 | V81: 0 | Y81: 8200000
D82: 100000 | H82: =D82*KOEF!$C$7 -> 100 | I82: =D82^2*(KOEF!$C$7*(1-KOEF!$C$7)) -> 9990000 | J82: =D82^3*(KOEF!$C$7-3*KOEF!$C$7^2+2*KOEF!$C$7^3) -> 9.97002e+11 | L82: 100000 | M82: =L82*KOEF!$C$7 -> 100 | N82: =L82^2*(KOEF!$C$7*(1-KOEF!$C$7)) -> 9990000 | O82: =L82^3*(KOEF!$C$7-3*KOEF!$C$7^2+2*KOEF!$C$7^3) -> 9.97002e+11 | R82: =D82*KOEF!$C$7/KOEF!$C$6 -> 333.3333333 | S82: =D82*KOEF!$L$28 -> 150 | U82: 0 | V82: 0 | Y82: 8300000
D83: 100000 | H83: =D83*KOEF!$C$7 -> 100 | I83: =D83^2*(KOEF!$C$7*(1-KOEF!$C$7)) -> 9990000 | J83: =D83^3*(KOEF!$C$7-3*KOEF!$C$7^2+2*KOEF!$C$7^3) -> 9.97002e+11 | L83: 100000 | M83: =L83*KOEF!$C$7 -> 100 | N83: =L83^2*(KOEF!$C$7*(1-KOEF!$C$7)) -> 9990000 | O83: =L83^3*(KOEF!$C$7-3*KOEF!$C$7^2+2*KOEF!$C$7^3) -> 9.97002e+11 | R83: =D83*KOEF!$C$7/KOEF!$C$6 -> 333.3333333 | S83: =D83*KOEF!$L$28 -> 150 | U83: 0 | V83: 0 | Y83: 8400000
D84: 100000 | H84: =D84*KOEF!$C$7 -> 100 | I84: =D84^2*(KOEF!$C$7*(1-KOEF!$C$7)) -> 9990000 | J84: =D84^3*(KOEF!$C$7-3*KOEF!$C$7^2+2*KOEF!$C$7^3) -> 9.97002e+11 | L84: 100000 | M84: =L84*KOEF!$C$7 -> 100 | N84: =L84^2*(KOEF!$C$7*(1-KOEF!$C$7)) -> 9990000 | O84: =L84^3*(KOEF!$C$7-3*KOEF!$C$7^2+2*KOEF!$C$7^3) -> 9.97002e+11 | R84: =D84*KOEF!$C$7/KOEF!$C$6 -> 333.3333333 | S84: =D84*KOEF!$L$28 -> 150 | U84: 0 | V84: 0 | Y84: 8500000
D85: 100000 | H85: =D85*KOEF!$C$7 -> 100 | I85: =D85^2*(KOEF!$C$7*(1-KOEF!$C$7)) -> 9990000 | J85: =D85^3*(KOEF!$C$7-3*KOEF!$C$7^2+2*KOEF!$C$7^3) -> 9.97002e+11 | L85: 100000 | M85: =L85*KOEF!$C$7 -> 100 | N85: =L85^2*(KOEF!$C$7*(1-KOEF!$C$7)) -> 9990000 | O85: =L85^3*(KOEF!$C$7-3*KOEF!$C$7^2+2*KOEF!$C$7^3) -> 9.97002e+11 | R85: =D85*KOEF!$C$7/KOEF!$C$6 -> 333.3333333 | S85: =D85*KOEF!$L$28 -> 150 | U85: 0 | V85: 0 | Y85: 8600000
D86: 100000 | H86: =D86*KOEF!$C$7 -> 100 | I86: =D86^2*(KOEF!$C$7*(1-KOEF!$C$7)) -> 9990000 | J86: =D86^3*(KOEF!$C$7-3*KOEF!$C$7^2+2*KOEF!$C$7^3) -> 9.97002e+11 | L86: 100000 | M86: =L86*KOEF!$C$7 -> 100 | N86: =L86^2*(KOEF!$C$7*(1-KOEF!$C$7)) -> 9990000 | O86: =L86^3*(KOEF!$C$7-3*KOEF!$C$7^2+2*KOEF!$C$7^3) -> 9.97002e+11 | R86: =D86*KOEF!$C$7/KOEF!$C$6 -> 333.3333333 | S86: =D86*KOEF!$L$28 -> 150 | U86: 0 | V86: 0 | Y86: 8700000
D87: 100000 | H87: =D87*KOEF!$C$7 -> 100 | I87: =D87^2*(KOEF!$C$7*(1-KOEF!$C$7)) -> 9990000 | J87: =D87^3*(KOEF!$C$7-3*KOEF!$C$7^2+2*KOEF!$C$7^3) -> 9.97002e+11 | L87: 100000 | M87: =L87*KOEF!$C$7 -> 100 | N87: =L87^2*(KOEF!$C$7*(1-KOEF!$C$7)) -> 9990000 | O87: =L87^3*(KOEF!$C$7-3*KOEF!$C$7^2+2*KOEF!$C$7^3) -> 9.97002e+11 | R87: =D87*KOEF!$C$7/KOEF!$C$6 -> 333.3333333 | S87: =D87*KOEF!$L$28 -> 150 | U87: 0 | V87: 0 | Y87: 8800000
D88: 100000 | H88: =D88*KOEF!$C$7 -> 100 | I88: =D88^2*(KOEF!$C$7*(1-KOEF!$C$7)) -> 9990000 | J88: =D88^3*(KOEF!$C$7-3*KOEF!$C$7^2+2*KOEF!$C$7^3) -> 9.97002e+11 | L88: 100000 | M88: =L88*KOEF!$C$7 -> 100 | N88: =L88^2*(KOEF!$C$7*(1-KOEF!$C$7)) -> 9990000 | O88: =L88^3*(KOEF!$C$7-3*KOEF!$C$7^2+2*KOEF!$C$7^3) -> 9.97002e+11 | R88: =D88*KOEF!$C$7/KOEF!$C$6 -> 333.3333333 | S88: =D88*KOEF!$L$28 -> 150 | U88: 0 | V88: 0 | Y88: 8900000
D89: 100000 | H89: =D89*KOEF!$C$7 -> 100 | I89: =D89^2*(KOEF!$C$7*(1-KOEF!$C$7)) -> 9990000 | J89: =D89^3*(KOEF!$C$7-3*KOEF!$C$7^2+2*KOEF!$C$7^3) -> 9.97002e+11 | L89: 100000 | M89: =L89*KOEF!$C$7 -> 100 | N89: =L89^2*(KOEF!$C$7*(1-KOEF!$C$7)) -> 9990000 | O89: =L89^3*(KOEF!$C$7-3*KOEF!$C$7^2+2*KOEF!$C$7^3) -> 9.97002e+11 | R89: =D89*KOEF!$C$7/KOEF!$C$6 -> 333.3333333 | S89: =D89*KOEF!$L$28 -> 150 | U89: 0 | V89: 0 | Y89: 9000000
D90: 100000 | H90: =D90*KOEF!$C$7 -> 100 | I90: =D90^2*(KOEF!$C$7*(1-KOEF!$C$7)) -> 9990000 | J90: =D90^3*(KOEF!$C$7-3*KOEF!$C$7^2+2*KOEF!$C$7^3) -> 9.97002e+11 | L90: 100000 | M90: =L90*KOEF!$C$7 -> 100 | N90: =L90^2*(KOEF!$C$7*(1-KOEF!$C$7)) -> 9990000 | O90: =L90^3*(KOEF!$C$7-3*KOEF!$C$7^2+2*KOEF!$C$7^3) -> 9.97002e+11 | R90: =D90*KOEF!$C$7/KOEF!$C$6 -> 333.3333333 | S90: =D90*KOEF!$L$28 -> 150 | U90: 0 | V90: 0 | Y90: 9100000
D91: 100000 | H91: =D91*KOEF!$C$7 -> 100 | I91: =D91^2*(KOEF!$C$7*(1-KOEF!$C$7)) -> 9990000 | J91: =D91^3*(KOEF!$C$7-3*KOEF!$C$7^2+2*KOEF!$C$7^3) -> 9.97002e+11 | L91: 100000 | M91: =L91*KOEF!$C$7 -> 100 | N91: =L91^2*(KOEF!$C$7*(1-KOEF!$C$7)) -> 9990000 | O91: =L91^3*(KOEF!$C$7-3*KOEF!$C$7^2+2*KOEF!$C$7^3) -> 9.97002e+11 | R91: =D91*KOEF!$C$7/KOEF!$C$6 -> 333.3333333 | S91: =D91*KOEF!$L$28 -> 150 | U91: 0 | V91: 0 | Y91: 9200000
D92: 100000 | H92: =D92*KOEF!$C$7 -> 100 | I92: =D92^2*(KOEF!$C$7*(1-KOEF!$C$7)) -> 9990000 | J92: =D92^3*(KOEF!$C$7-3*KOEF!$C$7^2+2*KOEF!$C$7^3) -> 9.97002e+11 | L92: 100000 | M92: =L92*KOEF!$C$7 -> 100 | N92: =L92^2*(KOEF!$C$7*(1-KOEF!$C$7)) -> 9990000 | O92: =L92^3*(KOEF!$C$7-3*KOEF!$C$7^2+2*KOEF!$C$7^3) -> 9.97002e+11 | R92: =D92*KOEF!$C$7/KOEF!$C$6 -> 333.3333333 | S92: =D92*KOEF!$L$28 -> 150 | U92: 0 | V92: 0 | Y92: 9300000
D93: 100000 | H93: =D93*KOEF!$C$7 -> 100 | I93: =D93^2*(KOEF!$C$7*(1-KOEF!$C$7)) -> 9990000 | J93: =D93^3*(KOEF!$C$7-3*KOEF!$C$7^2+2*KOEF!$C$7^3) -> 9.97002e+11 | L93: 100000 | M93: =L93*KOEF!$C$7 -> 100 | N93: =L93^2*(KOEF!$C$7*(1-KOEF!$C$7)) -> 9990000 | O93: =L93^3*(KOEF!$C$7-3*KOEF!$C$7^2+2*KOEF!$C$7^3) -> 9.97002e+11 | R93: =D93*KOEF!$C$7/KOEF!$C$6 -> 333.3333333 | S93: =D93*KOEF!$L$28 -> 150 | U93: 0 | V93: 0 | Y93: 9400000
D94: 100000 | H94: =D94*KOEF!$C$7 -> 100 | I94: =D94^2*(KOEF!$C$7*(1-KOEF!$C$7)) -> 9990000 | J94: =D94^3*(KOEF!$C$7-3*KOEF!$C$7^2+2*KOEF!$C$7^3) -> 9.97002e+11 | L94: 100000 | M94: =L94*KOEF!$C$7 -> 100 | N94: =L94^2*(KOEF!$C$7*(1-KOEF!$C$7)) -> 9990000 | O94: =L94^3*(KOEF!$C$7-3*KOEF!$C$7^2+2*KOEF!$C$7^3) -> 9.97002e+11 | R94: =D94*KOEF!$C$7/KOEF!$C$6 -> 333.3333333 | S94: =D94*KOEF!$L$28 -> 150 | U94: 0 | V94: 0 | Y94: 9500000
D95: 100000 | H95: =D95*KOEF!$C$7 -> 100 | I95: =D95^2*(KOEF!$C$7*(1-KOEF!$C$7)) -> 9990000 | J95: =D95^3*(KOEF!$C$7-3*KOEF!$C$7^2+2*KOEF!$C$7^3) -> 9.97002e+11 | L95: 100000 | M95: =L95*KOEF!$C$7 -> 100 | N95: =L95^2*(KOEF!$C$7*(1-KOEF!$C$7)) -> 9990000 | O95: =L95^3*(KOEF!$C$7-3*KOEF!$C$7^2+2*KOEF!$C$7^3) -> 9.97002e+11 | R95: =D95*KOEF!$C$7/KOEF!$C$6 -> 333.3333333 | S95: =D95*KOEF!$L$28 -> 150 | U95: 0 | V95: 0 | Y95: 9600000
D96: 100000 | H96: =D96*KOEF!$C$7 -> 100 | I96: =D96^2*(KOEF!$C$7*(1-KOEF!$C$7)) -> 9990000 | J96: =D96^3*(KOEF!$C$7-3*KOEF!$C$7^2+2*KOEF!$C$7^3) -> 9.97002e+11 | L96: 100000 | M96: =L96*KOEF!$C$7 -> 100 | N96: =L96^2*(KOEF!$C$7*(1-KOEF!$C$7)) -> 9990000 | O96: =L96^3*(KOEF!$C$7-3*KOEF!$C$7^2+2*KOEF!$C$7^3) -> 9.97002e+11 | R96: =D96*KOEF!$C$7/KOEF!$C$6 -> 333.3333333 | S96: =D96*KOEF!$L$28 -> 150 | U96: 0 | V96: 0 | Y96: 9700000
D97: 100000 | H97: =D97*KOEF!$C$7 -> 100 | I97: =D97^2*(KOEF!$C$7*(1-KOEF!$C$7)) -> 9990000 | J97: =D97^3*(KOEF!$C$7-3*KOEF!$C$7^2+2*KOEF!$C$7^3) -> 9.97002e+11 | L97: 100000 | M97: =L97*KOEF!$C$7 -> 100 | N97: =L97^2*(KOEF!$C$7*(1-KOEF!$C$7)) -> 9990000 | O97: =L97^3*(KOEF!$C$7-3*KOEF!$C$7^2+2*KOEF!$C$7^3) -> 9.97002e+11 | R97: =D97*KOEF!$C$7/KOEF!$C$6 -> 333.3333333 | S97: =D97*KOEF!$L$28 -> 150 | U97: 0 | V97: 0 | Y97: 9800000
D98: 100000 | H98: =D98*KOEF!$C$7 -> 100 | I98: =D98^2*(KOEF!$C$7*(1-KOEF!$C$7)) -> 9990000 | J98: =D98^3*(KOEF!$C$7-3*KOEF!$C$7^2+2*KOEF!$C$7^3) -> 9.97002e+11 | L98: 100000 | M98: =L98*KOEF!$C$7 -> 100 | N98: =L98^2*(KOEF!$C$7*(1-KOEF!$C$7)) -> 9990000 | O98: =L98^3*(KOEF!$C$7-3*KOEF!$C$7^2+2*KOEF!$C$7^3) -> 9.97002e+11 | R98: =D98*KOEF!$C$7/KOEF!$C$6 -> 333.3333333 | S98: =D98*KOEF!$L$28 -> 150 | U98: 0 | V98: 0 | Y98: 9900000
D99: 100000 | H99: =D99*KOEF!$C$7 -> 100 | I99: =D99^2*(KOEF!$C$7*(1-KOEF!$C$7)) -> 9990000 | J99: =D99^3*(KOEF!$C$7-3*KOEF!$C$7^2+2*KOEF!$C$7^3) -> 9.97002e+11 | L99: 100000 | M99: =L99*KOEF!$C$7 -> 100 | N99: =L99^2*(KOEF!$C$7*(1-KOEF!$C$7)) -> 9990000 | O99: =L99^3*(KOEF!$C$7-3*KOEF!$C$7^2+2*KOEF!$C$7^3) -> 9.97002e+11 | R99: =D99*KOEF!$C$7/KOEF!$C$6 -> 333.3333333 | S99: =D99*KOEF!$L$28 -> 150 | U99: 0 | V99: 0 | Y99: 10000000
D100: 100000 | H100: =D100*KOEF!$C$7 -> 100 | I100: =D100^2*(KOEF!$C$7*(1-KOEF!$C$7)) -> 9990000 | J100: =D100^3*(KOEF!$C$7-3*KOEF!$C$7^2+2*KOEF!$C$7^3) -> 9.97002e+11 | L100: 100000 | M100: =L100*KOEF!$C$7 -> 100 | N100: =L100^2*(KOEF!$C$7*(1-KOEF!$C$7)) -> 9990000 | O100: =L100^3*(KOEF!$C$7-3*KOEF!$C$7^2+2*KOEF!$C$7^3) -> 9.97002e+11 | R100: =D100*KOEF!$C$7/KOEF!$C$6 -> 333.3333333 | S100: =D100*KOEF!$L$28 -> 150 | U100: 0 | V100: 0 | Y100: 10100000
D101: 100000 | H101: =D101*KOEF!$C$7 -> 100 | I101: =D101^2*(KOEF!$C$7*(1-KOEF!$C$7)) -> 9990000 | J101: =D101^3*(KOEF!$C$7-3*KOEF!$C$7^2+2*KOEF!$C$7^3) -> 9.97002e+11 | L101: 100000 | M101: =L101*KOEF!$C$7 -> 100 | N101: =L101^2*(KOEF!$C$7*(1-KOEF!$C$7)) -> 9990000 | O101: =L101^3*(KOEF!$C$7-3*KOEF!$C$7^2+2*KOEF!$C$7^3) -> 9.97002e+11 | R101: =D101*KOEF!$C$7/KOEF!$C$6 -> 333.3333333 | S101: =D101*KOEF!$L$28 -> 150 | U101: 0 | V101: 0 | Y101: 10200000
D102: 100000 | H102: =D102*KOEF!$C$7 -> 100 | I102: =D102^2*(KOEF!$C$7*(1-KOEF!$C$7)) -> 9990000 | J102: =D102^3*(KOEF!$C$7-3*KOEF!$C$7^2+2*KOEF!$C$7^3) -> 9.97002e+11 | L102: 100000 | M102: =L102*KOEF!$C$7 -> 100 | N102: =L102^2*(KOEF!$C$7*(1-KOEF!$C$7)) -> 9990000 | O102: =L102^3*(KOEF!$C$7-3*KOEF!$C$7^2+2*KOEF!$C$7^3) -> 9.97002e+11 | R102: =D102*KOEF!$C$7/KOEF!$C$6 -> 333.3333333 | S102: =D102*KOEF!$L$28 -> 150 | U102: 0 | V102: 0 | Y102: 10300000
D103: 100000 | H103: =D103*KOEF!$C$7 -> 100 | I103: =D103^2*(KOEF!$C$7*(1-KOEF!$C$7)) -> 9990000 | J103: =D103^3*(KOEF!$C$7-3*KOEF!$C$7^2+2*KOEF!$C$7^3) -> 9.97002e+11 | L103: 100000 | M103: =L103*KOEF!$C$7 -> 100 | N103: =L103^2*(KOEF!$C$7*(1-KOEF!$C$7)) -> 9990000 | O103: =L103^3*(KOEF!$C$7-3*KOEF!$C$7^2+2*KOEF!$C$7^3) -> 9.97002e+11 | R103: =D103*KOEF!$C$7/KOEF!$C$6 -> 333.3333333 | S103: =D103*KOEF!$L$28 -> 150 | U103: 0 | V103: 0 | Y103: 10400000
D104: 100000 | H104: =D104*KOEF!$C$7 -> 100 | I104: =D104^2*(KOEF!$C$7*(1-KOEF!$C$7)) -> 9990000 | J104: =D104^3*(KOEF!$C$7-3*KOEF!$C$7^2+2*KOEF!$C$7^3) -> 9.97002e+11 | L104: 100000 | M104: =L104*KOEF!$C$7 -> 100 | N104: =L104^2*(KOEF!$C$7*(1-KOEF!$C$7)) -> 9990000 | O104: =L104^3*(KOEF!$C$7-3*KOEF!$C$7^2+2*KOEF!$C$7^3) -> 9.97002e+11 | R104: =D104*KOEF!$C$7/KOEF!$C$6 -> 333.3333333 | S104: =D104*KOEF!$L$28 -> 150 | U104: 0 | V104: 0 | Y104: 10500000
D105: 100000 | H105: =D105*KOEF!$C$7 -> 100 | I105: =D105^2*(KOEF!$C$7*(1-KOEF!$C$7)) -> 9990000 | J105: =D105^3*(KOEF!$C$7-3*KOEF!$C$7^2+2*KOEF!$C$7^3) -> 9.97002e+11 | L105: 100000 | M105: =L105*KOEF!$C$7 -> 100 | N105: =L105^2*(KOEF!$C$7*(1-KOEF!$C$7)) -> 9990000 | O105: =L105^3*(KOEF!$C$7-3*KOEF!$C$7^2+2*KOEF!$C$7^3) -> 9.97002e+11 | R105: =D105*KOEF!$C$7/KOEF!$C$6 -> 333.3333333 | S105: =D105*KOEF!$L$28 -> 150 | U105: 0 | V105: 0 | Y105: 10600000
D106: 100000 | H106: =D106*KOEF!$C$7 -> 100 | I106: =D106^2*(KOEF!$C$7*(1-KOEF!$C$7)) -> 9990000 | J106: =D106^3*(KOEF!$C$7-3*KOEF!$C$7^2+2*KOEF!$C$7^3) -> 9.97002e+11 | L106: 100000 | M106: =L106*KOEF!$C$7 -> 100 | N106: =L106^2*(KOEF!$C$7*(1-KOEF!$C$7)) -> 9990000 | O106: =L106^3*(KOEF!$C$7-3*KOEF!$C$7^2+2*KOEF!$C$7^3) -> 9.97002e+11 | R106: =D106*KOEF!$C$7/KOEF!$C$6 -> 333.3333333 | S106: =D106*KOEF!$L$28 -> 150 | U106: 0 | V106: 0 | Y106: 10700000
D107: 100000 | H107: =D107*KOEF!$C$7 -> 100 | I107: =D107^2*(KOEF!$C$7*(1-KOEF!$C$7)) -> 9990000 | J107: =D107^3*(KOEF!$C$7-3*KOEF!$C$7^2+2*KOEF!$C$7^3) -> 9.97002e+11 | L107: 100000 | M107: =L107*KOEF!$C$7 -> 100 | N107: =L107^2*(KOEF!$C$7*(1-KOEF!$C$7)) -> 9990000 | O107: =L107^3*(KOEF!$C$7-3*KOEF!$C$7^2+2*KOEF!$C$7^3) -> 9.97002e+11 | R107: =D107*KOEF!$C$7/KOEF!$C$6 -> 333.3333333 | S107: =D107*KOEF!$L$28 -> 150 | U107: 0 | V107: 0 | Y107: 10800000
D108: 100000 | H108: =D108*KOEF!$C$7 -> 100 | I108: =D108^2*(KOEF!$C$7*(1-KOEF!$C$7)) -> 9990000 | J108: =D108^3*(KOEF!$C$7-3*KOEF!$C$7^2+2*KOEF!$C$7^3) -> 9.97002e+11 | L108: 100000 | M108: =L108*KOEF!$C$7 -> 100 | N108: =L108^2*(KOEF!$C$7*(1-KOEF!$C$7)) -> 9990000 | O108: =L108^3*(KOEF!$C$7-3*KOEF!$C$7^2+2*KOEF!$C$7^3) -> 9.97002e+11 | R108: =D108*KOEF!$C$7/KOEF!$C$6 -> 333.3333333 | S108: =D108*KOEF!$L$28 -> 150 | U108: 0 | V108: 0 | Y108: 10900000
D109: 100000 | H109: =D109*KOEF!$C$7 -> 100 | I109: =D109^2*(KOEF!$C$7*(1-KOEF!$C$7)) -> 9990000 | J109: =D109^3*(KOEF!$C$7-3*KOEF!$C$7^2+2*KOEF!$C$7^3) -> 9.97002e+11 | L109: 100000 | M109: =L109*KOEF!$C$7 -> 100 | N109: =L109^2*(KOEF!$C$7*(1-KOEF!$C$7)) -> 9990000 | O109: =L109^3*(KOEF!$C$7-3*KOEF!$C$7^2+2*KOEF!$C$7^3) -> 9.97002e+11 | R109: =D109*KOEF!$C$7/KOEF!$C$6 -> 333.3333333 | S109: =D109*KOEF!$L$28 -> 150 | U109: 0 | V109: 0 | Y109: 11000000
D110: 100000 | H110: =D110*KOEF!$C$7 -> 100 | I110: =D110^2*(KOEF!$C$7*(1-KOEF!$C$7)) -> 9990000 | J110: =D110^3*(KOEF!$C$7-3*KOEF!$C$7^2+2*KOEF!$C$7^3) -> 9.97002e+11 | L110: 100000 | M110: =L110*KOEF!$C$7 -> 100 | N110: =L110^2*(KOEF!$C$7*(1-KOEF!$C$7)) -> 9990000 | O110: =L110^3*(KOEF!$C$7-3*KOEF!$C$7^2+2*KOEF!$C$7^3) -> 9.97002e+11 | R110: =D110*KOEF!$C$7/KOEF!$C$6 -> 333.3333333 | S110: =D110*KOEF!$L$28 -> 150 | U110: 0 | V110: 0 | Y110: 11100000
D111: 100000 | H111: =D111*KOEF!$C$7 -> 100 | I111: =D111^2*(KOEF!$C$7*(1-KOEF!$C$7)) -> 9990000 | J111: =D111^3*(KOEF!$C$7-3*KOEF!$C$7^2+2*KOEF!$C$7^3) -> 9.97002e+11 | L111: 100000 | M111: =L111*KOEF!$C$7 -> 100 | N111: =L111^2*(KOEF!$C$7*(1-KOEF!$C$7)) -> 9990000 | O111: =L111^3*(KOEF!$C$7-3*KOEF!$C$7^2+2*KOEF!$C$7^3) -> 9.97002e+11 | R111: =D111*KOEF!$C$7/KOEF!$C$6 -> 333.3333333 | S111: =D111*KOEF!$L$28 -> 150 | U111: 0 | V111: 0 | Y111: 11200000
D112: 100000 | H112: =D112*KOEF!$C$7 -> 100 | I112: =D112^2*(KOEF!$C$7*(1-KOEF!$C$7)) -> 9990000 | J112: =D112^3*(KOEF!$C$7-3*KOEF!$C$7^2+2*KOEF!$C$7^3) -> 9.97002e+11 | L112: 100000 | M112: =L112*KOEF!$C$7 -> 100 | N112: =L112^2*(KOEF!$C$7*(1-KOEF!$C$7)) -> 9990000 | O112: =L112^3*(KOEF!$C$7-3*KOEF!$C$7^2+2*KOEF!$C$7^3) -> 9.97002e+11 | R112: =D112*KOEF!$C$7/KOEF!$C$6 -> 333.3333333 | S112: =D112*KOEF!$L$28 -> 150 | U112: 0 | V112: 0 | Y112: 11300000
D113: 100000 | H113: =D113*KOEF!$C$7 -> 100 | I113: =D113^2*(KOEF!$C$7*(1-KOEF!$C$7)) -> 9990000 | J113: =D113^3*(KOEF!$C$7-3*KOEF!$C$7^2+2*KOEF!$C$7^3) -> 9.97002e+11 | L113: 100000 | M113: =L113*KOEF!$C$7 -> 100 | N113: =L113^2*(KOEF!$C$7*(1-KOEF!$C$7)) -> 9990000 | O113: =L113^3*(KOEF!$C$7-3*KOEF!$C$7^2+2*KOEF!$C$7^3) -> 9.97002e+11 | R113: =D113*KOEF!$C$7/KOEF!$C$6 -> 333.3333333 | S113: =D113*KOEF!$L$28 -> 150 | U113: 0 | V113: 0 | Y113: 11400000
D114: 100000 | H114: =D114*KOEF!$C$7 -> 100 | I114: =D114^2*(KOEF!$C$7*(1-KOEF!$C$7)) -> 9990000 | J114: =D114^3*(KOEF!$C$7-3*KOEF!$C$7^2+2*KOEF!$C$7^3) -> 9.97002e+11 | L114: 100000 | M114: =L114*KOEF!$C$7 -> 100 | N114: =L114^2*(KOEF!$C$7*(1-KOEF!$C$7)) -> 9990000 | O114: =L114^3*(KOEF!$C$7-3*KOEF!$C$7^2+2*KOEF!$C$7^3) -> 9.97002e+11 | R114: =D114*KOEF!$C$7/KOEF!$C$6 -> 333.3333333 | S114: =D114*KOEF!$L$28 -> 150 | U114: 0 | V114: 0 | Y114: 11500000
D115: 100000 | H115: =D115*KOEF!$C$7 -> 100 | I115: =D115^2*(KOEF!$C$7*(1-KOEF!$C$7)) -> 9990000 | J115: =D115^3*(KOEF!$C$7-3*KOEF!$C$7^2+2*KOEF!$C$7^3) -> 9.97002e+11 | L115: 100000 | M115: =L115*KOEF!$C$7 -> 100 | N115: =L115^2*(KOEF!$C$7*(1-KOEF!$C$7)) -> 9990000 | O115: =L115^3*(KOEF!$C$7-3*KOEF!$C$7^2+2*KOEF!$C$7^3) -> 9.97002e+11 | R115: =D115*KOEF!$C$7/KOEF!$C$6 -> 333.3333333 | S115: =D115*KOEF!$L$28 -> 150 | U115: 0 | V115: 0 | Y115: 11600000
D116: 100000 | H116: =D116*KOEF!$C$7 -> 100 | I116: =D116^2*(KOEF!$C$7*(1-KOEF!$C$7)) -> 9990000 | J116: =D116^3*(KOEF!$C$7-3*KOEF!$C$7^2+2*KOEF!$C$7^3) -> 9.97002e+11 | L116: 100000 | M116: =L116*KOEF!$C$7 -> 100 | N116: =L116^2*(KOEF!$C$7*(1-KOEF!$C$7)) -> 9990000 | O116: =L116^3*(KOEF!$C$7-3*KOEF!$C$7^2+2*KOEF!$C$7^3) -> 9.97002e+11 | R116: =D116*KOEF!$C$7/KOEF!$C$6 -> 333.3333333 | S116: =D116*KOEF!$L$28 -> 150 | U116: 0 | V116: 0 | Y116: 11700000
D117: 100000 | H117: =D117*KOEF!$C$7 -> 100 | I117: =D117^2*(KOEF!$C$7*(1-KOEF!$C$7)) -> 9990000 | J117: =D117^3*(KOEF!$C$7-3*KOEF!$C$7^2+2*KOEF!$C$7^3) -> 9.97002e+11 | L117: 100000 | M117: =L117*KOEF!$C$7 -> 100 | N117: =L117^2*(KOEF!$C$7*(1-KOEF!$C$7)) -> 9990000 | O117: =L117^3*(KOEF!$C$7-3*KOEF!$C$7^2+2*KOEF!$C$7^3) -> 9.97002e+11 | R117: =D117*KOEF!$C$7/KOEF!$C$6 -> 333.3333333 | S117: =D117*KOEF!$L$28 -> 150 | U117: 0 | V117: 0 | Y117: 11800000
D118: 100000 | H118: =D118*KOEF!$C$7 -> 100 | I118: =D118^2*(KOEF!$C$7*(1-KOEF!$C$7)) -> 9990000 | J118: =D118^3*(KOEF!$C$7-3*KOEF!$C$7^2+2*KOEF!$C$7^3) -> 9.97002e+11 | L118: 100000 | M118: =L118*KOEF!$C$7 -> 100 | N118: =L118^2*(KOEF!$C$7*(1-KOEF!$C$7)) -> 9990000 | O118: =L118^3*(KOEF!$C$7-3*KOEF!$C$7^2+2*KOEF!$C$7^3) -> 9.97002e+11 | R118: =D118*KOEF!$C$7/KOEF!$C$6 -> 333.3333333 | S118: =D118*KOEF!$L$28 -> 150 | U118: 0 | V118: 0 | Y118: 11900000
D119: 100000 | H119: =D119*KOEF!$C$7 -> 100 | I119: =D119^2*(KOEF!$C$7*(1-KOEF!$C$7)) -> 9990000 | J119: =D119^3*(KOEF!$C$7-3*KOEF!$C$7^2+2*KOEF!$C$7^3) -> 9.97002e+11 | L119: 100000 | M119: =L119*KOEF!$C$7 -> 100 | N119: =L119^2*(KOEF!$C$7*(1-KOEF!$C$7)) -> 9990000 | O119: =L119^3*(KOEF!$C$7-3*KOEF!$C$7^2+2*KOEF!$C$7^3) -> 9.97002e+11 | R119: =D119*KOEF!$C$7/KOEF!$C$6 -> 333.3333333 | S119: =D119*KOEF!$L$28 -> 150 | U119: 0 | V119: 0 | Y119: 12000000
D120: 100000 | H120: =D120*KOEF!$C$7 -> 100 | I120: =D120^2*(KOEF!$C$7*(1-KOEF!$C$7)) -> 9990000 | J120: =D120^3*(KOEF!$C$7-3*KOEF!$C$7^2+2*KOEF!$C$7^3) -> 9.97002e+11 | L120: 100000 | M120: =L120*KOEF!$C$7 -> 100 | N120: =L120^2*(KOEF!$C$7*(1-KOEF!$C$7)) -> 9990000 | O120: =L120^3*(KOEF!$C$7-3*KOEF!$C$7^2+2*KOEF!$C$7^3) -> 9.97002e+11 | R120: =D120*KOEF!$C$7/KOEF!$C$6 -> 333.3333333 | S120: =D120*KOEF!$L$28 -> 150 | U120: 0 | V120: 0 | Y120: 12100000
D121: 100000 | H121: =D121*KOEF!$C$7 -> 100 | I121: =D121^2*(KOEF!$C$7*(1-KOEF!$C$7)) -> 9990000 | J121: =D121^3*(KOEF!$C$7-3*KOEF!$C$7^2+2*KOEF!$C$7^3) -> 9.97002e+11 | L121: 100000 | M121: =L121*KOEF!$C$7 -> 100 | N121: =L121^2*(KOEF!$C$7*(1-KOEF!$C$7)) -> 9990000 | O121: =L121^3*(KOEF!$C$7-3*KOEF!$C$7^2+2*KOEF!$C$7^3) -> 9.97002e+11 | R121: =D121*KOEF!$C$7/KOEF!$C$6 -> 333.3333333 | S121: =D121*KOEF!$L$28 -> 150 | U121: 0 | V121: 0 | Y121: 12200000
D122: 100000 | H122: =D122*KOEF!$C$7 -> 100 | I122: =D122^2*(KOEF!$C$7*(1-KOEF!$C$7)) -> 9990000 | J122: =D122^3*(KOEF!$C$7-3*KOEF!$C$7^2+2*KOEF!$C$7^3) -> 9.97002e+11 | L122: 100000 | M122: =L122*KOEF!$C$7 -> 100 | N122: =L122^2*(KOEF!$C$7*(1-KOEF!$C$7)) -> 9990000 | O122: =L122^3*(KOEF!$C$7-3*KOEF!$C$7^2+2*KOEF!$C$7^3) -> 9.97002e+11 | R122: =D122*KOEF!$C$7/KOEF!$C$6 -> 333.3333333 | S122: =D122*KOEF!$L$28 -> 150 | U122: 0 | V122: 0 | Y122: 12300000
D123: 100000 | H123: =D123*KOEF!$C$7 -> 100 | I123: =D123^2*(KOEF!$C$7*(1-KOEF!$C$7)) -> 9990000 | J123: =D123^3*(KOEF!$C$7-3*KOEF!$C$7^2+2*KOEF!$C$7^3) -> 9.97002e+11 | L123: 100000 | M123: =L123*KOEF!$C$7 -> 100 | N123: =L123^2*(KOEF!$C$7*(1-KOEF!$C$7)) -> 9990000 | O123: =L123^3*(KOEF!$C$7-3*KOEF!$C$7^2+2*KOEF!$C$7^3) -> 9.97002e+11 | R123: =D123*KOEF!$C$7/KOEF!$C$6 -> 333.3333333 | S123: =D123*KOEF!$L$28 -> 150 | U123: 0 | V123: 0 | Y123: 12400000
D124: 100000 | H124: =D124*KOEF!$C$7 -> 100 | I124: =D124^2*(KOEF!$C$7*(1-KOEF!$C$7)) -> 9990000 | J124: =D124^3*(KOEF!$C$7-3*KOEF!$C$7^2+2*KOEF!$C$7^3) -> 9.97002e+11 | L124: 100000 | M124: =L124*KOEF!$C$7 -> 100 | N124: =L124^2*(KOEF!$C$7*(1-KOEF!$C$7)) -> 9990000 | O124: =L124^3*(KOEF!$C$7-3*KOEF!$C$7^2+2*KOEF!$C$7^3) -> 9.97002e+11 | R124: =D124*KOEF!$C$7/KOEF!$C$6 -> 333.3333333 | S124: =D124*KOEF!$L$28 -> 150 | U124: 0 | V124: 0 | Y124: 12500000
D125: 100000 | H125: =D125*KOEF!$C$7 -> 100 | I125: =D125^2*(KOEF!$C$7*(1-KOEF!$C$7)) -> 9990000 | J125: =D125^3*(KOEF!$C$7-3*KOEF!$C$7^2+2*KOEF!$C$7^3) -> 9.97002e+11 | L125: 100000 | M125: =L125*KOEF!$C$7 -> 100 | N125: =L125^2*(KOEF!$C$7*(1-KOEF!$C$7)) -> 9990000 | O125: =L125^3*(KOEF!$C$7-3*KOEF!$C$7^2+2*KOEF!$C$7^3) -> 9.97002e+11 | R125: =D125*KOEF!$C$7/KOEF!$C$6 -> 333.3333333 | S125: =D125*KOEF!$L$28 -> 150 | U125: 0 | V125: 0 | Y125: 12600000
D126: 100000 | H126: =D126*KOEF!$C$7 -> 100 | I126: =D126^2*(KOEF!$C$7*(1-KOEF!$C$7)) -> 9990000 | J126: =D126^3*(KOEF!$C$7-3*KOEF!$C$7^2+2*KOEF!$C$7^3) -> 9.97002e+11 | L126: 100000 | M126: =L126*KOEF!$C$7 -> 100 | N126: =L126^2*(KOEF!$C$7*(1-KOEF!$C$7)) -> 9990000 | O126: =L126^3*(KOEF!$C$7-3*KOEF!$C$7^2+2*KOEF!$C$7^3) -> 9.97002e+11 | R126: =D126*KOEF!$C$7/KOEF!$C$6 -> 333.3333333 | S126: =D126*KOEF!$L$28 -> 150 | U126: 0 | V126: 0 | Y126: 12700000
D127: 100000 | H127: =D127*KOEF!$C$7 -> 100 | I127: =D127^2*(KOEF!$C$7*(1-KOEF!$C$7)) -> 9990000 | J127: =D127^3*(KOEF!$C$7-3*KOEF!$C$7^2+2*KOEF!$C$7^3) -> 9.97002e+11 | L127: 100000 | M127: =L127*KOEF!$C$7 -> 100 | N127: =L127^2*(KOEF!$C$7*(1-KOEF!$C$7)) -> 9990000 | O127: =L127^3*(KOEF!$C$7-3*KOEF!$C$7^2+2*KOEF!$C$7^3) -> 9.97002e+11 | R127: =D127*KOEF!$C$7/KOEF!$C$6 -> 333.3333333 | S127: =D127*KOEF!$L$28 -> 150 | U127: 0 | V127: 0 | Y127: 12800000
D128: 100000 | H128: =D128*KOEF!$C$7 -> 100 | I128: =D128^2*(KOEF!$C$7*(1-KOEF!$C$7)) -> 9990000 | J128: =D128^3*(KOEF!$C$7-3*KOEF!$C$7^2+2*KOEF!$C$7^3) -> 9.97002e+11 | L128: 100000 | M128: =L128*KOEF!$C$7 -> 100 | N128: =L128^2*(KOEF!$C$7*(1-KOEF!$C$7)) -> 9990000 | O128: =L128^3*(KOEF!$C$7-3*KOEF!$C$7^2+2*KOEF!$C$7^3) -> 9.97002e+11 | R128: =D128*KOEF!$C$7/KOEF!$C$6 -> 333.3333333 | S128: =D128*KOEF!$L$28 -> 150 | U128: 0 | V128: 0 | Y128: 12900000
D129: 100000 | H129: =D129*KOEF!$C$7 -> 100 | I129: =D129^2*(KOEF!$C$7*(1-KOEF!$C$7)) -> 9990000 | J129: =D129^3*(KOEF!$C$7-3*KOEF!$C$7^2+2*KOEF!$C$7^3) -> 9.97002e+11 | L129: 100000 | M129: =L129*KOEF!$C$7 -> 100 | N129: =L129^2*(KOEF!$C$7*(1-KOEF!$C$7)) -> 9990000 | O129: =L129^3*(KOEF!$C$7-3*KOEF!$C$7^2+2*KOEF!$C$7^3) -> 9.97002e+11 | R129: =D129*KOEF!$C$7/KOEF!$C$6 -> 333.3333333 | S129: =D129*KOEF!$L$28 -> 150 | U129: 0 | V129: 0 | Y129: 13000000
D130: 100000 | H130: =D130*KOEF!$C$7 -> 100 | I130: =D130^2*(KOEF!$C$7*(1-KOEF!$C$7)) -> 9990000 | J130: =D130^3*(KOEF!$C$7-3*KOEF!$C$7^2+2*KOEF!$C$7^3) -> 9.97002e+11 | L130: 100000 | M130: =L130*KOEF!$C$7 -> 100 | N130: =L130^2*(KOEF!$C$7*(1-KOEF!$C$7)) -> 9990000 | O130: =L130^3*(KOEF!$C$7-3*KOEF!$C$7^2+2*KOEF!$C$7^3) -> 9.97002e+11 | R130: =D130*KOEF!$C$7/KOEF!$C$6 -> 333.3333333 | S130: =D130*KOEF!$L$28 -> 150 | U130: 0 | V130: 0 | Y130: 13100000
D131: 100000 | H131: =D131*KOEF!$C$7 -> 100 | I131: =D131^2*(KOEF!$C$7*(1-KOEF!$C$7)) -> 9990000 | J131: =D131^3*(KOEF!$C$7-3*KOEF!$C$7^2+2*KOEF!$C$7^3) -> 9.97002e+11 | L131: 100000 | M131: =L131*KOEF!$C$7 -> 100 | N131: =L131^2*(KOEF!$C$7*(1-KOEF!$C$7)) -> 9990000 | O131: =L131^3*(KOEF!$C$7-3*KOEF!$C$7^2+2*KOEF!$C$7^3) -> 9.97002e+11 | R131: =D131*KOEF!$C$7/KOEF!$C$6 -> 333.3333333 | S131: =D131*KOEF!$L$28 -> 150 | U131: 0 | V131: 0 | Y131: 13200000
D132: 100000 | H132: =D132*KOEF!$C$7 -> 100 | I132: =D132^2*(KOEF!$C$7*(1-KOEF!$C$7)) -> 9990000 | J132: =D132^3*(KOEF!$C$7-3*KOEF!$C$7^2+2*KOEF!$C$7^3) -> 9.97002e+11 | L132: 100000 | M132: =L132*KOEF!$C$7 -> 100 | N132: =L132^2*(KOEF!$C$7*(1-KOEF!$C$7)) -> 9990000 | O132: =L132^3*(KOEF!$C$7-3*KOEF!$C$7^2+2*KOEF!$C$7^3) -> 9.97002e+11 | R132: =D132*KOEF!$C$7/KOEF!$C$6 -> 333.3333333 | S132: =D132*KOEF!$L$28 -> 150 | U132: 0 | V132: 0 | Y132: 13300000
D133: 100000 | H133: =D133*KOEF!$C$7 -> 100 | I133: =D133^2*(KOEF!$C$7*(1-KOEF!$C$7)) -> 9990000 | J133: =D133^3*(KOEF!$C$7-3*KOEF!$C$7^2+2*KOEF!$C$7^3) -> 9.97002e+11 | L133: 100000 | M133: =L133*KOEF!$C$7 -> 100 | N133: =L133^2*(KOEF!$C$7*(1-KOEF!$C$7)) -> 9990000 | O133: =L133^3*(KOEF!$C$7-3*KOEF!$C$7^2+2*KOEF!$C$7^3) -> 9.97002e+11 | R133: =D133*KOEF!$C$7/KOEF!$C$6 -> 333.3333333 | S133: =D133*KOEF!$L$28 -> 150 | U133: 0 | V133: 0 | Y133: 13400000
D134: 100000 | H134: =D134*KOEF!$C$7 -> 100 | I134: =D134^2*(KOEF!$C$7*(1-KOEF!$C$7)) -> 9990000 | J134: =D134^3*(KOEF!$C$7-3*KOEF!$C$7^2+2*KOEF!$C$7^3) -> 9.97002e+11 | L134: 100000 | M134: =L134*KOEF!$C$7 -> 100 | N134: =L134^2*(KOEF!$C$7*(1-KOEF!$C$7)) -> 9990000 | O134: =L134^3*(KOEF!$C$7-3*KOEF!$C$7^2+2*KOEF!$C$7^3) -> 9.97002e+11 | R134: =D134*KOEF!$C$7/KOEF!$C$6 -> 333.3333333 | S134: =D134*KOEF!$L$28 -> 150 | U134: =R134*MAX((D134-$P$1),0)/D134 -> 0 | V134: =S134*MAX((D134-$P$1),0)/D134 -> 0 | Y134: 13500000
D135: 100000 | H135: =D135*KOEF!$C$7 -> 100 | I135: =D135^2*(KOEF!$C$7*(1-KOEF!$C$7)) -> 9990000 | J135: =D135^3*(KOEF!$C$7-3*KOEF!$C$7^2+2*KOEF!$C$7^3) -> 9.97002e+11 | L135: =MIN(D135,$P$1) -> 100000 | M135: =L135*KOEF!$C$7 -> 100 | N135: =L135^2*(KOEF!$C$7*(1-KOEF!$C$7)) -> 9990000 | O135: =L135^3*(KOEF!$C$7-3*KOEF!$C$7^2+2*KOEF!$C$7^3) -> 9.97002e+11 | R135: =D135*KOEF!$C$7/KOEF!$C$6 -> 333.3333333 | S135: =D135*KOEF!$L$28 -> 150 | U135: 0 | V135: 0 | Y135: 13600000
D136: 100000 | H136: =D136*KOEF!$C$7 -> 100 | I136: =D136^2*(KOEF!$C$7*(1-KOEF!$C$7)) -> 9990000 | J136: =D136^3*(KOEF!$C$7-3*KOEF!$C$7^2+2*KOEF!$C$7^3) -> 9.97002e+11 | L136: 100000 | M136: =L136*KOEF!$C$7 -> 100 | N136: =L136^2*(KOEF!$C$7*(1-KOEF!$C$7)) -> 9990000 | O136: =L136^3*(KOEF!$C$7-3*KOEF!$C$7^2+2*KOEF!$C$7^3) -> 9.97002e+11 | R136: =D136*KOEF!$C$7/KOEF!$C$6 -> 333.3333333 | S136: =D136*KOEF!$L$28 -> 150 | U136: 0 | V136: 0 | Y136: 13700000
D137: 100000 | H137: =D137*KOEF!$C$7 -> 100 | I137: =D137^2*(KOEF!$C$7*(1-KOEF!$C$7)) -> 9990000 | J137: =D137^3*(KOEF!$C$7-3*KOEF!$C$7^2+2*KOEF!$C$7^3) -> 9.97002e+11 | L137: 100000 | M137: =L137*KOEF!$C$7 -> 100 | N137: =L137^2*(KOEF!$C$7*(1-KOEF!$C$7)) -> 9990000 | O137: =L137^3*(KOEF!$C$7-3*KOEF!$C$7^2+2*KOEF!$C$7^3) -> 9.97002e+11 | R137: =D137*KOEF!$C$7/KOEF!$C$6 -> 333.3333333 | S137: =D137*KOEF!$L$28 -> 150 | U137: 0 | V137: 0 | Y137: 13800000
D138: 100000 | H138: =D138*KOEF!$C$7 -> 100 | I138: =D138^2*(KOEF!$C$7*(1-KOEF!$C$7)) -> 9990000 | J138: =D138^3*(KOEF!$C$7-3*KOEF!$C$7^2+2*KOEF!$C$7^3) -> 9.97002e+11 | L138: 100000 | M138: =L138*KOEF!$C$7 -> 100 | N138: =L138^2*(KOEF!$C$7*(1-KOEF!$C$7)) -> 9990000 | O138: =L138^3*(KOEF!$C$7-3*KOEF!$C$7^2+2*KOEF!$C$7^3) -> 9.97002e+11 | R138: =D138*KOEF!$C$7/KOEF!$C$6 -> 333.3333333 | S138: =D138*KOEF!$L$28 -> 150 | U138: 0 | V138: 0 | Y138: 13900000
D139: 100000 | H139: =D139*KOEF!$C$7 -> 100 | I139: =D139^2*(KOEF!$C$7*(1-KOEF!$C$7)) -> 9990000 | J139: =D139^3*(KOEF!$C$7-3*KOEF!$C$7^2+2*KOEF!$C$7^3) -> 9.97002e+11 | L139: 100000 | M139: =L139*KOEF!$C$7 -> 100 | N139: =L139^2*(KOEF!$C$7*(1-KOEF!$C$7)) -> 9990000 | O139: =L139^3*(KOEF!$C$7-3*KOEF!$C$7^2+2*KOEF!$C$7^3) -> 9.97002e+11 | R139: =D139*KOEF!$C$7/KOEF!$C$6 -> 333.3333333 | S139: =D139*KOEF!$L$28 -> 150 | U139: 0 | V139: 0 | Y139: 14000000
D140: 100000 | H140: =D140*KOEF!$C$7 -> 100 | I140: =D140^2*(KOEF!$C$7*(1-KOEF!$C$7)) -> 9990000 | J140: =D140^3*(KOEF!$C$7-3*KOEF!$C$7^2+2*KOEF!$C$7^3) -> 9.97002e+11 | L140: 100000 | M140: =L140*KOEF!$C$7 -> 100 | N140: =L140^2*(KOEF!$C$7*(1-KOEF!$C$7)) -> 9990000 | O140: =L140^3*(KOEF!$C$7-3*KOEF!$C$7^2+2*KOEF!$C$7^3) -> 9.97002e+11 | R140: =D140*KOEF!$C$7/KOEF!$C$6 -> 333.3333333 | S140: =D140*KOEF!$L$28 -> 150 | U140: 0 | V140: 0 | Y140: 14100000
D141: 100000 | H141: =D141*KOEF!$C$7 -> 100 | I141: =D141^2*(KOEF!$C$7*(1-KOEF!$C$7)) -> 9990000 | J141: =D141^3*(KOEF!$C$7-3*KOEF!$C$7^2+2*KOEF!$C$7^3) -> 9.97002e+11 | L141: 100000 | M141: =L141*KOEF!$C$7 -> 100 | N141: =L141^2*(KOEF!$C$7*(1-KOEF!$C$7)) -> 9990000 | O141: =L141^3*(KOEF!$C$7-3*KOEF!$C$7^2+2*KOEF!$C$7^3) -> 9.97002e+11 | R141: =D141*KOEF!$C$7/KOEF!$C$6 -> 333.3333333 | S141: =D141*KOEF!$L$28 -> 150 | U141: 0 | V141: 0 | Y141: 14200000
D142: 100000 | H142: =D142*KOEF!$C$7 -> 100 | I142: =D142^2*(KOEF!$C$7*(1-KOEF!$C$7)) -> 9990000 | J142: =D142^3*(KOEF!$C$7-3*KOEF!$C$7^2+2*KOEF!$C$7^3) -> 9.97002e+11 | L142: 100000 | M142: =L142*KOEF!$C$7 -> 100 | N142: =L142^2*(KOEF!$C$7*(1-KOEF!$C$7)) -> 9990000 | O142: =L142^3*(KOEF!$C$7-3*KOEF!$C$7^2+2*KOEF!$C$7^3) -> 9.97002e+11 | R142: =D142*KOEF!$C$7/KOEF!$C$6 -> 333.3333333 | S142: =D142*KOEF!$L$28 -> 150 | U142: 0 | V142: 0 | Y142: 14300000
D143: 100000 | H143: =D143*KOEF!$C$7 -> 100 | I143: =D143^2*(KOEF!$C$7*(1-KOEF!$C$7)) -> 9990000 | J143: =D143^3*(KOEF!$C$7-3*KOEF!$C$7^2+2*KOEF!$C$7^3) -> 9.97002e+11 | L143: 100000 | M143: =L143*KOEF!$C$7 -> 100 | N143: =L143^2*(KOEF!$C$7*(1-KOEF!$C$7)) -> 9990000 | O143: =L143^3*(KOEF!$C$7-3*KOEF!$C$7^2+2*KOEF!$C$7^3) -> 9.97002e+11 | R143: =D143*KOEF!$C$7/KOEF!$C$6 -> 333.3333333 | S143: =D143*KOEF!$L$28 -> 150 | U143: 0 | V143: 0 | Y143: 14400000
D144: 100000 | H144: =D144*KOEF!$C$7 -> 100 | I144: =D144^2*(KOEF!$C$7*(1-KOEF!$C$7)) -> 9990000 | J144: =D144^3*(KOEF!$C$7-3*KOEF!$C$7^2+2*KOEF!$C$7^3) -> 9.97002e+11 | L144: 100000 | M144: =L144*KOEF!$C$7 -> 100 | N144: =L144^2*(KOEF!$C$7*(1-KOEF!$C$7)) -> 9990000 | O144: =L144^3*(KOEF!$C$7-3*KOEF!$C$7^2+2*KOEF!$C$7^3) -> 9.97002e+11 | R144: =D144*KOEF!$C$7/KOEF!$C$6 -> 333.3333333 | S144: =D144*KOEF!$L$28 -> 150 | U144: 0 | V144: 0 | Y144: 14500000
D145: 100000 | H145: =D145*KOEF!$C$7 -> 100 | I145: =D145^2*(KOEF!$C$7*(1-KOEF!$C$7)) -> 9990000 | J145: =D145^3*(KOEF!$C$7-3*KOEF!$C$7^2+2*KOEF!$C$7^3) -> 9.97002e+11 | L145: 100000 | M145: =L145*KOEF!$C$7 -> 100 | N145: =L145^2*(KOEF!$C$7*(1-KOEF!$C$7)) -> 9990000 | O145: =L145^3*(KOEF!$C$7-3*KOEF!$C$7^2+2*KOEF!$C$7^3) -> 9.97002e+11 | R145: =D145*KOEF!$C$7/KOEF!$C$6 -> 333.3333333 | S145: =D145*KOEF!$L$28 -> 150 | U145: 0 | V145: 0 | Y145: 14600000
D146: 100000 | H146: =D146*KOEF!$C$7 -> 100 | I146: =D146^2*(KOEF!$C$7*(1-KOEF!$C$7)) -> 9990000 | J146: =D146^3*(KOEF!$C$7-3*KOEF!$C$7^2+2*KOEF!$C$7^3) -> 9.97002e+11 | L146: 100000 | M146: =L146*KOEF!$C$7 -> 100 | N146: =L146^2*(KOEF!$C$7*(1-KOEF!$C$7)) -> 9990000 | O146: =L146^3*(KOEF!$C$7-3*KOEF!$C$7^2+2*KOEF!$C$7^3) -> 9.97002e+11 | R146: =D146*KOEF!$C$7/KOEF!$C$6 -> 333.3333333 | S146: =D146*KOEF!$L$28 -> 150 | U146: 0 | V146: 0 | Y146: 14700000
D147: 100000 | H147: =D147*KOEF!$C$7 -> 100 | I147: =D147^2*(KOEF!$C$7*(1-KOEF!$C$7)) -> 9990000 | J147: =D147^3*(KOEF!$C$7-3*KOEF!$C$7^2+2*KOEF!$C$7^3) -> 9.97002e+11 | L147: 100000 | M147: =L147*KOEF!$C$7 -> 100 | N147: =L147^2*(KOEF!$C$7*(1-KOEF!$C$7)) -> 9990000 | O147: =L147^3*(KOEF!$C$7-3*KOEF!$C$7^2+2*KOEF!$C$7^3) -> 9.97002e+11 | R147: =D147*KOEF!$C$7/KOEF!$C$6 -> 333.3333333 | S147: =D147*KOEF!$L$28 -> 150 | U147: 0 | V147: 0 | Y147: 14800000
D148: 100000 | H148: =D148*KOEF!$C$7 -> 100 | I148: =D148^2*(KOEF!$C$7*(1-KOEF!$C$7)) -> 9990000 | J148: =D148^3*(KOEF!$C$7-3*KOEF!$C$7^2+2*KOEF!$C$7^3) -> 9.97002e+11 | L148: 100000 | M148: =L148*KOEF!$C$7 -> 100 | N148: =L148^2*(KOEF!$C$7*(1-KOEF!$C$7)) -> 9990000 | O148: =L148^3*(KOEF!$C$7-3*KOEF!$C$7^2+2*KOEF!$C$7^3) -> 9.97002e+11 | R148: =D148*KOEF!$C$7/KOEF!$C$6 -> 333.3333333 | S148: =D148*KOEF!$L$28 -> 150 | U148: 0 | V148: 0 | Y148: 14900000
D149: 100000 | H149: =D149*KOEF!$C$7 -> 100 | I149: =D149^2*(KOEF!$C$7*(1-KOEF!$C$7)) -> 9990000 | J149: =D149^3*(KOEF!$C$7-3*KOEF!$C$7^2+2*KOEF!$C$7^3) -> 9.97002e+11 | L149: 100000 | M149: =L149*KOEF!$C$7 -> 100 | N149: =L149^2*(KOEF!$C$7*(1-KOEF!$C$7)) -> 9990000 | O149: =L149^3*(KOEF!$C$7-3*KOEF!$C$7^2+2*KOEF!$C$7^3) -> 9.97002e+11 | R149: =D149*KOEF!$C$7/KOEF!$C$6 -> 333.3333333 | S149: =D149*KOEF!$L$28 -> 150 | U149: 0 | V149: 0 | Y149: 15000000
D150: 100000 | H150: =D150*KOEF!$C$7 -> 100 | I150: =D150^2*(KOEF!$C$7*(1-KOEF!$C$7)) -> 9990000 | J150: =D150^3*(KOEF!$C$7-3*KOEF!$C$7^2+2*KOEF!$C$7^3) -> 9.97002e+11 | L150: 100000 | M150: =L150*KOEF!$C$7 -> 100 | N150: =L150^2*(KOEF!$C$7*(1-KOEF!$C$7)) -> 9990000 | O150: =L150^3*(KOEF!$C$7-3*KOEF!$C$7^2+2*KOEF!$C$7^3) -> 9.97002e+11 | R150: =D150*KOEF!$C$7/KOEF!$C$6 -> 333.3333333 | S150: =D150*KOEF!$L$28 -> 150 | U150: 0 | V150: 0 | Y150: 15100000
D151: 100000 | H151: =D151*KOEF!$C$7 -> 100 | I151: =D151^2*(KOEF!$C$7*(1-KOEF!$C$7)) -> 9990000 | J151: =D151^3*(KOEF!$C$7-3*KOEF!$C$7^2+2*KOEF!$C$7^3) -> 9.97002e+11 | L151: 100000 | M151: =L151*KOEF!$C$7 -> 100 | N151: =L151^2*(KOEF!$C$7*(1-KOEF!$C$7)) -> 9990000 | O151: =L151^3*(KOEF!$C$7-3*KOEF!$C$7^2+2*KOEF!$C$7^3) -> 9.97002e+11 | R151: =D151*KOEF!$C$7/KOEF!$C$6 -> 333.3333333 | S151: =D151*KOEF!$L$28 -> 150 | U151: 0 | V151: 0 | Y151: 15200000
D152: 100000 | H152: =D152*KOEF!$C$7 -> 100 | I152: =D152^2*(KOEF!$C$7*(1-KOEF!$C$7)) -> 9990000 | J152: =D152^3*(KOEF!$C$7-3*KOEF!$C$7^2+2*KOEF!$C$7^3) -> 9.97002e+11 | L152: 100000 | M152: =L152*KOEF!$C$7 -> 100 | N152: =L152^2*(KOEF!$C$7*(1-KOEF!$C$7)) -> 9990000 | O152: =L152^3*(KOEF!$C$7-3*KOEF!$C$7^2+2*KOEF!$C$7^3) -> 9.97002e+11 | R152: =D152*KOEF!$C$7/KOEF!$C$6 -> 333.3333333 | S152: =D152*KOEF!$L$28 -> 150 | U152: 0 | V152: 0 | Y152: 15300000
D153: 100000 | H153: =D153*KOEF!$C$7 -> 100 | I153: =D153^2*(KOEF!$C$7*(1-KOEF!$C$7)) -> 9990000 | J153: =D153^3*(KOEF!$C$7-3*KOEF!$C$7^2+2*KOEF!$C$7^3) -> 9.97002e+11 | L153: 100000 | M153: =L153*KOEF!$C$7 -> 100 | N153: =L153^2*(KOEF!$C$7*(1-KOEF!$C$7)) -> 9990000 | O153: =L153^3*(KOEF!$C$7-3*KOEF!$C$7^2+2*KOEF!$C$7^3) -> 9.97002e+11 | R153: =D153*KOEF!$C$7/KOEF!$C$6 -> 333.3333333 | S153: =D153*KOEF!$L$28 -> 150 | U153: 0 | V153: 0 | Y153: 15400000
D154: 100000 | H154: =D154*KOEF!$C$7 -> 100 | I154: =D154^2*(KOEF!$C$7*(1-KOEF!$C$7)) -> 9990000 | J154: =D154^3*(KOEF!$C$7-3*KOEF!$C$7^2+2*KOEF!$C$7^3) -> 9.97002e+11 | L154: 100000 | M154: =L154*KOEF!$C$7 -> 100 | N154: =L154^2*(KOEF!$C$7*(1-KOEF!$C$7)) -> 9990000 | O154: =L154^3*(KOEF!$C$7-3*KOEF!$C$7^2+2*KOEF!$C$7^3) -> 9.97002e+11 | R154: =D154*KOEF!$C$7/KOEF!$C$6 -> 333.3333333 | S154: =D154*KOEF!$L$28 -> 150 | U154: 0 | V154: 0 | Y154: 15500000
D155: 100000 | H155: =D155*KOEF!$C$7 -> 100 | I155: =D155^2*(KOEF!$C$7*(1-KOEF!$C$7)) -> 9990000 | J155: =D155^3*(KOEF!$C$7-3*KOEF!$C$7^2+2*KOEF!$C$7^3) -> 9.97002e+11 | L155: 100000 | M155: =L155*KOEF!$C$7 -> 100 | N155: =L155^2*(KOEF!$C$7*(1-KOEF!$C$7)) -> 9990000 | O155: =L155^3*(KOEF!$C$7-3*KOEF!$C$7^2+2*KOEF!$C$7^3) -> 9.97002e+11 | R155: =D155*KOEF!$C$7/KOEF!$C$6 -> 333.3333333 | S155: =D155*KOEF!$L$28 -> 150 | U155: 0 | V155: 0 | Y155: 15600000
D156: 100000 | H156: =D156*KOEF!$C$7 -> 100 | I156: =D156^2*(KOEF!$C$7*(1-KOEF!$C$7)) -> 9990000 | J156: =D156^3*(KOEF!$C$7-3*KOEF!$C$7^2+2*KOEF!$C$7^3) -> 9.97002e+11 | L156: 100000 | M156: =L156*KOEF!$C$7 -> 100 | N156: =L156^2*(KOEF!$C$7*(1-KOEF!$C$7)) -> 9990000 | O156: =L156^3*(KOEF!$C$7-3*KOEF!$C$7^2+2*KOEF!$C$7^3) -> 9.97002e+11 | R156: =D156*KOEF!$C$7/KOEF!$C$6 -> 333.3333333 | S156: =D156*KOEF!$L$28 -> 150 | U156: 0 | V156: 0 | Y156: 15700000
D157: 100000 | H157: =D157*KOEF!$C$7 -> 100 | I157: =D157^2*(KOEF!$C$7*(1-KOEF!$C$7)) -> 9990000 | J157: =D157^3*(KOEF!$C$7-3*KOEF!$C$7^2+2*KOEF!$C$7^3) -> 9.97002e+11 | L157: 100000 | M157: =L157*KOEF!$C$7 -> 100 | N157: =L157^2*(KOEF!$C$7*(1-KOEF!$C$7)) -> 9990000 | O157: =L157^3*(KOEF!$C$7-3*KOEF!$C$7^2+2*KOEF!$C$7^3) -> 9.97002e+11 | R157: =D157*KOEF!$C$7/KOEF!$C$6 -> 333.3333333 | S157: =D157*KOEF!$L$28 -> 150 | U157: 0 | V157: 0 | Y157: 15800000
D158: 100000 | H158: =D158*KOEF!$C$7 -> 100 | I158: =D158^2*(KOEF!$C$7*(1-KOEF!$C$7)) -> 9990000 | J158: =D158^3*(KOEF!$C$7-3*KOEF!$C$7^2+2*KOEF!$C$7^3) -> 9.97002e+11 | L158: 100000 | M158: =L158*KOEF!$C$7 -> 100 | N158: =L158^2*(KOEF!$C$7*(1-KOEF!$C$7)) -> 9990000 | O158: =L158^3*(KOEF!$C$7-3*KOEF!$C$7^2+2*KOEF!$C$7^3) -> 9.97002e+11 | R158: =D158*KOEF!$C$7/KOEF!$C$6 -> 333.3333333 | S158: =D158*KOEF!$L$28 -> 150 | U158: 0 | V158: 0 | Y158: 15900000
D159: 100000 | H159: =D159*KOEF!$C$7 -> 100 | I159: =D159^2*(KOEF!$C$7*(1-KOEF!$C$7)) -> 9990000 | J159: =D159^3*(KOEF!$C$7-3*KOEF!$C$7^2+2*KOEF!$C$7^3) -> 9.97002e+11 | L159: 100000 | M159: =L159*KOEF!$C$7 -> 100 | N159: =L159^2*(KOEF!$C$7*(1-KOEF!$C$7)) -> 9990000 | O159: =L159^3*(KOEF!$C$7-3*KOEF!$C$7^2+2*KOEF!$C$7^3) -> 9.97002e+11 | R159: =D159*KOEF!$C$7/KOEF!$C$6 -> 333.3333333 | S159: =D159*KOEF!$L$28 -> 150 | U159: 0 | V159: 0 | Y159: 16000000
D160: 100000 | H160: =D160*KOEF!$C$7 -> 100 | I160: =D160^2*(KOEF!$C$7*(1-KOEF!$C$7)) -> 9990000 | J160: =D160^3*(KOEF!$C$7-3*KOEF!$C$7^2+2*KOEF!$C$7^3) -> 9.97002e+11 | L160: 100000 | M160: =L160*KOEF!$C$7 -> 100 | N160: =L160^2*(KOEF!$C$7*(1-KOEF!$C$7)) -> 9990000 | O160: =L160^3*(KOEF!$C$7-3*KOEF!$C$7^2+2*KOEF!$C$7^3) -> 9.97002e+11 | R160: =D160*KOEF!$C$7/KOEF!$C$6 -> 333.3333333 | S160: =D160*KOEF!$L$28 -> 150 | U160: 0 | V160: 0 | Y160: 16100000
D161: 100000 | H161: =D161*KOEF!$C$7 -> 100 | I161: =D161^2*(KOEF!$C$7*(1-KOEF!$C$7)) -> 9990000 | J161: =D161^3*(KOEF!$C$7-3*KOEF!$C$7^2+2*KOEF!$C$7^3) -> 9.97002e+11 | L161: 100000 | M161: =L161*KOEF!$C$7 -> 100 | N161: =L161^2*(KOEF!$C$7*(1-KOEF!$C$7)) -> 9990000 | O161: =L161^3*(KOEF!$C$7-3*KOEF!$C$7^2+2*KOEF!$C$7^3) -> 9.97002e+11 | R161: =D161*KOEF!$C$7/KOEF!$C$6 -> 333.3333333 | S161: =D161*KOEF!$L$28 -> 150 | U161: 0 | V161: 0 | Y161: 16200000
D162: 100000 | H162: =D162*KOEF!$C$7 -> 100 | I162: =D162^2*(KOEF!$C$7*(1-KOEF!$C$7)) -> 9990000 | J162: =D162^3*(KOEF!$C$7-3*KOEF!$C$7^2+2*KOEF!$C$7^3) -> 9.97002e+11 | L162: 100000 | M162: =L162*KOEF!$C$7 -> 100 | N162: =L162^2*(KOEF!$C$7*(1-KOEF!$C$7)) -> 9990000 | O162: =L162^3*(KOEF!$C$7-3*KOEF!$C$7^2+2*KOEF!$C$7^3) -> 9.97002e+11 | R162: =D162*KOEF!$C$7/KOEF!$C$6 -> 333.3333333 | S162: =D162*KOEF!$L$28 -> 150 | U162: 0 | V162: 0 | Y162: 16300000
D163: 100000 | H163: =D163*KOEF!$C$7 -> 100 | I163: =D163^2*(KOEF!$C$7*(1-KOEF!$C$7)) -> 9990000 | J163: =D163^3*(KOEF!$C$7-3*KOEF!$C$7^2+2*KOEF!$C$7^3) -> 9.97002e+11 | L163: 100000 | M163: =L163*KOEF!$C$7 -> 100 | N163: =L163^2*(KOEF!$C$7*(1-KOEF!$C$7)) -> 9990000 | O163: =L163^3*(KOEF!$C$7-3*KOEF!$C$7^2+2*KOEF!$C$7^3) -> 9.97002e+11 | R163: =D163*KOEF!$C$7/KOEF!$C$6 -> 333.3333333 | S163: =D163*KOEF!$L$28 -> 150 | U163: 0 | V163: 0 | Y163: 16400000
D164: 100000 | H164: =D164*KOEF!$C$7 -> 100 | I164: =D164^2*(KOEF!$C$7*(1-KOEF!$C$7)) -> 9990000 | J164: =D164^3*(KOEF!$C$7-3*KOEF!$C$7^2+2*KOEF!$C$7^3) -> 9.97002e+11 | L164: 100000 | M164: =L164*KOEF!$C$7 -> 100 | N164: =L164^2*(KOEF!$C$7*(1-KOEF!$C$7)) -> 9990000 | O164: =L164^3*(KOEF!$C$7-3*KOEF!$C$7^2+2*KOEF!$C$7^3) -> 9.97002e+11 | R164: =D164*KOEF!$C$7/KOEF!$C$6 -> 333.3333333 | S164: =D164*KOEF!$L$28 -> 150 | U164: 0 | V164: 0 | Y164: 16500000
D165: 100000 | H165: =D165*KOEF!$C$7 -> 100 | I165: =D165^2*(KOEF!$C$7*(1-KOEF!$C$7)) -> 9990000 | J165: =D165^3*(KOEF!$C$7-3*KOEF!$C$7^2+2*KOEF!$C$7^3) -> 9.97002e+11 | L165: 100000 | M165: =L165*KOEF!$C$7 -> 100 | N165: =L165^2*(KOEF!$C$7*(1-KOEF!$C$7)) -> 9990000 | O165: =L165^3*(KOEF!$C$7-3*KOEF!$C$7^2+2*KOEF!$C$7^3) -> 9.97002e+11 | R165: =D165*KOEF!$C$7/KOEF!$C$6 -> 333.3333333 | S165: =D165*KOEF!$L$28 -> 150 | U165: 0 | V165: 0 | Y165: 16600000
D166: 100000 | H166: =D166*KOEF!$C$7 -> 100 | I166: =D166^2*(KOEF!$C$7*(1-KOEF!$C$7)) -> 9990000 | J166: =D166^3*(KOEF!$C$7-3*KOEF!$C$7^2+2*KOEF!$C$7^3) -> 9.97002e+11 | L166: 100000 | M166: =L166*KOEF!$C$7 -> 100 | N166: =L166^2*(KOEF!$C$7*(1-KOEF!$C$7)) -> 9990000 | O166: =L166^3*(KOEF!$C$7-3*KOEF!$C$7^2+2*KOEF!$C$7^3) -> 9.97002e+11 | R166: =D166*KOEF!$C$7/KOEF!$C$6 -> 333.3333333 | S166: =D166*KOEF!$L$28 -> 150 | U166: 0 | V166: 0 | Y166: 16700000
D167: 100000 | H167: =D167*KOEF!$C$7 -> 100 | I167: =D167^2*(KOEF!$C$7*(1-KOEF!$C$7)) -> 9990000 | J167: =D167^3*(KOEF!$C$7-3*KOEF!$C$7^2+2*KOEF!$C$7^3) -> 9.97002e+11 | L167: 100000 | M167: =L167*KOEF!$C$7 -> 100 | N167: =L167^2*(KOEF!$C$7*(1-KOEF!$C$7)) -> 9990000 | O167: =L167^3*(KOEF!$C$7-3*KOEF!$C$7^2+2*KOEF!$C$7^3) -> 9.97002e+11 | R167: =D167*KOEF!$C$7/KOEF!$C$6 -> 333.3333333 | S167: =D167*KOEF!$L$28 -> 150 | U167: 0 | V167: 0 | Y167: 16800000
D168: 100000 | H168: =D168*KOEF!$C$7 -> 100 | I168: =D168^2*(KOEF!$C$7*(1-KOEF!$C$7)) -> 9990000 | J168: =D168^3*(KOEF!$C$7-3*KOEF!$C$7^2+2*KOEF!$C$7^3) -> 9.97002e+11 | L168: 100000 | M168: =L168*KOEF!$C$7 -> 100 | N168: =L168^2*(KOEF!$C$7*(1-KOEF!$C$7)) -> 9990000 | O168: =L168^3*(KOEF!$C$7-3*KOEF!$C$7^2+2*KOEF!$C$7^3) -> 9.97002e+11 | R168: =D168*KOEF!$C$7/KOEF!$C$6 -> 333.3333333 | S168: =D168*KOEF!$L$28 -> 150 | U168: 0 | V168: 0 | Y168: 16900000
D169: 100000 | H169: =D169*KOEF!$C$7 -> 100 | I169: =D169^2*(KOEF!$C$7*(1-KOEF!$C$7)) -> 9990000 | J169: =D169^3*(KOEF!$C$7-3*KOEF!$C$7^2+2*KOEF!$C$7^3) -> 9.97002e+11 | L169: 100000 | M169: =L169*KOEF!$C$7 -> 100 | N169: =L169^2*(KOEF!$C$7*(1-KOEF!$C$7)) -> 9990000 | O169: =L169^3*(KOEF!$C$7-3*KOEF!$C$7^2+2*KOEF!$C$7^3) -> 9.97002e+11 | R169: =D169*KOEF!$C$7/KOEF!$C$6 -> 333.3333333 | S169: =D169*KOEF!$L$28 -> 150 | U169: 0 | V169: 0 | Y169: 17000000
D170: 100000 | H170: =D170*KOEF!$C$7 -> 100 | I170: =D170^2*(KOEF!$C$7*(1-KOEF!$C$7)) -> 9990000 | J170: =D170^3*(KOEF!$C$7-3*KOEF!$C$7^2+2*KOEF!$C$7^3) -> 9.97002e+11 | L170: 100000 | M170: =L170*KOEF!$C$7 -> 100 | N170: =L170^2*(KOEF!$C$7*(1-KOEF!$C$7)) -> 9990000 | O170: =L170^3*(KOEF!$C$7-3*KOEF!$C$7^2+2*KOEF!$C$7^3) -> 9.97002e+11 | R170: =D170*KOEF!$C$7/KOEF!$C$6 -> 333.3333333 | S170: =D170*KOEF!$L$28 -> 150 | U170: 0 | V170: 0 | Y170: 17100000
D171: 100000 | H171: =D171*KOEF!$C$7 -> 100 | I171: =D171^2*(KOEF!$C$7*(1-KOEF!$C$7)) -> 9990000 | J171: =D171^3*(KOEF!$C$7-3*KOEF!$C$7^2+2*KOEF!$C$7^3) -> 9.97002e+11 | L171: 100000 | M171: =L171*KOEF!$C$7 -> 100 | N171: =L171^2*(KOEF!$C$7*(1-KOEF!$C$7)) -> 9990000 | O171: =L171^3*(KOEF!$C$7-3*KOEF!$C$7^2+2*KOEF!$C$7^3) -> 9.97002e+11 | R171: =D171*KOEF!$C$7/KOEF!$C$6 -> 333.3333333 | S171: =D171*KOEF!$L$28 -> 150 | U171: 0 | V171: 0 | Y171: 17200000
D172: 100000 | H172: =D172*KOEF!$C$7 -> 100 | I172: =D172^2*(KOEF!$C$7*(1-KOEF!$C$7)) -> 9990000 | J172: =D172^3*(KOEF!$C$7-3*KOEF!$C$7^2+2*KOEF!$C$7^3) -> 9.97002e+11 | L172: 100000 | M172: =L172*KOEF!$C$7 -> 100 | N172: =L172^2*(KOEF!$C$7*(1-KOEF!$C$7)) -> 9990000 | O172: =L172^3*(KOEF!$C$7-3*KOEF!$C$7^2+2*KOEF!$C$7^3) -> 9.97002e+11 | R172: =D172*KOEF!$C$7/KOEF!$C$6 -> 333.3333333 | S172: =D172*KOEF!$L$28 -> 150 | U172: 0 | V172: 0 | Y172: 17300000
D173: 100000 | H173: =D173*KOEF!$C$7 -> 100 | I173: =D173^2*(KOEF!$C$7*(1-KOEF!$C$7)) -> 9990000 | J173: =D173^3*(KOEF!$C$7-3*KOEF!$C$7^2+2*KOEF!$C$7^3) -> 9.97002e+11 | L173: 100000 | M173: =L173*KOEF!$C$7 -> 100 | N173: =L173^2*(KOEF!$C$7*(1-KOEF!$C$7)) -> 9990000 | O173: =L173^3*(KOEF!$C$7-3*KOEF!$C$7^2+2*KOEF!$C$7^3) -> 9.97002e+11 | R173: =D173*KOEF!$C$7/KOEF!$C$6 -> 333.3333333 | S173: =D173*KOEF!$L$28 -> 150 | U173: 0 | V173: 0 | Y173: 17400000
D174: 100000 | H174: =D174*KOEF!$C$7 -> 100 | I174: =D174^2*(KOEF!$C$7*(1-KOEF!$C$7)) -> 9990000 | J174: =D174^3*(KOEF!$C$7-3*KOEF!$C$7^2+2*KOEF!$C$7^3) -> 9.97002e+11 | L174: 100000 | M174: =L174*KOEF!$C$7 -> 100 | N174: =L174^2*(KOEF!$C$7*(1-KOEF!$C$7)) -> 9990000 | O174: =L174^3*(KOEF!$C$7-3*KOEF!$C$7^2+2*KOEF!$C$7^3) -> 9.97002e+11 | R174: =D174*KOEF!$C$7/KOEF!$C$6 -> 333.3333333 | S174: =D174*KOEF!$L$28 -> 150 | U174: 0 | V174: 0 | Y174: 17500000
D175: 100000 | H175: =D175*KOEF!$C$7 -> 100 | I175: =D175^2*(KOEF!$C$7*(1-KOEF!$C$7)) -> 9990000 | J175: =D175^3*(KOEF!$C$7-3*KOEF!$C$7^2+2*KOEF!$C$7^3) -> 9.97002e+11 | L175: 100000 | M175: =L175*KOEF!$C$7 -> 100 | N175: =L175^2*(KOEF!$C$7*(1-KOEF!$C$7)) -> 9990000 | O175: =L175^3*(KOEF!$C$7-3*KOEF!$C$7^2+2*KOEF!$C$7^3) -> 9.97002e+11 | R175: =D175*KOEF!$C$7/KOEF!$C$6 -> 333.3333333 | S175: =D175*KOEF!$L$28 -> 150 | U175: 0 | V175: 0 | Y175: 17600000
D176: 100000 | H176: =D176*KOEF!$C$7 -> 100 | I176: =D176^2*(KOEF!$C$7*(1-KOEF!$C$7)) -> 9990000 | J176: =D176^3*(KOEF!$C$7-3*KOEF!$C$7^2+2*KOEF!$C$7^3) -> 9.97002e+11 | L176: 100000 | M176: =L176*KOEF!$C$7 -> 100 | N176: =L176^2*(KOEF!$C$7*(1-KOEF!$C$7)) -> 9990000 | O176: =L176^3*(KOEF!$C$7-3*KOEF!$C$7^2+2*KOEF!$C$7^3) -> 9.97002e+11 | R176: =D176*KOEF!$C$7/KOEF!$C$6 -> 333.3333333 | S176: =D176*KOEF!$L$28 -> 150 | U176: 0 | V176: 0 | Y176: 17700000
D177: 100000 | H177: =D177*KOEF!$C$7 -> 100 | I177: =D177^2*(KOEF!$C$7*(1-KOEF!$C$7)) -> 9990000 | J177: =D177^3*(KOEF!$C$7-3*KOEF!$C$7^2+2*KOEF!$C$7^3) -> 9.97002e+11 | L177: 100000 | M177: =L177*KOEF!$C$7 -> 100 | N177: =L177^2*(KOEF!$C$7*(1-KOEF!$C$7)) -> 9990000 | O177: =L177^3*(KOEF!$C$7-3*KOEF!$C$7^2+2*KOEF!$C$7^3) -> 9.97002e+11 | R177: =D177*KOEF!$C$7/KOEF!$C$6 -> 333.3333333 | S177: =D177*KOEF!$L$28 -> 150 | U177: 0 | V177: 0 | Y177: 17800000
D178: 100000 | H178: =D178*KOEF!$C$7 -> 100 | I178: =D178^2*(KOEF!$C$7*(1-KOEF!$C$7)) -> 9990000 | J178: =D178^3*(KOEF!$C$7-3*KOEF!$C$7^2+2*KOEF!$C$7^3) -> 9.97002e+11 | L178: 100000 | M178: =L178*KOEF!$C$7 -> 100 | N178: =L178^2*(KOEF!$C$7*(1-KOEF!$C$7)) -> 9990000 | O178: =L178^3*(KOEF!$C$7-3*KOEF!$C$7^2+2*KOEF!$C$7^3) -> 9.97002e+11 | R178: =D178*KOEF!$C$7/KOEF!$C$6 -> 333.3333333 | S178: =D178*KOEF!$L$28 -> 150 | U178: 0 | V178: 0 | Y178: 17900000
D179: 100000 | H179: =D179*KOEF!$C$7 -> 100 | I179: =D179^2*(KOEF!$C$7*(1-KOEF!$C$7)) -> 9990000 | J179: =D179^3*(KOEF!$C$7-3*KOEF!$C$7^2+2*KOEF!$C$7^3) -> 9.97002e+11 | L179: 100000 | M179: =L179*KOEF!$C$7 -> 100 | N179: =L179^2*(KOEF!$C$7*(1-KOEF!$C$7)) -> 9990000 | O179: =L179^3*(KOEF!$C$7-3*KOEF!$C$7^2+2*KOEF!$C$7^3) -> 9.97002e+11 | R179: =D179*KOEF!$C$7/KOEF!$C$6 -> 333.3333333 | S179: =D179*KOEF!$L$28 -> 150 | U179: 0 | V179: 0 | Y179: 18000000
D180: 100000 | H180: =D180*KOEF!$C$7 -> 100 | I180: =D180^2*(KOEF!$C$7*(1-KOEF!$C$7)) -> 9990000 | J180: =D180^3*(KOEF!$C$7-3*KOEF!$C$7^2+2*KOEF!$C$7^3) -> 9.97002e+11 | L180: 100000 | M180: =L180*KOEF!$C$7 -> 100 | N180: =L180^2*(KOEF!$C$7*(1-KOEF!$C$7)) -> 9990000 | O180: =L180^3*(KOEF!$C$7-3*KOEF!$C$7^2+2*KOEF!$C$7^3) -> 9.97002e+11 | R180: =D180*KOEF!$C$7/KOEF!$C$6 -> 333.3333333 | S180: =D180*KOEF!$L$28 -> 150 | U180: 0 | V180: 0 | Y180: 18100000
D181: 100000 | H181: =D181*KOEF!$C$7 -> 100 | I181: =D181^2*(KOEF!$C$7*(1-KOEF!$C$7)) -> 9990000 | J181: =D181^3*(KOEF!$C$7-3*KOEF!$C$7^2+2*KOEF!$C$7^3) -> 9.97002e+11 | L181: 100000 | M181: =L181*KOEF!$C$7 -> 100 | N181: =L181^2*(KOEF!$C$7*(1-KOEF!$C$7)) -> 9990000 | O181: =L181^3*(KOEF!$C$7-3*KOEF!$C$7^2+2*KOEF!$C$7^3) -> 9.97002e+11 | R181: =D181*KOEF!$C$7/KOEF!$C$6 -> 333.3333333 | S181: =D181*KOEF!$L$28 -> 150 | U181: 0 | V181: 0 | Y181: 18200000
D182: 100000 | H182: =D182*KOEF!$C$7 -> 100 | I182: =D182^2*(KOEF!$C$7*(1-KOEF!$C$7)) -> 9990000 | J182: =D182^3*(KOEF!$C$7-3*KOEF!$C$7^2+2*KOEF!$C$7^3) -> 9.97002e+11 | L182: 100000 | M182: =L182*KOEF!$C$7 -> 100 | N182: =L182^2*(KOEF!$C$7*(1-KOEF!$C$7)) -> 9990000 | O182: =L182^3*(KOEF!$C$7-3*KOEF!$C$7^2+2*KOEF!$C$7^3) -> 9.97002e+11 | R182: =D182*KOEF!$C$7/KOEF!$C$6 -> 333.3333333 | S182: =D182*KOEF!$L$28 -> 150 | U182: 0 | V182: 0 | Y182: 18300000
D183: 100000 | H183: =D183*KOEF!$C$7 -> 100 | I183: =D183^2*(KOEF!$C$7*(1-KOEF!$C$7)) -> 9990000 | J183: =D183^3*(KOEF!$C$7-3*KOEF!$C$7^2+2*KOEF!$C$7^3) -> 9.97002e+11 | L183: 100000 | M183: =L183*KOEF!$C$7 -> 100 | N183: =L183^2*(KOEF!$C$7*(1-KOEF!$C$7)) -> 9990000 | O183: =L183^3*(KOEF!$C$7-3*KOEF!$C$7^2+2*KOEF!$C$7^3) -> 9.97002e+11 | R183: =D183*KOEF!$C$7/KOEF!$C$6 -> 333.3333333 | S183: =D183*KOEF!$L$28 -> 150 | U183: 0 | V183: 0 | Y183: 18400000
D184: 100000 | H184: =D184*KOEF!$C$7 -> 100 | I184: =D184^2*(KOEF!$C$7*(1-KOEF!$C$7)) -> 9990000 | J184: =D184^3*(KOEF!$C$7-3*KOEF!$C$7^2+2*KOEF!$C$7^3) -> 9.97002e+11 | L184: 100000 | M184: =L184*KOEF!$C$7 -> 100 | N184: =L184^2*(KOEF!$C$7*(1-KOEF!$C$7)) -> 9990000 | O184: =L184^3*(KOEF!$C$7-3*KOEF!$C$7^2+2*KOEF!$C$7^3) -> 9.97002e+11 | R184: =D184*KOEF!$C$7/KOEF!$C$6 -> 333.3333333 | S184: =D184*KOEF!$L$28 -> 150 | U184: 0 | V184: 0 | Y184: 18500000
D185: 100000 | H185: =D185*KOEF!$C$7 -> 100 | I185: =D185^2*(KOEF!$C$7*(1-KOEF!$C$7)) -> 9990000 | J185: =D185^3*(KOEF!$C$7-3*KOEF!$C$7^2+2*KOEF!$C$7^3) -> 9.97002e+11 | L185: 100000 | M185: =L185*KOEF!$C$7 -> 100 | N185: =L185^2*(KOEF!$C$7*(1-KOEF!$C$7)) -> 9990000 | O185: =L185^3*(KOEF!$C$7-3*KOEF!$C$7^2+2*KOEF!$C$7^3) -> 9.97002e+11 | R185: =D185*KOEF!$C$7/KOEF!$C$6 -> 333.3333333 | S185: =D185*KOEF!$L$28 -> 150 | U185: 0 | V185: 0 | Y185: 18600000
D186: 100000 | H186: =D186*KOEF!$C$7 -> 100 | I186: =D186^2*(KOEF!$C$7*(1-KOEF!$C$7)) -> 9990000 | J186: =D186^3*(KOEF!$C$7-3*KOEF!$C$7^2+2*KOEF!$C$7^3) -> 9.97002e+11 | L186: 100000 | M186: =L186*KOEF!$C$7 -> 100 | N186: =L186^2*(KOEF!$C$7*(1-KOEF!$C$7)) -> 9990000 | O186: =L186^3*(KOEF!$C$7-3*KOEF!$C$7^2+2*KOEF!$C$7^3) -> 9.97002e+11 | R186: =D186*KOEF!$C$7/KOEF!$C$6 -> 333.3333333 | S186: =D186*KOEF!$L$28 -> 150 | U186: 0 | V186: 0 | Y186: 18700000
D187: 100000 | H187: =D187*KOEF!$C$7 -> 100 | I187: =D187^2*(KOEF!$C$7*(1-KOEF!$C$7)) -> 9990000 | J187: =D187^3*(KOEF!$C$7-3*KOEF!$C$7^2+2*KOEF!$C$7^3) -> 9.97002e+11 | L187: 100000 | M187: =L187*KOEF!$C$7 -> 100 | N187: =L187^2*(KOEF!$C$7*(1-KOEF!$C$7)) -> 9990000 | O187: =L187^3*(KOEF!$C$7-3*KOEF!$C$7^2+2*KOEF!$C$7^3) -> 9.97002e+11 | R187: =D187*KOEF!$C$7/KOEF!$C$6 -> 333.3333333 | S187: =D187*KOEF!$L$28 -> 150 | U187: 0 | V187: 0 | Y187: 18800000
D188: 100000 | H188: =D188*KOEF!$C$7 -> 100 | I188: =D188^2*(KOEF!$C$7*(1-KOEF!$C$7)) -> 9990000 | J188: =D188^3*(KOEF!$C$7-3*KOEF!$C$7^2+2*KOEF!$C$7^3) -> 9.97002e+11 | L188: 100000 | M188: =L188*KOEF!$C$7 -> 100 | N188: =L188^2*(KOEF!$C$7*(1-KOEF!$C$7)) -> 9990000 | O188: =L188^3*(KOEF!$C$7-3*KOEF!$C$7^2+2*KOEF!$C$7^3) -> 9.97002e+11 | R188: =D188*KOEF!$C$7/KOEF!$C$6 -> 333.3333333 | S188: =D188*KOEF!$L$28 -> 150 | U188: 0 | V188: 0 | Y188: 18900000
D189: 100000 | H189: =D189*KOEF!$C$7 -> 100 | I189: =D189^2*(KOEF!$C$7*(1-KOEF!$C$7)) -> 9990000 | J189: =D189^3*(KOEF!$C$7-3*KOEF!$C$7^2+2*KOEF!$C$7^3) -> 9.97002e+11 | L189: 100000 | M189: =L189*KOEF!$C$7 -> 100 | N189: =L189^2*(KOEF!$C$7*(1-KOEF!$C$7)) -> 9990000 | O189: =L189^3*(KOEF!$C$7-3*KOEF!$C$7^2+2*KOEF!$C$7^3) -> 9.97002e+11 | R189: =D189*KOEF!$C$7/KOEF!$C$6 -> 333.3333333 | S189: =D189*KOEF!$L$28 -> 150 | U189: 0 | V189: 0 | Y189: 19000000
D190: 100000 | H190: =D190*KOEF!$C$7 -> 100 | I190: =D190^2*(KOEF!$C$7*(1-KOEF!$C$7)) -> 9990000 | J190: =D190^3*(KOEF!$C$7-3*KOEF!$C$7^2+2*KOEF!$C$7^3) -> 9.97002e+11 | L190: 100000 | M190: =L190*KOEF!$C$7 -> 100 | N190: =L190^2*(KOEF!$C$7*(1-KOEF!$C$7)) -> 9990000 | O190: =L190^3*(KOEF!$C$7-3*KOEF!$C$7^2+2*KOEF!$C$7^3) -> 9.97002e+11 | R190: =D190*KOEF!$C$7/KOEF!$C$6 -> 333.3333333 | S190: =D190*KOEF!$L$28 -> 150 | U190: 0 | V190: 0 | Y190: 19100000
D191: 100000 | H191: =D191*KOEF!$C$7 -> 100 | I191: =D191^2*(KOEF!$C$7*(1-KOEF!$C$7)) -> 9990000 | J191: =D191^3*(KOEF!$C$7-3*KOEF!$C$7^2+2*KOEF!$C$7^3) -> 9.97002e+11 | L191: 100000 | M191: =L191*KOEF!$C$7 -> 100 | N191: =L191^2*(KOEF!$C$7*(1-KOEF!$C$7)) -> 9990000 | O191: =L191^3*(KOEF!$C$7-3*KOEF!$C$7^2+2*KOEF!$C$7^3) -> 9.97002e+11 | R191: =D191*KOEF!$C$7/KOEF!$C$6 -> 333.3333333 | S191: =D191*KOEF!$L$28 -> 150 | U191: 0 | V191: 0 | Y191: 19200000
D192: 100000 | H192: =D192*KOEF!$C$7 -> 100 | I192: =D192^2*(KOEF!$C$7*(1-KOEF!$C$7)) -> 9990000 | J192: =D192^3*(KOEF!$C$7-3*KOEF!$C$7^2+2*KOEF!$C$7^3) -> 9.97002e+11 | L192: 100000 | M192: =L192*KOEF!$C$7 -> 100 | N192: =L192^2*(KOEF!$C$7*(1-KOEF!$C$7)) -> 9990000 | O192: =L192^3*(KOEF!$C$7-3*KOEF!$C$7^2+2*KOEF!$C$7^3) -> 9.97002e+11 | R192: =D192*KOEF!$C$7/KOEF!$C$6 -> 333.3333333 | S192: =D192*KOEF!$L$28 -> 150 | U192: 0 | V192: 0 | Y192: 19300000
D193: 100000 | H193: =D193*KOEF!$C$7 -> 100 | I193: =D193^2*(KOEF!$C$7*(1-KOEF!$C$7)) -> 9990000 | J193: =D193^3*(KOEF!$C$7-3*KOEF!$C$7^2+2*KOEF!$C$7^3) -> 9.97002e+11 | L193: 100000 | M193: =L193*KOEF!$C$7 -> 100 | N193: =L193^2*(KOEF!$C$7*(1-KOEF!$C$7)) -> 9990000 | O193: =L193^3*(KOEF!$C$7-3*KOEF!$C$7^2+2*KOEF!$C$7^3) -> 9.97002e+11 | R193: =D193*KOEF!$C$7/KOEF!$C$6 -> 333.3333333 | S193: =D193*KOEF!$L$28 -> 150 | U193: 0 | V193: 0 | Y193: 19400000
D194: 100000 | H194: =D194*KOEF!$C$7 -> 100 | I194: =D194^2*(KOEF!$C$7*(1-KOEF!$C$7)) -> 9990000 | J194: =D194^3*(KOEF!$C$7-3*KOEF!$C$7^2+2*KOEF!$C$7^3) -> 9.97002e+11 | L194: 100000 | M194: =L194*KOEF!$C$7 -> 100 | N194: =L194^2*(KOEF!$C$7*(1-KOEF!$C$7)) -> 9990000 | O194: =L194^3*(KOEF!$C$7-3*KOEF!$C$7^2+2*KOEF!$C$7^3) -> 9.97002e+11 | R194: =D194*KOEF!$C$7/KOEF!$C$6 -> 333.3333333 | S194: =D194*KOEF!$L$28 -> 150 | U194: 0 | V194: 0 | Y194: 19500000
D195: 100000 | H195: =D195*KOEF!$C$7 -> 100 | I195: =D195^2*(KOEF!$C$7*(1-KOEF!$C$7)) -> 9990000 | J195: =D195^3*(KOEF!$C$7-3*KOEF!$C$7^2+2*KOEF!$C$7^3) -> 9.97002e+11 | L195: 100000 | M195: =L195*KOEF!$C$7 -> 100 | N195: =L195^2*(KOEF!$C$7*(1-KOEF!$C$7)) -> 9990000 | O195: =L195^3*(KOEF!$C$7-3*KOEF!$C$7^2+2*KOEF!$C$7^3) -> 9.97002e+11 | R195: =D195*KOEF!$C$7/KOEF!$C$6 -> 333.3333333 | S195: =D195*KOEF!$L$28 -> 150 | U195: 0 | V195: 0 | Y195: 19600000
D196: 100000 | H196: =D196*KOEF!$C$7 -> 100 | I196: =D196^2*(KOEF!$C$7*(1-KOEF!$C$7)) -> 9990000 | J196: =D196^3*(KOEF!$C$7-3*KOEF!$C$7^2+2*KOEF!$C$7^3) -> 9.97002e+11 | L196: 100000 | M196: =L196*KOEF!$C$7 -> 100 | N196: =L196^2*(KOEF!$C$7*(1-KOEF!$C$7)) -> 9990000 | O196: =L196^3*(KOEF!$C$7-3*KOEF!$C$7^2+2*KOEF!$C$7^3) -> 9.97002e+11 | R196: =D196*KOEF!$C$7/KOEF!$C$6 -> 333.3333333 | S196: =D196*KOEF!$L$28 -> 150 | U196: 0 | V196: 0 | Y196: 19700000
D197: 100000 | H197: =D197*KOEF!$C$7 -> 100 | I197: =D197^2*(KOEF!$C$7*(1-KOEF!$C$7)) -> 9990000 | J197: =D197^3*(KOEF!$C$7-3*KOEF!$C$7^2+2*KOEF!$C$7^3) -> 9.97002e+11 | L197: 100000 | M197: =L197*KOEF!$C$7 -> 100 | N197: =L197^2*(KOEF!$C$7*(1-KOEF!$C$7)) -> 9990000 | O197: =L197^3*(KOEF!$C$7-3*KOEF!$C$7^2+2*KOEF!$C$7^3) -> 9.97002e+11 | R197: =D197*KOEF!$C$7/KOEF!$C$6 -> 333.3333333 | S197: =D197*KOEF!$L$28 -> 150 | U197: 0 | V197: 0 | Y197: 19800000
D198: 100000 | H198: =D198*KOEF!$C$7 -> 100 | I198: =D198^2*(KOEF!$C$7*(1-KOEF!$C$7)) -> 9990000 | J198: =D198^3*(KOEF!$C$7-3*KOEF!$C$7^2+2*KOEF!$C$7^3) -> 9.97002e+11 | L198: 100000 | M198: =L198*KOEF!$C$7 -> 100 | N198: =L198^2*(KOEF!$C$7*(1-KOEF!$C$7)) -> 9990000 | O198: =L198^3*(KOEF!$C$7-3*KOEF!$C$7^2+2*KOEF!$C$7^3) -> 9.97002e+11 | R198: =D198*KOEF!$C$7/KOEF!$C$6 -> 333.3333333 | S198: =D198*KOEF!$L$28 -> 150 | U198: =R198*MAX((D198-$P$1),0)/D198 -> 0 | V198: =S198*MAX((D198-$P$1),0)/D198 -> 0 | Y198: 19900000
D199: 100000 | H199: =D199*KOEF!$C$7 -> 100 | I199: =D199^2*(KOEF!$C$7*(1-KOEF!$C$7)) -> 9990000 | J199: =D199^3*(KOEF!$C$7-3*KOEF!$C$7^2+2*KOEF!$C$7^3) -> 9.97002e+11 | L199: =MIN(D199,$P$1) -> 100000 | M199: =L199*KOEF!$C$7 -> 100 | N199: =L199^2*(KOEF!$C$7*(1-KOEF!$C$7)) -> 9990000 | O199: =L199^3*(KOEF!$C$7-3*KOEF!$C$7^2+2*KOEF!$C$7^3) -> 9.97002e+11 | R199: =D199*KOEF!$C$7/KOEF!$C$6 -> 333.3333333 | S199: =D199*KOEF!$L$28 -> 150 | U199: 0 | V199: 0 | Y199: 20000000
D200: 100000 | H200: =D200*KOEF!$C$7 -> 100 | I200: =D200^2*(KOEF!$C$7*(1-KOEF!$C$7)) -> 9990000 | J200: =D200^3*(KOEF!$C$7-3*KOEF!$C$7^2+2*KOEF!$C$7^3) -> 9.97002e+11 | L200: 100000 | M200: =L200*KOEF!$C$7 -> 100 | N200: =L200^2*(KOEF!$C$7*(1-KOEF!$C$7)) -> 9990000 | O200: =L200^3*(KOEF!$C$7-3*KOEF!$C$7^2+2*KOEF!$C$7^3) -> 9.97002e+11 | R200: =D200*KOEF!$C$7/KOEF!$C$6 -> 333.3333333 | S200: =D200*KOEF!$L$28 -> 150 | U200: 0 | V200: 0
... 4300 more rows

Sheet SIM
A2: =AVERAGE(A5:A20000) -> 17938938.6
A3: =(A2-CALC!H3)/CALC!H3 -> -0.003618838143 | C3: VV | D3: =CALC!P1 -> 3300000
GF4: SUMA
A5: =SUM(C5:GX5) -> 16641816 | B5: 66 | C5: 163200 | D5: 100000 | E5: 100000 | F5: 250000 | G5: 111068 | H5: 500000 | I5: 184428 | J5: 100000 | K5: 600000 | L5: 250000 | M5: 100000 | N5: 626453 | O5: 420000 | P5: 100000 | Q5: 100000 | R5: 100000 | S5: 300000 | T5: 300000 | U5: 108783 | V5: 1000000 | W5: 755619 | X5: 100000 | Y5: 600000 | Z5: 104755 | AA5: 130986 | AB5: 500000 | AC5: 1021000 | AD5: 210000 | AE5: 500000 | AF5: 100000 | AG5: 157050 | AH5: 250000 | AI5: 250000 | AJ5: 100000 | AK5: 295120 | AL5: 100000 | AM5: 500000 | AN5: 139747 | AO5: 250000 | AP5: 100000 | AQ5: 250000 | AR5: 200000 | AS5: 200000 | AT5: 100000 | AU5: 153150 | AV5: 100000 | AW5: 100000 | AX5: 232790 | AY5: 100000 | AZ5: 110700 | BA5: 179580 | BB5: 200000 | BC5: 100000 | BD5: 100000 | BE5: 100000 | BF5: 100000 | BG5: 100000 | BH5: 203804 | BI5: 300000 | BJ5: 500000 | BK5: 614761 | BL5: 120110 | BM5: 300000 | BN5: 271881 | BO5: 118048 | BP5: 108783 | GF5: =SUM(GG5:KF5) -> 0 | GG5: =MAX(C5-$D$3,0) -> 0 | GH5: =MAX(CH5-$D$3,0) -> 0 | GI5: 0 | GJ5: 0 | GK5: 0 | GL5: 0 | GM5: 0 | GN5: 0 | GO5: 0 | GP5: 0 | GQ5: 0 | GR5: 0 | GS5: 0 | GT5: 0 | GU5: 0 | GV5: 0 | GW5: 0 | GX5: 0 | GY5: 0 | GZ5: 0 | HA5: 0 | HB5: 0 | HC5: 0 | HD5: 0 | HE5: 0 | HF5: 0 | HG5: 0 | HH5: 0 | HI5: 0 | HJ5: 0 | HK5: 0 | HL5: 0 | HM5: 0 | HN5: 0 | HO5: 0 | HP5: 0 | HQ5: 0 | HR5: 0 | HS5: 0 | HT5: 0 | HU5: 0 | HV5: 0 | HW5: 0 | HX5: 0 | HY5: 0 | HZ5: 0 | IA5: 0 | IB5: 0 | IC5: 0 | ID5: 0 | IE5: 0 | IF5: 0 | IG5: 0 | IH5: 0 | II5: 0 | IJ5: 0 | IK5: 0 | IL5: 0 | IM5: 0 | IN5: 0 | IO5: 0 | IP5: 0 | IQ5: 0 | IR5: 0 | IS5: 0 | IT5: =MAX(ET5-$D$3,0) -> 0 | IU5: 0 | IV5: 0 | IW5: 0 | IX5: 0 | IY5: 0 | IZ5: 0 | JA5: 0 | JB5: 0 | JC5: 0 | JD5: 0 | JE5: 0 | JF5: 0 | JG5: 0 | JH5: 0 | JI5: 0 | JJ5: 0 | JK5: 0 | JL5: 0 | JM5: 0 | JN5: 0 | JO5: 0 | JP5: 0 | JQ5: 0 | JR5: 0 | JS5: 0 | JT5: 0 | JU5: 0 | JV5: 0 | JW5: 0 | JX5: 0 | JY5: 0 | JZ5: 0 | KA5: 0 | KB5: 0
A6: =SUM(C6:GY6) -> 13508526 | B6: 57 | C6: 300000 | D6: 103900 | E6: 306300 | F6: 500000 | G6: 100000 | H6: 1000000 | I6: 217000 | J6: 550000 | K6: 102100 | L6: 120110 | M6: 311700 | N6: 200000 | O6: 165273 | P6: 100000 | Q6: 250000 | R6: 100000 | S6: 203725 | T6: 200000 | U6: 100000 | V6: 210000 | W6: 100000 | X6: 250000 | Y6: 157133 | Z6: 200000 | AA6: 100000 | AB6: 100000 | AC6: 368856 | AD6: 106692 | AE6: 300000 | AF6: 104755 | AG6: 500000 | AH6: 100000 | AI6: 100000 | AJ6: 110852 | AK6: 375495 | AL6: 106082 | AM6: 100000 | AN6: 210000 | AO6: 1000000 | AP6: 626143 | AQ6: 100000 | AR6: 200000 | AS6: 100000 | AT6: 300000 | AU6: 100000 | AV6: 110852 | AW6: 250000 | AX6: 102903 | AY6: 122952 | AZ6: 117433 | BA6: 117433 | BB6: 145032 | BC6: 100000 | BD6: 100000 | BE6: 1000000 | BF6: 135805 | BG6: 250000 | GF6: =SUM(GG6:KF6) -> 0 | GG6: =MAX(C6-$D$3,0) -> 0 | GH6: 0 | GI6: 0 | GJ6: 0 | GK6: 0 | GL6: 0 | GM6: 0 | GN6: 0 | GO6: 0 | GP6: 0 | GQ6: 0 | GR6: 0 | GS6: 0 | GT6: 0 | GU6: 0 | GV6: 0 | GW6: 0 | GX6: 0 | GY6: 0 | GZ6: 0 | HA6: 0 | HB6: 0 | HC6: 0 | HD6: 0 | HE6: 0 | HF6: 0 | HG6: 0 | HH6: 0 | HI6: 0 | HJ6: 0 | HK6: 0 | HL6: 0 | HM6: 0 | HN6: 0 | HO6: 0 | HP6: 0 | HQ6: 0 | HR6: 0 | HS6: 0 | HT6: 0 | HU6: 0 | HV6: 0 | HW6: 0 | HX6: 0 | HY6: 0 | HZ6: 0 | IA6: 0 | IB6: 0 | IC6: 0 | ID6: 0 | IE6: 0 | IF6: 0 | IG6: 0 | IH6: 0 | II6: 0 | IJ6: 0 | IK6: 0 | IL6: 0 | IM6: 0 | IN6: 0 | IO6: 0 | IP6: 0 | IQ6: 0 | IR6: 0 | IS6: 0 | IT6: 0 | IU6: 0 | IV6: 0 | IW6: 0 | IX6: 0 | IY6: 0 | IZ6: 0 | JA6: 0 | JB6: 0 | JC6: 0 | JD6: 0 | JE6: 0 | JF6: 0 | JG6: 0 | JH6: 0 | JI6: 0 | JJ6: 0 | JK6: 0 | JL6: 0 | JM6: 0 | JN6: 0 | JO6: 0 | JP6: 0 | JQ6: 0 | JR6: 0 | JS6: 0 | JT6: 0 | JU6: 0 | JV6: 0 | JW6: 0 | JX6: 0 | JY6: 0 | JZ6: 0 | KA6: 0 | KB6: 0
A7: 14825505 | B7: 62 | C7: 362857 | D7: 100000 | E7: 100000 | F7: 100000 | G7: 100000 | H7: 500000 | I7: 150000 | J7: 125290 | K7: 400000 | L7: 100000 | M7: 205806 | N7: 300000 | O7: 155850 | P7: 500000 | Q7: 100000 | R7: 200000 | S7: 150000 | T7: 1000000 | U7: 100000 | V7: 300000 | W7: 100000 | X7: 840000 | Y7: 150150 | Z7: 200000 | AA7: 125165 | AB7: 100000 | AC7: 300000 | AD7: 200000 | AE7: 500000 | AF7: 200000 | AG7: 1000000 | AH7: 100000 | AI7: 100000 | AJ7: 200000 | AK7: 100000 | AL7: 100000 | AM7: 200000 | AN7: 100000 | AO7: 200000 | AP7: 100000 | AQ7: 100000 | AR7: 300000 | AS7: 500000 | AT7: 553500 | AU7: 100000 | AV7: 100000 | AW7: 300000 | AX7: 100000 | AY7: 250000 | AZ7: 100000 | BA7: 261750 | BB7: 277130 | BC7: 125706 | BD7: 100000 | BE7: 127415 | BF7: 125640 | BG7: 200000 | BH7: 125290 | BI7: 350000 | BJ7: 500000 | BK7: 113956 | BL7: 150000 | GF7: 0 | GG7: 0 | GH7: 0 | GI7: 0 | GJ7: 0 | GK7: 0 | GL7: 0 | GM7: 0 | GN7: 0 | GO7: 0 | GP7: 0 | GQ7: 0 | GR7: 0 | GS7: 0 | GT7: 0 | GU7: 0 | GV7: 0 | GW7: 0 | GX7: 0 | GY7: 0 | GZ7: 0 | HA7: 0 | HB7: 0 | HC7: 0 | HD7: 0 | HE7: 0 | HF7: 0 | HG7: 0 | HH7: 0 | HI7: 0 | HJ7: 0 | HK7: 0 | HL7: 0 | HM7: 0 | HN7: 0 | HO7: 0 | HP7: 0 | HQ7: 0 | HR7: 0 | HS7: 0 | HT7: 0 | HU7: 0 | HV7: 0 | HW7: 0 | HX7: 0 | HY7: 0 | HZ7: 0 | IA7: 0 | IB7: 0 | IC7: 0 | ID7: 0 | IE7: 0 | IF7: 0 | IG7: 0 | IH7: 0 | II7: 0 | IJ7: 0 | IK7: 0 | IL7: 0 | IM7: 0 | IN7: 0 | IO7: 0 | IP7: 0 | IQ7: 0 | IR7: 0 | IS7: 0 | IT7: 0 | IU7: 0 | IV7: 0 | IW7: 0 | IX7: 0 | IY7: 0 | IZ7: 0 | JA7: 0 | JB7: 0 | JC7: 0 | JD7: 0 | JE7: 0 | JF7: 0 | JG7: 0 | JH7: 0 | JI7: 0 | JJ7: 0 | JK7: 0 | JL7: 0 | JM7: 0 | JN7: 0 | JO7: 0 | JP7: 0 | JQ7: 0 | JR7: 0 | JS7: 0 | JT7: 0 | JU7: 0 | JV7: 0 | JW7: 0 | JX7: 0 | JY7: 0 | JZ7: 0 | KA7: 0 | KB7: 0
A8: 19428316 | B8: 69 | C8: 100000 | D8: 100000 | E8: 128798 | F8: 100000 | G8: 200000 | H8: 500000 | I8: 102100 | J8: 100000 | K8: 120110 | L8: 100000 | M8: 600000 | N8: 100000 | O8: 3000000 | P8: 200000 | Q8: 150000 | R8: 500000 | S8: 119721 | T8: 150000 | U8: 108500 | V8: 306580 | W8: 200000 | X8: 200000 | Y8: 150000 | Z8: 133364 | AA8: 200000 | AB8: 200000 | AC8: 100000 | AD8: 200000 | AE8: 125290 | AF8: 960876 | AG8: 200000 | AH8: 298000 | AI8: 221483 | AJ8: 177072 | AK8: 300000 | AL8: 250000 | AM8: 213382 | AN8: 118048 | AO8: 100000 | AP8: 100000 | AQ8: 100000 | AR8: 110741 | AS8: 450000 | AT8: 150000 | AU8: 1000000 | AV8: 100000 | AW8: 100000 | AX8: 200000 | AY8: 100000 | AZ8: 100000 | BA8: 1039000 | BB8: 100000 | BC8: 300000 | BD8: 108783 | BE8: 100000 | BF8: 100000 | BG8: 1047551 | BH8: 100000 | BI8: 300000 | BJ8: 100000 | BK8: 221704 | BL8: 300000 | BM8: 100000 | BN8: 100000 | BO8: 420000 | BP8: 300000 | BQ8: 500000 | BR8: 108500 | BS8: 438713 | GF8: 0 | GG8: 0 | GH8: 0 | GI8: 0 | GJ8: 0 | GK8: 0 | GL8: 0 | GM8: 0 | GN8: 0 | GO8: 0 | GP8: 0 | GQ8: 0 | GR8: 0 | GS8: 0 | GT8: 0 | GU8: 0 | GV8: 0 | GW8: 0 | GX8: 0 | GY8: 0 | GZ8: 0 | HA8: 0 | HB8: 0 | HC8: 0 | HD8: 0 | HE8: 0 | HF8: 0 | HG8: 0 | HH8: 0 | HI8: 0 | HJ8: 0 | HK8: 0 | HL8: 0 | HM8: 0 | HN8: 0 | HO8: 0 | HP8: 0 | HQ8: 0 | HR8: 0 | HS8: 0 | HT8: 0 | HU8: 0 | HV8: 0 | HW8: 0 | HX8: 0 | HY8: 0 | HZ8: 0 | IA8: 0 | IB8: 0 | IC8: 0 | ID8: 0 | IE8: 0 | IF8: 0 | IG8: 0 | IH8: 0 | II8: 0 | IJ8: 0 | IK8: 0 | IL8: 0 | IM8: 0 | IN8: 0 | IO8: 0 | IP8: 0 | IQ8: 0 | IR8: 0 | IS8: =MAX(ES8-$D$3,0) -> 0 | IT8: 0 | IU8: 0 | IV8: 0 | IW8: 0 | IX8: 0 | IY8: 0 | IZ8: 0 | JA8: 0 | JB8: 0 | JC8: 0 | JD8: 0 | JE8: 0 | JF8: 0 | JG8: 0 | JH8: 0 | JI8: 0 | JJ8: 0 | JK8: 0 | JL8: 0 | JM8: 0 | JN8: 0 | JO8: 0 | JP8: 0 | JQ8: 0 | JR8: 0 | JS8: 0 | JT8: 0 | JU8: 0 | JV8: 0 | JW8: 0 | JX8: 0 | JY8: 0 | JZ8: 0 | KA8: 0 | KB8: 0
A9: 17967594 | B9: 71 | C9: 1039000 | D9: 100000 | E9: 100000 | F9: 200000 | G9: 100000 | H9: 100000 | I9: 300000 | J9: 300000 | K9: 386394 | L9: 100000 | M9: 100000 | N9: 100000 | O9: 100000 | P9: 108700 | Q9: 500000 | R9: 100000 | S9: 2000000 | T9: 100000 | U9: 346568 | V9: 384000 | W9: 100000 | X9: 257596 | Y9: 100000 | Z9: 345600 | AA9: 100000 | AB9: 199034 | AC9: 111068 | AD9: 125165 | AE9: 200000 | AF9: 108800 | AG9: 100000 | AH9: 133404 | AI9: 200000 | AJ9: 892800 | AK9: 200000 | AL9: 100000 | AM9: 250000 | AN9: 450000 | AO9: 100000 | AP9: 100000 | AQ9: 200000 | AR9: 102100 | AS9: 100000 | AT9: 300000 | AU9: 250000 | AV9: 100000 | AW9: 250000 | AX9: 100000 | AY9: 100000 | AZ9: 400000 | BA9: 360000 | BB9: 600000 | BC9: 200000 | BD9: 135941 | BE9: 122632 | BF9: 523500 | BG9: 500000 | BH9: 500000 | BI9: 108500 | BJ9: 300000 | BK9: 100000 | BL9: 110700 | BM9: 209400 | BN9: 106692 | BO9: 100000 | BP9: 300000 | BQ9: 200000 | BR9: 250000 | BS9: 100000 | BT9: 300000 | BU9: 200000 | GF9: 0 | GG9: 0 | GH9: =MAX(CH9-$D$3,0) -> 0 | GI9: 0 | GJ9: 0 | GK9: 0 | GL9: 0 | GM9: 0 | GN9: 0 | GO9: 0 | GP9: 0 | GQ9: 0 | GR9: 0 | GS9: 0 | GT9: 0 | GU9: 0 | GV9: 0 | GW9: 0 | GX9: =MAX(CX9-$D$3,0) -> 0 | GY9: 0 | GZ9: 0 | HA9: 0 | HB9: 0 | HC9: 0 | HD9: 0 | HE9: 0 | HF9: 0 | HG9: 0 | HH9: 0 | HI9: 0 | HJ9: 0 | HK9: 0 | HL9: 0 | HM9: 0 | HN9: =MAX(DN9-$D$3,0) -> 0 | HO9: 0 | HP9: 0 | HQ9: 0 | HR9: 0 | HS9: 0 | HT9: 0 | HU9: 0 | HV9: 0 | HW9: 0 | HX9: 0 | HY9: 0 | HZ9: 0 | IA9: 0 | IB9: 0 | IC9: 0 | ID9: =MAX(ED9-$D$3,0) -> 0 | IE9: 0 | IF9: 0 | IG9: 0 | IH9: 0 | II9: 0 | IJ9: 0 | IK9: 0 | IL9: 0 | IM9: 0 | IN9: 0 | IO9: 0 | IP9: 0 | IQ9: 0 | IR9: 0 | IS9: 0 | IT9: 0 | IU9: 0 | IV9: 0 | IW9: 0 | IX9: 0 | IY9: 0 | IZ9: 0 | JA9: 0 | JB9: 0 | JC9: 0 | JD9: 0 | JE9: 0 | JF9: 0 | JG9: 0 | JH9: 0 | JI9: 0 | JJ9: 0 | JK9: 0 | JL9: 0 | JM9: 0 | JN9: 0 | JO9: 0 | JP9: 0 | JQ9: 0 | JR9: 0 | JS9: 0 | JT9: 0 | JU9: 0 | JV9: 0 | JW9: 0 | JX9: 0 | JY9: 0 | JZ9: 0 | KA9: 0 | KB9: 0
A10: 18378908 | B10: 72 | C10: 100000 | D10: 800000 | E10: 137148 | F10: 250000 | G10: 100000 | H10: 400000 | I10: 199432 | J10: 100000 | K10: 100000 | L10: 100000 | M10: 250000 | N10: 200000 | O10: 100000 | P10: 100000 | Q10: 100000 | R10: 100000 | S10: 100000 | T10: 100000 | U10: 100000 | V10: 100000 | W10: 300000 | X10: 100000 | Y10: 221854 | Z10: 265205 | AA10: 100000 | AB10: 200000 | AC10: 100000 | AD10: 100000 | AE10: 200000 | AF10: 100000 | AG10: 100000 | AH10: 100000 | AI10: 442800 | AJ10: 426764 | AK10: 101902 | AL10: 100000 | AM10: 400000 | AN10: 300000 | AO10: 100000 | AP10: 109679 | AQ10: 500000 | AR10: 500000 | AS10: 250000 | AT10: 200000 | AU10: 100000 | AV10: 100000 | AW10: 100000 | AX10: 278400 | AY10: 200000 | AZ10: 250000 | BA10: 300000 | BB10: 150000 | BC10: 200000 | BD10: 2000000 | BE10: 180000 | BF10: 200000 | BG10: 314265 | BH10: 271609 | BI10: 232000 | BJ10: 217600 | BK10: 100000 | BL10: 100000 | BM10: 200000 | BN10: 125000 | BO10: 250000 | BP10: 100000 | BQ10: 2000000 | BR10: 500000 | BS10: 200000 | BT10: 500000 | BU10: 100000 | BV10: 255250 | GF10: 0 | GG10: 0 | GH10: 0 | GI10: 0 | GJ10: 0 | GK10: 0 | GL10: 0 | GM10: 0 | GN10: 0 | GO10: 0 | GP10: 0 | GQ10: 0 | GR10: 0 | GS10: 0 | GT10: 0 | GU10: 0 | GV10: 0 | GW10: 0 | GX10: 0 | GY10: 0 | GZ10: 0 | HA10: 0 | HB10: 0 | HC10: 0 | HD10: 0 | HE10: 0 | HF10: 0 | HG10: 0 | HH10: 0 | HI10: 0 | HJ10: 0 | HK10: 0 | HL10: 0 | HM10: 0 | HN10: 0 | HO10: 0 | HP10: 0 | HQ10: 0 | HR10: 0 | HS10: 0 | HT10: 0 | HU10: 0 | HV10: 0 | HW10: 0 | HX10: 0 | HY10: 0 | HZ10: 0 | IA10: 0 | IB10: 0 | IC10: 0 | ID10: 0 | IE10: 0 | IF10: 0 | IG10: 0 | IH10: 0 | II10: 0 | IJ10: 0 | IK10: 0 | IL10: 0 | IM10: 0 | IN10: 0 | IO10: 0 | IP10: 0 | IQ10: 0 | IR10: 0 | IS10: 0 | IT10: 0 | IU10: 0 | IV10: 0 | IW10: 0 | IX10: 0 | IY10: 0 | IZ10: 0 | JA10: 0 | JB10: 0 | JC10: 0 | JD10: 0 | JE10: 0 | JF10: 0 | JG10: 0 | JH10: 0 | JI10: 0 | JJ10: 0 | JK10: 0 | JL10: 0 | JM10: 0 | JN10: 0 | JO10: 0 | JP10: 0 | JQ10: 0 | JR10: 0 | JS10: 0 | JT10: 0 | JU10: 0 | JV10: 0 | JW10: 0 | JX10: 0 | JY10: 0 | JZ10: 0 | KA10: 0 | KB10: 0
A11: 13783646 | B11: 59 | C11: 200000 | D11: 300000 | E11: 100000 | F11: 100000 | G11: 100000 | H11: 100000 | I11: 261358 | J11: 150000 | K11: 200000 | L11: 200000 | M11: 500000 | N11: 1000000 | O11: 100000 | P11: 300000 | Q11: 198000 | R11: 100000 | S11: 200000 | T11: 265205 | U11: 156000 | V11: 100000 | W11: 135941 | X11: 100000 | Y11: 100000 | Z11: 250000 | AA11: 200000 | AB11: 113067 | AC11: 250000 | AD11: 100000 | AE11: 100000 | AF11: 150000 | AG11: 300300 | AH11: 205806 | AI11: 300000 | AJ11: 400270 | AK11: 500000 | AL11: 100000 | AM11: 100000 | AN11: 100000 | AO11: 200000 | AP11: 100000 | AQ11: 270000 | AR11: 500000 | AS11: 200000 | AT11: 220000 | AU11: 100000 | AV11: 500000 | AW11: 500000 | AX11: 300000 | AY11: 147902 | AZ11: 555339 | BA11: 100000 | BB11: 200000 | BC11: 200000 | BD11: 100000 | BE11: 226360 | BF11: 305466 | BG11: 500000 | BH11: 122632 | BI11: 300000 | GF11: 0 | GG11: 0 | GH11: 0 | GI11: 0 | GJ11: 0 | GK11: 0 | GL11: 0 | GM11: 0 | GN11: 0 | GO11: 0 | GP11: 0 | GQ11: 0 | GR11: 0 | GS11: 0 | GT11: 0 | GU11: 0 | GV11: 0 | GW11: 0 | GX11: 0 | GY11: 0 | GZ11: 0 | HA11: 0 | HB11: 0 | HC11: 0 | HD11: 0 | HE11: 0 | HF11: 0 | HG11: 0 | HH11: 0 | HI11: 0 | HJ11: 0 | HK11: 0 | HL11: 0 | HM11: 0 | HN11: 0 | HO11: 0 | HP11: 0 | HQ11: 0 | HR11: 0 | HS11: 0 | HT11: 0 | HU11: 0 | HV11: 0 | HW11: 0 | HX11: 0 | HY11: 0 | HZ11: 0 | IA11: 0 | IB11: 0 | IC11: 0 | ID11: 0 | IE11: 0 | IF11: 0 | IG11: 0 | IH11: 0 | II11: 0 | IJ11: 0 | IK11: 0 | IL11: 0 | IM11: 0 | IN11: 0 | IO11: 0 | IP11: 0 | IQ11: 0 | IR11: 0 | IS11: 0 | IT11: 0 | IU11: 0 | IV11: 0 | IW11: 0 | IX11: 0 | IY11: 0 | IZ11: 0 | JA11: 0 | JB11: 0 | JC11: 0 | JD11: 0 | JE11: 0 | JF11: 0 | JG11: 0 | JH11: 0 | JI11: 0 | JJ11: 0 | JK11: 0 | JL11: 0 | JM11: 0 | JN11: 0 | JO11: 0 | JP11: 0 | JQ11: 0 | JR11: 0 | JS11: 0 | JT11: 0 | JU11: 0 | JV11: 0 | JW11: 0 | JX11: 0 | JY11: 0 | JZ11: 0 | KA11: 0 | KB11: 0
A12: 18508091 | B12: 65 | C12: 1085000 | D12: 300000 | E12: 100000 | F12: 200000 | G12: 100000 | H12: 400000 | I12: 679021 | J12: 200000 | K12: 125290 | L12: 143920 | M12: 100000 | N12: 100000 | O12: 100000 | P12: 200000 | Q12: 100000 | R12: 118048 | S12: 500000 | T12: 600000 | U12: 200000 | V12: 209511 | W12: 285475 | X12: 400000 | Y12: 500000 | Z12: 500000 | AA12: 523775 | AB12: 100000 | AC12: 500000 | AD12: 1276250 | AE12: 1000000 | AF12: 108800 | AG12: 150000 | AH12: 150000 | AI12: 122632 | AJ12: 250000 | AK12: 150000 | AL12: 150000 | AM12: 200000 | AN12: 200000 | AO12: 261750 | AP12: 150000 | AQ12: 500000 | AR12: 100000 | AS12: 250000 | AT12: 100000 | AU12: 122952 | AV12: 500000 | AW12: 100000 | AX12: 300000 | AY12: 100000 | AZ12: 100000 | BA12: 100000 | BB12: 400000 | BC12: 216000 | BD12: 100000 | BE12: 510500 | BF12: 150000 | BG12: 200000 | BH12: 266462 | BI12: 500000 | BJ12: 192044 | BK12: 200000 | BL12: 200000 | BM12: 500661 | BN12: 100000 | BO12: 160000 | GF12: 0 | GG12: 0 | GH12: 0 | GI12: 0 | GJ12: 0 | GK12: 0 | GL12: 0 | GM12: 0 | GN12: 0 | GO12: 0 | GP12: 0 | GQ12: 0 | GR12: 0 | GS12: 0 | GT12: 0 | GU12: 0 | GV12: 0 | GW12: 0 | GX12: 0 | GY12: 0 | GZ12: 0 | HA12: 0 | HB12: 0 | HC12: 0 | HD12: 0 | HE12: 0 | HF12: 0 | HG12: 0 | HH12: 0 | HI12: 0 | HJ12: 0 | HK12: 0 | HL12: 0 | HM12: 0 | HN12: 0 | HO12: 0 | HP12: 0 | HQ12: 0 | HR12: 0 | HS12: 0 | HT12: 0 | HU12: 0 | HV12: 0 | HW12: 0 | HX12: 0 | HY12: 0 | HZ12: 0 | IA12: 0 | IB12: 0 | IC12: 0 | ID12: 0 | IE12: 0 | IF12: 0 | IG12: 0 | IH12: 0 | II12: 0 | IJ12: 0 | IK12: 0 | IL12: 0 | IM12: 0 | IN12: 0 | IO12: 0 | IP12: 0 | IQ12: 0 | IR12: 0 | IS12: 0 | IT12: 0 | IU12: 0 | IV12: 0 | IW12: 0 | IX12: 0 | IY12: 0 | IZ12: 0 | JA12: 0 | JB12: 0 | JC12: 0 | JD12: =MAX(FD12-$D$3,0) -> 0 | JE12: 0 | JF12: 0 | JG12: 0 | JH12: 0 | JI12: 0 | JJ12: 0 | JK12: 0 | JL12: 0 | JM12: 0 | JN12: 0 | JO12: 0 | JP12: 0 | JQ12: 0 | JR12: 0 | JS12: 0 | JT12: =MAX(FT12-$D$3,0) -> 0 | JU12: 0 | JV12: 0 | JW12: 0 | JX12: 0 | JY12: 0 | JZ12: 0 | KA12: 0 | KB12: 0
A13: 14083919 | B13: 65 | C13: 113025 | D13: 100000 | E13: 250000 | F13: 100000 | G13: 100000 | H13: 250000 | I13: 324000 | J13: 113956 | K13: 500000 | L13: 102100 | M13: 312913 | N13: 100000 | O13: 200000 | P13: 400000 | Q13: 200000 | R13: 106082 | S13: 150000 | T13: 500000 | U13: 200000 | V13: 100000 | W13: 350000 | X13: 1000000 | Y13: 240219 | Z13: 100000 | AA13: 100000 | AB13: 102800 | AC13: 100000 | AD13: 100000 | AE13: 100000 | AF13: 100000 | AG13: 113180 | AH13: 1501369 | AI13: 100000 | AJ13: 226134 | AK13: 100000 | AL13: 100000 | AM13: 100000 | AN13: 500000 | AO13: 100000 | AP13: 200000 | AQ13: 100000 | AR13: 217000 | AS13: 100000 | AT13: 100000 | AU13: 100000 | AV13: 250000 | AW13: 100000 | AX13: 100000 | AY13: 110700 | AZ13: 200000 | BA13: 100000 | BB13: 104700 | BC13: 125000 | BD13: 118048 | BE13: 200000 | BF13: 108500 | BG13: 100000 | BH13: 438078 | BI13: 500000 | BJ13: 108700 | BK13: 120000 | BL13: 500000 | BM13: 100000 | BN13: 400000 | BO13: 127415 | GF13: 0 | GG13: 0 | GH13: 0 | GI13: 0 | GJ13: 0 | GK13: 0 | GL13: 0 | GM13: 0 | GN13: 0 | GO13: 0 | GP13: 0 | GQ13: 0 | GR13: 0 | GS13: 0 | GT13: 0 | GU13: 0 | GV13: 0 | GW13: 0 | GX13: 0 | GY13: 0 | GZ13: 0 | HA13: 0 | HB13: 0 | HC13: 0 | HD13: 0 | HE13: 0 | HF13: 0 | HG13: 0 | HH13: 0 | HI13: 0 | HJ13: 0 | HK13: 0 | HL13: 0 | HM13: 0 | HN13: 0 | HO13: 0 | HP13: 0 | HQ13: 0 | HR13: 0 | HS13: 0 | HT13: 0 | HU13: 0 | HV13: 0 | HW13: 0 | HX13: 0 | HY13: 0 | HZ13: 0 | IA13: 0 | IB13: 0 | IC13: 0 | ID13: 0 | IE13: 0 | IF13: 0 | IG13: 0 | IH13: 0 | II13: 0 | IJ13: 0 | IK13: 0 | IL13: 0 | IM13: 0 | IN13: 0 | IO13: 0 | IP13: 0 | IQ13: 0 | IR13: 0 | IS13: 0 | IT13: 0 | IU13: 0 | IV13: 0 | IW13: 0 | IX13: 0 | IY13: 0 | IZ13: 0 | JA13: 0 | JB13: 0 | JC13: 0 | JD13: 0 | JE13: 0 | JF13: 0 | JG13: 0 | JH13: 0 | JI13: 0 | JJ13: 0 | JK13: 0 | JL13: 0 | JM13: 0 | JN13: 0 | JO13: 0 | JP13: 0 | JQ13: 0 | JR13: 0 | JS13: 0 | JT13: 0 | JU13: 0 | JV13: 0 | JW13: 0 | JX13: 0 | JY13: 0 | JZ13: 0 | KA13: 0 | KB13: 0
A14: 17402533 | B14: 75 | C14: 200000 | D14: 501162 | E14: 200000 | F14: 100000 | G14: 600000 | H14: 200000 | I14: 500000 | J14: 135805 | K14: 100000 | L14: 250000 | M14: 102100 | N14: 250000 | O14: 100000 | P14: 200000 | Q14: 418800 | R14: 100000 | S14: 312913 | T14: 300000 | U14: 200000 | V14: 113025 | W14: 200000 | X14: 300000 | Y14: 113025 | Z14: 100000 | AA14: 100000 | AB14: 318537 | AC14: 100100 | AD14: 1334234 | AE14: 104650 | AF14: 100000 | AG14: 108783 | AH14: 100000 | AI14: 500000 | AJ14: 100000 | AK14: 500000 | AL14: 200000 | AM14: 500000 | AN14: 108783 | AO14: 442965 | AP14: 100000 | AQ14: 100000 | AR14: 200000 | AS14: 100000 | AT14: 100000 | AU14: 1000000 | AV14: 122632 | AW14: 250000 | AX14: 100000 | AY14: 100000 | AZ14: 100000 | BA14: 100000 | BB14: 135941 | BC14: 116349 | BD14: 200000 | BE14: 500000 | BF14: 108500 | BG14: 150000 | BH14: 130679 | BI14: 100000 | BJ14: 542500 | BK14: 100000 | BL14: 450000 | BM14: 162750 | BN14: 250000 | BO14: 100000 | BP14: 108700 | BQ14: 250000 | BR14: 200000 | BS14: 200000 | BT14: 200000 | BU14: 217600 | BV14: 200000 | BW14: 100000 | BX14: 192000 | BY14: 100000 | GF14: 0 | GG14: 0 | GH14: 0 | GI14: 0 | GJ14: 0 | GK14: 0 | GL14: 0 | GM14: 0 | GN14: 0 | GO14: 0 | GP14: 0 | GQ14: 0 | GR14: 0 | GS14: 0 | GT14: 0 | GU14: 0 | GV14: 0 | GW14: 0 | GX14: 0 | GY14: 0 | GZ14: 0 | HA14: 0 | HB14: 0 | HC14: 0 | HD14: 0 | HE14: 0 | HF14: 0 | HG14: 0 | HH14: 0 | HI14: 0 | HJ14: 0 | HK14: 0 | HL14: 0 | HM14: 0 | HN14: 0 | HO14: 0 | HP14: 0 | HQ14: 0 | HR14: 0 | HS14: 0 | HT14: 0 | HU14: 0 | HV14: 0 | HW14: 0 | HX14: 0 | HY14: 0 | HZ14: 0 | IA14: 0 | IB14: 0 | IC14: 0 | ID14: 0 | IE14: 0 | IF14: 0 | IG14: 0 | IH14: 0 | II14: 0 | IJ14: 0 | IK14: 0 | IL14: 0 | IM14: 0 | IN14: 0 | IO14: 0 | IP14: 0 | IQ14: 0 | IR14: 0 | IS14: 0 | IT14: 0 | IU14: 0 | IV14: 0 | IW14: 0 | IX14: 0 | IY14: 0 | IZ14: 0 | JA14: 0 | JB14: 0 | JC14: 0 | JD14: 0 | JE14: 0 | JF14: 0 | JG14: 0 | JH14: 0 | JI14: 0 | JJ14: 0 | JK14: 0 | JL14: 0 | JM14: 0 | JN14: 0 | JO14: 0 | JP14: 0 | JQ14: 0 | JR14: 0 | JS14: 0 | JT14: 0 | JU14: 0 | JV14: 0 | JW14: 0 | JX14: 0 | JY14: 0 | JZ14: 0 | KA14: 0 | KB14: 0
A15: 18277201 | B15: 65 | C15: 100000 | D15: 209619 | E15: 362713 | F15: 739514 | G15: 1000000 | H15: 300000 | I15: 150000 | J15: 100000 | K15: 100000 | L15: 254829 | M15: 265205 | N15: 276853 | O15: 100000 | P15: 250000 | Q15: 100000 | R15: 150000 | S15: 127415 | T15: 200000 | U15: 800000 | V15: 204200 | W15: 110700 | X15: 100000 | Y15: 210000 | Z15: 306300 | AA15: 100000 | AB15: 300000 | AC15: 106692 | AD15: 456132 | AE15: 500000 | AF15: 102100 | AG15: 100000 | AH15: 100000 | AI15: 100000 | AJ15: 200000 | AK15: 200000 | AL15: 250000 | AM15: 160000 | AN15: 103900 | AO15: 126000 | AP15: 504981 | AQ15: 108500 | AR15: 102903 | AS15: 212164 | AT15: 1000000 | AU15: 261750 | AV15: 100000 | AW15: 200000 | AX15: 500000 | AY15: 100000 | AZ15: 752073 | BA15: 587164 | BB15: 100000 | BC15: 102100 | BD15: 407820 | BE15: 451046 | BF15: 500000 | BG15: 500000 | BH15: 144000 | BI15: 500000 | BJ15: 1201095 | BK15: 117433 | BL15: 100000 | BM15: 100000 | BN15: 100000 | BO15: 102000 | GF15: 0 | GG15: 0 | GH15: 0 | GI15: 0 | GJ15: 0 | GK15: 0 | GL15: 0 | GM15: 0 | GN15: 0 | GO15: 0 | GP15: 0 | GQ15: 0 | GR15: 0 | GS15: 0 | GT15: 0 | GU15: 0 | GV15: 0 | GW15: 0 | GX15: 0 | GY15: 0 | GZ15: 0 | HA15: 0 | HB15: 0 | HC15: 0 | HD15: 0 | HE15: 0 | HF15: 0 | HG15: 0 | HH15: 0 | HI15: 0 | HJ15: 0 | HK15: 0 | HL15: 0 | HM15: 0 | HN15: 0 | HO15: 0 | HP15: 0 | HQ15: 0 | HR15: 0 | HS15: 0 | HT15: 0 | HU15: 0 | HV15: 0 | HW15: 0 | HX15: 0 | HY15: 0 | HZ15: 0 | IA15: 0 | IB15: 0 | IC15: 0 | ID15: 0 | IE15: 0 | IF15: 0 | IG15: 0 | IH15: 0 | II15: 0 | IJ15: 0 | IK15: 0 | IL15: 0 | IM15: 0 | IN15: 0 | IO15: 0 | IP15: 0 | IQ15: 0 | IR15: 0 | IS15: 0 | IT15: 0 | IU15: 0 | IV15: 0 | IW15: 0 | IX15: 0 | IY15: 0 | IZ15: 0 | JA15: 0 | JB15: 0 | JC15: 0 | JD15: 0 | JE15: 0 | JF15: 0 | JG15: 0 | JH15: 0 | JI15: 0 | JJ15: 0 | JK15: 0 | JL15: 0 | JM15: 0 | JN15: 0 | JO15: 0 | JP15: 0 | JQ15: 0 | JR15: 0 | JS15: 0 | JT15: 0 | JU15: 0 | JV15: 0 | JW15: 0 | JX15: 0 | JY15: 0 | JZ15: 0 | KA15: 0 | KB15: 0
A16: 17366224 | B16: 64 | C16: 300000 | D16: 100000 | E16: 128798 | F16: 100000 | G16: 1000000 | H16: 100000 | I16: 200000 | J16: 108800 | K16: 150000 | L16: 256636 | M16: 100000 | N16: 400000 | O16: 200000 | P16: 147902 | Q16: 100000 | R16: 227912 | S16: 300000 | T16: 100000 | U16: 102800 | V16: 147902 | W16: 375870 | X16: 100000 | Y16: 408400 | Z16: 109679 | AA16: 100000 | AB16: 100000 | AC16: 100000 | AD16: 2000000 | AE16: 100000 | AF16: 200000 | AG16: 100000 | AH16: 150000 | AI16: 500000 | AJ16: 1237303 | AK16: 1000000 | AL16: 221632 | AM16: 150000 | AN16: 400000 | AO16: 250000 | AP16: 203910 | AQ16: 125290 | AR16: 100000 | AS16: 400000 | AT16: 100000 | AU16: 500000 | AV16: 100000 | AW16: 100000 | AX16: 100000 | AY16: 100000 | AZ16: 100000 | BA16: 203804 | BB16: 100000 | BC16: 122632 | BD16: 100000 | BE16: 200000 | BF16: 150000 | BG16: 128798 | BH16: 200000 | BI16: 150000 | BJ16: 514000 | BK16: 750000 | BL16: 533456 | BM16: 110700 | BN16: 300000 | GF16: 0 | GG16: 0 | GH16: 0 | GI16: 0 | GJ16: 0 | GK16: 0 | GL16: 0 | GM16: 0 | GN16: 0 | GO16: 0 | GP16: 0 | GQ16: 0 | GR16: 0 | GS16: 0 | GT16: 0 | GU16: 0 | GV16: 0 | GW16: 0 | GX16: 0 | GY16: 0 | GZ16: 0 | HA16: 0 | HB16: 0 | HC16: 0 | HD16: 0 | HE16: 0 | HF16: 0 | HG16: 0 | HH16: 0 | HI16: 0 | HJ16: 0 | HK16: 0 | HL16: 0 | HM16: 0 | HN16: 0 | HO16: 0 | HP16: 0 | HQ16: 0 | HR16: 0 | HS16: 0 | HT16: 0 | HU16: 0 | HV16: 0 | HW16: 0 | HX16: 0 | HY16: 0 | HZ16: 0 | IA16: 0 | IB16: 0 | IC16: 0 | ID16: 0 | IE16: 0 | IF16: 0 | IG16: 0 | IH16: 0 | II16: 0 | IJ16: 0 | IK16: 0 | IL16: 0 | IM16: 0 | IN16: 0 | IO16: 0 | IP16: 0 | IQ16: 0 | IR16: 0 | IS16: 0 | IT16: 0 | IU16: 0 | IV16: 0 | IW16: 0 | IX16: 0 | IY16: 0 | IZ16: 0 | JA16: 0 | JB16: 0 | JC16: 0 | JD16: 0 | JE16: 0 | JF16: 0 | JG16: 0 | JH16: 0 | JI16: 0 | JJ16: 0 | JK16: 0 | JL16: 0 | JM16: 0 | JN16: 0 | JO16: 0 | JP16: 0 | JQ16: 0 | JR16: 0 | JS16: 0 | JT16: 0 | JU16: 0 | JV16: 0 | JW16: 0 | JX16: 0 | JY16: 0 | JZ16: 0 | KA16: 0 | KB16: 0
A17: 20367546 | B17: 64 | C17: 135941 | D17: 133423 | E17: 100000 | F17: 500000 | G17: 100000 | H17: 100000 | I17: 500000 | J17: 100000 | K17: 150000 | L17: 250000 | M17: 200000 | N17: 176149 | O17: 100000 | P17: 750000 | Q17: 213068 | R17: 100000 | S17: 100000 | T17: 100000 | U17: 250000 | V17: 100000 | W17: 679700 | X17: 4428000 | Y17: 1000000 | Z17: 500000 | AA17: 500000 | AB17: 384089 | AC17: 109679 | AD17: 100000 | AE17: 300000 | AF17: 300000 | AG17: 100000 | AH17: 332100 | AI17: 554262 | AJ17: 305400 | AK17: 100000 | AL17: 100000 | AM17: 110700 | AN17: 100000 | AO17: 1131800 | AP17: 100000 | AQ17: 180164 | AR17: 200000 | AS17: 200000 | AT17: 104700 | AU17: 306580 | AV17: 500000 | AW17: 108500 | AX17: 110852 | AY17: 250000 | AZ17: 339202 | BA17: 332556 | BB17: 277670 | BC17: 100000 | BD17: 100000 | BE17: 108500 | BF17: 150000 | BG17: 150000 | BH17: 200000 | BI17: 150000 | BJ17: 320074 | BK17: 110700 | BL17: 204200 | BM17: 169537 | BN17: 300000 | GF17: 0 | GG17: 0 | GH17: 0 | GI17: 0 | GJ17: 0 | GK17: 0 | GL17: 0 | GM17: 0 | GN17: 0 | GO17: 0 | GP17: 0 | GQ17: 0 | GR17: 0 | GS17: 0 | GT17: 0 | GU17: 0 | GV17: 0 | GW17: 0 | GX17: 0 | GY17: 0 | GZ17: 0 | HA17: 0 | HB17: 0 | HC17: 0 | HD17: 0 | HE17: 0 | HF17: 0 | HG17: 0 | HH17: 0 | HI17: 0 | HJ17: 0 | HK17: 0 | HL17: 0 | HM17: 0 | HN17: 0 | HO17: 0 | HP17: 0 | HQ17: 0 | HR17: 0 | HS17: 0 | HT17: 0 | HU17: 0 | HV17: 0 | HW17: 0 | HX17: 0 | HY17: 0 | HZ17: 0 | IA17: 0 | IB17: 0 | IC17: 0 | ID17: 0 | IE17: 0 | IF17: 0 | IG17: 0 | IH17: 0 | II17: 0 | IJ17: 0 | IK17: 0 | IL17: 0 | IM17: 0 | IN17: 0 | IO17: 0 | IP17: 0 | IQ17: 0 | IR17: 0 | IS17: 0 | IT17: 0 | IU17: 0 | IV17: 0 | IW17: 0 | IX17: 0 | IY17: 0 | IZ17: 0 | JA17: 0 | JB17: 0 | JC17: 0 | JD17: 0 | JE17: 0 | JF17: 0 | JG17: 0 | JH17: 0 | JI17: 0 | JJ17: 0 | JK17: 0 | JL17: 0 | JM17: 0 | JN17: 0 | JO17: 0 | JP17: 0 | JQ17: 0 | JR17: 0 | JS17: 0 | JT17: 0 | JU17: 0 | JV17: 0 | JW17: 0 | JX17: 0 | JY17: 0 | JZ17: 0 | KA17: 0 | KB17: 0
A18: 17614471 | B18: 63 | C18: 700000 | D18: 100000 | E18: 150000 | F18: 350000 | G18: 100000 | H18: 100000 | I18: 200000 | J18: 101800 | K18: 100000 | L18: 300000 | M18: 653396 | N18: 300000 | O18: 444271 | P18: 125165 | Q18: 128319 | R18: 139747 | S18: 500000 | T18: 100000 | U18: 100000 | V18: 187748 | W18: 1000000 | X18: 150000 | Y18: 200000 | Z18: 500000 | AA18: 100100 | AB18: 400000 | AC18: 500000 | AD18: 113180 | AE18: 250000 | AF18: 200000 | AG18: 300000 | AH18: 113180 | AI18: 500000 | AJ18: 500000 | AK18: 100000 | AL18: 185231 | AM18: 213169 | AN18: 698732 | AO18: 103000 | AP18: 500000 | AQ18: 200000 | AR18: 700000 | AS18: 100000 | AT18: 100000 | AU18: 100000 | AV18: 210000 | AW18: 150000 | AX18: 1260000 | AY18: 133404 | AZ18: 100000 | BA18: 1252903 | BB18: 100000 | BC18: 217000 | BD18: 104755 | BE18: 100000 | BF18: 100000 | BG18: 113180 | BH18: 255250 | BI18: 150000 | BJ18: 125000 | BK18: 300000 | BL18: 135941 | BM18: 100000 | GF18: 0 | GG18: 0 | GH18: 0 | GI18: 0 | GJ18: 0 | GK18: 0 | GL18: 0 | GM18: 0 | GN18: 0 | GO18: 0 | GP18: 0 | GQ18: 0 | GR18: 0 | GS18: 0 | GT18: 0 | GU18: 0 | GV18: 0 | GW18: 0 | GX18: 0 | GY18: 0 | GZ18: 0 | HA18: 0 | HB18: 0 | HC18: 0 | HD18: 0 | HE18: 0 | HF18: 0 | HG18: 0 | HH18: 0 | HI18: 0 | HJ18: 0 | HK18: 0 | HL18: 0 | HM18: 0 | HN18: 0 | HO18: 0 | HP18: 0 | HQ18: 0 | HR18: 0 | HS18: 0 | HT18: 0 | HU18: 0 | HV18: 0 | HW18: 0 | HX18: 0 | HY18: 0 | HZ18: 0 | IA18: 0 | IB18: 0 | IC18: 0 | ID18: 0 | IE18: 0 | IF18: 0 | IG18: 0 | IH18: 0 | II18: 0 | IJ18: 0 | IK18: 0 | IL18: 0 | IM18: 0 | IN18: 0 | IO18: 0 | IP18: 0 | IQ18: 0 | IR18: 0 | IS18: 0 | IT18: 0 | IU18: 0 | IV18: 0 | IW18: 0 | IX18: 0 | IY18: 0 | IZ18: 0 | JA18: 0 | JB18: 0 | JC18: 0 | JD18: 0 | JE18: 0 | JF18: 0 | JG18: 0 | JH18: 0 | JI18: 0 | JJ18: 0 | JK18: 0 | JL18: 0 | JM18: 0 | JN18: 0 | JO18: 0 | JP18: 0 | JQ18: 0 | JR18: 0 | JS18: 0 | JT18: 0 | JU18: 0 | JV18: 0 | JW18: 0 | JX18: 0 | JY18: 0 | JZ18: 0 | KA18: 0 | KB18: 0
A19: 18653759 | B19: 87 | C19: 135805 | D19: 1000000 | E19: 100000 | F19: 150000 | G19: 500000 | H19: 226360 | I19: 200000 | J19: 500000 | K19: 120000 | L19: 300000 | M19: 110000 | N19: 100000 | O19: 100000 | P19: 100000 | Q19: 372339 | R19: 128798 | S19: 100000 | T19: 254829 | U19: 200000 | V19: 103900 | W19: 100000 | X19: 120110 | Y19: 110852 | Z19: 147902 | AA19: 200000 | AB19: 200000 | AC19: 213169 | AD19: 100000 | AE19: 100000 | AF19: 120110 | AG19: 500000 | AH19: 200000 | AI19: 100000 | AJ19: 135941 | AK19: 113025 | AL19: 500000 | AM19: 250000 | AN19: 100000 | AO19: 200000 | AP19: 100000 | AQ19: 250000 | AR19: 200000 | AS19: 100000 | AT19: 210000 | AU19: 147902 | AV19: 106692 | AW19: 350000 | AX19: 300000 | AY19: 128798 | AZ19: 569781 | BA19: 200000 | BB19: 200000 | BC19: 500000 | BD19: 200000 | BE19: 100000 | BF19: 400000 | BG19: 250000 | BH19: 100000 | BI19: 100000 | BJ19: 250000 | BK19: 100000 | BL19: 150000 | BM19: 500000 | BN19: 200000 | BO19: 100000 | BP19: 200000 | BQ19: 350000 | BR19: 100000 | BS19: 100000 | BT19: 300000 | BU19: 121364 | BV19: 250000 | BW19: 500000 | BX19: 100000 | BY19: 100000 | BZ19: 200000 | CA19: 200000 | CB19: 150000 | CC19: 100000 | CD19: 100000 | CE19: 150000 | CF19: 106082 | CG19: 200000 | CH19: 100000 | CI19: 100000 | CJ19: 500000 | CK19: 500000 | GF19: 0 | GG19: 0 | GH19: 0 | GI19: 0 | GJ19: 0 | GK19: 0 | GL19: 0 | GM19: 0 | GN19: 0 | GO19: 0 | GP19: 0 | GQ19: 0 | GR19: 0 | GS19: 0 | GT19: 0 | GU19: 0 | GV19: 0 | GW19: 0 | GX19: 0 | GY19: 0 | GZ19: 0 | HA19: 0 | HB19: 0 | HC19: 0 | HD19: 0 | HE19: 0 | HF19: 0 | HG19: 0 | HH19: 0 | HI19: 0 | HJ19: 0 | HK19: 0 | HL19: 0 | HM19: 0 | HN19: 0 | HO19: 0 | HP19: 0 | HQ19: 0 | HR19: 0 | HS19: 0 | HT19: 0 | HU19: 0 | HV19: 0 | HW19: 0 | HX19: 0 | HY19: 0 | HZ19: 0 | IA19: 0 | IB19: 0 | IC19: 0 | ID19: 0 | IE19: 0 | IF19: 0 | IG19: 0 | IH19: 0 | II19: 0 | IJ19: 0 | IK19: 0 | IL19: 0 | IM19: 0 | IN19: 0 | IO19: 0 | IP19: 0 | IQ19: 0 | IR19: 0 | IS19: 0 | IT19: 0 | IU19: 0 | IV19: 0 | IW19: 0 | IX19: 0 | IY19: 0 | IZ19: 0 | JA19: 0 | JB19: 0 | JC19: 0 | JD19: 0 | JE19: 0 | JF19: 0 | JG19: 0 | JH19: 0 | JI19: 0 | JJ19: 0 | JK19: 0 | JL19: 0 | JM19: 0 | JN19: 0 | JO19: 0 | JP19: 0 | JQ19: 0 | JR19: 0 | JS19: 0 | JT19: 0 | JU19: 0 | JV19: 0 | JW19: 0 | JX19: 0 | JY19: 0 | JZ19: 0 | KA19: 0 | KB19: 0
A20: 13578025 | B20: 61 | C20: 110741 | D20: 1000000 | E20: 150000 | F20: 200000 | G20: 200000 | H20: 100000 | I20: 100000 | J20: 115891 | K20: 150000 | L20: 100000 | M20: 100000 | N20: 200000 | O20: 205921 | P20: 100000 | Q20: 100000 | R20: 329036 | S20: 150000 | T20: 420000 | U20: 100000 | V20: 100000 | W20: 265000 | X20: 396000 | Y20: 350000 | Z20: 100000 | AA20: 250000 | AB20: 100000 | AC20: 100000 | AD20: 500000 | AE20: 581745 | AF20: 442965 | AG20: 113025 | AH20: 415600 | AI20: 500000 | AJ20: 400000 | AK20: 159123 | AL20: 103900 | AM20: 100000 | AN20: 100000 | AO20: 118048 | AP20: 254755 | AQ20: 104755 | AR20: 125290 | AS20: 100000 | AT20: 100000 | AU20: 111068 | AV20: 152853 | AW20: 100000 | AX20: 100000 | AY20: 200000 | AZ20: 200000 | BA20: 200000 | BB20: 250000 | BC20: 200000 | BD20: 150000 | BE20: 200000 | BF20: 300000 | BG20: 400209 | BH20: 500000 | BI20: 100000 | BJ20: 500000 | BK20: 102100 | GF20: 0 | GG20: 0 | GH20: 0 | GI20: 0 | GJ20: 0 | GK20: 0 | GL20: 0 | GM20: 0 | GN20: 0 | GO20: 0 | GP20: 0 | GQ20: 0 | GR20: 0 | GS20: 0 | GT20: 0 | GU20: 0 | GV20: 0 | GW20: 0 | GX20: 0 | GY20: 0 | GZ20: 0 | HA20: 0 | HB20: 0 | HC20: 0 | HD20: 0 | HE20: 0 | HF20: 0 | HG20: 0 | HH20: 0 | HI20: 0 | HJ20: 0 | HK20: 0 | HL20: 0 | HM20: 0 | HN20: 0 | HO20: 0 | HP20: 0 | HQ20: 0 | HR20: 0 | HS20: 0 | HT20: 0 | HU20: 0 | HV20: 0 | HW20: 0 | HX20: 0 | HY20: 0 | HZ20: 0 | IA20: 0 | IB20: 0 | IC20: 0 | ID20: 0 | IE20: 0 | IF20: 0 | IG20: 0 | IH20: 0 | II20: 0 | IJ20: 0 | IK20: 0 | IL20: 0 | IM20: 0 | IN20: 0 | IO20: 0 | IP20: 0 | IQ20: 0 | IR20: 0 | IS20: 0 | IT20: 0 | IU20: 0 | IV20: 0 | IW20: 0 | IX20: 0 | IY20: 0 | IZ20: 0 | JA20: 0 | JB20: 0 | JC20: 0 | JD20: 0 | JE20: 0 | JF20: 0 | JG20: 0 | JH20: 0 | JI20: 0 | JJ20: 0 | JK20: 0 | JL20: 0 | JM20: 0 | JN20: 0 | JO20: 0 | JP20: 0 | JQ20: 0 | JR20: 0 | JS20: 0 | JT20: 0 | JU20: 0 | JV20: 0 | JW20: 0 | JX20: 0 | JY20: 0 | JZ20: 0 | KA20: 0 | KB20: 0
A21: 18770363 | B21: 61 | C21: 100000 | D21: 100000 | E21: 200000 | F21: 100000 | G21: 100000 | H21: 210000 | I21: 100000 | J21: 295510 | K21: 240000 | L21: 300000 | M21: 100000 | N21: 400000 | O21: 100000 | P21: 150000 | Q21: 300000 | R21: 100000 | S21: 118048 | T21: 400000 | U21: 150000 | V21: 1814279 | W21: 1801643 | X21: 200000 | Y21: 200000 | Z21: 160771 | AA21: 100000 | AB21: 100000 | AC21: 1000000 | AD21: 100000 | AE21: 100000 | AF21: 500000 | AG21: 1000000 | AH21: 221400 | AI21: 118048 | AJ21: 150000 | AK21: 400000 | AL21: 500000 | AM21: 166050 | AN21: 120110 | AO21: 100000 | AP21: 125165 | AQ21: 500000 | AR21: 153150 | AS21: 108783 | AT21: 500000 | AU21: 1000000 | AV21: 178000 | AW21: 100000 | AX21: 300000 | AY21: 100000 | AZ21: 100000 | BA21: 100000 | BB21: 203804 | BC21: 332556 | BD21: 103900 | BE21: 400000 | BF21: 500000 | BG21: 245904 | BH21: 129838 | BI21: 133404 | BJ21: 200000 | BK21: 840000 | GF21: 0 | GG21: 0 | GH21: 0 | GI21: 0 | GJ21: 0 | GK21: 0 | GL21: 0 | GM21: 0 | GN21: 0 | GO21: 0 | GP21: 0 | GQ21: 0 | GR21: 0 | GS21: 0 | GT21: 0 | GU21: 0 | GV21: 0 | GW21: 0 | GX21: 0 | GY21: 0 | GZ21: 0 | HA21: 0 | HB21: 0 | HC21: 0 | HD21: 0 | HE21: 0 | HF21: 0 | HG21: 0 | HH21: 0 | HI21: 0 | HJ21: 0 | HK21: 0 | HL21: 0 | HM21: 0 | HN21: 0 | HO21: 0 | HP21: 0 | HQ21: 0 | HR21: 0 | HS21: 0 | HT21: 0 | HU21: 0 | HV21: 0 | HW21: 0 | HX21: 0 | HY21: 0 | HZ21: 0 | IA21: 0 | IB21: 0 | IC21: 0 | ID21: 0 | IE21: 0 | IF21: 0 | IG21: 0 | IH21: 0 | II21: 0 | IJ21: 0 | IK21: 0 | IL21: 0 | IM21: 0 | IN21: 0 | IO21: 0 | IP21: 0 | IQ21: 0 | IR21: 0 | IS21: 0 | IT21: 0 | IU21: 0 | IV21: 0 | IW21: 0 | IX21: 0 | IY21: 0 | IZ21: 0 | JA21: 0 | JB21: 0 | JC21: 0 | JD21: 0 | JE21: 0 | JF21: 0 | JG21: 0 | JH21: 0 | JI21: 0 | JJ21: 0 | JK21: 0 | JL21: 0 | JM21: 0 | JN21: 0 | JO21: 0 | JP21: 0 | JQ21: 0 | JR21: 0 | JS21: 0 | JT21: 0 | JU21: 0 | JV21: 0 | JW21: 0 | JX21: 0 | JY21: 0 | JZ21: 0 | KA21: 0 | KB21: 0
A22: 14321234 | B22: 67 | C22: 250250 | D22: 100000 | E22: 101902 | F22: 100000 | G22: 440000 | H22: 250000 | I22: 184428 | J22: 500000 | K22: 100000 | L22: 500000 | M22: 100000 | N22: 271609 | O22: 108500 | P22: 106082 | Q22: 100000 | R22: 132000 | S22: 113180 | T22: 200000 | U22: 150000 | V22: 100000 | W22: 100000 | X22: 100000 | Y22: 100000 | Z22: 210000 | AA22: 271958 | AB22: 250000 | AC22: 130986 | AD22: 308708 | AE22: 125290 | AF22: 100000 | AG22: 200000 | AH22: 1000000 | AI22: 100000 | AJ22: 216000 | AK22: 200000 | AL22: 100000 | AM22: 100000 | AN22: 125290 | AO22: 168000 | AP22: 200000 | AQ22: 150000 | AR22: 200000 | AS22: 1163490 | AT22: 250000 | AU22: 100000 | AV22: 200000 | AW22: 200000 | AX22: 250000 | AY22: 100000 | AZ22: 100000 | BA22: 116349 | BB22: 250000 | BC22: 312913 | BD22: 240219 | BE22: 128798 | BF22: 100000 | BG22: 117433 | BH22: 250000 | BI22: 226049 | BJ22: 101800 | BK22: 100000 | BL22: 500000 | BM22: 300000 | BN22: 300000 | BO22: 200000 | BP22: 100000 | BQ22: 250000 | GF22: 0 | GG22: 0 | GH22: 0 | GI22: 0 | GJ22: 0 | GK22: 0 | GL22: 0 | GM22: 0 | GN22: 0 | GO22: 0 | GP22: 0 | GQ22: 0 | GR22: 0 | GS22: 0 | GT22: 0 | GU22: 0 | GV22: 0 | GW22: 0 | GX22: 0 | GY22: 0 | GZ22: 0 | HA22: 0 | HB22: 0 | HC22: 0 | HD22: 0 | HE22: 0 | HF22: 0 | HG22: 0 | HH22: 0 | HI22: 0 | HJ22: 0 | HK22: 0 | HL22: 0 | HM22: 0 | HN22: 0 | HO22: 0 | HP22: 0 | HQ22: 0 | HR22: 0 | HS22: 0 | HT22: 0 | HU22: 0 | HV22: 0 | HW22: 0 | HX22: 0 | HY22: 0 | HZ22: 0 | IA22: 0 | IB22: 0 | IC22: 0 | ID22: 0 | IE22: 0 | IF22: 0 | IG22: 0 | IH22: 0 | II22: 0 | IJ22: 0 | IK22: 0 | IL22: 0 | IM22: 0 | IN22: 0 | IO22: 0 | IP22: 0 | IQ22: 0 | IR22: 0 | IS22: 0 | IT22: 0 | IU22: 0 | IV22: 0 | IW22: 0 | IX22: 0 | IY22: 0 | IZ22: 0 | JA22: 0 | JB22: 0 | JC22: 0 | JD22: 0 | JE22: 0 | JF22: 0 | JG22: 0 | JH22: 0 | JI22: 0 | JJ22: 0 | JK22: 0 | JL22: 0 | JM22: 0 | JN22: 0 | JO22: 0 | JP22: 0 | JQ22: 0 | JR22: 0 | JS22: 0 | JT22: 0 | JU22: 0 | JV22: 0 | JW22: 0 | JX22: 0 | JY22: 0 | JZ22: 0 | KA22: 0 | KB22: 0
A23: 17148110 | B23: 61 | C23: 565335 | D23: 400000 | E23: 1000000 | F23: 135941 | G23: 1000000 | H23: 1000000 | I23: 106082 | J23: 600000 | K23: 200000 | L23: 200000 | M23: 200000 | N23: 279494 | O23: 500000 | P23: 250000 | Q23: 200000 | R23: 250580 | S23: 100000 | T23: 260000 | U23: 300000 | V23: 125000 | W23: 125290 | X23: 498336 | Y23: 177072 | Z23: 321219 | AA23: 200000 | AB23: 122632 | AC23: 100000 | AD23: 250000 | AE23: 100000 | AF23: 100000 | AG23: 250000 | AH23: 100000 | AI23: 300000 | AJ23: 100000 | AK23: 139747 | AL23: 100000 | AM23: 100000 | AN23: 300000 | AO23: 113067 | AP23: 100000 | AQ23: 710598 | AR23: 100000 | AS23: 100000 | AT23: 210000 | AU23: 1039000 | AV23: 100000 | AW23: 100000 | AX23: 100000 | AY23: 276750 | AZ23: 109679 | BA23: 133404 | BB23: 100100 | BC23: 241734 | BD23: 500000 | BE23: 200000 | BF23: 200000 | BG23: 700000 | BH23: 100000 | BI23: 500000 | BJ23: 157050 | BK23: 200000 | GF23: 0 | GG23: 0 | GH23: 0 | GI23: 0 | GJ23: 0 | GK23: 0 | GL23: 0 | GM23: 0 | GN23: 0 | GO23: 0 | GP23: 0 | GQ23: 0 | GR23: 0 | GS23: 0 | GT23: 0 | GU23: 0 | GV23: 0 | GW23: 0 | GX23: 0 | GY23: 0 | GZ23: 0 | HA23: 0 | HB23: 0 | HC23: 0 | HD23: 0 | HE23: 0 | HF23: 0 | HG23: 0 | HH23: 0 | HI23: 0 | HJ23: 0 | HK23: 0 | HL23: 0 | HM23: 0 | HN23: 0 | HO23: 0 | HP23: 0 | HQ23: 0 | HR23: 0 | HS23: 0 | HT23: 0 | HU23: 0 | HV23: 0 | HW23: 0 | HX23: 0 | HY23: 0 | HZ23: 0 | IA23: 0 | IB23: 0 | IC23: 0 | ID23: 0 | IE23: 0 | IF23: 0 | IG23: 0 | IH23: 0 | II23: 0 | IJ23: 0 | IK23: 0 | IL23: 0 | IM23: 0 | IN23: 0 | IO23: 0 | IP23: 0 | IQ23: 0 | IR23: 0 | IS23: 0 | IT23: 0 | IU23: 0 | IV23: 0 | IW23: 0 | IX23: 0 | IY23: 0 | IZ23: 0 | JA23: 0 | JB23: 0 | JC23: 0 | JD23: 0 | JE23: 0 | JF23: 0 | JG23: 0 | JH23: 0 | JI23: 0 | JJ23: 0 | JK23: 0 | JL23: 0 | JM23: 0 | JN23: 0 | JO23: 0 | JP23: 0 | JQ23: 0 | JR23: 0 | JS23: 0 | JT23: 0 | JU23: 0 | JV23: 0 | JW23: 0 | JX23: 0 | JY23: 0 | JZ23: 0 | KA23: 0 | KB23: 0
A24: 21072343 | B24: 75 | C24: 500000 | D24: 300000 | E24: 100000 | F24: 400000 | G24: 100000 | H24: 400000 | I24: 100000 | J24: 120110 | K24: 108783 | L24: 108500 | M24: 300000 | N24: 113025 | O24: 418800 | P24: 700000 | Q24: 100000 | R24: 130000 | S24: 213169 | T24: 100000 | U24: 200000 | V24: 200000 | W24: 100000 | X24: 500000 | Y24: 127415 | Z24: 800000 | AA24: 800000 | AB24: 300000 | AC24: 250000 | AD24: 106585 | AE24: 565124 | AF24: 100000 | AG24: 150000 | AH24: 135941 | AI24: 500000 | AJ24: 159123 | AK24: 400000 | AL24: 150000 | AM24: 591611 | AN24: 300000 | AO24: 1274144 | AP24: 667117 | AQ24: 100000 | AR24: 1000000 | AS24: 200000 | AT24: 200000 | AU24: 250000 | AV24: 100000 | AW24: 300000 | AX24: 100000 | AY24: 100000 | AZ24: 400000 | BA24: 108800 | BB24: 200000 | BC24: 100000 | BD24: 100000 | BE24: 200000 | BF24: 100000 | BG24: 113025 | BH24: 150000 | BI24: 500000 | BJ24: 147902 | BK24: 200000 | BL24: 100000 | BM24: 162750 | BN24: 1200000 | BO24: 204204 | BP24: 100000 | BQ24: 100000 | BR24: 100000 | BS24: 200000 | BT24: 100000 | BU24: 200000 | BV24: 250000 | BW24: 367896 | BX24: 128319 | BY24: 500000 | GF24: 0 | GG24: 0 | GH24: 0 | GI24: 0 | GJ24: 0 | GK24: 0 | GL24: 0 | GM24: 0 | GN24: 0 | GO24: 0 | GP24: 0 | GQ24: 0 | GR24: 0 | GS24: 0 | GT24: 0 | GU24: 0 | GV24: 0 | GW24: =MAX(CW24-$D$3,0) -> 0 | GX24: 0 | GY24: 0 | GZ24: 0 | HA24: 0 | HB24: 0 | HC24: 0 | HD24: 0 | HE24: 0 | HF24: 0 | HG24: 0 | HH24: 0 | HI24: 0 | HJ24: 0 | HK24: 0 | HL24: 0 | HM24: =MAX(DM24-$D$3,0) -> 0 | HN24: 0 | HO24: 0 | HP24: 0 | HQ24: 0 | HR24: 0 | HS24: 0 | HT24: 0 | HU24: 0 | HV24: 0 | HW24: 0 | HX24: 0 | HY24: 0 | HZ24: 0 | IA24: 0 | IB24: 0 | IC24: =MAX(EC24-$D$3,0) -> 0 | ID24: 0 | IE24: 0 | IF24: 0 | IG24: 0 | IH24: 0 | II24: 0 | IJ24: 0 | IK24: 0 | IL24: 0 | IM24: 0 | IN24: 0 | IO24: 0 | IP24: 0 | IQ24: 0 | IR24: 0 | IS24: 0 | IT24: 0 | IU24: 0 | IV24: 0 | IW24: 0 | IX24: 0 | IY24: 0 | IZ24: 0 | JA24: 0 | JB24: 0 | JC24: 0 | JD24: 0 | JE24: 0 | JF24: 0 | JG24: 0 | JH24: 0 | JI24: 0 | JJ24: 0 | JK24: 0 | JL24: 0 | JM24: 0 | JN24: 0 | JO24: 0 | JP24: 0 | JQ24: 0 | JR24: 0 | JS24: 0 | JT24: 0 | JU24: 0 | JV24: 0 | JW24: 0 | JX24: 0 | JY24: 0 | JZ24: 0 | KA24: 0 | KB24: 0
A25: 14236998 | B25: 71 | C25: 135805 | D25: 200000 | E25: 100000 | F25: 252000 | G25: 209400 | H25: 750000 | I25: 240000 | J25: 250000 | K25: 200000 | L25: 100000 | M25: 500000 | N25: 200000 | O25: 108500 | P25: 110741 | Q25: 400000 | R25: 150000 | S25: 147754 | T25: 125000 | U25: 113067 | V25: 400000 | W25: 500000 | X25: 100000 | Y25: 153150 | Z25: 135941 | AA25: 200000 | AB25: 1000000 | AC25: 100000 | AD25: 100000 | AE25: 192000 | AF25: 100000 | AG25: 100000 | AH25: 100000 | AI25: 110700 | AJ25: 275000 | AK25: 100000 | AL25: 274714 | AM25: 100000 | AN25: 250000 | AO25: 147754 | AP25: 100000 | AQ25: 100000 | AR25: 135805 | AS25: 109679 | AT25: 523775 | AU25: 200000 | AV25: 300000 | AW25: 200000 | AX25: 152853 | AY25: 200000 | AZ25: 100000 | BA25: 200000 | BB25: 100000 | BC25: 166278 | BD25: 200000 | BE25: 196019 | BF25: 200000 | BG25: 200000 | BH25: 106692 | BI25: 126000 | BJ25: 100000 | BK25: 250000 | BL25: 100000 | BM25: 100000 | BN25: 100000 | BO25: 100000 | BP25: 100000 | BQ25: 100000 | BR25: 250000 | BS25: 200000 | BT25: 300000 | BU25: 188371 | GF25: 0 | GG25: 0 | GH25: =MAX(CH25-$D$3,0) -> 0 | GI25: 0 | GJ25: 0 | GK25: 0 | GL25: 0 | GM25: 0 | GN25: 0 | GO25: 0 | GP25: 0 | GQ25: 0 | GR25: 0 | GS25: 0 | GT25: 0 | GU25: 0 | GV25: 0 | GW25: 0 | GX25: 0 | GY25: 0 | GZ25: 0 | HA25: 0 | HB25: 0 | HC25: 0 | HD25: 0 | HE25: 0 | HF25: 0 | HG25: 0 | HH25: 0 | HI25: 0 | HJ25: 0 | HK25: 0 | HL25: 0 | HM25: 0 | HN25: 0 | HO25: 0 | HP25: 0 | HQ25: 0 | HR25: 0 | HS25: 0 | HT25: 0 | HU25: 0 | HV25: 0 | HW25: 0 | HX25: 0 | HY25: 0 | HZ25: 0 | IA25: 0 | IB25: 0 | IC25: 0 | ID25: 0 | IE25: 0 | IF25: 0 | IG25: 0 | IH25: 0 | II25: 0 | IJ25: 0 | IK25: 0 | IL25: 0 | IM25: 0 | IN25: 0 | IO25: 0 | IP25: 0 | IQ25: 0 | IR25: 0 | IS25: 0 | IT25: 0 | IU25: 0 | IV25: 0 | IW25: 0 | IX25: 0 | IY25: 0 | IZ25: 0 | JA25: 0 | JB25: 0 | JC25: 0 | JD25: 0 | JE25: 0 | JF25: 0 | JG25: 0 | JH25: 0 | JI25: 0 | JJ25: 0 | JK25: 0 | JL25: 0 | JM25: 0 | JN25: 0 | JO25: 0 | JP25: 0 | JQ25: 0 | JR25: 0 | JS25: 0 | JT25: 0 | JU25: 0 | JV25: 0 | JW25: 0 | JX25: 0 | JY25: 0 | JZ25: 0 | KA25: 0 | KB25: 0
A26: 19496411 | B26: 78 | C26: 500000 | D26: 100000 | E26: 1000000 | F26: 200000 | G26: 500000 | H26: 358000 | I26: 108700 | J26: 653396 | K26: 308400 | L26: 200000 | M26: 637073 | N26: 153150 | O26: 128798 | P26: 100000 | Q26: 153150 | R26: 200000 | S26: 200000 | T26: 651000 | U26: 135941 | V26: 100000 | W26: 100000 | X26: 100000 | Y26: 213169 | Z26: 200000 | AA26: 528000 | AB26: 276853 | AC26: 110700 | AD26: 250000 | AE26: 101902 | AF26: 318246 | AG26: 200000 | AH26: 300000 | AI26: 200000 | AJ26: 100000 | AK26: 213382 | AL26: 100000 | AM26: 200000 | AN26: 218729 | AO26: 100000 | AP26: 1000000 | AQ26: 200000 | AR26: 200000 | AS26: 113180 | AT26: 200000 | AU26: 500000 | AV26: 120110 | AW26: 150000 | AX26: 100000 | AY26: 245264 | AZ26: 100000 | BA26: 300000 | BB26: 120110 | BC26: 150000 | BD26: 120000 | BE26: 300000 | BF26: 101800 | BG26: 113180 | BH26: 408400 | BI26: 100000 | BJ26: 300000 | BK26: 500000 | BL26: 103900 | BM26: 259750 | BN26: 100000 | BO26: 100000 | BP26: 500000 | BQ26: 1000000 | BR26: 169537 | BS26: 108500 | BT26: 200000 | BU26: 117433 | BV26: 250000 | BW26: 100000 | BX26: 271958 | BY26: 104700 | BZ26: 100000 | CA26: 250000 | CB26: 100000 | GF26: 0 | GG26: 0 | GH26: 0 | GI26: 0 | GJ26: 0 | GK26: 0 | GL26: 0 | GM26: 0 | GN26: 0 | GO26: 0 | GP26: 0 | GQ26: 0 | GR26: 0 | GS26: 0 | GT26: 0 | GU26: 0 | GV26: 0 | GW26: 0 | GX26: 0 | GY26: 0 | GZ26: 0 | HA26: 0 | HB26: 0 | HC26: 0 | HD26: 0 | HE26: 0 | HF26: 0 | HG26: 0 | HH26: 0 | HI26: 0 | HJ26: 0 | HK26: 0 | HL26: 0 | HM26: 0 | HN26: 0 | HO26: 0 | HP26: 0 | HQ26: 0 | HR26: 0 | HS26: 0 | HT26: 0 | HU26: 0 | HV26: 0 | HW26: 0 | HX26: 0 | HY26: 0 | HZ26: 0 | IA26: 0 | IB26: 0 | IC26: 0 | ID26: 0 | IE26: 0 | IF26: 0 | IG26: 0 | IH26: 0 | II26: 0 | IJ26: 0 | IK26: 0 | IL26: 0 | IM26: 0 | IN26: 0 | IO26: 0 | IP26: 0 | IQ26: 0 | IR26: 0 | IS26: 0 | IT26: 0 | IU26: 0 | IV26: 0 | IW26: 0 | IX26: 0 | IY26: 0 | IZ26: 0 | JA26: 0 | JB26: 0 | JC26: 0 | JD26: 0 | JE26: 0 | JF26: 0 | JG26: 0 | JH26: 0 | JI26: 0 | JJ26: 0 | JK26: 0 | JL26: 0 | JM26: 0 | JN26: 0 | JO26: 0 | JP26: 0 | JQ26: 0 | JR26: 0 | JS26: 0 | JT26: 0 | JU26: 0 | JV26: 0 | JW26: 0 | JX26: 0 | JY26: 0 | JZ26: 0 | KA26: 0 | KB26: 0
A27: 17192013 | B27: 63 | C27: 300000 | D27: 400000 | E27: 100000 | F27: 266462 | G27: 104755 | H27: 100000 | I27: 100000 | J27: 100000 | K27: 200000 | L27: 100000 | M27: 240219 | N27: 100000 | O27: 100000 | P27: 100000 | Q27: 222136 | R27: 100000 | S27: 150000 | T27: 100000 | U27: 100000 | V27: 500000 | W27: 100000 | X27: 1000000 | Y27: 100000 | Z27: 150000 | AA27: 100000 | AB27: 250330 | AC27: 400000 | AD27: 300000 | AE27: 400000 | AF27: 110000 | AG27: 341868 | AH27: 500000 | AI27: 500000 | AJ27: 300000 | AK27: 400000 | AL27: 108800 | AM27: 200000 | AN27: 200000 | AO27: 110852 | AP27: 800000 | AQ27: 407200 | AR27: 312000 | AS27: 100000 | AT27: 100000 | AU27: 250000 | AV27: 125000 | AW27: 500000 | AX27: 426764 | AY27: 250580 | AZ27: 200000 | BA27: 100000 | BB27: 100000 | BC27: 200000 | BD27: 109679 | BE27: 108500 | BF27: 200000 | BG27: 200000 | BH27: 100000 | BI27: 150000 | BJ27: 569781 | BK27: 128798 | BL27: 150000 | BM27: 2548289 | GF27: 0 | GG27: 0 | GH27: 0 | GI27: 0 | GJ27: 0 | GK27: 0 | GL27: 0 | GM27: 0 | GN27: 0 | GO27: 0 | GP27: 0 | GQ27: 0 | GR27: 0 | GS27: 0 | GT27: 0 | GU27: 0 | GV27: 0 | GW27: 0 | GX27: 0 | GY27: 0 | GZ27: 0 | HA27: 0 | HB27: 0 | HC27: 0 | HD27: 0 | HE27: 0 | HF27: 0 | HG27: 0 | HH27: 0 | HI27: 0 | HJ27: 0 | HK27: 0 | HL27: 0 | HM27: 0 | HN27: 0 | HO27: 0 | HP27: 0 | HQ27: 0 | HR27: 0 | HS27: 0 | HT27: 0 | HU27: 0 | HV27: 0 | HW27: 0 | HX27: 0 | HY27: 0 | HZ27: 0 | IA27: 0 | IB27: 0 | IC27: 0 | ID27: 0 | IE27: 0 | IF27: 0 | IG27: 0 | IH27: 0 | II27: 0 | IJ27: 0 | IK27: 0 | IL27: 0 | IM27: 0 | IN27: 0 | IO27: 0 | IP27: 0 | IQ27: 0 | IR27: 0 | IS27: 0 | IT27: 0 | IU27: 0 | IV27: 0 | IW27: 0 | IX27: 0 | IY27: 0 | IZ27: 0 | JA27: 0 | JB27: 0 | JC27: 0 | JD27: 0 | JE27: 0 | JF27: 0 | JG27: 0 | JH27: 0 | JI27: 0 | JJ27: 0 | JK27: 0 | JL27: 0 | JM27: 0 | JN27: 0 | JO27: 0 | JP27: 0 | JQ27: 0 | JR27: 0 | JS27: =MAX(FS27-$D$3,0) -> 0 | JT27: 0 | JU27: 0 | JV27: 0 | JW27: 0 | JX27: 0 | JY27: 0 | JZ27: 0 | KA27: 0 | KB27: 0
A28: 20544041 | B28: 70 | C28: 100000 | D28: 100000 | E28: 100000 | F28: 100000 | G28: 200000 | H28: 100000 | I28: 667015 | J28: 100000 | K28: 710241 | L28: 100000 | M28: 100000 | N28: 700000 | O28: 1000000 | P28: 100000 | Q28: 200000 | R28: 100000 | S28: 100000 | T28: 350000 | U28: 100000 | V28: 1000000 | W28: 653396 | X28: 587164 | Y28: 100000 | Z28: 500000 | AA28: 100000 | AB28: 100000 | AC28: 300000 | AD28: 221400 | AE28: 118048 | AF28: 271250 | AG28: 150000 | AH28: 150000 | AI28: 203804 | AJ28: 240219 | AK28: 200000 | AL28: 200000 | AM28: 200000 | AN28: 108800 | AO28: 100000 | AP28: 442800 | AQ28: 1287984 | AR28: 100000 | AS28: 100000 | AT28: 426338 | AU28: 150000 | AV28: 225000 | AW28: 100000 | AX28: 1000000 | AY28: 150000 | AZ28: 150000 | BA28: 271609 | BB28: 210000 | BC28: 218190 | BD28: 250000 | BE28: 100000 | BF28: 523500 | BG28: 1440000 | BH28: 300000 | BI28: 108783 | BJ28: 300000 | BK28: 100000 | BL28: 200000 | BM28: 200000 | BN28: 200000 | BO28: 400000 | BP28: 500000 | BQ28: 108500 | BR28: 100000 | BS28: 100000 | BT28: 250000 | GF28: 0 | GG28: 0 | GH28: 0 | GI28: 0 | GJ28: 0 | GK28: 0 | GL28: 0 | GM28: 0 | GN28: 0 | GO28: 0 | GP28: 0 | GQ28: 0 | GR28: 0 | GS28: 0 | GT28: 0 | GU28: 0 | GV28: 0 | GW28: 0 | GX28: 0 | GY28: 0 | GZ28: 0 | HA28: 0 | HB28: 0 | HC28: 0 | HD28: 0 | HE28: 0 | HF28: 0 | HG28: 0 | HH28: 0 | HI28: 0 | HJ28: 0 | HK28: 0 | HL28: 0 | HM28: 0 | HN28: 0 | HO28: 0 | HP28: 0 | HQ28: 0 | HR28: 0 | HS28: 0 | HT28: 0 | HU28: 0 | HV28: 0 | HW28: 0 | HX28: 0 | HY28: 0 | HZ28: 0 | IA28: 0 | IB28: 0 | IC28: 0 | ID28: 0 | IE28: 0 | IF28: 0 | IG28: 0 | IH28: 0 | II28: 0 | IJ28: 0 | IK28: 0 | IL28: 0 | IM28: 0 | IN28: 0 | IO28: 0 | IP28: 0 | IQ28: 0 | IR28: 0 | IS28: 0 | IT28: 0 | IU28: 0 | IV28: 0 | IW28: 0 | IX28: 0 | IY28: 0 | IZ28: 0 | JA28: 0 | JB28: 0 | JC28: 0 | JD28: 0 | JE28: 0 | JF28: 0 | JG28: 0 | JH28: 0 | JI28: =MAX(FI28-$D$3,0) -> 0 | JJ28: 0 | JK28: 0 | JL28: 0 | JM28: 0 | JN28: 0 | JO28: 0 | JP28: 0 | JQ28: 0 | JR28: 0 | JS28: 0 | JT28: 0 | JU28: 0 | JV28: 0 | JW28: 0 | JX28: 0 | JY28: 0 | JZ28: 0 | KA28: 0 | KB28: 0
A29: 19313355 | B29: 76 | C29: 200000 | D29: 223082 | E29: 100000 | F29: 110741 | G29: 108783 | H29: 110700 | I29: 130679 | J29: 133404 | K29: 530410 | L29: 217567 | M29: 600000 | N29: 565335 | O29: 150000 | P29: 217000 | Q29: 1000000 | R29: 100000 | S29: 543760 | T29: 100000 | U29: 329036 | V29: 120110 | W29: 209511 | X29: 108500 | Y29: 100000 | Z29: 150000 | AA29: 100000 | AB29: 100000 | AC29: 200000 | AD29: 135941 | AE29: 100000 | AF29: 300000 | AG29: 300000 | AH29: 200000 | AI29: 133404 | AJ29: 100000 | AK29: 500000 | AL29: 100000 | AM29: 2505806 | AN29: 100000 | AO29: 100000 | AP29: 100000 | AQ29: 200000 | AR29: 300000 | AS29: 667015 | AT29: 300000 | AU29: 150000 | AV29: 271609 | AW29: 500000 | AX29: 295510 | AY29: 150000 | AZ29: 100000 | BA29: 203600 | BB29: 100000 | BC29: 100000 | BD29: 104755 | BE29: 200000 | BF29: 276750 | BG29: 100000 | BH29: 100000 | BI29: 100000 | BJ29: 300000 | BK29: 519500 | BL29: 400000 | BM29: 266847 | BN29: 100000 | BO29: 150000 | BP29: 217000 | BQ29: 150000 | BR29: 200000 | BS29: 100000 | BT29: 200000 | BU29: 100000 | BV29: 500000 | BW29: 200000 | BX29: 100000 | BY29: 257000 | BZ29: 100000 | GF29: 0 | GG29: 0 | GH29: 0 | GI29: 0 | GJ29: 0 | GK29: 0 | GL29: 0 | GM29: 0 | GN29: 0 | GO29: 0 | GP29: 0 | GQ29: 0 | GR29: 0 | GS29: 0 | GT29: 0 | GU29: 0 | GV29: 0 | GW29: 0 | GX29: 0 | GY29: 0 | GZ29: 0 | HA29: 0 | HB29: 0 | HC29: 0 | HD29: 0 | HE29: 0 | HF29: 0 | HG29: 0 | HH29: 0 | HI29: 0 | HJ29: 0 | HK29: 0 | HL29: 0 | HM29: 0 | HN29: 0 | HO29: 0 | HP29: 0 | HQ29: 0 | HR29: 0 | HS29: 0 | HT29: 0 | HU29: 0 | HV29: 0 | HW29: 0 | HX29: 0 | HY29: 0 | HZ29: 0 | IA29: 0 | IB29: 0 | IC29: 0 | ID29: 0 | IE29: 0 | IF29: 0 | IG29: 0 | IH29: 0 | II29: 0 | IJ29: 0 | IK29: 0 | IL29: 0 | IM29: 0 | IN29: 0 | IO29: 0 | IP29: 0 | IQ29: 0 | IR29: 0 | IS29: 0 | IT29: 0 | IU29: 0 | IV29: 0 | IW29: 0 | IX29: 0 | IY29: 0 | IZ29: 0 | JA29: 0 | JB29: 0 | JC29: 0 | JD29: 0 | JE29: 0 | JF29: 0 | JG29: 0 | JH29: 0 | JI29: 0 | JJ29: 0 | JK29: 0 | JL29: 0 | JM29: 0 | JN29: 0 | JO29: 0 | JP29: 0 | JQ29: 0 | JR29: 0 | JS29: 0 | JT29: 0 | JU29: 0 | JV29: 0 | JW29: 0 | JX29: 0 | JY29: 0 | JZ29: 0 | KA29: 0 | KB29: 0
A30: 16198708 | B30: 61 | C30: 698732 | D30: 100000 | E30: 100000 | F30: 169771 | G30: 750000 | H30: 650000 | I30: 135941 | J30: 100000 | K30: 128798 | L30: 300000 | M30: 113180 | N30: 100000 | O30: 150000 | P30: 127415 | Q30: 100000 | R30: 750000 | S30: 150000 | T30: 150000 | U30: 250000 | V30: 500000 | W30: 465114 | X30: 100000 | Y30: 550550 | Z30: 240219 | AA30: 100000 | AB30: 100000 | AC30: 300000 | AD30: 200200 | AE30: 113180 | AF30: 395586 | AG30: 100000 | AH30: 100000 | AI30: 300000 | AJ30: 295806 | AK30: 250000 | AL30: 122952 | AM30: 250000 | AN30: 101902 | AO30: 500000 | AP30: 122632 | AQ30: 409743 | AR30: 110700 | AS30: 200000 | AT30: 200000 | AU30: 400209 | AV30: 400000 | AW30: 102903 | AX30: 266728 | AY30: 542500 | AZ30: 600000 | BA30: 350000 | BB30: 200000 | BC30: 250000 | BD30: 150000 | BE30: 183947 | BF30: 600000 | BG30: 200000 | BH30: 250000 | BI30: 200000 | BJ30: 250000 | BK30: 100000 | GF30: 0 | GG30: 0 | GH30: 0 | GI30: 0 | GJ30: 0 | GK30: 0 | GL30: 0 | GM30: 0 | GN30: 0 | GO30: 0 | GP30: 0 | GQ30: 0 | GR30: 0 | GS30: 0 | GT30: 0 | GU30: 0 | GV30: 0 | GW30: 0 | GX30: 0 | GY30: 0 | GZ30: 0 | HA30: 0 | HB30: 0 | HC30: 0 | HD30: 0 | HE30: 0 | HF30: 0 | HG30: 0 | HH30: 0 | HI30: 0 | HJ30: 0 | HK30: 0 | HL30: 0 | HM30: 0 | HN30: 0 | HO30: 0 | HP30: 0 | HQ30: 0 | HR30: 0 | HS30: 0 | HT30: 0 | HU30: 0 | HV30: 0 | HW30: 0 | HX30: 0 | HY30: 0 | HZ30: 0 | IA30: 0 | IB30: 0 | IC30: 0 | ID30: 0 | IE30: 0 | IF30: 0 | IG30: 0 | IH30: 0 | II30: 0 | IJ30: 0 | IK30: 0 | IL30: 0 | IM30: 0 | IN30: 0 | IO30: 0 | IP30: 0 | IQ30: 0 | IR30: 0 | IS30: 0 | IT30: 0 | IU30: 0 | IV30: 0 | IW30: 0 | IX30: 0 | IY30: 0 | IZ30: 0 | JA30: 0 | JB30: 0 | JC30: 0 | JD30: 0 | JE30: 0 | JF30: 0 | JG30: 0 | JH30: 0 | JI30: 0 | JJ30: 0 | JK30: 0 | JL30: 0 | JM30: 0 | JN30: 0 | JO30: 0 | JP30: 0 | JQ30: 0 | JR30: 0 | JS30: 0 | JT30: 0 | JU30: 0 | JV30: 0 | JW30: 0 | JX30: 0 | JY30: 0 | JZ30: 0 | KA30: 0 | KB30: 0
A31: 20126897 | B31: 66 | C31: 200000 | D31: 133404 | E31: 679700 | F31: 150000 | G31: 1000000 | H31: 300000 | I31: 200000 | J31: 544000 | K31: 100000 | L31: 200000 | M31: 1725000 | N31: 250000 | O31: 110700 | P31: 133404 | Q31: 276853 | R31: 135941 | S31: 150000 | T31: 108800 | U31: 100000 | V31: 1300000 | W31: 104700 | X31: 400000 | Y31: 100000 | Z31: 200000 | AA31: 100000 | AB31: 135941 | AC31: 500000 | AD31: 500000 | AE31: 120110 | AF31: 100000 | AG31: 100000 | AH31: 200000 | AI31: 200000 | AJ31: 698732 | AK31: 200000 | AL31: 150000 | AM31: 114000 | AN31: 200000 | AO31: 200000 | AP31: 100000 | AQ31: 221400 | AR31: 100000 | AS31: 500000 | AT31: 250000 | AU31: 100000 | AV31: 250000 | AW31: 100000 | AX31: 100000 | AY31: 100000 | AZ31: 282951 | BA31: 100000 | BB31: 1200000 | BC31: 509000 | BD31: 100000 | BE31: 127415 | BF31: 400000 | BG31: 140000 | BH31: 500000 | BI31: 139747 | BJ31: 452099 | BK31: 408000 | BL31: 1000000 | BM31: 100000 | BN31: 200000 | BO31: 150000 | BP31: 375000 | GF31: 0 | GG31: 0 | GH31: 0 | GI31: 0 | GJ31: 0 | GK31: 0 | GL31: 0 | GM31: 0 | GN31: 0 | GO31: 0 | GP31: 0 | GQ31: 0 | GR31: 0 | GS31: 0 | GT31: 0 | GU31: 0 | GV31: 0 | GW31: 0 | GX31: 0 | GY31: 0 | GZ31: 0 | HA31: 0 | HB31: 0 | HC31: 0 | HD31: 0 | HE31: 0 | HF31: 0 | HG31: 0 | HH31: 0 | HI31: 0 | HJ31: 0 | HK31: 0 | HL31: 0 | HM31: 0 | HN31: 0 | HO31: 0 | HP31: 0 | HQ31: 0 | HR31: 0 | HS31: 0 | HT31: 0 | HU31: 0 | HV31: 0 | HW31: 0 | HX31: 0 | HY31: 0 | HZ31: 0 | IA31: 0 | IB31: 0 | IC31: 0 | ID31: 0 | IE31: 0 | IF31: 0 | IG31: 0 | IH31: 0 | II31: 0 | IJ31: 0 | IK31: 0 | IL31: 0 | IM31: 0 | IN31: 0 | IO31: 0 | IP31: 0 | IQ31: 0 | IR31: 0 | IS31: 0 | IT31: 0 | IU31: 0 | IV31: 0 | IW31: 0 | IX31: 0 | IY31: 0 | IZ31: 0 | JA31: 0 | JB31: 0 | JC31: 0 | JD31: 0 | JE31: 0 | JF31: 0 | JG31: 0 | JH31: 0 | JI31: 0 | JJ31: 0 | JK31: 0 | JL31: 0 | JM31: 0 | JN31: 0 | JO31: 0 | JP31: 0 | JQ31: 0 | JR31: 0 | JS31: 0 | JT31: 0 | JU31: 0 | JV31: 0 | JW31: 0 | JX31: 0 | JY31: 0 | JZ31: 0 | KA31: 0 | KB31: 0
A32: 18044372 | B32: 76 | C32: 217000 | D32: 204200 | E32: 100000 | F32: 1000000 | G32: 200000 | H32: 100000 | I32: 226049 | J32: 100000 | K32: 289727 | L32: 100000 | M32: 200000 | N32: 250000 | O32: 500000 | P32: 113180 | Q32: 150000 | R32: 300000 | S32: 100000 | T32: 510000 | U32: 500000 | V32: 100000 | W32: 234234 | X32: 700000 | Y32: 100000 | Z32: 300000 | AA32: 210000 | AB32: 500000 | AC32: 100000 | AD32: 250000 | AE32: 100000 | AF32: 100000 | AG32: 200000 | AH32: 100000 | AI32: 180164 | AJ32: 400000 | AK32: 150000 | AL32: 200000 | AM32: 200000 | AN32: 100000 | AO32: 300000 | AP32: 100000 | AQ32: 101902 | AR32: 100000 | AS32: 100000 | AT32: 300000 | AU32: 100000 | AV32: 100000 | AW32: 500000 | AX32: 500000 | AY32: 110700 | AZ32: 150278 | BA32: 100000 | BB32: 135941 | BC32: 130679 | BD32: 100000 | BE32: 100000 | BF32: 100000 | BG32: 135941 | BH32: 209400 | BI32: 490527 | BJ32: 213382 | BK32: 221704 | BL32: 125165 | BM32: 127415 | BN32: 157133 | BO32: 100000 | BP32: 100000 | BQ32: 100000 | BR32: 439651 | BS32: 100000 | BT32: 200000 | BU32: 200000 | BV32: 110000 | BW32: 200000 | BX32: 2000000 | BY32: 100000 | BZ32: 200000 | GF32: 0 | GG32: 0 | GH32: 0 | GI32: 0 | GJ32: 0 | GK32: 0 | GL32: 0 | GM32: 0 | GN32: 0 | GO32: 0 | GP32: 0 | GQ32: 0 | GR32: 0 | GS32: 0 | GT32: 0 | GU32: 0 | GV32: 0 | GW32: 0 | GX32: 0 | GY32: 0 | GZ32: 0 | HA32: 0 | HB32: 0 | HC32: 0 | HD32: 0 | HE32: 0 | HF32: 0 | HG32: 0 | HH32: 0 | HI32: 0 | HJ32: 0 | HK32: 0 | HL32: 0 | HM32: 0 | HN32: 0 | HO32: 0 | HP32: 0 | HQ32: 0 | HR32: 0 | HS32: 0 | HT32: 0 | HU32: 0 | HV32: 0 | HW32: 0 | HX32: 0 | HY32: 0 | HZ32: 0 | IA32: 0 | IB32: 0 | IC32: 0 | ID32: 0 | IE32: 0 | IF32: 0 | IG32: 0 | IH32: 0 | II32: 0 | IJ32: 0 | IK32: 0 | IL32: 0 | IM32: 0 | IN32: 0 | IO32: 0 | IP32: 0 | IQ32: 0 | IR32: 0 | IS32: 0 | IT32: 0 | IU32: 0 | IV32: 0 | IW32: 0 | IX32: 0 | IY32: 0 | IZ32: 0 | JA32: 0 | JB32: 0 | JC32: 0 | JD32: 0 | JE32: 0 | JF32: 0 | JG32: 0 | JH32: 0 | JI32: 0 | JJ32: 0 | JK32: 0 | JL32: 0 | JM32: 0 | JN32: 0 | JO32: 0 | JP32: 0 | JQ32: 0 | JR32: 0 | JS32: 0 | JT32: 0 | JU32: 0 | JV32: 0 | JW32: 0 | JX32: 0 | JY32: 0 | JZ32: 0 | KA32: 0 | KB32: 0
A33: 19805221 | B33: 66 | C33: 500000 | D33: 300000 | E33: 135941 | F33: 100000 | G33: 313226 | H33: 120760 | I33: 1250000 | J33: 100000 | K33: 100000 | L33: 145032 | M33: 110700 | N33: 500000 | O33: 130944 | P33: 305705 | Q33: 500000 | R33: 266462 | S33: 150000 | T33: 500000 | U33: 419020 | V33: 108800 | W33: 300000 | X33: 500000 | Y33: 400000 | Z33: 100000 | AA33: 250000 | AB33: 125290 | AC33: 166050 | AD33: 400000 | AE33: 200000 | AF33: 300000 | AG33: 125000 | AH33: 400000 | AI33: 147754 | AJ33: 200000 | AK33: 210210 | AL33: 500000 | AM33: 200000 | AN33: 100000 | AO33: 1000000 | AP33: 100000 | AQ33: 327464 | AR33: 100000 | AS33: 200000 | AT33: 100000 | AU33: 306580 | AV33: 100000 | AW33: 100000 | AX33: 150000 | AY33: 200000 | AZ33: 100000 | BA33: 1060819 | BB33: 250000 | BC33: 100000 | BD33: 225000 | BE33: 100000 | BF33: 100000 | BG33: 411200 | BH33: 2000000 | BI33: 100000 | BJ33: 102100 | BK33: 100000 | BL33: 300000 | BM33: 1000000 | BN33: 113180 | BO33: 164916 | BP33: 213068 | GF33: 0 | GG33: 0 | GH33: 0 | GI33: 0 | GJ33: 0 | GK33: 0 | GL33: 0 | GM33: 0 | GN33: 0 | GO33: 0 | GP33: 0 | GQ33: 0 | GR33: 0 | GS33: 0 | GT33: 0 | GU33: 0 | GV33: 0 | GW33: 0 | GX33: 0 | GY33: 0 | GZ33: 0 | HA33: 0 | HB33: 0 | HC33: 0 | HD33: 0 | HE33: 0 | HF33: 0 | HG33: 0 | HH33: 0 | HI33: 0 | HJ33: 0 | HK33: 0 | HL33: 0 | HM33: 0 | HN33: 0 | HO33: 0 | HP33: 0 | HQ33: 0 | HR33: 0 | HS33: 0 | HT33: 0 | HU33: 0 | HV33: 0 | HW33: 0 | HX33: 0 | HY33: 0 | HZ33: 0 | IA33: 0 | IB33: 0 | IC33: 0 | ID33: 0 | IE33: 0 | IF33: 0 | IG33: 0 | IH33: 0 | II33: 0 | IJ33: 0 | IK33: 0 | IL33: 0 | IM33: 0 | IN33: 0 | IO33: 0 | IP33: 0 | IQ33: 0 | IR33: 0 | IS33: 0 | IT33: 0 | IU33: 0 | IV33: 0 | IW33: 0 | IX33: =MAX(EX33-$D$3,0) -> 0 | IY33: 0 | IZ33: 0 | JA33: 0 | JB33: 0 | JC33: 0 | JD33: 0 | JE33: 0 | JF33: 0 | JG33: 0 | JH33: 0 | JI33: 0 | JJ33: 0 | JK33: 0 | JL33: 0 | JM33: 0 | JN33: 0 | JO33: 0 | JP33: 0 | JQ33: 0 | JR33: 0 | JS33: 0 | JT33: 0 | JU33: 0 | JV33: 0 | JW33: 0 | JX33: 0 | JY33: 0 | JZ33: 0 | KA33: 0 | KB33: 0
A34: 19062926 | B34: 70 | C34: 2500000 | D34: 300274 | E34: 200000 | F34: 108500 | G34: 300000 | H34: 500000 | I34: 500000 | J34: 1250000 | K34: 200000 | L34: 750000 | M34: 150000 | N34: 200000 | O34: 200000 | P34: 164518 | Q34: 217600 | R34: 135805 | S34: 130440 | T34: 116349 | U34: 200000 | V34: 900000 | W34: 200000 | X34: 150000 | Y34: 200000 | Z34: 100000 | AA34: 100000 | AB34: 300000 | AC34: 100000 | AD34: 100000 | AE34: 150000 | AF34: 500000 | AG34: 200000 | AH34: 100000 | AI34: 217000 | AJ34: 313226 | AK34: 367896 | AL34: 300000 | AM34: 100000 | AN34: 200000 | AO34: 100000 | AP34: 400000 | AQ34: 139747 | AR34: 100000 | AS34: 100000 | AT34: 100000 | AU34: 150000 | AV34: 100000 | AW34: 200000 | AX34: 150000 | AY34: 100000 | AZ34: 500000 | BA34: 100000 | BB34: 100000 | BC34: 100000 | BD34: 100000 | BE34: 100000 | BF34: 226360 | BG34: 100000 | BH34: 100000 | BI34: 100000 | BJ34: 100000 | BK34: 100000 | BL34: 100000 | BM34: 100000 | BN34: 200000 | BO34: 200000 | BP34: 213169 | BQ34: 1200000 | BR34: 118048 | BS34: 643994 | BT34: 200000 | GF34: 0 | GG34: 0 | GH34: 0 | GI34: 0 | GJ34: 0 | GK34: 0 | GL34: 0 | GM34: 0 | GN34: 0 | GO34: 0 | GP34: 0 | GQ34: 0 | GR34: 0 | GS34: 0 | GT34: 0 | GU34: 0 | GV34: 0 | GW34: 0 | GX34: 0 | GY34: 0 | GZ34: 0 | HA34: 0 | HB34: 0 | HC34: 0 | HD34: 0 | HE34: 0 | HF34: 0 | HG34: 0 | HH34: 0 | HI34: 0 | HJ34: 0 | HK34: 0 | HL34: 0 | HM34: 0 | HN34: 0 | HO34: 0 | HP34: 0 | HQ34: 0 | HR34: 0 | HS34: 0 | HT34: 0 | HU34: 0 | HV34: 0 | HW34: 0 | HX34: 0 | HY34: 0 | HZ34: 0 | IA34: 0 | IB34: 0 | IC34: 0 | ID34: 0 | IE34: 0 | IF34: 0 | IG34: 0 | IH34: 0 | II34: 0 | IJ34: 0 | IK34: 0 | IL34: 0 | IM34: 0 | IN34: 0 | IO34: 0 | IP34: 0 | IQ34: 0 | IR34: 0 | IS34: =MAX(ES34-$D$3,0) -> 0 | IT34: 0 | IU34: 0 | IV34: 0 | IW34: 0 | IX34: 0 | IY34: 0 | IZ34: 0 | JA34: 0 | JB34: 0 | JC34: 0 | JD34: 0 | JE34: 0 | JF34: 0 | JG34: 0 | JH34: 0 | JI34: 0 | JJ34: 0 | JK34: 0 | JL34: 0 | JM34: 0 | JN34: 0 | JO34: 0 | JP34: 0 | JQ34: 0 | JR34: 0 | JS34: 0 | JT34: 0 | JU34: 0 | JV34: 0 | JW34: 0 | JX34: 0 | JY34: 0 | JZ34: 0 | KA34: 0 | KB34: 0
A35: 17513986 | B35: 70 | C35: 102903 | D35: 240000 | E35: 130679 | F35: 360000 | G35: 127415 | H35: 1000000 | I35: 500000 | J35: 282951 | K35: 350000 | L35: 103900 | M35: 500000 | N35: 113067 | O35: 113025 | P35: 532923 | Q35: 200000 | R35: 1000000 | S35: 150000 | T35: 100000 | U35: 200000 | V35: 116349 | W35: 1000000 | X35: 150000 | Y35: 200000 | Z35: 203910 | AA35: 100000 | AB35: 100000 | AC35: 1180480 | AD35: 159877 | AE35: 200000 | AF35: 200000 | AG35: 100000 | AH35: 174525 | AI35: 200000 | AJ35: 500000 | AK35: 150000 | AL35: 150000 | AM35: 300000 | AN35: 150000 | AO35: 100000 | AP35: 101800 | AQ35: 122520 | AR35: 100000 | AS35: 120110 | AT35: 100000 | AU35: 100000 | AV35: 300000 | AW35: 156000 | AX35: 100000 | AY35: 300000 | AZ35: 108500 | BA35: 100000 | BB35: 106082 | BC35: 100000 | BD35: 100000 | BE35: 509509 | BF35: 200000 | BG35: 104700 | BH35: 150688 | BI35: 100000 | BJ35: 100000 | BK35: 500000 | BL35: 256000 | BM35: 221400 | BN35: 300000 | BO35: 500000 | BP35: 114673 | BQ35: 200000 | BR35: 500000 | BS35: 100000 | BT35: 100000 | GF35: 0 | GG35: 0 | GH35: 0 | GI35: 0 | GJ35: 0 | GK35: 0 | GL35: 0 | GM35: 0 | GN35: 0 | GO35: 0 | GP35: 0 | GQ35: 0 | GR35: 0 | GS35: 0 | GT35: 0 | GU35: 0 | GV35: 0 | GW35: 0 | GX35: 0 | GY35: 0 | GZ35: 0 | HA35: 0 | HB35: 0 | HC35: 0 | HD35: 0 | HE35: 0 | HF35: 0 | HG35: 0 | HH35: 0 | HI35: 0 | HJ35: 0 | HK35: 0 | HL35: 0 | HM35: 0 | HN35: 0 | HO35: 0 | HP35: 0 | HQ35: 0 | HR35: 0 | HS35: 0 | HT35: 0 | HU35: 0 | HV35: 0 | HW35: 0 | HX35: 0 | HY35: 0 | HZ35: 0 | IA35: 0 | IB35: 0 | IC35: 0 | ID35: 0 | IE35: 0 | IF35: 0 | IG35: 0 | IH35: 0 | II35: 0 | IJ35: 0 | IK35: 0 | IL35: 0 | IM35: 0 | IN35: 0 | IO35: 0 | IP35: 0 | IQ35: 0 | IR35: 0 | IS35: 0 | IT35: 0 | IU35: 0 | IV35: 0 | IW35: 0 | IX35: 0 | IY35: 0 | IZ35: 0 | JA35: 0 | JB35: 0 | JC35: 0 | JD35: 0 | JE35: 0 | JF35: 0 | JG35: 0 | JH35: 0 | JI35: 0 | JJ35: 0 | JK35: 0 | JL35: 0 | JM35: 0 | JN35: 0 | JO35: 0 | JP35: 0 | JQ35: 0 | JR35: 0 | JS35: 0 | JT35: 0 | JU35: 0 | JV35: 0 | JW35: 0 | JX35: 0 | JY35: 0 | JZ35: 0 | KA35: 0 | KB35: 0
A36: 21877315 | B36: 76 | C36: 132132 | D36: 127415 | E36: 450000 | F36: 200000 | G36: 500000 | H36: 150000 | I36: 500000 | J36: 500000 | K36: 422000 | L36: 200000 | M36: 100000 | N36: 100000 | O36: 1000000 | P36: 500000 | Q36: 450000 | R36: 100000 | S36: 200000 | T36: 100000 | U36: 100000 | V36: 200000 | W36: 200000 | X36: 200000 | Y36: 277670 | Z36: 113180 | AA36: 200000 | AB36: 224000 | AC36: 100000 | AD36: 221704 | AE36: 122282 | AF36: 102100 | AG36: 200000 | AH36: 300000 | AI36: 240000 | AJ36: 755042 | AK36: 100000 | AL36: 100000 | AM36: 280000 | AN36: 203600 | AO36: 100000 | AP36: 1000000 | AQ36: 200000 | AR36: 100000 | AS36: 200000 | AT36: 100000 | AU36: 100000 | AV36: 600548 | AW36: 100000 | AX36: 383875 | AY36: 542500 | AZ36: 100000 | BA36: 100000 | BB36: 180000 | BC36: 200000 | BD36: 620000 | BE36: 200000 | BF36: 500000 | BG36: 200000 | BH36: 200000 | BI36: 500000 | BJ36: 312913 | BK36: 219357 | BL36: 600000 | BM36: 288000 | BN36: 200000 | BO36: 333204 | BP36: 1000000 | BQ36: 1066912 | BR36: 200000 | BS36: 250000 | BT36: 106585 | BU36: 250000 | BV36: 210000 | BW36: 100000 | BX36: 217006 | BY36: 125290 | BZ36: 200000 | GF36: 0 | GG36: 0 | GH36: 0 | GI36: 0 | GJ36: 0 | GK36: 0 | GL36: 0 | GM36: 0 | GN36: 0 | GO36: 0 | GP36: 0 | GQ36: 0 | GR36: 0 | GS36: 0 | GT36: 0 | GU36: 0 | GV36: 0 | GW36: 0 | GX36: 0 | GY36: 0 | GZ36: 0 | HA36: 0 | HB36: 0 | HC36: 0 | HD36: 0 | HE36: 0 | HF36: 0 | HG36: 0 | HH36: 0 | HI36: 0 | HJ36: 0 | HK36: 0 | HL36: 0 | HM36: 0 | HN36: 0 | HO36: 0 | HP36: 0 | HQ36: 0 | HR36: 0 | HS36: 0 | HT36: 0 | HU36: 0 | HV36: 0 | HW36: 0 | HX36: 0 | HY36: 0 | HZ36: 0 | IA36: 0 | IB36: 0 | IC36: 0 | ID36: 0 | IE36: 0 | IF36: 0 | IG36: 0 | IH36: 0 | II36: 0 | IJ36: 0 | IK36: 0 | IL36: 0 | IM36: 0 | IN36: 0 | IO36: 0 | IP36: 0 | IQ36: 0 | IR36: 0 | IS36: 0 | IT36: 0 | IU36: 0 | IV36: 0 | IW36: 0 | IX36: 0 | IY36: 0 | IZ36: 0 | JA36: 0 | JB36: 0 | JC36: 0 | JD36: 0 | JE36: 0 | JF36: 0 | JG36: 0 | JH36: 0 | JI36: 0 | JJ36: 0 | JK36: 0 | JL36: 0 | JM36: 0 | JN36: 0 | JO36: 0 | JP36: 0 | JQ36: 0 | JR36: 0 | JS36: 0 | JT36: 0 | JU36: 0 | JV36: 0 | JW36: 0 | JX36: 0 | JY36: 0 | JZ36: 0 | KA36: 0 | KB36: 0
A37: 17100508 | B37: 68 | C37: 720000 | D37: 350000 | E37: 100000 | F37: 100000 | G37: 100000 | H37: 100000 | I37: 138565 | J37: 125165 | K37: 140000 | L37: 183947 | M37: 169537 | N37: 106082 | O37: 250000 | P37: 100000 | Q37: 200000 | R37: 1088000 | S37: 100000 | T37: 350000 | U37: 100000 | V37: 101800 | W37: 271250 | X37: 500000 | Y37: 170000 | Z37: 200000 | AA37: 110700 | AB37: 100000 | AC37: 200000 | AD37: 200000 | AE37: 135941 | AF37: 300000 | AG37: 200000 | AH37: 103900 | AI37: 108500 | AJ37: 100000 | AK37: 100000 | AL37: 271881 | AM37: 108800 | AN37: 883150 | AO37: 213780 | AP37: 108783 | AQ37: 100000 | AR37: 200000 | AS37: 407200 | AT37: 300000 | AU37: 265205 | AV37: 339202 | AW37: 100000 | AX37: 200000 | AY37: 205806 | AZ37: 200000 | BA37: 100000 | BB37: 550000 | BC37: 100000 | BD37: 2078000 | BE37: 200000 | BF37: 272000 | BG37: 100000 | BH37: 300000 | BI37: 113180 | BJ37: 100000 | BK37: 295806 | BL37: 400000 | BM37: 100000 | BN37: 200000 | BO37: 240000 | BP37: 100000 | BQ37: 424328 | BR37: 100000 | GF37: 0 | GG37: 0 | GH37: 0 | GI37: 0 | GJ37: 0 | GK37: 0 | GL37: 0 | GM37: 0 | GN37: 0 | GO37: 0 | GP37: 0 | GQ37: 0 | GR37: 0 | GS37: 0 | GT37: 0 | GU37: 0 | GV37: 0 | GW37: 0 | GX37: 0 | GY37: 0 | GZ37: 0 | HA37: 0 | HB37: 0 | HC37: 0 | HD37: 0 | HE37: 0 | HF37: 0 | HG37: 0 | HH37: 0 | HI37: 0 | HJ37: 0 | HK37: 0 | HL37: 0 | HM37: 0 | HN37: 0 | HO37: 0 | HP37: 0 | HQ37: 0 | HR37: 0 | HS37: 0 | HT37: 0 | HU37: 0 | HV37: 0 | HW37: 0 | HX37: 0 | HY37: 0 | HZ37: 0 | IA37: 0 | IB37: 0 | IC37: 0 | ID37: 0 | IE37: 0 | IF37: 0 | IG37: 0 | IH37: 0 | II37: 0 | IJ37: 0 | IK37: 0 | IL37: 0 | IM37: 0 | IN37: 0 | IO37: 0 | IP37: 0 | IQ37: 0 | IR37: 0 | IS37: 0 | IT37: 0 | IU37: 0 | IV37: 0 | IW37: 0 | IX37: 0 | IY37: 0 | IZ37: 0 | JA37: 0 | JB37: 0 | JC37: 0 | JD37: 0 | JE37: 0 | JF37: 0 | JG37: 0 | JH37: 0 | JI37: 0 | JJ37: 0 | JK37: 0 | JL37: 0 | JM37: 0 | JN37: 0 | JO37: 0 | JP37: 0 | JQ37: 0 | JR37: 0 | JS37: 0 | JT37: 0 | JU37: 0 | JV37: 0 | JW37: 0 | JX37: 0 | JY37: 0 | JZ37: 0 | KA37: 0 | KB37: 0
A38: 10192063 | B38: 52 | C38: 118266 | D38: 100000 | E38: 100000 | F38: 100100 | G38: 250000 | H38: 100000 | I38: 100000 | J38: 400000 | K38: 200000 | L38: 266728 | M38: 110700 | N38: 200000 | O38: 254500 | P38: 122632 | Q38: 100000 | R38: 100000 | S38: 226360 | T38: 120110 | U38: 250000 | V38: 200000 | W38: 108800 | X38: 100000 | Y38: 100000 | Z38: 101800 | AA38: 128319 | AB38: 271250 | AC38: 100000 | AD38: 250000 | AE38: 100000 | AF38: 109679 | AG38: 100000 | AH38: 100000 | AI38: 200000 | AJ38: 500000 | AK38: 1000000 | AL38: 110852 | AM38: 1000000 | AN38: 100000 | AO38: 111068 | AP38: 153150 | AQ38: 203804 | AR38: 100000 | AS38: 150000 | AT38: 227912 | AU38: 100000 | AV38: 113956 | AW38: 186000 | AX38: 321996 | AY38: 100000 | AZ38: 250580 | BA38: 103900 | BB38: 169601 | GF38: 0 | GG38: 0 | GH38: 0 | GI38: 0 | GJ38: 0 | GK38: 0 | GL38: 0 | GM38: 0 | GN38: 0 | GO38: 0 | GP38: 0 | GQ38: 0 | GR38: 0 | GS38: 0 | GT38: 0 | GU38: 0 | GV38: 0 | GW38: 0 | GX38: 0 | GY38: 0 | GZ38: 0 | HA38: 0 | HB38: 0 | HC38: 0 | HD38: 0 | HE38: 0 | HF38: 0 | HG38: 0 | HH38: 0 | HI38: 0 | HJ38: 0 | HK38: 0 | HL38: 0 | HM38: 0 | HN38: 0 | HO38: 0 | HP38: 0 | HQ38: 0 | HR38: 0 | HS38: 0 | HT38: 0 | HU38: 0 | HV38: 0 | HW38: 0 | HX38: 0 | HY38: 0 | HZ38: 0 | IA38: 0 | IB38: 0 | IC38: 0 | ID38: 0 | IE38: 0 | IF38: 0 | IG38: 0 | IH38: 0 | II38: 0 | IJ38: 0 | IK38: 0 | IL38: 0 | IM38: 0 | IN38: 0 | IO38: 0 | IP38: 0 | IQ38: 0 | IR38: 0 | IS38: 0 | IT38: 0 | IU38: 0 | IV38: 0 | IW38: 0 | IX38: 0 | IY38: 0 | IZ38: 0 | JA38: 0 | JB38: 0 | JC38: 0 | JD38: 0 | JE38: 0 | JF38: 0 | JG38: 0 | JH38: 0 | JI38: 0 | JJ38: 0 | JK38: 0 | JL38: 0 | JM38: 0 | JN38: 0 | JO38: 0 | JP38: 0 | JQ38: 0 | JR38: 0 | JS38: 0 | JT38: 0 | JU38: 0 | JV38: 0 | JW38: 0 | JX38: 0 | JY38: 0 | JZ38: 0 | KA38: 0 | KB38: 0
A39: 19265013 | B39: 79 | C39: 542500 | D39: 100000 | E39: 100000 | F39: 500000 | G39: 200000 | H39: 100000 | I39: 600000 | J39: 100000 | K39: 100000 | L39: 205600 | M39: 113180 | N39: 127415 | O39: 200000 | P39: 500000 | Q39: 200000 | R39: 500000 | S39: 100000 | T39: 600000 | U39: 100000 | V39: 108500 | W39: 106692 | X39: 217600 | Y39: 250000 | Z39: 100000 | AA39: 100000 | AB39: 100000 | AC39: 300000 | AD39: 100000 | AE39: 200000 | AF39: 100000 | AG39: 400000 | AH39: 500000 | AI39: 116349 | AJ39: 266335 | AK39: 300000 | AL39: 510500 | AM39: 500000 | AN39: 100000 | AO39: 100000 | AP39: 200000 | AQ39: 166050 | AR39: 200000 | AS39: 245904 | AT39: 100000 | AU39: 213780 | AV39: 100000 | AW39: 108500 | AX39: 509658 | AY39: 113180 | AZ39: 150000 | BA39: 396130 | BB39: 200000 | BC39: 350000 | BD39: 300000 | BE39: 300000 | BF39: 500000 | BG39: 500000 | BH39: 400000 | BI39: 102800 | BJ39: 550000 | BK39: 100000 | BL39: 204200 | BM39: 200000 | BN39: 185231 | BO39: 200000 | BP39: 101902 | BQ39: 500000 | BR39: 200000 | BS39: 200000 | BT39: 200000 | BU39: 200000 | BV39: 300000 | BW39: 200000 | BX39: 400000 | BY39: 442800 | BZ39: 100000 | CA39: 100000 | CB39: 130679 | CC39: 129528 | GF39: 0 | GG39: 0 | GH39: 0 | GI39: 0 | GJ39: 0 | GK39: 0 | GL39: 0 | GM39: 0 | GN39: 0 | GO39: 0 | GP39: 0 | GQ39: 0 | GR39: 0 | GS39: 0 | GT39: 0 | GU39: 0 | GV39: 0 | GW39: 0 | GX39: 0 | GY39: 0 | GZ39: 0 | HA39: 0 | HB39: 0 | HC39: 0 | HD39: 0 | HE39: 0 | HF39: 0 | HG39: 0 | HH39: 0 | HI39: 0 | HJ39: 0 | HK39: 0 | HL39: 0 | HM39: 0 | HN39: 0 | HO39: 0 | HP39: 0 | HQ39: 0 | HR39: 0 | HS39: 0 | HT39: 0 | HU39: 0 | HV39: 0 | HW39: 0 | HX39: 0 | HY39: 0 | HZ39: 0 | IA39: 0 | IB39: 0 | IC39: 0 | ID39: 0 | IE39: 0 | IF39: 0 | IG39: 0 | IH39: 0 | II39: 0 | IJ39: 0 | IK39: 0 | IL39: 0 | IM39: 0 | IN39: 0 | IO39: 0 | IP39: 0 | IQ39: 0 | IR39: 0 | IS39: 0 | IT39: 0 | IU39: 0 | IV39: 0 | IW39: 0 | IX39: 0 | IY39: 0 | IZ39: 0 | JA39: 0 | JB39: 0 | JC39: 0 | JD39: 0 | JE39: 0 | JF39: 0 | JG39: 0 | JH39: 0 | JI39: 0 | JJ39: 0 | JK39: 0 | JL39: 0 | JM39: 0 | JN39: 0 | JO39: 0 | JP39: 0 | JQ39: 0 | JR39: 0 | JS39: 0 | JT39: 0 | JU39: 0 | JV39: 0 | JW39: 0 | JX39: 0 | JY39: 0 | JZ39: 0 | KA39: 0 | KB39: 0
A40: 20906521 | B40: 75 | C40: 200000 | D40: 277670 | E40: 100000 | F40: 196019 | G40: 100000 | H40: 100000 | I40: 100000 | J40: 100000 | K40: 250000 | L40: 250000 | M40: 339851 | N40: 100000 | O40: 200000 | P40: 250000 | Q40: 250000 | R40: 332224 | S40: 369388 | T40: 500000 | U40: 300000 | V40: 160000 | W40: 420000 | X40: 100000 | Y40: 100000 | Z40: 100000 | AA40: 200000 | AB40: 100000 | AC40: 100000 | AD40: 210000 | AE40: 300000 | AF40: 1000000 | AG40: 100000 | AH40: 118048 | AI40: 200000 | AJ40: 128319 | AK40: 600000 | AL40: 150000 | AM40: 300000 | AN40: 200000 | AO40: 100000 | AP40: 1000000 | AQ40: 600548 | AR40: 500000 | AS40: 1500000 | AT40: 100000 | AU40: 100000 | AV40: 250000 | AW40: 100000 | AX40: 620000 | AY40: 100000 | AZ40: 100000 | BA40: 100000 | BB40: 127418 | BC40: 127415 | BD40: 330000 | BE40: 100000 | BF40: 110700 | BG40: 100000 | BH40: 372000 | BI40: 200000 | BJ40: 200000 | BK40: 500000 | BL40: 1130247 | BM40: 1000000 | BN40: 100000 | BO40: 100000 | BP40: 514514 | BQ40: 500000 | BR40: 100000 | BS40: 200000 | BT40: 108783 | BU40: 232698 | BV40: 100000 | BW40: 200000 | BX40: 250000 | BY40: 130679 | GF40: 0 | GG40: 0 | GH40: 0 | GI40: 0 | GJ40: 0 | GK40: 0 | GL40: 0 | GM40: 0 | GN40: 0 | GO40: 0 | GP40: 0 | GQ40: 0 | GR40: 0 | GS40: 0 | GT40: 0 | GU40: 0 | GV40: 0 | GW40: 0 | GX40: 0 | GY40: 0 | GZ40: 0 | HA40: 0 | HB40: 0 | HC40: 0 | HD40: 0 | HE40: 0 | HF40: 0 | HG40: 0 | HH40: 0 | HI40: 0 | HJ40: 0 | HK40: =MAX(DK40-$D$3,0) -> 0 | HL40: 0 | HM40: 0 | HN40: 0 | HO40: 0 | HP40: 0 | HQ40: 0 | HR40: 0 | HS40: 0 | HT40: 0 | HU40: 0 | HV40: 0 | HW40: 0 | HX40: 0 | HY40: 0 | HZ40: 0 | IA40: =MAX(EA40-$D$3,0) -> 0 | IB40: 0 | IC40: 0 | ID40: 0 | IE40: 0 | IF40: 0 | IG40: 0 | IH40: 0 | II40: 0 | IJ40: 0 | IK40: 0 | IL40: 0 | IM40: 0 | IN40: 0 | IO40: 0 | IP40: 0 | IQ40: 0 | IR40: 0 | IS40: 0 | IT40: 0 | IU40: 0 | IV40: 0 | IW40: 0 | IX40: 0 | IY40: 0 | IZ40: 0 | JA40: 0 | JB40: 0 | JC40: 0 | JD40: 0 | JE40: 0 | JF40: 0 | JG40: 0 | JH40: 0 | JI40: 0 | JJ40: 0 | JK40: 0 | JL40: 0 | JM40: 0 | JN40: 0 | JO40: 0 | JP40: 0 | JQ40: 0 | JR40: 0 | JS40: 0 | JT40: 0 | JU40: 0 | JV40: 0 | JW40: =MAX(FW40-$D$3,0) -> 0 | JX40: 0 | JY40: 0 | JZ40: 0 | KA40: 0 | KB40: 0
A41: 21007500 | B41: 74 | C41: 100000 | D41: 159123 | E41: 213169 | F41: 591328 | G41: 100000 | H41: 250000 | I41: 1000000 | J41: 300000 | K41: 250000 | L41: 350000 | M41: 400000 | N41: 310386 | O41: 100000 | P41: 100000 | Q41: 500000 | R41: 1000000 | S41: 452720 | T41: 150000 | U41: 626453 | V41: 150000 | W41: 100000 | X41: 408400 | Y41: 110700 | Z41: 100000 | AA41: 100000 | AB41: 100000 | AC41: 120000 | AD41: 500000 | AE41: 100000 | AF41: 122632 | AG41: 109679 | AH41: 1000000 | AI41: 100000 | AJ41: 200000 | AK41: 300000 | AL41: 168485 | AM41: 200000 | AN41: 250000 | AO41: 102100 | AP41: 332100 | AQ41: 300000 | AR41: 203910 | AS41: 544000 | AT41: 108700 | AU41: 150000 | AV41: 200000 | AW41: 100000 | AX41: 1163490 | AY41: 120110 | AZ41: 500000 | BA41: 1000000 | BB41: 200000 | BC41: 271881 | BD41: 100000 | BE41: 250330 | BF41: 200000 | BG41: 100000 | BH41: 100000 | BI41: 100000 | BJ41: 100000 | BK41: 100000 | BL41: 221854 | BM41: 300000 | BN41: 500000 | BO41: 100000 | BP41: 153150 | BQ41: 102100 | BR41: 100000 | BS41: 500000 | BT41: 180000 | BU41: 100000 | BV41: 500000 | BW41: 110700 | BX41: 600000 | GF41: 0 | GG41: 0 | GH41: 0 | GI41: 0 | GJ41: 0 | GK41: 0 | GL41: 0 | GM41: 0 | GN41: 0 | GO41: 0 | GP41: 0 | GQ41: 0 | GR41: 0 | GS41: 0 | GT41: 0 | GU41: 0 | GV41: 0 | GW41: =MAX(CW41-$D$3,0) -> 0 | GX41: 0 | GY41: 0 | GZ41: 0 | HA41: 0 | HB41: 0 | HC41: 0 | HD41: 0 | HE41: 0 | HF41: 0 | HG41: 0 | HH41: 0 | HI41: 0 | HJ41: 0 | HK41: 0 | HL41: 0 | HM41: 0 | HN41: 0 | HO41: 0 | HP41: 0 | HQ41: 0 | HR41: 0 | HS41: 0 | HT41: 0 | HU41: 0 | HV41: 0 | HW41: 0 | HX41: 0 | HY41: 0 | HZ41: 0 | IA41: 0 | IB41: 0 | IC41: 0 | ID41: 0 | IE41: 0 | IF41: 0 | IG41: 0 | IH41: 0 | II41: 0 | IJ41: 0 | IK41: 0 | IL41: 0 | IM41: 0 | IN41: 0 | IO41: 0 | IP41: =MAX(EP41-$D$3,0) -> 0 | IQ41: 0 | IR41: 0 | IS41: 0 | IT41: 0 | IU41: 0 | IV41: 0 | IW41: 0 | IX41: 0 | IY41: 0 | IZ41: 0 | JA41: 0 | JB41: 0 | JC41: 0 | JD41: 0 | JE41: 0 | JF41: 0 | JG41: 0 | JH41: 0 | JI41: 0 | JJ41: 0 | JK41: 0 | JL41: 0 | JM41: 0 | JN41: 0 | JO41: 0 | JP41: 0 | JQ41: 0 | JR41: 0 | JS41: 0 | JT41: 0 | JU41: 0 | JV41: 0 | JW41: 0 | JX41: 0 | JY41: 0 | JZ41: 0 | KA41: 0 | KB41: 0
A42: 17640886 | B42: 74 | C42: 275000 | D42: 265205 | E42: 150000 | F42: 108500 | G42: 509658 | H42: 210000 | I42: 100000 | J42: 200000 | K42: 100000 | L42: 200000 | M42: 200000 | N42: 200000 | O42: 100000 | P42: 100000 | Q42: 600405 | R42: 100000 | S42: 100000 | T42: 100000 | U42: 400000 | V42: 100000 | W42: 200000 | X42: 100000 | Y42: 103900 | Z42: 250000 | AA42: 250000 | AB42: 500000 | AC42: 127415 | AD42: 200000 | AE42: 500000 | AF42: 200000 | AG42: 500000 | AH42: 1000000 | AI42: 200000 | AJ42: 100000 | AK42: 300000 | AL42: 217000 | AM42: 100000 | AN42: 100000 | AO42: 100000 | AP42: 295806 | AQ42: 160000 | AR42: 135941 | AS42: 200000 | AT42: 203600 | AU42: 200135 | AV42: 100000 | AW42: 450000 | AX42: 500000 | AY42: 122632 | AZ42: 500000 | BA42: 300000 | BB42: 180000 | BC42: 175000 | BD42: 100000 | BE42: 400000 | BF42: 200000 | BG42: 200000 | BH42: 200000 | BI42: 200000 | BJ42: 100000 | BK42: 300000 | BL42: 207800 | BM42: 500000 | BN42: 118048 | BO42: 100000 | BP42: 144000 | BQ42: 266847 | BR42: 400000 | BS42: 400000 | BT42: 100000 | BU42: 213994 | BV42: 500000 | BW42: 100000 | BX42: 200000 | GF42: 0 | GG42: 0 | GH42: =MAX(CH42-$D$3,0) -> 0 | GI42: 0 | GJ42: 0 | GK42: 0 | GL42: 0 | GM42: 0 | GN42: 0 | GO42: 0 | GP42: 0 | GQ42: 0 | GR42: 0 | GS42: 0 | GT42: 0 | GU42: 0 | GV42: 0 | GW42: 0 | GX42: 0 | GY42: 0 | GZ42: 0 | HA42: 0 | HB42: 0 | HC42: 0 | HD42: 0 | HE42: 0 | HF42: 0 | HG42: 0 | HH42: 0 | HI42: 0 | HJ42: 0 | HK42: 0 | HL42: 0 | HM42: 0 | HN42: 0 | HO42: 0 | HP42: 0 | HQ42: 0 | HR42: 0 | HS42: 0 | HT42: 0 | HU42: 0 | HV42: 0 | HW42: 0 | HX42: 0 | HY42: 0 | HZ42: 0 | IA42: 0 | IB42: 0 | IC42: 0 | ID42: 0 | IE42: 0 | IF42: 0 | IG42: 0 | IH42: 0 | II42: 0 | IJ42: 0 | IK42: 0 | IL42: 0 | IM42: 0 | IN42: 0 | IO42: 0 | IP42: 0 | IQ42: 0 | IR42: 0 | IS42: 0 | IT42: 0 | IU42: 0 | IV42: 0 | IW42: 0 | IX42: 0 | IY42: 0 | IZ42: 0 | JA42: 0 | JB42: 0 | JC42: 0 | JD42: 0 | JE42: 0 | JF42: 0 | JG42: 0 | JH42: 0 | JI42: 0 | JJ42: 0 | JK42: 0 | JL42: 0 | JM42: 0 | JN42: 0 | JO42: 0 | JP42: 0 | JQ42: 0 | JR42: 0 | JS42: 0 | JT42: 0 | JU42: 0 | JV42: 0 | JW42: 0 | JX42: 0 | JY42: 0 | JZ42: 0 | KA42: 0 | KB42: 0
A43: 15724137 | B43: 62 | C43: 113180 | D43: 1000000 | E43: 250330 | F43: 147754 | G43: 306962 | H43: 100000 | I43: 100000 | J43: 159123 | K43: 100000 | L43: 150000 | M43: 200000 | N43: 300000 | O43: 213169 | P43: 100000 | Q43: 100000 | R43: 100000 | S43: 250000 | T43: 100000 | U43: 576000 | V43: 200000 | W43: 500000 | X43: 2000000 | Y43: 500000 | Z43: 166050 | AA43: 100000 | AB43: 100000 | AC43: 100000 | AD43: 210000 | AE43: 209400 | AF43: 250000 | AG43: 100000 | AH43: 100000 | AI43: 277670 | AJ43: 290874 | AK43: 100000 | AL43: 300000 | AM43: 100000 | AN43: 213382 | AO43: 200000 | AP43: 100000 | AQ43: 339541 | AR43: 300000 | AS43: 166278 | AT43: 400000 | AU43: 135805 | AV43: 133423 | AW43: 1250000 | AX43: 120110 | AY43: 150000 | AZ43: 150000 | BA43: 102100 | BB43: 100000 | BC43: 100000 | BD43: 203910 | BE43: 200000 | BF43: 200000 | BG43: 100000 | BH43: 339541 | BI43: 350000 | BJ43: 166112 | BK43: 133423 | BL43: 100000 | GF43: 0 | GG43: 0 | GH43: 0 | GI43: 0 | GJ43: 0 | GK43: 0 | GL43: 0 | GM43: 0 | GN43: 0 | GO43: 0 | GP43: 0 | GQ43: 0 | GR43: 0 | GS43: 0 | GT43: 0 | GU43: 0 | GV43: 0 | GW43: 0 | GX43: 0 | GY43: 0 | GZ43: 0 | HA43: 0 | HB43: 0 | HC43: 0 | HD43: 0 | HE43: 0 | HF43: 0 | HG43: 0 | HH43: 0 | HI43: 0 | HJ43: 0 | HK43: 0 | HL43: 0 | HM43: 0 | HN43: 0 | HO43: 0 | HP43: 0 | HQ43: 0 | HR43: 0 | HS43: 0 | HT43: 0 | HU43: 0 | HV43: 0 | HW43: 0 | HX43: 0 | HY43: 0 | HZ43: 0 | IA43: 0 | IB43: 0 | IC43: 0 | ID43: 0 | IE43: 0 | IF43: 0 | IG43: 0 | IH43: 0 | II43: 0 | IJ43: 0 | IK43: 0 | IL43: 0 | IM43: 0 | IN43: 0 | IO43: 0 | IP43: 0 | IQ43: 0 | IR43: 0 | IS43: 0 | IT43: 0 | IU43: 0 | IV43: 0 | IW43: 0 | IX43: 0 | IY43: 0 | IZ43: 0 | JA43: 0 | JB43: 0 | JC43: 0 | JD43: 0 | JE43: 0 | JF43: 0 | JG43: 0 | JH43: 0 | JI43: 0 | JJ43: 0 | JK43: 0 | JL43: 0 | JM43: 0 | JN43: 0 | JO43: 0 | JP43: 0 | JQ43: 0 | JR43: 0 | JS43: 0 | JT43: 0 | JU43: 0 | JV43: 0 | JW43: 0 | JX43: 0 | JY43: 0 | JZ43: 0 | KA43: 0 | KB43: 0
A44: 18483637 | B44: 57 | C44: 266847 | D44: 600000 | E44: 500000 | F44: 100000 | G44: 180215 | H44: 1500000 | I44: 100000 | J44: 679700 | K44: 150000 | L44: 500000 | M44: 100000 | N44: 1000000 | O44: 1000000 | P44: 100000 | Q44: 500000 | R44: 100000 | S44: 1000000 | T44: 500000 | U44: 110741 | V44: 500000 | W44: 350000 | X44: 113025 | Y44: 106692 | Z44: 100000 | AA44: 200000 | AB44: 100000 | AC44: 150000 | AD44: 200000 | AE44: 1300000 | AF44: 200000 | AG44: 108783 | AH44: 250000 | AI44: 600000 | AJ44: 130000 | AK44: 103632 | AL44: 100000 | AM44: 500000 | AN44: 245264 | AO44: 300000 | AP44: 100000 | AQ44: 100000 | AR44: 100000 | AS44: 1000000 | AT44: 250000 | AU44: 100000 | AV44: 100000 | AW44: 100000 | AX44: 100000 | AY44: 169537 | AZ44: 200000 | BA44: 150000 | BB44: 500000 | BC44: 313951 | BD44: 100000 | BE44: 255250 | BF44: 100000 | BG44: 100000 | GF44: 0 | GG44: 0 | GH44: 0 | GI44: 0 | GJ44: 0 | GK44: 0 | GL44: 0 | GM44: 0 | GN44: 0 | GO44: 0 | GP44: 0 | GQ44: 0 | GR44: 0 | GS44: 0 | GT44: 0 | GU44: 0 | GV44: 0 | GW44: 0 | GX44: 0 | GY44: 0 | GZ44: 0 | HA44: 0 | HB44: 0 | HC44: 0 | HD44: 0 | HE44: 0 | HF44: 0 | HG44: 0 | HH44: 0 | HI44: 0 | HJ44: 0 | HK44: 0 | HL44: 0 | HM44: 0 | HN44: 0 | HO44: 0 | HP44: 0 | HQ44: 0 | HR44: 0 | HS44: 0 | HT44: 0 | HU44: 0 | HV44: 0 | HW44: 0 | HX44: 0 | HY44: 0 | HZ44: 0 | IA44: 0 | IB44: 0 | IC44: 0 | ID44: 0 | IE44: 0 | IF44: 0 | IG44: 0 | IH44: 0 | II44: 0 | IJ44: 0 | IK44: 0 | IL44: 0 | IM44: 0 | IN44: 0 | IO44: 0 | IP44: 0 | IQ44: 0 | IR44: 0 | IS44: 0 | IT44: 0 | IU44: 0 | IV44: 0 | IW44: 0 | IX44: 0 | IY44: 0 | IZ44: 0 | JA44: 0 | JB44: 0 | JC44: 0 | JD44: 0 | JE44: 0 | JF44: 0 | JG44: 0 | JH44: 0 | JI44: 0 | JJ44: 0 | JK44: 0 | JL44: 0 | JM44: 0 | JN44: 0 | JO44: 0 | JP44: 0 | JQ44: 0 | JR44: 0 | JS44: 0 | JT44: 0 | JU44: 0 | JV44: 0 | JW44: 0 | JX44: 0 | JY44: 0 | JZ44: 0 | KA44: 0 | KB44: 0
A45: 18367938 | B45: 62 | C45: 110852 | D45: 200000 | E45: 150000 | F45: 100000 | G45: 204200 | H45: 203600 | I45: 135941 | J45: 300000 | K45: 500000 | L45: 400000 | M45: 200000 | N45: 100000 | O45: 276853 | P45: 100000 | Q45: 750000 | R45: 500000 | S45: 500000 | T45: 509658 | U45: 1500000 | V45: 580000 | W45: 113067 | X45: 500000 | Y45: 254755 | Z45: 110852 | AA45: 110700 | AB45: 100000 | AC45: 100000 | AD45: 100000 | AE45: 240000 | AF45: 100000 | AG45: 200000 | AH45: 200000 | AI45: 456132 | AJ45: 213068 | AK45: 150000 | AL45: 150150 | AM45: 250000 | AN45: 118048 | AO45: 500000 | AP45: 558985 | AQ45: 100000 | AR45: 131116 | AS45: 103900 | AT45: 679700 | AU45: 200000 | AV45: 200000 | AW45: 150000 | AX45: 150000 | AY45: 125000 | AZ45: 1000000 | BA45: 1000000 | BB45: 100000 | BC45: 217000 | BD45: 400000 | BE45: 113025 | BF45: 100000 | BG45: 183336 | BH45: 1000000 | BI45: 168000 | BJ45: 100000 | BK45: 200000 | BL45: 100000 | GF45: 0 | GG45: 0 | GH45: 0 | GI45: 0 | GJ45: 0 | GK45: 0 | GL45: 0 | GM45: 0 | GN45: 0 | GO45: 0 | GP45: 0 | GQ45: 0 | GR45: 0 | GS45: 0 | GT45: 0 | GU45: 0 | GV45: 0 | GW45: 0 | GX45: 0 | GY45: 0 | GZ45: 0 | HA45: 0 | HB45: 0 | HC45: 0 | HD45: 0 | HE45: 0 | HF45: 0 | HG45: 0 | HH45: 0 | HI45: 0 | HJ45: 0 | HK45: 0 | HL45: 0 | HM45: 0 | HN45: 0 | HO45: 0 | HP45: 0 | HQ45: 0 | HR45: 0 | HS45: 0 | HT45: 0 | HU45: 0 | HV45: 0 | HW45: 0 | HX45: 0 | HY45: 0 | HZ45: 0 | IA45: 0 | IB45: 0 | IC45: 0 | ID45: 0 | IE45: 0 | IF45: 0 | IG45: 0 | IH45: 0 | II45: 0 | IJ45: 0 | IK45: 0 | IL45: 0 | IM45: 0 | IN45: 0 | IO45: 0 | IP45: 0 | IQ45: 0 | IR45: 0 | IS45: 0 | IT45: 0 | IU45: 0 | IV45: 0 | IW45: 0 | IX45: 0 | IY45: 0 | IZ45: 0 | JA45: 0 | JB45: 0 | JC45: 0 | JD45: 0 | JE45: 0 | JF45: 0 | JG45: 0 | JH45: 0 | JI45: 0 | JJ45: 0 | JK45: 0 | JL45: 0 | JM45: 0 | JN45: 0 | JO45: 0 | JP45: 0 | JQ45: 0 | JR45: 0 | JS45: 0 | JT45: 0 | JU45: 0 | JV45: 0 | JW45: 0 | JX45: 0 | JY45: 0 | JZ45: 0 | KA45: 0 | KB45: 0
A46: 12289384 | B46: 53 | C46: 100000 | D46: 300000 | E46: 100000 | F46: 300000 | G46: 130000 | H46: 400000 | I46: 100000 | J46: 167973 | K46: 125290 | L46: 200000 | M46: 1000000 | N46: 420000 | O46: 100000 | P46: 415600 | Q46: 210000 | R46: 106585 | S46: 100000 | T46: 100000 | U46: 125000 | V46: 108500 | W46: 426764 | X46: 110852 | Y46: 210000 | Z46: 840000 | AA46: 500000 | AB46: 500000 | AC46: 108500 | AD46: 400270 | AE46: 106692 | AF46: 200000 | AG46: 200000 | AH46: 100000 | AI46: 100000 | AJ46: 104755 | AK46: 100000 | AL46: 100000 | AM46: 200000 | AN46: 108500 | AO46: 100000 | AP46: 200000 | AQ46: 500000 | AR46: 147754 | AS46: 500000 | AT46: 500000 | AU46: 100000 | AV46: 200000 | AW46: 116349 | AX46: 100000 | AY46: 200000 | AZ46: 100000 | BA46: 200000 | BB46: 200000 | BC46: 100000 | GF46: 0 | GG46: 0 | GH46: 0 | GI46: 0 | GJ46: 0 | GK46: 0 | GL46: 0 | GM46: 0 | GN46: 0 | GO46: 0 | GP46: 0 | GQ46: 0 | GR46: 0 | GS46: 0 | GT46: 0 | GU46: 0 | GV46: 0 | GW46: 0 | GX46: 0 | GY46: 0 | GZ46: 0 | HA46: 0 | HB46: 0 | HC46: 0 | HD46: 0 | HE46: 0 | HF46: 0 | HG46: 0 | HH46: 0 | HI46: 0 | HJ46: 0 | HK46: 0 | HL46: 0 | HM46: 0 | HN46: 0 | HO46: 0 | HP46: 0 | HQ46: 0 | HR46: 0 | HS46: 0 | HT46: 0 | HU46: 0 | HV46: 0 | HW46: 0 | HX46: 0 | HY46: 0 | HZ46: 0 | IA46: 0 | IB46: 0 | IC46: 0 | ID46: 0 | IE46: 0 | IF46: 0 | IG46: 0 | IH46: 0 | II46: 0 | IJ46: 0 | IK46: 0 | IL46: 0 | IM46: 0 | IN46: 0 | IO46: 0 | IP46: 0 | IQ46: 0 | IR46: 0 | IS46: 0 | IT46: 0 | IU46: 0 | IV46: 0 | IW46: 0 | IX46: 0 | IY46: 0 | IZ46: 0 | JA46: 0 | JB46: 0 | JC46: 0 | JD46: 0 | JE46: 0 | JF46: 0 | JG46: 0 | JH46: 0 | JI46: 0 | JJ46: 0 | JK46: 0 | JL46: 0 | JM46: 0 | JN46: 0 | JO46: 0 | JP46: 0 | JQ46: 0 | JR46: 0 | JS46: 0 | JT46: 0 | JU46: 0 | JV46: 0 | JW46: 0 | JX46: 0 | JY46: 0 | JZ46: 0 | KA46: 0 | KB46: 0
A47: 18227215 | B47: 74 | C47: 104400 | D47: 500000 | E47: 240219 | F47: 221483 | G47: 250000 | H47: 200000 | I47: 1000000 | J47: 127415 | K47: 217567 | L47: 100000 | M47: 225000 | N47: 250000 | O47: 442800 | P47: 122632 | Q47: 200000 | R47: 100000 | S47: 297000 | T47: 100000 | U47: 400000 | V47: 100000 | W47: 200000 | X47: 500000 | Y47: 100000 | Z47: 132132 | AA47: 300000 | AB47: 100000 | AC47: 300000 | AD47: 220000 | AE47: 100000 | AF47: 100000 | AG47: 100000 | AH47: 254500 | AI47: 408400 | AJ47: 833008 | AK47: 100000 | AL47: 250000 | AM47: 100000 | AN47: 210000 | AO47: 100000 | AP47: 277670 | AQ47: 100000 | AR47: 360000 | AS47: 135941 | AT47: 160000 | AU47: 100000 | AV47: 438975 | AW47: 565900 | AX47: 500000 | AY47: 500000 | AZ47: 200000 | BA47: 221704 | BB47: 147902 | BC47: 175000 | BD47: 100000 | BE47: 100000 | BF47: 100000 | BG47: 500000 | BH47: 500000 | BI47: 100000 | BJ47: 150000 | BK47: 100000 | BL47: 100000 | BM47: 150000 | BN47: 200000 | BO47: 109679 | BP47: 100000 | BQ47: 475789 | BR47: 452099 | BS47: 100000 | BT47: 500000 | BU47: 500000 | BV47: 100000 | BW47: 200000 | BX47: 100000 | GF47: 0 | GG47: 0 | GH47: 0 | GI47: 0 | GJ47: 0 | GK47: 0 | GL47: 0 | GM47: 0 | GN47: 0 | GO47: 0 | GP47: 0 | GQ47: 0 | GR47: 0 | GS47: 0 | GT47: 0 | GU47: 0 | GV47: 0 | GW47: 0 | GX47: 0 | GY47: 0 | GZ47: 0 | HA47: 0 | HB47: 0 | HC47: 0 | HD47: 0 | HE47: 0 | HF47: 0 | HG47: 0 | HH47: 0 | HI47: 0 | HJ47: 0 | HK47: 0 | HL47: 0 | HM47: 0 | HN47: 0 | HO47: 0 | HP47: 0 | HQ47: 0 | HR47: 0 | HS47: 0 | HT47: 0 | HU47: 0 | HV47: 0 | HW47: 0 | HX47: 0 | HY47: 0 | HZ47: 0 | IA47: 0 | IB47: 0 | IC47: 0 | ID47: 0 | IE47: 0 | IF47: 0 | IG47: 0 | IH47: 0 | II47: 0 | IJ47: 0 | IK47: 0 | IL47: 0 | IM47: 0 | IN47: 0 | IO47: 0 | IP47: 0 | IQ47: 0 | IR47: 0 | IS47: 0 | IT47: 0 | IU47: 0 | IV47: 0 | IW47: 0 | IX47: 0 | IY47: 0 | IZ47: 0 | JA47: 0 | JB47: 0 | JC47: 0 | JD47: 0 | JE47: 0 | JF47: 0 | JG47: 0 | JH47: 0 | JI47: 0 | JJ47: 0 | JK47: 0 | JL47: 0 | JM47: 0 | JN47: 0 | JO47: 0 | JP47: 0 | JQ47: 0 | JR47: 0 | JS47: 0 | JT47: 0 | JU47: 0 | JV47: 0 | JW47: 0 | JX47: 0 | JY47: 0 | JZ47: 0 | KA47: 0 | KB47: 0
A48: 15710310 | B48: 72 | C48: 1000000 | D48: 200000 | E48: 200000 | F48: 100000 | G48: 200000 | H48: 100000 | I48: 324000 | J48: 100000 | K48: 150000 | L48: 200000 | M48: 250000 | N48: 227912 | O48: 200000 | P48: 100000 | Q48: 250000 | R48: 265205 | S48: 100000 | T48: 100000 | U48: 118325 | V48: 300000 | W48: 100000 | X48: 200000 | Y48: 100000 | Z48: 100000 | AA48: 100000 | AB48: 108800 | AC48: 498834 | AD48: 100000 | AE48: 200000 | AF48: 100000 | AG48: 700000 | AH48: 150150 | AI48: 500000 | AJ48: 108800 | AK48: 108500 | AL48: 400000 | AM48: 108783 | AN48: 100000 | AO48: 254500 | AP48: 113180 | AQ48: 250000 | AR48: 100000 | AS48: 162750 | AT48: 500000 | AU48: 500000 | AV48: 100000 | AW48: 118048 | AX48: 100000 | AY48: 150000 | AZ48: 267225 | BA48: 553500 | BB48: 100000 | BC48: 100000 | BD48: 100000 | BE48: 100100 | BF48: 100000 | BG48: 106585 | BH48: 100000 | BI48: 345308 | BJ48: 500000 | BK48: 166050 | BL48: 250000 | BM48: 250000 | BN48: 100000 | BO48: 110741 | BP48: 116052 | BQ48: 500000 | BR48: 250000 | BS48: 128798 | BT48: 180164 | BU48: 468000 | BV48: 200000 | GF48: 0 | GG48: 0 | GH48: 0 | GI48: 0 | GJ48: 0 | GK48: 0 | GL48: 0 | GM48: 0 | GN48: 0 | GO48: 0 | GP48: 0 | GQ48: 0 | GR48: 0 | GS48: 0 | GT48: 0 | GU48: 0 | GV48: 0 | GW48: 0 | GX48: 0 | GY48: 0 | GZ48: 0 | HA48: 0 | HB48: 0 | HC48: 0 | HD48: 0 | HE48: 0 | HF48: 0 | HG48: 0 | HH48: 0 | HI48: 0 | HJ48: 0 | HK48: 0 | HL48: 0 | HM48: 0 | HN48: 0 | HO48: 0 | HP48: 0 | HQ48: 0 | HR48: 0 | HS48: 0 | HT48: 0 | HU48: 0 | HV48: 0 | HW48: 0 | HX48: 0 | HY48: 0 | HZ48: 0 | IA48: 0 | IB48: 0 | IC48: 0 | ID48: 0 | IE48: 0 | IF48: 0 | IG48: 0 | IH48: 0 | II48: 0 | IJ48: 0 | IK48: 0 | IL48: 0 | IM48: 0 | IN48: 0 | IO48: 0 | IP48: 0 | IQ48: 0 | IR48: 0 | IS48: 0 | IT48: 0 | IU48: 0 | IV48: 0 | IW48: 0 | IX48: 0 | IY48: 0 | IZ48: 0 | JA48: 0 | JB48: 0 | JC48: 0 | JD48: 0 | JE48: 0 | JF48: 0 | JG48: 0 | JH48: 0 | JI48: 0 | JJ48: 0 | JK48: 0 | JL48: 0 | JM48: 0 | JN48: 0 | JO48: 0 | JP48: 0 | JQ48: 0 | JR48: 0 | JS48: 0 | JT48: 0 | JU48: 0 | JV48: 0 | JW48: 0 | JX48: 0 | JY48: 0 | JZ48: 0 | KA48: 0 | KB48: 0
A49: 20198401 | B49: 83 | C49: 200000 | D49: 514514 | E49: 100000 | F49: 1000000 | G49: 100000 | H49: 350000 | I49: 100000 | J49: 250000 | K49: 150000 | L49: 100000 | M49: 100000 | N49: 400000 | O49: 147902 | P49: 100000 | Q49: 100000 | R49: 100000 | S49: 100000 | T49: 250000 | U49: 100000 | V49: 100000 | W49: 259750 | X49: 255250 | Y49: 221400 | Z49: 3000000 | AA49: 100000 | AB49: 100000 | AC49: 400000 | AD49: 108500 | AE49: 300000 | AF49: 101902 | AG49: 100000 | AH49: 118048 | AI49: 125000 | AJ49: 225000 | AK49: 100000 | AL49: 450000 | AM49: 140000 | AN49: 276750 | AO49: 200000 | AP49: 500000 | AQ49: 100000 | AR49: 108800 | AS49: 184428 | AT49: 138293 | AU49: 100000 | AV49: 100000 | AW49: 100000 | AX49: 223828 | AY49: 100000 | AZ49: 100000 | BA49: 200000 | BB49: 100000 | BC49: 500000 | BD49: 200104 | BE49: 500000 | BF49: 182000 | BG49: 150000 | BH49: 500000 | BI49: 100000 | BJ49: 102100 | BK49: 500000 | BL49: 187748 | BM49: 500000 | BN49: 139747 | BO49: 100000 | BP49: 113956 | BQ49: 250000 | BR49: 135941 | BS49: 250000 | BT49: 100000 | BU49: 113025 | BV49: 150000 | BW49: 443265 | BX49: 333204 | BY49: 100000 | BZ49: 279494 | CA49: 110700 | CB49: 400000 | CC49: 101902 | CD49: 100000 | CE49: 300000 | CF49: 155850 | CG49: 100000 | GF49: 0 | GG49: 0 | GH49: 0 | GI49: 0 | GJ49: 0 | GK49: 0 | GL49: 0 | GM49: 0 | GN49: 0 | GO49: 0 | GP49: 0 | GQ49: 0 | GR49: 0 | GS49: 0 | GT49: 0 | GU49: 0 | GV49: 0 | GW49: 0 | GX49: 0 | GY49: 0 | GZ49: 0 | HA49: 0 | HB49: 0 | HC49: 0 | HD49: 0 | HE49: 0 | HF49: 0 | HG49: 0 | HH49: 0 | HI49: 0 | HJ49: 0 | HK49: 0 | HL49: 0 | HM49: 0 | HN49: 0 | HO49: 0 | HP49: 0 | HQ49: 0 | HR49: 0 | HS49: 0 | HT49: 0 | HU49: 0 | HV49: 0 | HW49: 0 | HX49: 0 | HY49: 0 | HZ49: 0 | IA49: 0 | IB49: 0 | IC49: 0 | ID49: 0 | IE49: 0 | IF49: 0 | IG49: 0 | IH49: 0 | II49: 0 | IJ49: 0 | IK49: 0 | IL49: 0 | IM49: 0 | IN49: 0 | IO49: 0 | IP49: 0 | IQ49: 0 | IR49: 0 | IS49: 0 | IT49: 0 | IU49: 0 | IV49: 0 | IW49: 0 | IX49: 0 | IY49: 0 | IZ49: 0 | JA49: 0 | JB49: 0 | JC49: 0 | JD49: 0 | JE49: 0 | JF49: 0 | JG49: 0 | JH49: 0 | JI49: 0 | JJ49: 0 | JK49: 0 | JL49: 0 | JM49: 0 | JN49: 0 | JO49: 0 | JP49: 0 | JQ49: 0 | JR49: 0 | JS49: 0 | JT49: 0 | JU49: 0 | JV49: 0 | JW49: 0 | JX49: 0 | JY49: 0 | JZ49: 0 | KA49: 0 | KB49: 0
A50: 26131458 | B50: 65 | C50: 523775 | D50: 180000 | E50: 300000 | F50: 274196 | G50: 500000 | H50: 108500 | I50: 108783 | J50: 500000 | K50: 150000 | L50: 320795 | M50: 500000 | N50: 100000 | O50: 1451424 | P50: 272000 | Q50: 339074 | R50: 5520000 | S50: 100000 | T50: 2000000 | U50: 1200000 | V50: 613160 | W50: 102100 | X50: 100000 | Y50: 106082 | Z50: 110852 | AA50: 118048 | AB50: 250000 | AC50: 250000 | AD50: 226360 | AE50: 100000 | AF50: 250000 | AG50: 100000 | AH50: 100000 | AI50: 200000 | AJ50: 200000 | AK50: 125000 | AL50: 200000 | AM50: 510500 | AN50: 300274 | AO50: 100000 | AP50: 500000 | AQ50: 250000 | AR50: 106585 | AS50: 418800 | AT50: 100000 | AU50: 102100 | AV50: 300000 | AW50: 200000 | AX50: 200000 | AY50: 300000 | AZ50: 250000 | BA50: 1000000 | BB50: 127415 | BC50: 1000000 | BD50: 400000 | BE50: 420000 | BF50: 111068 | BG50: 150000 | BH50: 100000 | BI50: 113067 | BJ50: 100100 | BK50: 221400 | BL50: 100000 | BM50: 100000 | BN50: 800000 | BO50: 150000 | GF50: 0 | GG50: 0 | GH50: 0 | GI50: 0 | GJ50: 0 | GK50: 0 | GL50: 0 | GM50: 0 | GN50: 0 | GO50: 0 | GP50: 0 | GQ50: 0 | GR50: 0 | GS50: 0 | GT50: 0 | GU50: 0 | GV50: 0 | GW50: 0 | GX50: 0 | GY50: 0 | GZ50: 0 | HA50: 0 | HB50: 0 | HC50: 0 | HD50: 0 | HE50: 0 | HF50: 0 | HG50: 0 | HH50: 0 | HI50: 0 | HJ50: 0 | HK50: 0 | HL50: 0 | HM50: 0 | HN50: 0 | HO50: 0 | HP50: 0 | HQ50: 0 | HR50: 0 | HS50: 0 | HT50: 0 | HU50: 0 | HV50: 0 | HW50: 0 | HX50: 0 | HY50: 0 | HZ50: 0 | IA50: 0 | IB50: 0 | IC50: 0 | ID50: 0 | IE50: 0 | IF50: 0 | IG50: 0 | IH50: 0 | II50: 0 | IJ50: 0 | IK50: 0 | IL50: 0 | IM50: 0 | IN50: 0 | IO50: 0 | IP50: 0 | IQ50: 0 | IR50: 0 | IS50: 0 | IT50: 0 | IU50: 0 | IV50: 0 | IW50: 0 | IX50: 0 | IY50: 0 | IZ50: 0 | JA50: 0 | JB50: 0 | JC50: 0 | JD50: 0 | JE50: 0 | JF50: 0 | JG50: 0 | JH50: 0 | JI50: 0 | JJ50: 0 | JK50: 0 | JL50: 0 | JM50: 0 | JN50: 0 | JO50: 0 | JP50: 0 | JQ50: 0 | JR50: 0 | JS50: 0 | JT50: 0 | JU50: 0 | JV50: 0 | JW50: 0 | JX50: 0 | JY50: 0 | JZ50: 0 | KA50: 0 | KB50: 0
A51: 14389115 | B51: 68 | C51: 120000 | D51: 100000 | E51: 100000 | F51: 177488 | G51: 100000 | H51: 250000 | I51: 113180 | J51: 209511 | K51: 100000 | L51: 100000 | M51: 203804 | N51: 200000 | O51: 250000 | P51: 200200 | Q51: 100000 | R51: 200000 | S51: 200000 | T51: 200000 | U51: 100000 | V51: 300300 | W51: 300000 | X51: 100000 | Y51: 101902 | Z51: 250000 | AA51: 130679 | AB51: 128798 | AC51: 200000 | AD51: 200000 | AE51: 250000 | AF51: 100000 | AG51: 200000 | AH51: 100000 | AI51: 100000 | AJ51: 100000 | AK51: 200000 | AL51: 147754 | AM51: 160000 | AN51: 1000000 | AO51: 500000 | AP51: 500000 | AQ51: 500000 | AR51: 117433 | AS51: 200000 | AT51: 200000 | AU51: 407820 | AV51: 102100 | AW51: 100000 | AX51: 250000 | AY51: 200000 | AZ51: 257527 | BA51: 213382 | BB51: 200000 | BC51: 679700 | BD51: 100000 | BE51: 1000000 | BF51: 100000 | BG51: 100000 | BH51: 312913 | BI51: 100000 | BJ51: 100000 | BK51: 100000 | BL51: 276853 | BM51: 108000 | BN51: 169771 | BO51: 100000 | BP51: 100000 | BQ51: 100000 | BR51: 100000 | GF51: 0 | GG51: 0 | GH51: 0 | GI51: 0 | GJ51: 0 | GK51: 0 | GL51: 0 | GM51: 0 | GN51: 0 | GO51: 0 | GP51: 0 | GQ51: 0 | GR51: 0 | GS51: 0 | GT51: 0 | GU51: 0 | GV51: 0 | GW51: 0 | GX51: 0 | GY51: 0 | GZ51: 0 | HA51: 0 | HB51: 0 | HC51: 0 | HD51: 0 | HE51: 0 | HF51: 0 | HG51: 0 | HH51: 0 | HI51: 0 | HJ51: 0 | HK51: 0 | HL51: 0 | HM51: 0 | HN51: 0 | HO51: 0 | HP51: 0 | HQ51: 0 | HR51: 0 | HS51: 0 | HT51: 0 | HU51: 0 | HV51: 0 | HW51: 0 | HX51: 0 | HY51: 0 | HZ51: 0 | IA51: 0 | IB51: 0 | IC51: 0 | ID51: 0 | IE51: 0 | IF51: 0 | IG51: 0 | IH51: 0 | II51: 0 | IJ51: 0 | IK51: 0 | IL51: 0 | IM51: 0 | IN51: 0 | IO51: 0 | IP51: 0 | IQ51: 0 | IR51: 0 | IS51: 0 | IT51: 0 | IU51: 0 | IV51: 0 | IW51: 0 | IX51: 0 | IY51: 0 | IZ51: 0 | JA51: 0 | JB51: 0 | JC51: 0 | JD51: 0 | JE51: 0 | JF51: 0 | JG51: 0 | JH51: 0 | JI51: 0 | JJ51: 0 | JK51: 0 | JL51: 0 | JM51: 0 | JN51: 0 | JO51: 0 | JP51: 0 | JQ51: 0 | JR51: 0 | JS51: 0 | JT51: 0 | JU51: 0 | JV51: 0 | JW51: 0 | JX51: 0 | JY51: 0 | JZ51: 0 | KA51: 0 | KB51: 0
A52: 11978907 | B52: 45 | C52: 100512 | D52: 200000 | E52: 100000 | F52: 100000 | G52: 135941 | H52: 100000 | I52: 108500 | J52: 500000 | K52: 101902 | L52: 200000 | M52: 126126 | N52: 360000 | O52: 100000 | P52: 100000 | Q52: 236096 | R52: 1200000 | S52: 272000 | T52: 200000 | U52: 200000 | V52: 205600 | W52: 1000000 | X52: 250000 | Y52: 110700 | Z52: 500000 | AA52: 100000 | AB52: 100000 | AC52: 120110 | AD52: 500000 | AE52: 100000 | AF52: 100000 | AG52: 100000 | AH52: 290874 | AI52: 200000 | AJ52: 200000 | AK52: 120110 | AL52: 500000 | AM52: 100000 | AN52: 147902 | AO52: 193198 | AP52: 1386269 | AQ52: 100000 | AR52: 500000 | AS52: 300000 | AT52: 113067 | AU52: 200000 | GF52: 0 | GG52: 0 | GH52: 0 | GI52: 0 | GJ52: 0 | GK52: 0 | GL52: 0 | GM52: 0 | GN52: 0 | GO52: 0 | GP52: 0 | GQ52: 0 | GR52: 0 | GS52: 0 | GT52: 0 | GU52: 0 | GV52: 0 | GW52: 0 | GX52: 0 | GY52: 0 | GZ52: 0 | HA52: 0 | HB52: 0 | HC52: 0 | HD52: 0 | HE52: 0 | HF52: 0 | HG52: 0 | HH52: 0 | HI52: 0 | HJ52: 0 | HK52: 0 | HL52: 0 | HM52: 0 | HN52: 0 | HO52: 0 | HP52: 0 | HQ52: 0 | HR52: 0 | HS52: 0 | HT52: 0 | HU52: 0 | HV52: 0 | HW52: 0 | HX52: 0 | HY52: 0 | HZ52: 0 | IA52: 0 | IB52: 0 | IC52: 0 | ID52: 0 | IE52: 0 | IF52: 0 | IG52: 0 | IH52: 0 | II52: 0 | IJ52: 0 | IK52: 0 | IL52: 0 | IM52: 0 | IN52: 0 | IO52: 0 | IP52: 0 | IQ52: 0 | IR52: 0 | IS52: 0 | IT52: 0 | IU52: 0 | IV52: 0 | IW52: 0 | IX52: 0 | IY52: 0 | IZ52: 0 | JA52: 0 | JB52: 0 | JC52: 0 | JD52: 0 | JE52: 0 | JF52: 0 | JG52: 0 | JH52: 0 | JI52: 0 | JJ52: 0 | JK52: 0 | JL52: 0 | JM52: 0 | JN52: 0 | JO52: 0 | JP52: 0 | JQ52: 0 | JR52: 0 | JS52: 0 | JT52: 0 | JU52: 0 | JV52: 0 | JW52: 0 | JX52: 0 | JY52: 0 | JZ52: 0 | KA52: 0 | KB52: 0
A53: 17197351 | B53: 65 | C53: 200000 | D53: 100000 | E53: 500000 | F53: 600000 | G53: 200000 | H53: 100000 | I53: 200000 | J53: 500000 | K53: 1000000 | L53: 100000 | M53: 200000 | N53: 135941 | O53: 217000 | P53: 139747 | Q53: 109679 | R53: 139747 | S53: 565900 | T53: 100000 | U53: 100000 | V53: 435000 | W53: 150000 | X53: 600000 | Y53: 400000 | Z53: 100000 | AA53: 100000 | AB53: 300000 | AC53: 100000 | AD53: 200000 | AE53: 120110 | AF53: 318246 | AG53: 100000 | AH53: 100000 | AI53: 400000 | AJ53: 118048 | AK53: 200000 | AL53: 200000 | AM53: 106692 | AN53: 626453 | AO53: 565124 | AP53: 750000 | AQ53: 135805 | AR53: 498150 | AS53: 100000 | AT53: 104700 | AU53: 300000 | AV53: 120110 | AW53: 104700 | AX53: 400000 | AY53: 250000 | AZ53: 261750 | BA53: 100000 | BB53: 100000 | BC53: 1039000 | BD53: 500000 | BE53: 100000 | BF53: 400000 | BG53: 200000 | BH53: 110000 | BI53: 100000 | BJ53: 300000 | BK53: 140000 | BL53: 226049 | BM53: 100000 | BN53: 100000 | BO53: 209400 | GF53: 0 | GG53: 0 | GH53: 0 | GI53: 0 | GJ53: 0 | GK53: 0 | GL53: 0 | GM53: 0 | GN53: 0 | GO53: 0 | GP53: 0 | GQ53: 0 | GR53: 0 | GS53: 0 | GT53: 0 | GU53: 0 | GV53: 0 | GW53: 0 | GX53: 0 | GY53: 0 | GZ53: 0 | HA53: 0 | HB53: 0 | HC53: 0 | HD53: 0 | HE53: 0 | HF53: 0 | HG53: 0 | HH53: 0 | HI53: 0 | HJ53: 0 | HK53: 0 | HL53: 0 | HM53: 0 | HN53: 0 | HO53: 0 | HP53: 0 | HQ53: 0 | HR53: 0 | HS53: 0 | HT53: 0 | HU53: 0 | HV53: 0 | HW53: 0 | HX53: 0 | HY53: 0 | HZ53: 0 | IA53: 0 | IB53: 0 | IC53: 0 | ID53: 0 | IE53: 0 | IF53: 0 | IG53: 0 | IH53: 0 | II53: 0 | IJ53: 0 | IK53: 0 | IL53: 0 | IM53: 0 | IN53: 0 | IO53: 0 | IP53: 0 | IQ53: 0 | IR53: 0 | IS53: 0 | IT53: 0 | IU53: 0 | IV53: 0 | IW53: 0 | IX53: 0 | IY53: 0 | IZ53: 0 | JA53: 0 | JB53: 0 | JC53: 0 | JD53: 0 | JE53: 0 | JF53: 0 | JG53: 0 | JH53: 0 | JI53: 0 | JJ53: 0 | JK53: 0 | JL53: 0 | JM53: 0 | JN53: =MAX(FN53-$D$3,0) -> 0 | JO53: 0 | JP53: 0 | JQ53: 0 | JR53: 0 | JS53: 0 | JT53: 0 | JU53: 0 | JV53: 0 | JW53: 0 | JX53: 0 | JY53: 0 | JZ53: 0 | KA53: 0 | KB53: 0
A54: 24454116 | B54: 83 | C54: 135805 | D54: 300000 | E54: 102100 | F54: 500000 | G54: 100000 | H54: 200000 | I54: 100000 | J54: 2500000 | K54: 1000000 | L54: 200000 | M54: 100000 | N54: 200000 | O54: 110000 | P54: 500000 | Q54: 500000 | R54: 210000 | S54: 135941 | T54: 169771 | U54: 125290 | V54: 100000 | W54: 100000 | X54: 600000 | Y54: 200000 | Z54: 100000 | AA54: 500000 | AB54: 200000 | AC54: 100000 | AD54: 100000 | AE54: 200000 | AF54: 200000 | AG54: 225000 | AH54: 221704 | AI54: 200000 | AJ54: 200000 | AK54: 500000 | AL54: 250000 | AM54: 378566 | AN54: 250000 | AO54: 250000 | AP54: 315000 | AQ54: 332556 | AR54: 271881 | AS54: 108500 | AT54: 125000 | AU54: 100000 | AV54: 240000 | AW54: 100000 | AX54: 2000000 | AY54: 200000 | AZ54: 250000 | BA54: 100000 | BB54: 300000 | BC54: 250000 | BD54: 100000 | BE54: 100000 | BF54: 230340 | BG54: 100000 | BH54: 500000 | BI54: 553500 | BJ54: 548393 | BK54: 220000 | BL54: 100000 | BM54: 276750 | BN54: 200000 | BO54: 110852 | BP54: 210000 | BQ54: 100000 | BR54: 500000 | BS54: 150000 | BT54: 100000 | BU54: 100000 | BV54: 1000000 | BW54: 200000 | BX54: 200000 | BY54: 200000 | BZ54: 100000 | CA54: 444271 | CB54: 500000 | CC54: 125000 | CD54: 100000 | CE54: 150000 | CF54: 110000 | CG54: 367896 | GF54: 0 | GG54: 0 | GH54: 0 | GI54: 0 | GJ54: 0 | GK54: 0 | GL54: 0 | GM54: 0 | GN54: 0 | GO54: 0 | GP54: 0 | GQ54: 0 | GR54: 0 | GS54: 0 | GT54: 0 | GU54: 0 | GV54: 0 | GW54: 0 | GX54: 0 | GY54: 0 | GZ54: 0 | HA54: 0 | HB54: 0 | HC54: 0 | HD54: 0 | HE54: 0 | HF54: 0 | HG54: 0 | HH54: 0 | HI54: 0 | HJ54: 0 | HK54: 0 | HL54: 0 | HM54: 0 | HN54: 0 | HO54: 0 | HP54: 0 | HQ54: 0 | HR54: 0 | HS54: 0 | HT54: 0 | HU54: 0 | HV54: 0 | HW54: 0 | HX54: 0 | HY54: 0 | HZ54: 0 | IA54: 0 | IB54: 0 | IC54: 0 | ID54: 0 | IE54: 0 | IF54: 0 | IG54: 0 | IH54: 0 | II54: 0 | IJ54: 0 | IK54: 0 | IL54: 0 | IM54: 0 | IN54: 0 | IO54: 0 | IP54: 0 | IQ54: 0 | IR54: 0 | IS54: 0 | IT54: 0 | IU54: 0 | IV54: 0 | IW54: 0 | IX54: 0 | IY54: 0 | IZ54: 0 | JA54: 0 | JB54: 0 | JC54: 0 | JD54: 0 | JE54: 0 | JF54: 0 | JG54: 0 | JH54: 0 | JI54: 0 | JJ54: 0 | JK54: 0 | JL54: 0 | JM54: 0 | JN54: 0 | JO54: 0 | JP54: 0 | JQ54: 0 | JR54: 0 | JS54: 0 | JT54: 0 | JU54: 0 | JV54: 0 | JW54: 0 | JX54: 0 | JY54: 0 | JZ54: 0 | KA54: 0 | KB54: 0
A55: 19674446 | B55: 71 | C55: 193198 | D55: 100000 | E55: 800000 | F55: 100000 | G55: 100000 | H55: 234865 | I55: 108783 | J55: 452099 | K55: 100000 | L55: 200000 | M55: 100000 | N55: 300000 | O55: 500000 | P55: 266847 | Q55: 100000 | R55: 102903 | S55: 100000 | T55: 100000 | U55: 200000 | V55: 113067 | W55: 110852 | X55: 200000 | Y55: 542500 | Z55: 500000 | AA55: 100000 | AB55: 1131800 | AC55: 200000 | AD55: 150000 | AE55: 245904 | AF55: 300000 | AG55: 300000 | AH55: 300000 | AI55: 200000 | AJ55: 300000 | AK55: 300000 | AL55: 250250 | AM55: 282668 | AN55: 135941 | AO55: 113180 | AP55: 1000000 | AQ55: 614000 | AR55: 600405 | AS55: 200000 | AT55: 200000 | AU55: 150000 | AV55: 100000 | AW55: 100000 | AX55: 200000 | AY55: 100000 | AZ55: 100000 | BA55: 112734 | BB55: 100000 | BC55: 104700 | BD55: 300000 | BE55: 276750 | BF55: 200000 | BG55: 100000 | BH55: 110741 | BI55: 150000 | BJ55: 100000 | BK55: 1252903 | BL55: 100000 | BM55: 200000 | BN55: 250000 | BO55: 640000 | BP55: 200000 | BQ55: 1500000 | BR55: 100000 | BS55: 108500 | BT55: 100000 | BU55: 368856 | GF55: 0 | GG55: 0 | GH55: 0 | GI55: 0 | GJ55: 0 | GK55: 0 | GL55: 0 | GM55: 0 | GN55: 0 | GO55: 0 | GP55: 0 | GQ55: 0 | GR55: 0 | GS55: 0 | GT55: 0 | GU55: 0 | GV55: 0 | GW55: 0 | GX55: 0 | GY55: 0 | GZ55: 0 | HA55: 0 | HB55: 0 | HC55: 0 | HD55: 0 | HE55: 0 | HF55: 0 | HG55: 0 | HH55: 0 | HI55: 0 | HJ55: 0 | HK55: 0 | HL55: 0 | HM55: 0 | HN55: 0 | HO55: 0 | HP55: 0 | HQ55: 0 | HR55: 0 | HS55: 0 | HT55: 0 | HU55: 0 | HV55: 0 | HW55: 0 | HX55: 0 | HY55: 0 | HZ55: 0 | IA55: 0 | IB55: 0 | IC55: 0 | ID55: 0 | IE55: 0 | IF55: 0 | IG55: 0 | IH55: 0 | II55: 0 | IJ55: 0 | IK55: 0 | IL55: 0 | IM55: 0 | IN55: 0 | IO55: 0 | IP55: 0 | IQ55: 0 | IR55: 0 | IS55: 0 | IT55: 0 | IU55: 0 | IV55: 0 | IW55: 0 | IX55: 0 | IY55: 0 | IZ55: 0 | JA55: 0 | JB55: 0 | JC55: 0 | JD55: 0 | JE55: 0 | JF55: =MAX(FF55-$D$3,0) -> 0 | JG55: 0 | JH55: 0 | JI55: 0 | JJ55: 0 | JK55: 0 | JL55: 0 | JM55: 0 | JN55: 0 | JO55: 0 | JP55: 0 | JQ55: 0 | JR55: 0 | JS55: 0 | JT55: 0 | JU55: 0 | JV55: 0 | JW55: 0 | JX55: 0 | JY55: 0 | JZ55: 0 | KA55: 0 | KB55: 0
A56: 22009096 | B56: 76 | C56: 200000 | D56: 300000 | E56: 100000 | F56: 100000 | G56: 300000 | H56: 217600 | I56: 100000 | J56: 100000 | K56: 446164 | L56: 257596 | M56: 300000 | N56: 221400 | O56: 100000 | P56: 128319 | Q56: 117433 | R56: 120000 | S56: 300000 | T56: 252000 | U56: 530410 | V56: 108800 | W56: 900000 | X56: 100000 | Y56: 217567 | Z56: 3063000 | AA56: 200000 | AB56: 200000 | AC56: 110741 | AD56: 100000 | AE56: 250000 | AF56: 100000 | AG56: 246720 | AH56: 400000 | AI56: 120000 | AJ56: 100000 | AK56: 100000 | AL56: 120110 | AM56: 500000 | AN56: 200000 | AO56: 500000 | AP56: 100000 | AQ56: 100000 | AR56: 100000 | AS56: 200000 | AT56: 117433 | AU56: 553708 | AV56: 500000 | AW56: 122632 | AX56: 100000 | AY56: 200000 | AZ56: 100000 | BA56: 139747 | BB56: 117433 | BC56: 200000 | BD56: 613160 | BE56: 250000 | BF56: 509509 | BG56: 2000000 | BH56: 200000 | BI56: 150000 | BJ56: 100000 | BK56: 300000 | BL56: 100000 | BM56: 100000 | BN56: 100000 | BO56: 200000 | BP56: 300000 | BQ56: 270495 | BR56: 250000 | BS56: 224052 | BT56: 100000 | BU56: 100000 | BV56: 1000000 | BW56: 113067 | BX56: 350000 | BY56: 100000 | BZ56: 100000 | GF56: 0 | GG56: 0 | GH56: 0 | GI56: 0 | GJ56: 0 | GK56: 0 | GL56: 0 | GM56: 0 | GN56: 0 | GO56: 0 | GP56: 0 | GQ56: 0 | GR56: 0 | GS56: 0 | GT56: 0 | GU56: 0 | GV56: 0 | GW56: 0 | GX56: 0 | GY56: 0 | GZ56: 0 | HA56: 0 | HB56: 0 | HC56: 0 | HD56: 0 | HE56: 0 | HF56: 0 | HG56: 0 | HH56: 0 | HI56: 0 | HJ56: 0 | HK56: 0 | HL56: 0 | HM56: 0 | HN56: 0 | HO56: 0 | HP56: 0 | HQ56: 0 | HR56: 0 | HS56: 0 | HT56: 0 | HU56: 0 | HV56: 0 | HW56: 0 | HX56: =MAX(DX56-$D$3,0) -> 0 | HY56: 0 | HZ56: 0 | IA56: 0 | IB56: 0 | IC56: 0 | ID56: 0 | IE56: 0 | IF56: 0 | IG56: 0 | IH56: 0 | II56: 0 | IJ56: 0 | IK56: 0 | IL56: 0 | IM56: 0 | IN56: 0 | IO56: 0 | IP56: 0 | IQ56: 0 | IR56: 0 | IS56: 0 | IT56: 0 | IU56: 0 | IV56: 0 | IW56: 0 | IX56: 0 | IY56: 0 | IZ56: 0 | JA56: 0 | JB56: 0 | JC56: 0 | JD56: 0 | JE56: 0 | JF56: 0 | JG56: 0 | JH56: 0 | JI56: 0 | JJ56: 0 | JK56: 0 | JL56: 0 | JM56: 0 | JN56: 0 | JO56: 0 | JP56: 0 | JQ56: 0 | JR56: 0 | JS56: 0 | JT56: 0 | JU56: 0 | JV56: 0 | JW56: 0 | JX56: 0 | JY56: 0 | JZ56: 0 | KA56: 0 | KB56: 0
A57: 17057153 | B57: 72 | C57: 400000 | D57: 100000 | E57: 400000 | F57: 500000 | G57: 548393 | H57: 200000 | I57: 128798 | J57: 200000 | K57: 200000 | L57: 200000 | M57: 500000 | N57: 300000 | O57: 102100 | P57: 250000 | Q57: 100000 | R57: 210000 | S57: 120000 | T57: 587164 | U57: 150000 | V57: 100000 | W57: 500000 | X57: 100000 | Y57: 200000 | Z57: 100000 | AA57: 100000 | AB57: 100000 | AC57: 100000 | AD57: 250000 | AE57: 200000 | AF57: 200000 | AG57: 120110 | AH57: 122632 | AI57: 100000 | AJ57: 128798 | AK57: 200000 | AL57: 200000 | AM57: 523775 | AN57: 360329 | AO57: 110852 | AP57: 110852 | AQ57: 200000 | AR57: 102800 | AS57: 300000 | AT57: 122632 | AU57: 200000 | AV57: 100000 | AW57: 100000 | AX57: 100000 | AY57: 500000 | AZ57: 150000 | BA57: 100000 | BB57: 500000 | BC57: 109679 | BD57: 100000 | BE57: 207800 | BF57: 261888 | BG57: 162750 | BH57: 667117 | BI57: 102100 | BJ57: 184428 | BK57: 1000000 | BL57: 150150 | BM57: 100000 | BN57: 139747 | BO57: 200000 | BP57: 100000 | BQ57: 200000 | BR57: 613160 | BS57: 135941 | BT57: 120110 | BU57: 100000 | BV57: 803048 | GF57: 0 | GG57: 0 | GH57: 0 | GI57: 0 | GJ57: 0 | GK57: 0 | GL57: 0 | GM57: 0 | GN57: 0 | GO57: 0 | GP57: 0 | GQ57: 0 | GR57: 0 | GS57: 0 | GT57: 0 | GU57: 0 | GV57: 0 | GW57: 0 | GX57: 0 | GY57: 0 | GZ57: 0 | HA57: 0 | HB57: 0 | HC57: 0 | HD57: 0 | HE57: 0 | HF57: 0 | HG57: 0 | HH57: 0 | HI57: 0 | HJ57: 0 | HK57: 0 | HL57: 0 | HM57: =MAX(DM57-$D$3,0) -> 0 | HN57: 0 | HO57: 0 | HP57: 0 | HQ57: 0 | HR57: 0 | HS57: 0 | HT57: 0 | HU57: 0 | HV57: 0 | HW57: 0 | HX57: 0 | HY57: 0 | HZ57: 0 | IA57: 0 | IB57: 0 | IC57: 0 | ID57: 0 | IE57: 0 | IF57: 0 | IG57: 0 | IH57: 0 | II57: 0 | IJ57: 0 | IK57: 0 | IL57: 0 | IM57: 0 | IN57: 0 | IO57: 0 | IP57: 0 | IQ57: 0 | IR57: 0 | IS57: 0 | IT57: 0 | IU57: 0 | IV57: 0 | IW57: 0 | IX57: 0 | IY57: 0 | IZ57: 0 | JA57: 0 | JB57: 0 | JC57: 0 | JD57: 0 | JE57: 0 | JF57: 0 | JG57: 0 | JH57: 0 | JI57: 0 | JJ57: 0 | JK57: 0 | JL57: 0 | JM57: 0 | JN57: 0 | JO57: 0 | JP57: 0 | JQ57: 0 | JR57: 0 | JS57: 0 | JT57: 0 | JU57: 0 | JV57: 0 | JW57: 0 | JX57: 0 | JY57: 0 | JZ57: 0 | KA57: 0 | KB57: 0
A58: 16423717 | B58: 63 | C58: 280147 | D58: 332100 | E58: 200000 | F58: 133404 | G58: 200000 | H58: 100000 | I58: 1021000 | J58: 1000000 | K58: 300000 | L58: 108700 | M58: 500000 | N58: 313226 | O58: 120110 | P58: 250000 | Q58: 250000 | R58: 250000 | S58: 382244 | T58: 300000 | U58: 200000 | V58: 450000 | W58: 250330 | X58: 228000 | Y58: 150000 | Z58: 400000 | AA58: 200000 | AB58: 500000 | AC58: 282668 | AD58: 150000 | AE58: 200000 | AF58: 100000 | AG58: 274196 | AH58: 100000 | AI58: 150000 | AJ58: 282562 | AK58: 311700 | AL58: 250000 | AM58: 442800 | AN58: 250000 | AO58: 100000 | AP58: 110700 | AQ58: 490527 | AR58: 400000 | AS58: 100000 | AT58: 100000 | AU58: 306580 | AV58: 122952 | AW58: 130679 | AX58: 100000 | AY58: 106585 | AZ58: 100000 | BA58: 300000 | BB58: 100000 | BC58: 109679 | BD58: 100000 | BE58: 100000 | BF58: 400000 | BG58: 108500 | BH58: 300000 | BI58: 500000 | BJ58: 300000 | BK58: 100000 | BL58: 424328 | BM58: 200000 | GF58: 0 | GG58: 0 | GH58: 0 | GI58: 0 | GJ58: 0 | GK58: 0 | GL58: 0 | GM58: 0 | GN58: 0 | GO58: 0 | GP58: 0 | GQ58: 0 | GR58: 0 | GS58: 0 | GT58: 0 | GU58: 0 | GV58: 0 | GW58: 0 | GX58: 0 | GY58: 0 | GZ58: 0 | HA58: 0 | HB58: 0 | HC58: 0 | HD58: 0 | HE58: 0 | HF58: 0 | HG58: 0 | HH58: 0 | HI58: 0 | HJ58: 0 | HK58: 0 | HL58: =MAX(DL58-$D$3,0) -> 0 | HM58: 0 | HN58: 0 | HO58: 0 | HP58: 0 | HQ58: 0 | HR58: 0 | HS58: 0 | HT58: 0 | HU58: 0 | HV58: 0 | HW58: 0 | HX58: 0 | HY58: 0 | HZ58: 0 | IA58: 0 | IB58: 0 | IC58: 0 | ID58: 0 | IE58: 0 | IF58: 0 | IG58: 0 | IH58: 0 | II58: 0 | IJ58: 0 | IK58: 0 | IL58: =MAX(EL58-$D$3,0) -> 0 | IM58: 0 | IN58: 0 | IO58: 0 | IP58: 0 | IQ58: 0 | IR58: 0 | IS58: 0 | IT58: 0 | IU58: 0 | IV58: 0 | IW58: 0 | IX58: 0 | IY58: 0 | IZ58: 0 | JA58: 0 | JB58: 0 | JC58: 0 | JD58: 0 | JE58: 0 | JF58: 0 | JG58: 0 | JH58: 0 | JI58: 0 | JJ58: 0 | JK58: 0 | JL58: 0 | JM58: 0 | JN58: 0 | JO58: 0 | JP58: 0 | JQ58: 0 | JR58: 0 | JS58: 0 | JT58: 0 | JU58: 0 | JV58: 0 | JW58: 0 | JX58: 0 | JY58: 0 | JZ58: 0 | KA58: 0 | KB58: 0
A59: 17879132 | B59: 62 | C59: 100000 | D59: 100000 | E59: 213382 | F59: 500000 | G59: 100000 | H59: 193198 | I59: 100000 | J59: 510500 | K59: 500000 | L59: 100000 | M59: 212164 | N59: 300000 | O59: 230000 | P59: 100000 | Q59: 448103 | R59: 100000 | S59: 375495 | T59: 500000 | U59: 166112 | V59: 1000000 | W59: 200000 | X59: 200000 | Y59: 271881 | Z59: 1000000 | AA59: 147902 | AB59: 200000 | AC59: 150000 | AD59: 200000 | AE59: 100000 | AF59: 200000 | AG59: 200000 | AH59: 1000000 | AI59: 200000 | AJ59: 200000 | AK59: 100000 | AL59: 200000 | AM59: 200000 | AN59: 200000 | AO59: 150768 | AP59: 200000 | AQ59: 500000 | AR59: 127415 | AS59: 293582 | AT59: 645371 | AU59: 500000 | AV59: 110852 | AW59: 500000 | AX59: 254755 | AY59: 300000 | AZ59: 250580 | BA59: 300000 | BB59: 100000 | BC59: 177072 | BD59: 1000000 | BE59: 250000 | BF59: 100000 | BG59: 100000 | BH59: 100000 | BI59: 100000 | BJ59: 300000 | BK59: 300000 | BL59: 400000 | GF59: 0 | GG59: 0 | GH59: =MAX(CH59-$D$3,0) -> 0 | GI59: 0 | GJ59: 0 | GK59: 0 | GL59: 0 | GM59: 0 | GN59: 0 | GO59: 0 | GP59: 0 | GQ59: 0 | GR59: 0 | GS59: 0 | GT59: 0 | GU59: 0 | GV59: 0 | GW59: 0 | GX59: =MAX(CX59-$D$3,0) -> 0 | GY59: 0 | GZ59: 0 | HA59: 0 | HB59: 0 | HC59: 0 | HD59: 0 | HE59: 0 | HF59: 0 | HG59: 0 | HH59: 0 | HI59: 0 | HJ59: 0 | HK59: 0 | HL59: 0 | HM59: 0 | HN59: 0 | HO59: 0 | HP59: 0 | HQ59: 0 | HR59: 0 | HS59: 0 | HT59: 0 | HU59: 0 | HV59: 0 | HW59: 0 | HX59: 0 | HY59: 0 | HZ59: 0 | IA59: 0 | IB59: 0 | IC59: 0 | ID59: 0 | IE59: 0 | IF59: 0 | IG59: 0 | IH59: 0 | II59: 0 | IJ59: 0 | IK59: 0 | IL59: 0 | IM59: 0 | IN59: 0 | IO59: 0 | IP59: 0 | IQ59: 0 | IR59: 0 | IS59: 0 | IT59: 0 | IU59: 0 | IV59: 0 | IW59: 0 | IX59: 0 | IY59: 0 | IZ59: 0 | JA59: 0 | JB59: 0 | JC59: 0 | JD59: 0 | JE59: 0 | JF59: 0 | JG59: 0 | JH59: 0 | JI59: 0 | JJ59: 0 | JK59: 0 | JL59: 0 | JM59: 0 | JN59: 0 | JO59: 0 | JP59: 0 | JQ59: 0 | JR59: 0 | JS59: 0 | JT59: 0 | JU59: 0 | JV59: 0 | JW59: 0 | JX59: 0 | JY59: 0 | JZ59: 0 | KA59: 0 | KB59: 0
A60: 17587931 | B60: 61 | C60: 150000 | D60: 2000000 | E60: 100000 | F60: 282951 | G60: 300000 | H60: 100000 | I60: 200000 | J60: 216000 | K60: 150000 | L60: 200000 | M60: 200000 | N60: 100000 | O60: 110700 | P60: 300000 | Q60: 100000 | R60: 384089 | S60: 200000 | T60: 500000 | U60: 100000 | V60: 100000 | W60: 133423 | X60: 266847 | Y60: 125000 | Z60: 226360 | AA60: 200000 | AB60: 200000 | AC60: 200000 | AD60: 250000 | AE60: 100000 | AF60: 200000 | AG60: 100000 | AH60: 1000000 | AI60: 200000 | AJ60: 312913 | AK60: 250000 | AL60: 407413 | AM60: 205806 | AN60: 100000 | AO60: 500000 | AP60: 300000 | AQ60: 250000 | AR60: 300000 | AS60: 500000 | AT60: 250580 | AU60: 339202 | AV60: 400000 | AW60: 630000 | AX60: 100000 | AY60: 100000 | AZ60: 200000 | BA60: 200000 | BB60: 1000000 | BC60: 153150 | BD60: 100000 | BE60: 100000 | BF60: 240219 | BG60: 420000 | BH60: 306580 | BI60: 326698 | BJ60: 500000 | BK60: 100000 | GF60: 0 | GG60: 0 | GH60: 0 | GI60: 0 | GJ60: 0 | GK60: 0 | GL60: 0 | GM60: 0 | GN60: 0 | GO60: 0 | GP60: 0 | GQ60: 0 | GR60: 0 | GS60: 0 | GT60: 0 | GU60: 0 | GV60: 0 | GW60: 0 | GX60: 0 | GY60: 0 | GZ60: 0 | HA60: 0 | HB60: 0 | HC60: 0 | HD60: 0 | HE60: 0 | HF60: 0 | HG60: 0 | HH60: 0 | HI60: 0 | HJ60: 0 | HK60: 0 | HL60: 0 | HM60: 0 | HN60: 0 | HO60: 0 | HP60: 0 | HQ60: 0 | HR60: 0 | HS60: 0 | HT60: 0 | HU60: 0 | HV60: 0 | HW60: 0 | HX60: 0 | HY60: 0 | HZ60: 0 | IA60: 0 | IB60: 0 | IC60: 0 | ID60: 0 | IE60: 0 | IF60: 0 | IG60: 0 | IH60: 0 | II60: 0 | IJ60: 0 | IK60: 0 | IL60: 0 | IM60: 0 | IN60: 0 | IO60: 0 | IP60: 0 | IQ60: 0 | IR60: 0 | IS60: 0 | IT60: 0 | IU60: 0 | IV60: 0 | IW60: 0 | IX60: 0 | IY60: 0 | IZ60: 0 | JA60: 0 | JB60: 0 | JC60: 0 | JD60: 0 | JE60: 0 | JF60: 0 | JG60: 0 | JH60: 0 | JI60: 0 | JJ60: 0 | JK60: 0 | JL60: 0 | JM60: 0 | JN60: 0 | JO60: 0 | JP60: 0 | JQ60: 0 | JR60: 0 | JS60: 0 | JT60: 0 | JU60: 0 | JV60: 0 | JW60: 0 | JX60: 0 | JY60: 0 | JZ60: 0 | KA60: 0 | KB60: 0
A61: 17455908 | B61: 62 | C61: 100000 | D61: 300000 | E61: 100000 | F61: 1000000 | G61: 200000 | H61: 100000 | I61: 232470 | J61: 200000 | K61: 100000 | L61: 282951 | M61: 300000 | N61: 300000 | O61: 400000 | P61: 100000 | Q61: 300000 | R61: 100000 | S61: 200000 | T61: 500000 | U61: 300000 | V61: 154200 | W61: 150000 | X61: 250000 | Y61: 300000 | Z61: 133404 | AA61: 267225 | AB61: 2500000 | AC61: 255250 | AD61: 500000 | AE61: 153290 | AF61: 500000 | AG61: 282951 | AH61: 200000 | AI61: 200000 | AJ61: 500000 | AK61: 209400 | AL61: 500500 | AM61: 200000 | AN61: 135941 | AO61: 113180 | AP61: 200000 | AQ61: 250000 | AR61: 100000 | AS61: 250000 | AT61: 100000 | AU61: 100000 | AV61: 105000 | AW61: 150000 | AX61: 100100 | AY61: 300000 | AZ61: 100000 | BA61: 191127 | BB61: 200000 | BC61: 200000 | BD61: 300000 | BE61: 186000 | BF61: 379750 | BG61: 210000 | BH61: 500000 | BI61: 100000 | BJ61: 213169 | BK61: 500000 | BL61: 100000 | GF61: 0 | GG61: 0 | GH61: 0 | GI61: 0 | GJ61: 0 | GK61: 0 | GL61: 0 | GM61: 0 | GN61: 0 | GO61: 0 | GP61: 0 | GQ61: 0 | GR61: 0 | GS61: 0 | GT61: 0 | GU61: 0 | GV61: 0 | GW61: 0 | GX61: 0 | GY61: 0 | GZ61: 0 | HA61: 0 | HB61: 0 | HC61: 0 | HD61: 0 | HE61: 0 | HF61: 0 | HG61: 0 | HH61: 0 | HI61: 0 | HJ61: 0 | HK61: 0 | HL61: 0 | HM61: 0 | HN61: 0 | HO61: 0 | HP61: 0 | HQ61: 0 | HR61: 0 | HS61: 0 | HT61: 0 | HU61: 0 | HV61: 0 | HW61: 0 | HX61: 0 | HY61: 0 | HZ61: 0 | IA61: 0 | IB61: 0 | IC61: 0 | ID61: 0 | IE61: 0 | IF61: 0 | IG61: 0 | IH61: 0 | II61: 0 | IJ61: 0 | IK61: 0 | IL61: 0 | IM61: 0 | IN61: 0 | IO61: 0 | IP61: 0 | IQ61: 0 | IR61: 0 | IS61: 0 | IT61: 0 | IU61: 0 | IV61: 0 | IW61: 0 | IX61: 0 | IY61: 0 | IZ61: 0 | JA61: 0 | JB61: 0 | JC61: 0 | JD61: 0 | JE61: 0 | JF61: 0 | JG61: 0 | JH61: 0 | JI61: 0 | JJ61: 0 | JK61: 0 | JL61: 0 | JM61: 0 | JN61: 0 | JO61: 0 | JP61: 0 | JQ61: 0 | JR61: 0 | JS61: 0 | JT61: 0 | JU61: 0 | JV61: 0 | JW61: 0 | JX61: 0 | JY61: 0 | JZ61: 0 | KA61: 0 | KB61: 0
A62: 15292261 | B62: 65 | C62: 118266 | D62: 125165 | E62: 250000 | F62: 100000 | G62: 100000 | H62: 100000 | I62: 150000 | J62: 200000 | K62: 200000 | L62: 165600 | M62: 200000 | N62: 100000 | O62: 100000 | P62: 204200 | Q62: 135805 | R62: 200000 | S62: 100000 | T62: 135941 | U62: 135941 | V62: 250000 | W62: 200000 | X62: 200000 | Y62: 200000 | Z62: 1000000 | AA62: 200000 | AB62: 150000 | AC62: 100000 | AD62: 204642 | AE62: 509000 | AF62: 217600 | AG62: 221704 | AH62: 600000 | AI62: 200000 | AJ62: 200000 | AK62: 157050 | AL62: 100000 | AM62: 100000 | AN62: 213382 | AO62: 100000 | AP62: 200000 | AQ62: 1000000 | AR62: 100000 | AS62: 100000 | AT62: 500000 | AU62: 100000 | AV62: 1500000 | AW62: 100000 | AX62: 215000 | AY62: 500000 | AZ62: 200000 | BA62: 147754 | BB62: 100000 | BC62: 100000 | BD62: 100000 | BE62: 519500 | BF62: 200000 | BG62: 100000 | BH62: 180164 | BI62: 150000 | BJ62: 139747 | BK62: 150000 | BL62: 144000 | BM62: 400000 | BN62: 300000 | BO62: 101800 | GF62: 0 | GG62: 0 | GH62: 0 | GI62: 0 | GJ62: 0 | GK62: 0 | GL62: 0 | GM62: 0 | GN62: 0 | GO62: 0 | GP62: 0 | GQ62: 0 | GR62: 0 | GS62: 0 | GT62: 0 | GU62: 0 | GV62: 0 | GW62: 0 | GX62: 0 | GY62: 0 | GZ62: 0 | HA62: 0 | HB62: 0 | HC62: 0 | HD62: 0 | HE62: 0 | HF62: 0 | HG62: 0 | HH62: 0 | HI62: 0 | HJ62: 0 | HK62: 0 | HL62: 0 | HM62: 0 | HN62: 0 | HO62: 0 | HP62: 0 | HQ62: 0 | HR62: 0 | HS62: 0 | HT62: 0 | HU62: 0 | HV62: 0 | HW62: 0 | HX62: 0 | HY62: 0 | HZ62: 0 | IA62: 0 | IB62: 0 | IC62: 0 | ID62: 0 | IE62: 0 | IF62: 0 | IG62: 0 | IH62: 0 | II62: 0 | IJ62: 0 | IK62: 0 | IL62: 0 | IM62: 0 | IN62: 0 | IO62: 0 | IP62: 0 | IQ62: 0 | IR62: 0 | IS62: 0 | IT62: 0 | IU62: 0 | IV62: 0 | IW62: 0 | IX62: 0 | IY62: 0 | IZ62: 0 | JA62: 0 | JB62: 0 | JC62: 0 | JD62: 0 | JE62: 0 | JF62: 0 | JG62: 0 | JH62: 0 | JI62: 0 | JJ62: 0 | JK62: 0 | JL62: 0 | JM62: 0 | JN62: 0 | JO62: 0 | JP62: 0 | JQ62: 0 | JR62: 0 | JS62: 0 | JT62: 0 | JU62: 0 | JV62: 0 | JW62: 0 | JX62: 0 | JY62: 0 | JZ62: 0 | KA62: 0 | KB62: 0
A63: 21014916 | B63: 85 | C63: 105000 | D63: 250000 | E63: 276853 | F63: 250000 | G63: 166602 | H63: 102100 | I63: 100000 | J63: 100000 | K63: 100000 | L63: 245264 | M63: 100000 | N63: 600000 | O63: 100000 | P63: 1252903 | Q63: 500000 | R63: 311700 | S63: 122632 | T63: 100000 | U63: 100000 | V63: 300000 | W63: 250250 | X63: 150000 | Y63: 106585 | Z63: 300000 | AA63: 120110 | AB63: 400000 | AC63: 679700 | AD63: 600000 | AE63: 310000 | AF63: 183947 | AG63: 710000 | AH63: 100000 | AI63: 100000 | AJ63: 100000 | AK63: 100000 | AL63: 300000 | AM63: 300000 | AN63: 103900 | AO63: 152043 | AP63: 100000 | AQ63: 100000 | AR63: 100000 | AS63: 200000 | AT63: 100000 | AU63: 207800 | AV63: 250000 | AW63: 200000 | AX63: 637073 | AY63: 339541 | AZ63: 200000 | BA63: 135805 | BB63: 400000 | BC63: 1139560 | BD63: 636491 | BE63: 543917 | BF63: 174174 | BG63: 100000 | BH63: 100000 | BI63: 250000 | BJ63: 100000 | BK63: 200000 | BL63: 204200 | BM63: 200000 | BN63: 100000 | BO63: 100000 | BP63: 100000 | BQ63: 138626 | BR63: 400000 | BS63: 200000 | BT63: 155850 | BU63: 100000 | BV63: 100000 | BW63: 116349 | BX63: 200000 | BY63: 100000 | BZ63: 200000 | CA63: 250000 | CB63: 100000 | CC63: 200000 | CD63: 200000 | CE63: 400000 | CF63: 400000 | CG63: 300000 | CH63: 135941 | CI63: 150000 | GF63: 0 | GG63: 0 | GH63: 0 | GI63: 0 | GJ63: 0 | GK63: 0 | GL63: 0 | GM63: 0 | GN63: 0 | GO63: 0 | GP63: 0 | GQ63: 0 | GR63: 0 | GS63: 0 | GT63: 0 | GU63: 0 | GV63: 0 | GW63: 0 | GX63: 0 | GY63: 0 | GZ63: 0 | HA63: 0 | HB63: 0 | HC63: 0 | HD63: 0 | HE63: 0 | HF63: 0 | HG63: 0 | HH63: 0 | HI63: 0 | HJ63: 0 | HK63: 0 | HL63: 0 | HM63: 0 | HN63: 0 | HO63: 0 | HP63: 0 | HQ63: 0 | HR63: 0 | HS63: 0 | HT63: 0 | HU63: 0 | HV63: 0 | HW63: 0 | HX63: 0 | HY63: 0 | HZ63: 0 | IA63: 0 | IB63: 0 | IC63: 0 | ID63: 0 | IE63: 0 | IF63: 0 | IG63: 0 | IH63: 0 | II63: 0 | IJ63: 0 | IK63: 0 | IL63: 0 | IM63: 0 | IN63: 0 | IO63: 0 | IP63: 0 | IQ63: 0 | IR63: 0 | IS63: 0 | IT63: 0 | IU63: 0 | IV63: 0 | IW63: 0 | IX63: 0 | IY63: 0 | IZ63: 0 | JA63: 0 | JB63: 0 | JC63: 0 | JD63: 0 | JE63: 0 | JF63: 0 | JG63: 0 | JH63: 0 | JI63: 0 | JJ63: 0 | JK63: 0 | JL63: 0 | JM63: 0 | JN63: 0 | JO63: 0 | JP63: 0 | JQ63: 0 | JR63: 0 | JS63: 0 | JT63: 0 | JU63: 0 | JV63: 0 | JW63: 0 | JX63: 0 | JY63: 0 | JZ63: 0 | KA63: 0 | KB63: 0
A64: 17164191 | B64: 75 | C64: 100000 | D64: 200000 | E64: 100000 | F64: 1021000 | G64: 104700 | H64: 200000 | I64: 100000 | J64: 100000 | K64: 213382 | L64: 1021000 | M64: 100000 | N64: 300000 | O64: 271881 | P64: 100000 | Q64: 110741 | R64: 679700 | S64: 565900 | T64: 133423 | U64: 200000 | V64: 147754 | W64: 150000 | X64: 100000 | Y64: 100000 | Z64: 200000 | AA64: 100000 | AB64: 100000 | AC64: 200000 | AD64: 339541 | AE64: 108783 | AF64: 350000 | AG64: 113067 | AH64: 500000 | AI64: 500000 | AJ64: 100000 | AK64: 100000 | AL64: 203600 | AM64: 200000 | AN64: 200000 | AO64: 209400 | AP64: 250330 | AQ64: 254829 | AR64: 500000 | AS64: 350350 | AT64: 250000 | AU64: 100000 | AV64: 200000 | AW64: 150000 | AX64: 217000 | AY64: 108500 | AZ64: 100000 | BA64: 300000 | BB64: 100000 | BC64: 100000 | BD64: 185231 | BE64: 118266 | BF64: 170934 | BG64: 100000 | BH64: 300000 | BI64: 100000 | BJ64: 569781 | BK64: 160037 | BL64: 500000 | BM64: 125290 | BN64: 565124 | BO64: 180000 | BP64: 110700 | BQ64: 139747 | BR64: 210000 | BS64: 204200 | BT64: 200000 | BU64: 100000 | BV64: 100000 | BW64: 100000 | BX64: 200000 | BY64: 100000 | GF64: 0 | GG64: 0 | GH64: 0 | GI64: 0 | GJ64: 0 | GK64: 0 | GL64: 0 | GM64: 0 | GN64: 0 | GO64: 0 | GP64: 0 | GQ64: 0 | GR64: 0 | GS64: 0 | GT64: 0 | GU64: 0 | GV64: 0 | GW64: 0 | GX64: 0 | GY64: 0 | GZ64: 0 | HA64: 0 | HB64: 0 | HC64: 0 | HD64: 0 | HE64: 0 | HF64: 0 | HG64: 0 | HH64: 0 | HI64: 0 | HJ64: 0 | HK64: 0 | HL64: 0 | HM64: 0 | HN64: 0 | HO64: 0 | HP64: 0 | HQ64: 0 | HR64: 0 | HS64: 0 | HT64: 0 | HU64: 0 | HV64: 0 | HW64: 0 | HX64: 0 | HY64: 0 | HZ64: 0 | IA64: 0 | IB64: 0 | IC64: 0 | ID64: 0 | IE64: 0 | IF64: 0 | IG64: 0 | IH64: 0 | II64: 0 | IJ64: 0 | IK64: 0 | IL64: 0 | IM64: 0 | IN64: 0 | IO64: 0 | IP64: 0 | IQ64: 0 | IR64: 0 | IS64: 0 | IT64: 0 | IU64: 0 | IV64: 0 | IW64: 0 | IX64: 0 | IY64: 0 | IZ64: 0 | JA64: 0 | JB64: 0 | JC64: 0 | JD64: 0 | JE64: 0 | JF64: 0 | JG64: 0 | JH64: 0 | JI64: 0 | JJ64: 0 | JK64: 0 | JL64: 0 | JM64: 0 | JN64: 0 | JO64: 0 | JP64: 0 | JQ64: 0 | JR64: 0 | JS64: 0 | JT64: 0 | JU64: 0 | JV64: 0 | JW64: 0 | JX64: 0 | JY64: 0 | JZ64: 0 | KA64: 0 | KB64: 0
A65: 21673926 | B65: 64 | C65: 1000000 | D65: 200000 | E65: 100000 | F65: 100000 | G65: 200000 | H65: 100000 | I65: 100000 | J65: 100000 | K65: 200000 | L65: 110852 | M65: 408000 | N65: 100000 | O65: 500000 | P65: 375000 | Q65: 150000 | R65: 128319 | S65: 200000 | T65: 1085000 | U65: 100000 | V65: 100000 | W65: 100000 | X65: 226049 | Y65: 250000 | Z65: 100000 | AA65: 339541 | AB65: 106585 | AC65: 120110 | AD65: 3000000 | AE65: 159877 | AF65: 372000 | AG65: 553500 | AH65: 250000 | AI65: 100000 | AJ65: 150000 | AK65: 213588 | AL65: 2214000 | AM65: 500000 | AN65: 300000 | AO65: 500000 | AP65: 250000 | AQ65: 100000 | AR65: 200000 | AS65: 1000000 | AT65: 100000 | AU65: 590240 | AV65: 292699 | AW65: 120110 | AX65: 200000 | AY65: 100000 | AZ65: 100000 | BA65: 100000 | BB65: 100000 | BC65: 613160 | BD65: 100000 | BE65: 1000000 | BF65: 212164 | BG65: 100000 | BH65: 100000 | BI65: 150000 | BJ65: 100000 | BK65: 122632 | BL65: 500000 | BM65: 408400 | BN65: 102100 | GF65: 0 | GG65: 0 | GH65: 0 | GI65: 0 | GJ65: 0 | GK65: 0 | GL65: 0 | GM65: 0 | GN65: 0 | GO65: 0 | GP65: 0 | GQ65: 0 | GR65: 0 | GS65: 0 | GT65: 0 | GU65: 0 | GV65: 0 | GW65: 0 | GX65: 0 | GY65: 0 | GZ65: 0 | HA65: 0 | HB65: 0 | HC65: 0 | HD65: 0 | HE65: 0 | HF65: 0 | HG65: 0 | HH65: 0 | HI65: 0 | HJ65: 0 | HK65: 0 | HL65: 0 | HM65: 0 | HN65: 0 | HO65: 0 | HP65: 0 | HQ65: 0 | HR65: 0 | HS65: 0 | HT65: 0 | HU65: 0 | HV65: 0 | HW65: 0 | HX65: 0 | HY65: 0 | HZ65: 0 | IA65: 0 | IB65: 0 | IC65: 0 | ID65: 0 | IE65: 0 | IF65: 0 | IG65: 0 | IH65: 0 | II65: 0 | IJ65: 0 | IK65: 0 | IL65: 0 | IM65: 0 | IN65: 0 | IO65: 0 | IP65: 0 | IQ65: 0 | IR65: 0 | IS65: 0 | IT65: 0 | IU65: 0 | IV65: 0 | IW65: 0 | IX65: 0 | IY65: 0 | IZ65: 0 | JA65: 0 | JB65: 0 | JC65: 0 | JD65: 0 | JE65: 0 | JF65: 0 | JG65: 0 | JH65: 0 | JI65: 0 | JJ65: 0 | JK65: 0 | JL65: 0 | JM65: 0 | JN65: 0 | JO65: 0 | JP65: 0 | JQ65: 0 | JR65: 0 | JS65: 0 | JT65: 0 | JU65: 0 | JV65: 0 | JW65: 0 | JX65: 0 | JY65: 0 | JZ65: 0 | KA65: 0 | KB65: 0
A66: 17993661 | B66: 63 | C66: 209400 | D66: 300000 | E66: 200000 | F66: 100100 | G66: 500000 | H66: 300000 | I66: 100000 | J66: 110700 | K66: 213382 | L66: 200000 | M66: 100000 | N66: 100000 | O66: 100000 | P66: 100000 | Q66: 100000 | R66: 108800 | S66: 135805 | T66: 200000 | U66: 420000 | V66: 519500 | W66: 510500 | X66: 200000 | Y66: 100000 | Z66: 200000 | AA66: 100000 | AB66: 2000000 | AC66: 250000 | AD66: 200000 | AE66: 100000 | AF66: 100000 | AG66: 100000 | AH66: 300000 | AI66: 111068 | AJ66: 100000 | AK66: 192000 | AL66: 500000 | AM66: 150000 | AN66: 415695 | AO66: 100000 | AP66: 250000 | AQ66: 200000 | AR66: 981054 | AS66: 100000 | AT66: 100000 | AU66: 100000 | AV66: 750000 | AW66: 100000 | AX66: 108500 | AY66: 392957 | AZ66: 100000 | BA66: 200000 | BB66: 1000000 | BC66: 100000 | BD66: 102100 | BE66: 100000 | BF66: 300000 | BG66: 500000 | BH66: 400000 | BI66: 150000 | BJ66: 102100 | BK66: 310000 | BL66: 1400000 | BM66: 300000 | GF66: 0 | GG66: 0 | GH66: 0 | GI66: 0 | GJ66: 0 | GK66: 0 | GL66: 0 | GM66: 0 | GN66: 0 | GO66: 0 | GP66: 0 | GQ66: 0 | GR66: 0 | GS66: 0 | GT66: 0 | GU66: 0 | GV66: 0 | GW66: 0 | GX66: 0 | GY66: 0 | GZ66: 0 | HA66: 0 | HB66: 0 | HC66: 0 | HD66: 0 | HE66: 0 | HF66: 0 | HG66: 0 | HH66: 0 | HI66: 0 | HJ66: 0 | HK66: 0 | HL66: 0 | HM66: 0 | HN66: 0 | HO66: 0 | HP66: 0 | HQ66: 0 | HR66: 0 | HS66: 0 | HT66: 0 | HU66: 0 | HV66: 0 | HW66: 0 | HX66: 0 | HY66: 0 | HZ66: 0 | IA66: 0 | IB66: 0 | IC66: 0 | ID66: 0 | IE66: 0 | IF66: 0 | IG66: 0 | IH66: 0 | II66: 0 | IJ66: 0 | IK66: 0 | IL66: 0 | IM66: 0 | IN66: 0 | IO66: 0 | IP66: 0 | IQ66: 0 | IR66: 0 | IS66: 0 | IT66: 0 | IU66: 0 | IV66: 0 | IW66: 0 | IX66: 0 | IY66: 0 | IZ66: 0 | JA66: 0 | JB66: 0 | JC66: 0 | JD66: 0 | JE66: 0 | JF66: 0 | JG66: 0 | JH66: 0 | JI66: 0 | JJ66: 0 | JK66: 0 | JL66: 0 | JM66: 0 | JN66: 0 | JO66: 0 | JP66: 0 | JQ66: 0 | JR66: 0 | JS66: 0 | JT66: 0 | JU66: 0 | JV66: 0 | JW66: 0 | JX66: 0 | JY66: 0 | JZ66: 0 | KA66: 0 | KB66: 0
A67: 17055159 | B67: 74 | C67: 230000 | D67: 230000 | E67: 209400 | F67: 200000 | G67: 100000 | H67: 100000 | I67: 100000 | J67: 200000 | K67: 271881 | L67: 226360 | M67: 200000 | N67: 200000 | O67: 200000 | P67: 120110 | Q67: 432192 | R67: 200000 | S67: 517659 | T67: 191500 | U67: 100000 | V67: 186232 | W67: 1000000 | X67: 111068 | Y67: 150000 | Z67: 150000 | AA67: 250000 | AB67: 200000 | AC67: 250000 | AD67: 315000 | AE67: 210000 | AF67: 369757 | AG67: 300000 | AH67: 177072 | AI67: 1000000 | AJ67: 100000 | AK67: 100000 | AL67: 100000 | AM67: 100000 | AN67: 100000 | AO67: 250000 | AP67: 100000 | AQ67: 255250 | AR67: 300000 | AS67: 100000 | AT67: 100000 | AU67: 200000 | AV67: 200000 | AW67: 100000 | AX67: 200000 | AY67: 150000 | AZ67: 100000 | BA67: 162750 | BB67: 150000 | BC67: 106692 | BD67: 1440000 | BE67: 500000 | BF67: 200000 | BG67: 100000 | BH67: 200000 | BI67: 126000 | BJ67: 100000 | BK67: 100000 | BL67: 100000 | BM67: 100000 | BN67: 100000 | BO67: 500000 | BP67: 217000 | BQ67: 100000 | BR67: 100000 | BS67: 259750 | BT67: 200000 | BU67: 106082 | BV67: 133404 | BW67: 500000 | BX67: 200000 | GF67: 0 | GG67: 0 | GH67: 0 | GI67: 0 | GJ67: 0 | GK67: 0 | GL67: 0 | GM67: 0 | GN67: 0 | GO67: 0 | GP67: 0 | GQ67: 0 | GR67: 0 | GS67: 0 | GT67: 0 | GU67: 0 | GV67: 0 | GW67: 0 | GX67: 0 | GY67: 0 | GZ67: 0 | HA67: 0 | HB67: 0 | HC67: 0 | HD67: 0 | HE67: 0 | HF67: 0 | HG67: 0 | HH67: 0 | HI67: 0 | HJ67: 0 | HK67: 0 | HL67: 0 | HM67: 0 | HN67: 0 | HO67: 0 | HP67: 0 | HQ67: 0 | HR67: 0 | HS67: 0 | HT67: 0 | HU67: 0 | HV67: 0 | HW67: 0 | HX67: 0 | HY67: 0 | HZ67: 0 | IA67: 0 | IB67: 0 | IC67: 0 | ID67: 0 | IE67: 0 | IF67: 0 | IG67: 0 | IH67: 0 | II67: 0 | IJ67: 0 | IK67: 0 | IL67: 0 | IM67: 0 | IN67: 0 | IO67: 0 | IP67: 0 | IQ67: 0 | IR67: 0 | IS67: 0 | IT67: 0 | IU67: =MAX(EU67-$D$3,0) -> 0 | IV67: 0 | IW67: 0 | IX67: 0 | IY67: 0 | IZ67: 0 | JA67: 0 | JB67: 0 | JC67: 0 | JD67: 0 | JE67: 0 | JF67: 0 | JG67: 0 | JH67: 0 | JI67: 0 | JJ67: 0 | JK67: 0 | JL67: 0 | JM67: 0 | JN67: 0 | JO67: 0 | JP67: 0 | JQ67: 0 | JR67: 0 | JS67: 0 | JT67: 0 | JU67: 0 | JV67: 0 | JW67: 0 | JX67: 0 | JY67: 0 | JZ67: 0 | KA67: 0 | KB67: 0
A68: 11722422 | B68: 55 | C68: 100000 | D68: 250000 | E68: 100000 | F68: 100000 | G68: 420000 | H68: 230000 | I68: 325500 | J68: 100000 | K68: 500000 | L68: 500000 | M68: 100000 | N68: 200000 | O68: 200000 | P68: 100000 | Q68: 100000 | R68: 104700 | S68: 300000 | T68: 100000 | U68: 100000 | V68: 120110 | W68: 110700 | X68: 150000 | Y68: 110741 | Z68: 133404 | AA68: 100000 | AB68: 418800 | AC68: 100000 | AD68: 100000 | AE68: 250000 | AF68: 100000 | AG68: 200000 | AH68: 1000000 | AI68: 100000 | AJ68: 100000 | AK68: 150000 | AL68: 200000 | AM68: 400000 | AN68: 100000 | AO68: 100000 | AP68: 100000 | AQ68: 133404 | AR68: 100000 | AS68: 200000 | AT68: 200000 | AU68: 200000 | AV68: 500000 | AW68: 135941 | AX68: 100000 | AY68: 420000 | AZ68: 100000 | BA68: 271958 | BB68: 100000 | BC68: 100000 | BD68: 587164 | BE68: 500000 | GF68: 0 | GG68: 0 | GH68: 0 | GI68: 0 | GJ68: 0 | GK68: 0 | GL68: 0 | GM68: 0 | GN68: 0 | GO68: 0 | GP68: 0 | GQ68: 0 | GR68: 0 | GS68: 0 | GT68: 0 | GU68: 0 | GV68: 0 | GW68: 0 | GX68: 0 | GY68: 0 | GZ68: 0 | HA68: 0 | HB68: 0 | HC68: 0 | HD68: 0 | HE68: 0 | HF68: 0 | HG68: 0 | HH68: 0 | HI68: 0 | HJ68: 0 | HK68: 0 | HL68: 0 | HM68: 0 | HN68: 0 | HO68: 0 | HP68: 0 | HQ68: 0 | HR68: 0 | HS68: 0 | HT68: 0 | HU68: 0 | HV68: 0 | HW68: 0 | HX68: 0 | HY68: 0 | HZ68: 0 | IA68: 0 | IB68: 0 | IC68: 0 | ID68: 0 | IE68: 0 | IF68: 0 | IG68: 0 | IH68: 0 | II68: 0 | IJ68: 0 | IK68: 0 | IL68: 0 | IM68: 0 | IN68: 0 | IO68: 0 | IP68: 0 | IQ68: 0 | IR68: 0 | IS68: 0 | IT68: 0 | IU68: 0 | IV68: 0 | IW68: 0 | IX68: 0 | IY68: 0 | IZ68: 0 | JA68: 0 | JB68: 0 | JC68: 0 | JD68: 0 | JE68: 0 | JF68: 0 | JG68: 0 | JH68: 0 | JI68: 0 | JJ68: 0 | JK68: 0 | JL68: 0 | JM68: 0 | JN68: 0 | JO68: 0 | JP68: 0 | JQ68: 0 | JR68: 0 | JS68: 0 | JT68: 0 | JU68: 0 | JV68: 0 | JW68: 0 | JX68: 0 | JY68: 0 | JZ68: 0 | KA68: 0 | KB68: 0
A69: 23926609 | B69: 66 | C69: 500000 | D69: 679700 | E69: 200000 | F69: 200000 | G69: 100000 | H69: 500000 | I69: 479631 | J69: 200000 | K69: 217000 | L69: 100000 | M69: 100000 | N69: 100000 | O69: 100000 | P69: 250000 | Q69: 150000 | R69: 200000 | S69: 100000 | T69: 100000 | U69: 1163490 | V69: 400000 | W69: 128030 | X69: 3097082 | Y69: 120000 | Z69: 500000 | AA69: 100000 | AB69: 510500 | AC69: 1000000 | AD69: 1000000 | AE69: 432192 | AF69: 150000 | AG69: 150000 | AH69: 139747 | AI69: 100000 | AJ69: 500000 | AK69: 100000 | AL69: 339511 | AM69: 500000 | AN69: 1600368 | AO69: 306580 | AP69: 150000 | AQ69: 2000000 | AR69: 200000 | AS69: 300000 | AT69: 200000 | AU69: 125290 | AV69: 150000 | AW69: 326664 | AX69: 200000 | AY69: 400000 | AZ69: 200000 | BA69: 250000 | BB69: 213169 | BC69: 100000 | BD69: 200000 | BE69: 250000 | BF69: 100000 | BG69: 250000 | BH69: 100000 | BI69: 300000 | BJ69: 200000 | BK69: 240219 | BL69: 200000 | BM69: 100000 | BN69: 103632 | BO69: 203804 | BP69: 250000 | GF69: 0 | GG69: 0 | GH69: 0 | GI69: 0 | GJ69: 0 | GK69: 0 | GL69: 0 | GM69: 0 | GN69: 0 | GO69: 0 | GP69: 0 | GQ69: 0 | GR69: 0 | GS69: 0 | GT69: 0 | GU69: 0 | GV69: 0 | GW69: 0 | GX69: 0 | GY69: 0 | GZ69: 0 | HA69: 0 | HB69: 0 | HC69: 0 | HD69: 0 | HE69: 0 | HF69: 0 | HG69: 0 | HH69: 0 | HI69: 0 | HJ69: 0 | HK69: 0 | HL69: 0 | HM69: 0 | HN69: 0 | HO69: 0 | HP69: 0 | HQ69: 0 | HR69: 0 | HS69: 0 | HT69: 0 | HU69: 0 | HV69: 0 | HW69: 0 | HX69: 0 | HY69: 0 | HZ69: 0 | IA69: 0 | IB69: 0 | IC69: 0 | ID69: 0 | IE69: 0 | IF69: 0 | IG69: 0 | IH69: 0 | II69: 0 | IJ69: 0 | IK69: 0 | IL69: 0 | IM69: 0 | IN69: 0 | IO69: 0 | IP69: 0 | IQ69: 0 | IR69: 0 | IS69: 0 | IT69: 0 | IU69: 0 | IV69: 0 | IW69: 0 | IX69: 0 | IY69: 0 | IZ69: 0 | JA69: 0 | JB69: 0 | JC69: 0 | JD69: 0 | JE69: 0 | JF69: 0 | JG69: 0 | JH69: 0 | JI69: 0 | JJ69: 0 | JK69: 0 | JL69: 0 | JM69: 0 | JN69: 0 | JO69: 0 | JP69: 0 | JQ69: 0 | JR69: 0 | JS69: 0 | JT69: 0 | JU69: 0 | JV69: 0 | JW69: 0 | JX69: 0 | JY69: 0 | JZ69: 0 | KA69: 0 | KB69: 0
A70: =SUM(C70:GY70) -> 25291015 | B70: 65 | C70: 100000 | D70: 100000 | E70: 133423 | F70: 100000 | G70: 1000000 | H70: 831200 | I70: 160000 | J70: 140000 | K70: 200000 | L70: 100000 | M70: 300000 | N70: 108500 | O70: 250580 | P70: 200000 | Q70: 250000 | R70: 200000 | S70: 282562 | T70: 150000 | U70: 200000 | V70: 2500000 | W70: 220000 | X70: 100000 | Y70: 100000 | Z70: 100000 | AA70: 200000 | AB70: 230000 | AC70: 400000 | AD70: 300274 | AE70: 500000 | AF70: 4000000 | AG70: 2500000 | AH70: 200000 | AI70: 100000 | AJ70: 653396 | AK70: 100000 | AL70: 200000 | AM70: 1000000 | AN70: 100000 | AO70: 500000 | AP70: 1000000 | AQ70: 400000 | AR70: 290000 | AS70: 530410 | AT70: 100000 | AU70: 100000 | AV70: 113180 | AW70: 400000 | AX70: 139747 | AY70: 147902 | AZ70: 100000 | BA70: 209511 | BB70: 200000 | BC70: 250330 | BD70: 250000 | BE70: 100000 | BF70: 100000 | BG70: 100000 | BH70: 150000 | BI70: 100000 | BJ70: 100000 | BK70: 100000 | BL70: 1000000 | BM70: 200000 | BN70: 200000 | BO70: 100000 | GF70: =SUM(GG70:KF70) -> 0 | GG70: =MAX(C70-$D$3,0) -> 0 | GH70: 0 | GI70: 0 | GJ70: 0 | GK70: 0 | GL70: 0 | GM70: 0 | GN70: 0 | GO70: 0 | GP70: 0 | GQ70: 0 | GR70: 0 | GS70: 0 | GT70: 0 | GU70: 0 | GV70: 0 | GW70: 0 | GX70: 0 | GY70: 0 | GZ70: 0 | HA70: 0 | HB70: 0 | HC70: 0 | HD70: 0 | HE70: 0 | HF70: 0 | HG70: 0 | HH70: 0 | HI70: 0 | HJ70: 0 | HK70: 0 | HL70: 0 | HM70: 0 | HN70: 0 | HO70: 0 | HP70: 0 | HQ70: 0 | HR70: 0 | HS70: 0 | HT70: 0 | HU70: 0 | HV70: 0 | HW70: 0 | HX70: 0 | HY70: 0 | HZ70: 0 | IA70: 0 | IB70: 0 | IC70: 0 | ID70: 0 | IE70: 0 | IF70: 0 | IG70: 0 | IH70: 0 | II70: 0 | IJ70: 0 | IK70: 0 | IL70: 0 | IM70: 0 | IN70: 0 | IO70: 0 | IP70: 0 | IQ70: 0 | IR70: 0 | IS70: 0 | IT70: 0 | IU70: 0 | IV70: 0 | IW70: 0 | IX70: 0 | IY70: 0 | IZ70: 0 | JA70: 0 | JB70: 0 | JC70: 0 | JD70: 0 | JE70: 0 | JF70: 0 | JG70: 0 | JH70: 0 | JI70: 0 | JJ70: 0 | JK70: 0 | JL70: 0 | JM70: 0 | JN70: 0 | JO70: 0 | JP70: 0 | JQ70: 0 | JR70: 0 | JS70: 0 | JT70: 0 | JU70: 0 | JV70: 0 | JW70: 0 | JX70: 0 | JY70: 0 | JZ70: 0 | KA70: 0 | KB70: 0
A71: 19882020 | B71: 72 | C71: 500000 | D71: 166050 | E71: 300000 | F71: 250000 | G71: 542500 | H71: 300000 | I71: 306300 | J71: 271250 | K71: 110700 | L71: 400000 | M71: 500000 | N71: 250000 | O71: 221704 | P71: 200000 | Q71: 200000 | R71: 100000 | S71: 100000 | T71: 300000 | U71: 100000 | V71: 200000 | W71: 100000 | X71: 100000 | Y71: 300000 | Z71: 100000 | AA71: 300000 | AB71: 110700 | AC71: 300000 | AD71: 100000 | AE71: 100000 | AF71: 150000 | AG71: 250000 | AH71: 200200 | AI71: 450000 | AJ71: 100000 | AK71: 250000 | AL71: 300000 | AM71: 154200 | AN71: 1000000 | AO71: 1000000 | AP71: 100000 | AQ71: 300000 | AR71: 250000 | AS71: 113067 | AT71: 135941 | AU71: 500000 | AV71: 332100 | AW71: 100000 | AX71: 300000 | AY71: 100000 | AZ71: 110000 | BA71: 100000 | BB71: 100000 | BC71: 120000 | BD71: 800000 | BE71: 1000000 | BF71: 100000 | BG71: 200000 | BH71: 150000 | BI71: 222136 | BJ71: 100000 | BK71: 300000 | BL71: 204200 | BM71: 1500000 | BN71: 300000 | BO71: 416667 | BP71: 100000 | BQ71: 200000 | BR71: 500000 | BS71: 135805 | BT71: 108500 | BU71: 100000 | BV71: 100000 | GF71: 0 | GG71: 0 | GH71: 0 | GI71: 0 | GJ71: 0 | GK71: 0 | GL71: 0 | GM71: 0 | GN71: 0 | GO71: 0 | GP71: 0 | GQ71: 0 | GR71: 0 | GS71: 0 | GT71: 0 | GU71: 0 | GV71: 0 | GW71: 0 | GX71: 0 | GY71: 0 | GZ71: 0 | HA71: 0 | HB71: 0 | HC71: 0 | HD71: 0 | HE71: 0 | HF71: 0 | HG71: 0 | HH71: 0 | HI71: 0 | HJ71: 0 | HK71: 0 | HL71: 0 | HM71: 0 | HN71: 0 | HO71: 0 | HP71: 0 | HQ71: 0 | HR71: 0 | HS71: 0 | HT71: 0 | HU71: 0 | HV71: 0 | HW71: 0 | HX71: 0 | HY71: 0 | HZ71: 0 | IA71: 0 | IB71: 0 | IC71: 0 | ID71: 0 | IE71: 0 | IF71: 0 | IG71: 0 | IH71: 0 | II71: 0 | IJ71: 0 | IK71: 0 | IL71: 0 | IM71: 0 | IN71: 0 | IO71: 0 | IP71: 0 | IQ71: 0 | IR71: 0 | IS71: 0 | IT71: 0 | IU71: 0 | IV71: 0 | IW71: 0 | IX71: 0 | IY71: 0 | IZ71: 0 | JA71: 0 | JB71: 0 | JC71: 0 | JD71: 0 | JE71: 0 | JF71: 0 | JG71: 0 | JH71: 0 | JI71: 0 | JJ71: 0 | JK71: 0 | JL71: 0 | JM71: 0 | JN71: 0 | JO71: 0 | JP71: 0 | JQ71: 0 | JR71: 0 | JS71: 0 | JT71: 0 | JU71: 0 | JV71: 0 | JW71: 0 | JX71: 0 | JY71: 0 | JZ71: 0 | KA71: 0 | KB71: 0
A72: 16649920 | B72: 64 | C72: 150000 | D72: 500000 | E72: 100000 | F72: 120110 | G72: 106585 | H72: 100000 | I72: 1000000 | J72: 100000 | K72: 100000 | L72: 100000 | M72: 500000 | N72: 133404 | O72: 100000 | P72: 250000 | Q72: 100000 | R72: 200000 | S72: 100000 | T72: 219357 | U72: 300000 | V72: 150000 | W72: 450000 | X72: 200000 | Y72: 100000 | Z72: 500000 | AA72: 698732 | AB72: 400000 | AC72: 100000 | AD72: 400000 | AE72: 500000 | AF72: 200000 | AG72: 100000 | AH72: 162750 | AI72: 150000 | AJ72: 221400 | AK72: 100000 | AL72: 439740 | AM72: 100000 | AN72: 326350 | AO72: 150000 | AP72: 132000 | AQ72: 117433 | AR72: 500000 | AS72: 150000 | AT72: 250000 | AU72: 1251651 | AV72: 200000 | AW72: 250000 | AX72: 803851 | AY72: 200000 | AZ72: 100000 | BA72: 100000 | BB72: 100000 | BC72: 300000 | BD72: 610800 | BE72: 400000 | BF72: 157050 | BG72: 100000 | BH72: 250000 | BI72: 110000 | BJ72: 200000 | BK72: 207800 | BL72: 100000 | BM72: 180907 | BN72: 150000 | GF72: 0 | GG72: 0 | GH72: 0 | GI72: 0 | GJ72: 0 | GK72: 0 | GL72: 0 | GM72: 0 | GN72: 0 | GO72: 0 | GP72: 0 | GQ72: 0 | GR72: 0 | GS72: 0 | GT72: 0 | GU72: 0 | GV72: 0 | GW72: 0 | GX72: 0 | GY72: 0 | GZ72: 0 | HA72: 0 | HB72: 0 | HC72: 0 | HD72: 0 | HE72: 0 | HF72: 0 | HG72: 0 | HH72: 0 | HI72: 0 | HJ72: 0 | HK72: 0 | HL72: 0 | HM72: 0 | HN72: 0 | HO72: 0 | HP72: 0 | HQ72: 0 | HR72: 0 | HS72: 0 | HT72: 0 | HU72: 0 | HV72: 0 | HW72: 0 | HX72: 0 | HY72: 0 | HZ72: 0 | IA72: 0 | IB72: 0 | IC72: 0 | ID72: 0 | IE72: 0 | IF72: 0 | IG72: 0 | IH72: 0 | II72: 0 | IJ72: 0 | IK72: 0 | IL72: 0 | IM72: 0 | IN72: 0 | IO72: 0 | IP72: 0 | IQ72: 0 | IR72: 0 | IS72: 0 | IT72: 0 | IU72: 0 | IV72: 0 | IW72: 0 | IX72: 0 | IY72: 0 | IZ72: 0 | JA72: 0 | JB72: 0 | JC72: 0 | JD72: 0 | JE72: 0 | JF72: 0 | JG72: 0 | JH72: 0 | JI72: 0 | JJ72: 0 | JK72: 0 | JL72: 0 | JM72: 0 | JN72: 0 | JO72: 0 | JP72: 0 | JQ72: 0 | JR72: 0 | JS72: 0 | JT72: 0 | JU72: 0 | JV72: 0 | JW72: 0 | JX72: 0 | JY72: 0 | JZ72: 0 | KA72: 0 | KB72: 0
A73: 16868530 | B73: 60 | C73: 200000 | D73: 500000 | E73: 350000 | F73: 200000 | G73: 200000 | H73: 100000 | I73: 200000 | J73: 152043 | K73: 100000 | L73: 178872 | M73: 200000 | N73: 147902 | O73: 100000 | P73: 318246 | Q73: 300000 | R73: 115200 | S73: 407200 | T73: 100000 | U73: 271250 | V73: 400000 | W73: 150000 | X73: 200000 | Y73: 800000 | Z73: 593449 | AA73: 100000 | AB73: 190840 | AC73: 200000 | AD73: 250000 | AE73: 100000 | AF73: 128798 | AG73: 200000 | AH73: 100000 | AI73: 100000 | AJ73: 100000 | AK73: 1000000 | AL73: 150000 | AM73: 200000 | AN73: 200000 | AO73: 922250 | AP73: 500000 | AQ73: 500000 | AR73: 100000 | AS73: 1000000 | AT73: 200000 | AU73: 100000 | AV73: 100000 | AW73: 1039000 | AX73: 100000 | AY73: 349048 | AZ73: 320000 | BA73: 125165 | BB73: 100000 | BC73: 100000 | BD73: 210000 | BE73: 110700 | BF73: 113067 | BG73: 150000 | BH73: 325500 | BI73: 100000 | BJ73: 1000000 | GF73: 0 | GG73: 0 | GH73: 0 | GI73: 0 | GJ73: 0 | GK73: 0 | GL73: 0 | GM73: 0 | GN73: 0 | GO73: 0 | GP73: 0 | GQ73: 0 | GR73: 0 | GS73: 0 | GT73: 0 | GU73: 0 | GV73: 0 | GW73: 0 | GX73: 0 | GY73: 0 | GZ73: 0 | HA73: 0 | HB73: 0 | HC73: 0 | HD73: 0 | HE73: 0 | HF73: 0 | HG73: 0 | HH73: 0 | HI73: 0 | HJ73: 0 | HK73: 0 | HL73: 0 | HM73: 0 | HN73: 0 | HO73: 0 | HP73: 0 | HQ73: 0 | HR73: 0 | HS73: 0 | HT73: 0 | HU73: 0 | HV73: 0 | HW73: 0 | HX73: 0 | HY73: 0 | HZ73: 0 | IA73: 0 | IB73: 0 | IC73: 0 | ID73: 0 | IE73: 0 | IF73: 0 | IG73: 0 | IH73: 0 | II73: 0 | IJ73: 0 | IK73: 0 | IL73: 0 | IM73: 0 | IN73: 0 | IO73: 0 | IP73: 0 | IQ73: 0 | IR73: 0 | IS73: 0 | IT73: 0 | IU73: 0 | IV73: 0 | IW73: 0 | IX73: 0 | IY73: 0 | IZ73: 0 | JA73: 0 | JB73: 0 | JC73: 0 | JD73: 0 | JE73: 0 | JF73: 0 | JG73: 0 | JH73: 0 | JI73: 0 | JJ73: 0 | JK73: 0 | JL73: 0 | JM73: 0 | JN73: 0 | JO73: 0 | JP73: 0 | JQ73: 0 | JR73: 0 | JS73: 0 | JT73: 0 | JU73: 0 | JV73: 0 | JW73: 0 | JX73: 0 | JY73: 0 | JZ73: 0 | KA73: 0 | KB73: 0
A74: 18232776 | B74: 68 | C74: 250000 | D74: 2500000 | E74: 1000000 | F74: 100000 | G74: 168000 | H74: 100000 | I74: 100000 | J74: 100000 | K74: 108700 | L74: 200000 | M74: 130679 | N74: 1085000 | O74: 100000 | P74: 313226 | Q74: 116349 | R74: 106692 | S74: 103900 | T74: 200000 | U74: 200000 | V74: 113025 | W74: 150000 | X74: 100000 | Y74: 100000 | Z74: 100000 | AA74: 100000 | AB74: 203910 | AC74: 100000 | AD74: 200000 | AE74: 100000 | AF74: 382244 | AG74: 1000000 | AH74: 500000 | AI74: 300000 | AJ74: 118048 | AK74: 100000 | AL74: 300000 | AM74: 200000 | AN74: 1000000 | AO74: 180164 | AP74: 200000 | AQ74: 250000 | AR74: 250000 | AS74: 250000 | AT74: 100000 | AU74: 226360 | AV74: 100000 | AW74: 500000 | AX74: 200000 | AY74: 108000 | AZ74: 100000 | BA74: 100000 | BB74: 122632 | BC74: 200000 | BD74: 160037 | BE74: 160037 | BF74: 426764 | BG74: 150000 | BH74: 100000 | BI74: 250000 | BJ74: 200000 | BK74: 360000 | BL74: 150000 | BM74: 135805 | BN74: 100000 | BO74: 133423 | BP74: 200000 | BQ74: 569781 | BR74: 100000 | GF74: 0 | GG74: 0 | GH74: 0 | GI74: 0 | GJ74: 0 | GK74: 0 | GL74: 0 | GM74: 0 | GN74: 0 | GO74: 0 | GP74: 0 | GQ74: 0 | GR74: 0 | GS74: 0 | GT74: 0 | GU74: 0 | GV74: 0 | GW74: =MAX(CW74-$D$3,0) -> 0 | GX74: 0 | GY74: 0 | GZ74: 0 | HA74: 0 | HB74: 0 | HC74: 0 | HD74: 0 | HE74: 0 | HF74: 0 | HG74: 0 | HH74: 0 | HI74: 0 | HJ74: 0 | HK74: 0 | HL74: 0 | HM74: 0 | HN74: 0 | HO74: 0 | HP74: 0 | HQ74: 0 | HR74: 0 | HS74: 0 | HT74: 0 | HU74: 0 | HV74: 0 | HW74: 0 | HX74: 0 | HY74: 0 | HZ74: 0 | IA74: 0 | IB74: 0 | IC74: 0 | ID74: 0 | IE74: 0 | IF74: 0 | IG74: 0 | IH74: 0 | II74: 0 | IJ74: 0 | IK74: 0 | IL74: 0 | IM74: 0 | IN74: 0 | IO74: 0 | IP74: 0 | IQ74: 0 | IR74: 0 | IS74: 0 | IT74: 0 | IU74: 0 | IV74: 0 | IW74: 0 | IX74: 0 | IY74: 0 | IZ74: 0 | JA74: 0 | JB74: 0 | JC74: 0 | JD74: 0 | JE74: 0 | JF74: 0 | JG74: 0 | JH74: 0 | JI74: 0 | JJ74: 0 | JK74: 0 | JL74: 0 | JM74: 0 | JN74: 0 | JO74: 0 | JP74: 0 | JQ74: 0 | JR74: 0 | JS74: 0 | JT74: 0 | JU74: 0 | JV74: 0 | JW74: 0 | JX74: 0 | JY74: 0 | JZ74: 0 | KA74: 0 | KB74: 0
A75: 14935574 | B75: 61 | C75: 250000 | D75: 100000 | E75: 100000 | F75: 200000 | G75: 500000 | H75: 590240 | I75: 200000 | J75: 200000 | K75: 212624 | L75: 207800 | M75: 106082 | N75: 106692 | O75: 135941 | P75: 310000 | Q75: 255250 | R75: 368856 | S75: 135941 | T75: 139747 | U75: 125165 | V75: 122632 | W75: 116349 | X75: 200000 | Y75: 658912 | Z75: 250000 | AA75: 100000 | AB75: 200000 | AC75: 100000 | AD75: 200000 | AE75: 100000 | AF75: 250000 | AG75: 100000 | AH75: 200000 | AI75: 100000 | AJ75: 100000 | AK75: 290000 | AL75: 400000 | AM75: 108500 | AN75: 217000 | AO75: 362857 | AP75: 200000 | AQ75: 108783 | AR75: 100000 | AS75: 1001000 | AT75: 500000 | AU75: 1000000 | AV75: 100000 | AW75: 150000 | AX75: 200000 | AY75: 200000 | AZ75: 150000 | BA75: 565335 | BB75: 232698 | BC75: 227912 | BD75: 100000 | BE75: 100000 | BF75: 339511 | BG75: 500000 | BH75: 300000 | BI75: 139747 | BJ75: 100000 | BK75: 200000 | GF75: 0 | GG75: 0 | GH75: =MAX(CH75-$D$3,0) -> 0 | GI75: 0 | GJ75: 0 | GK75: 0 | GL75: 0 | GM75: 0 | GN75: 0 | GO75: 0 | GP75: 0 | GQ75: 0 | GR75: 0 | GS75: 0 | GT75: 0 | GU75: 0 | GV75: 0 | GW75: 0 | GX75: 0 | GY75: 0 | GZ75: 0 | HA75: 0 | HB75: 0 | HC75: 0 | HD75: 0 | HE75: 0 | HF75: 0 | HG75: 0 | HH75: 0 | HI75: 0 | HJ75: 0 | HK75: 0 | HL75: 0 | HM75: 0 | HN75: 0 | HO75: 0 | HP75: 0 | HQ75: 0 | HR75: 0 | HS75: 0 | HT75: 0 | HU75: 0 | HV75: 0 | HW75: 0 | HX75: 0 | HY75: 0 | HZ75: 0 | IA75: 0 | IB75: 0 | IC75: 0 | ID75: 0 | IE75: 0 | IF75: 0 | IG75: 0 | IH75: 0 | II75: 0 | IJ75: 0 | IK75: 0 | IL75: 0 | IM75: 0 | IN75: 0 | IO75: 0 | IP75: 0 | IQ75: 0 | IR75: 0 | IS75: 0 | IT75: 0 | IU75: 0 | IV75: 0 | IW75: 0 | IX75: 0 | IY75: 0 | IZ75: 0 | JA75: 0 | JB75: 0 | JC75: 0 | JD75: 0 | JE75: 0 | JF75: 0 | JG75: 0 | JH75: 0 | JI75: 0 | JJ75: 0 | JK75: 0 | JL75: 0 | JM75: 0 | JN75: 0 | JO75: 0 | JP75: 0 | JQ75: 0 | JR75: 0 | JS75: 0 | JT75: 0 | JU75: 0 | JV75: 0 | JW75: 0 | JX75: 0 | JY75: 0 | JZ75: 0 | KA75: 0 | KB75: 0
A76: 19226793 | B76: 55 | C76: 200000 | D76: 100000 | E76: 100000 | F76: 1000000 | G76: 500000 | H76: 2000000 | I76: 217000 | J76: 108500 | K76: 250250 | L76: 255250 | M76: 100000 | N76: 349367 | O76: 104755 | P76: 100000 | Q76: 300000 | R76: 2597500 | S76: 150000 | T76: 1500000 | U76: 500000 | V76: 100000 | W76: 2000000 | X76: 300000 | Y76: 200200 | Z76: 100000 | AA76: 100000 | AB76: 255250 | AC76: 250000 | AD76: 100000 | AE76: 120110 | AF76: 100000 | AG76: 150000 | AH76: 113180 | AI76: 150000 | AJ76: 400000 | AK76: 102100 | AL76: 500000 | AM76: 128319 | AN76: 400000 | AO76: 140000 | AP76: 100000 | AQ76: 500000 | AR76: 126000 | AS76: 188449 | AT76: 150000 | AU76: 152700 | AV76: 183947 | AW76: 150000 | AX76: 150000 | AY76: 250000 | AZ76: 100000 | BA76: 309404 | BB76: 271609 | BC76: 100000 | BD76: 250000 | BE76: 102903 | GF76: 0 | GG76: 0 | GH76: 0 | GI76: 0 | GJ76: 0 | GK76: 0 | GL76: 0 | GM76: 0 | GN76: 0 | GO76: 0 | GP76: 0 | GQ76: 0 | GR76: 0 | GS76: 0 | GT76: 0 | GU76: 0 | GV76: 0 | GW76: 0 | GX76: 0 | GY76: 0 | GZ76: 0 | HA76: 0 | HB76: 0 | HC76: 0 | HD76: 0 | HE76: 0 | HF76: 0 | HG76: 0 | HH76: 0 | HI76: 0 | HJ76: 0 | HK76: 0 | HL76: 0 | HM76: 0 | HN76: 0 | HO76: 0 | HP76: 0 | HQ76: 0 | HR76: 0 | HS76: 0 | HT76: 0 | HU76: 0 | HV76: 0 | HW76: 0 | HX76: 0 | HY76: 0 | HZ76: 0 | IA76: 0 | IB76: 0 | IC76: 0 | ID76: 0 | IE76: 0 | IF76: =MAX(EF76-$D$3,0) -> 0 | IG76: 0 | IH76: 0 | II76: 0 | IJ76: 0 | IK76: 0 | IL76: 0 | IM76: 0 | IN76: 0 | IO76: 0 | IP76: 0 | IQ76: 0 | IR76: 0 | IS76: 0 | IT76: 0 | IU76: 0 | IV76: 0 | IW76: 0 | IX76: 0 | IY76: 0 | IZ76: 0 | JA76: 0 | JB76: 0 | JC76: 0 | JD76: 0 | JE76: 0 | JF76: 0 | JG76: 0 | JH76: 0 | JI76: 0 | JJ76: 0 | JK76: 0 | JL76: 0 | JM76: 0 | JN76: 0 | JO76: 0 | JP76: 0 | JQ76: 0 | JR76: 0 | JS76: 0 | JT76: 0 | JU76: 0 | JV76: 0 | JW76: 0 | JX76: 0 | JY76: 0 | JZ76: 0 | KA76: 0 | KB76: 0
A77: 20738546 | B77: 73 | C77: 200000 | D77: 500000 | E77: 1000000 | F77: 100000 | G77: 1000000 | H77: 100000 | I77: 250000 | J77: 100000 | K77: 282951 | L77: 100000 | M77: 200000 | N77: 108500 | O77: 300000 | P77: 100000 | Q77: 400000 | R77: 203600 | S77: 500000 | T77: 100000 | U77: 250330 | V77: 312913 | W77: 307380 | X77: 200000 | Y77: 1000000 | Z77: 200000 | AA77: 100000 | AB77: 139747 | AC77: 200000 | AD77: 200000 | AE77: 271881 | AF77: 300000 | AG77: 300000 | AH77: 300000 | AI77: 339511 | AJ77: 500000 | AK77: 1000000 | AL77: 100000 | AM77: 100000 | AN77: 300000 | AO77: 500000 | AP77: 462600 | AQ77: 600000 | AR77: 122632 | AS77: 100000 | AT77: 300000 | AU77: 100000 | AV77: 120110 | AW77: 100000 | AX77: 125290 | AY77: 400000 | AZ77: 200000 | BA77: 150000 | BB77: 100000 | BC77: 300000 | BD77: 200000 | BE77: 150000 | BF77: 100000 | BG77: 100000 | BH77: 300000 | BI77: 100000 | BJ77: 166278 | BK77: 250000 | BL77: 230325 | BM77: 120000 | BN77: 500000 | BO77: 300000 | BP77: 300000 | BQ77: 760220 | BR77: 108800 | BS77: 500000 | BT77: 169537 | BU77: 500000 | BV77: 135941 | BW77: 100000 | GF77: 0 | GG77: 0 | GH77: 0 | GI77: 0 | GJ77: 0 | GK77: 0 | GL77: 0 | GM77: 0 | GN77: 0 | GO77: 0 | GP77: 0 | GQ77: 0 | GR77: 0 | GS77: 0 | GT77: 0 | GU77: 0 | GV77: 0 | GW77: 0 | GX77: 0 | GY77: 0 | GZ77: 0 | HA77: =MAX(DA77-$D$3,0) -> 0 | HB77: 0 | HC77: 0 | HD77: 0 | HE77: 0 | HF77: 0 | HG77: 0 | HH77: 0 | HI77: 0 | HJ77: 0 | HK77: 0 | HL77: 0 | HM77: 0 | HN77: 0 | HO77: 0 | HP77: 0 | HQ77: 0 | HR77: 0 | HS77: 0 | HT77: 0 | HU77: 0 | HV77: 0 | HW77: 0 | HX77: 0 | HY77: 0 | HZ77: 0 | IA77: 0 | IB77: 0 | IC77: =MAX(EC77-$D$3,0) -> 0 | ID77: 0 | IE77: 0 | IF77: 0 | IG77: 0 | IH77: 0 | II77: 0 | IJ77: 0 | IK77: 0 | IL77: 0 | IM77: 0 | IN77: 0 | IO77: 0 | IP77: 0 | IQ77: 0 | IR77: 0 | IS77: 0 | IT77: 0 | IU77: 0 | IV77: 0 | IW77: 0 | IX77: 0 | IY77: 0 | IZ77: 0 | JA77: 0 | JB77: 0 | JC77: 0 | JD77: 0 | JE77: 0 | JF77: 0 | JG77: 0 | JH77: 0 | JI77: 0 | JJ77: 0 | JK77: 0 | JL77: 0 | JM77: 0 | JN77: 0 | JO77: 0 | JP77: 0 | JQ77: 0 | JR77: 0 | JS77: 0 | JT77: 0 | JU77: 0 | JV77: 0 | JW77: 0 | JX77: 0 | JY77: 0 | JZ77: 0 | KA77: 0 | KB77: 0
A78: 12206691 | B78: 56 | C78: 100000 | D78: 100000 | E78: 100000 | F78: 226049 | G78: 128319 | H78: 500000 | I78: 500000 | J78: 125000 | K78: 150000 | L78: 500000 | M78: 500000 | N78: 100000 | O78: 266462 | P78: 271881 | Q78: 230000 | R78: 100000 | S78: 100000 | T78: 147902 | U78: 113180 | V78: 400000 | W78: 100100 | X78: 100000 | Y78: 400000 | Z78: 150000 | AA78: 100000 | AB78: 200000 | AC78: 200000 | AD78: 150000 | AE78: 113180 | AF78: 420000 | AG78: 300000 | AH78: 100000 | AI78: 100000 | AJ78: 304089 | AK78: 100000 | AL78: 108500 | AM78: 300000 | AN78: 250000 | AO78: 108500 | AP78: 100000 | AQ78: 250000 | AR78: 300000 | AS78: 200000 | AT78: 100100 | AU78: 300000 | AV78: 500000 | AW78: 150000 | AX78: 100000 | AY78: 150000 | AZ78: 500000 | BA78: 100000 | BB78: 150000 | BC78: 400000 | BD78: 350000 | BE78: 130679 | BF78: 162750 | GF78: 0 | GG78: 0 | GH78: 0 | GI78: 0 | GJ78: 0 | GK78: 0 | GL78: 0 | GM78: 0 | GN78: 0 | GO78: 0 | GP78: 0 | GQ78: 0 | GR78: 0 | GS78: 0 | GT78: 0 | GU78: 0 | GV78: 0 | GW78: 0 | GX78: 0 | GY78: 0 | GZ78: 0 | HA78: 0 | HB78: 0 | HC78: 0 | HD78: 0 | HE78: 0 | HF78: 0 | HG78: 0 | HH78: 0 | HI78: 0 | HJ78: 0 | HK78: 0 | HL78: 0 | HM78: 0 | HN78: 0 | HO78: 0 | HP78: 0 | HQ78: 0 | HR78: 0 | HS78: 0 | HT78: 0 | HU78: 0 | HV78: 0 | HW78: 0 | HX78: 0 | HY78: 0 | HZ78: 0 | IA78: 0 | IB78: 0 | IC78: 0 | ID78: 0 | IE78: 0 | IF78: 0 | IG78: 0 | IH78: 0 | II78: 0 | IJ78: 0 | IK78: 0 | IL78: 0 | IM78: 0 | IN78: 0 | IO78: 0 | IP78: 0 | IQ78: 0 | IR78: 0 | IS78: 0 | IT78: 0 | IU78: 0 | IV78: 0 | IW78: 0 | IX78: 0 | IY78: 0 | IZ78: 0 | JA78: 0 | JB78: 0 | JC78: 0 | JD78: 0 | JE78: 0 | JF78: 0 | JG78: 0 | JH78: 0 | JI78: 0 | JJ78: 0 | JK78: 0 | JL78: 0 | JM78: 0 | JN78: 0 | JO78: 0 | JP78: 0 | JQ78: 0 | JR78: 0 | JS78: 0 | JT78: 0 | JU78: 0 | JV78: 0 | JW78: 0 | JX78: 0 | JY78: 0 | JZ78: 0 | KA78: 0 | KB78: 0
A79: 15715507 | B79: 59 | C79: 276750 | D79: 100000 | E79: 100000 | F79: 100000 | G79: 150000 | H79: 100000 | I79: 200000 | J79: 1477550 | K79: 200000 | L79: 100000 | M79: 100000 | N79: 200000 | O79: 150000 | P79: 100000 | Q79: 200200 | R79: 200000 | S79: 100000 | T79: 510500 | U79: 100000 | V79: 300000 | W79: 213068 | X79: 500000 | Y79: 626453 | Z79: 100000 | AA79: 138249 | AB79: 500000 | AC79: 100000 | AD79: 100000 | AE79: 150000 | AF79: 118048 | AG79: 135941 | AH79: 118048 | AI79: 1500000 | AJ79: 193198 | AK79: 1000000 | AL79: 102100 | AM79: 125000 | AN79: 120110 | AO79: 750000 | AP79: 100000 | AQ79: 200000 | AR79: 150000 | AS79: 500000 | AT79: 100000 | AU79: 250000 | AV79: 100000 | AW79: 100000 | AX79: 100000 | AY79: 100000 | AZ79: 100000 | BA79: 150000 | BB79: 100000 | BC79: 500000 | BD79: 250330 | BE79: 147902 | BF79: 106082 | BG79: 105978 | BH79: 200000 | BI79: 1000000 | GF79: 0 | GG79: 0 | GH79: 0 | GI79: 0 | GJ79: 0 | GK79: 0 | GL79: 0 | GM79: 0 | GN79: 0 | GO79: 0 | GP79: 0 | GQ79: 0 | GR79: 0 | GS79: 0 | GT79: 0 | GU79: 0 | GV79: 0 | GW79: 0 | GX79: 0 | GY79: 0 | GZ79: 0 | HA79: 0 | HB79: 0 | HC79: 0 | HD79: 0 | HE79: 0 | HF79: 0 | HG79: 0 | HH79: 0 | HI79: 0 | HJ79: 0 | HK79: 0 | HL79: 0 | HM79: 0 | HN79: 0 | HO79: 0 | HP79: =MAX(DP79-$D$3,0) -> 0 | HQ79: 0 | HR79: 0 | HS79: 0 | HT79: 0 | HU79: 0 | HV79: 0 | HW79: 0 | HX79: 0 | HY79: 0 | HZ79: 0 | IA79: 0 | IB79: 0 | IC79: 0 | ID79: 0 | IE79: 0 | IF79: 0 | IG79: 0 | IH79: 0 | II79: 0 | IJ79: 0 | IK79: 0 | IL79: 0 | IM79: 0 | IN79: 0 | IO79: 0 | IP79: 0 | IQ79: 0 | IR79: 0 | IS79: 0 | IT79: 0 | IU79: 0 | IV79: 0 | IW79: 0 | IX79: 0 | IY79: 0 | IZ79: 0 | JA79: 0 | JB79: 0 | JC79: 0 | JD79: 0 | JE79: 0 | JF79: 0 | JG79: 0 | JH79: 0 | JI79: 0 | JJ79: 0 | JK79: 0 | JL79: 0 | JM79: 0 | JN79: 0 | JO79: 0 | JP79: 0 | JQ79: 0 | JR79: 0 | JS79: 0 | JT79: 0 | JU79: 0 | JV79: 0 | JW79: 0 | JX79: 0 | JY79: 0 | JZ79: 0 | KA79: 0 | KB79: 0
A80: 19484648 | B80: 60 | C80: 226360 | D80: 3000000 | E80: 100000 | F80: 100000 | G80: 100000 | H80: 500000 | I80: 210210 | J80: 872618 | K80: 628531 | L80: 245904 | M80: 465396 | N80: 450000 | O80: 150000 | P80: 130679 | Q80: 200000 | R80: 100000 | S80: 600000 | T80: 150000 | U80: 217400 | V80: 500000 | W80: 177072 | X80: 200000 | Y80: 500000 | Z80: 102100 | AA80: 113067 | AB80: 113025 | AC80: 369757 | AD80: 116349 | AE80: 500000 | AF80: 300000 | AG80: 110700 | AH80: 310200 | AI80: 100000 | AJ80: 2500000 | AK80: 100000 | AL80: 200000 | AM80: 100000 | AN80: 110852 | AO80: 200000 | AP80: 109679 | AQ80: 200000 | AR80: 100000 | AS80: 100000 | AT80: 100000 | AU80: 100000 | AV80: 300000 | AW80: 100000 | AX80: 200000 | AY80: 100000 | AZ80: 226360 | BA80: 200000 | BB80: 100000 | BC80: 200000 | BD80: 100000 | BE80: 156142 | BF80: 636367 | BG80: 108500 | BH80: 307380 | BI80: 470000 | BJ80: 400000 | GF80: 0 | GG80: 0 | GH80: 0 | GI80: 0 | GJ80: 0 | GK80: 0 | GL80: 0 | GM80: 0 | GN80: 0 | GO80: 0 | GP80: 0 | GQ80: 0 | GR80: 0 | GS80: 0 | GT80: 0 | GU80: 0 | GV80: 0 | GW80: 0 | GX80: 0 | GY80: 0 | GZ80: 0 | HA80: 0 | HB80: 0 | HC80: 0 | HD80: 0 | HE80: 0 | HF80: 0 | HG80: 0 | HH80: 0 | HI80: 0 | HJ80: 0 | HK80: 0 | HL80: 0 | HM80: 0 | HN80: 0 | HO80: 0 | HP80: 0 | HQ80: 0 | HR80: 0 | HS80: 0 | HT80: 0 | HU80: 0 | HV80: 0 | HW80: 0 | HX80: 0 | HY80: 0 | HZ80: 0 | IA80: 0 | IB80: 0 | IC80: 0 | ID80: 0 | IE80: 0 | IF80: 0 | IG80: 0 | IH80: 0 | II80: 0 | IJ80: 0 | IK80: 0 | IL80: 0 | IM80: 0 | IN80: 0 | IO80: 0 | IP80: 0 | IQ80: 0 | IR80: 0 | IS80: 0 | IT80: 0 | IU80: 0 | IV80: 0 | IW80: 0 | IX80: 0 | IY80: 0 | IZ80: 0 | JA80: 0 | JB80: 0 | JC80: 0 | JD80: 0 | JE80: 0 | JF80: 0 | JG80: 0 | JH80: 0 | JI80: 0 | JJ80: 0 | JK80: 0 | JL80: 0 | JM80: 0 | JN80: 0 | JO80: 0 | JP80: 0 | JQ80: 0 | JR80: 0 | JS80: 0 | JT80: 0 | JU80: 0 | JV80: 0 | JW80: 0 | JX80: 0 | JY80: 0 | JZ80: 0 | KA80: 0 | KB80: 0
A81: 13926448 | B81: 60 | C81: 200000 | D81: 105000 | E81: 100000 | F81: 257000 | G81: 125290 | H81: 300000 | I81: 100000 | J81: 130000 | K81: 299301 | L81: 125290 | M81: 100000 | N81: 226134 | O81: 100000 | P81: 100000 | Q81: 210000 | R81: 100000 | S81: 219357 | T81: 100000 | U81: 300000 | V81: 100000 | W81: 100000 | X81: 100000 | Y81: 500000 | Z81: 200000 | AA81: 157937 | AB81: 1000000 | AC81: 110741 | AD81: 300000 | AE81: 310594 | AF81: 100000 | AG81: 266728 | AH81: 250000 | AI81: 250000 | AJ81: 100000 | AK81: 180000 | AL81: 100000 | AM81: 300000 | AN81: 523500 | AO81: 166278 | AP81: 150000 | AQ81: 102100 | AR81: 100000 | AS81: 135941 | AT81: 400000 | AU81: 708288 | AV81: 500000 | AW81: 420000 | AX81: 109679 | AY81: 100000 | AZ81: 147754 | BA81: 282951 | BB81: 200000 | BC81: 250000 | BD81: 100000 | BE81: 100000 | BF81: 100000 | BG81: 600000 | BH81: 500000 | BI81: 500000 | BJ81: 106585 | GF81: 0 | GG81: 0 | GH81: 0 | GI81: 0 | GJ81: 0 | GK81: 0 | GL81: 0 | GM81: 0 | GN81: 0 | GO81: 0 | GP81: 0 | GQ81: 0 | GR81: 0 | GS81: 0 | GT81: 0 | GU81: 0 | GV81: 0 | GW81: 0 | GX81: 0 | GY81: 0 | GZ81: 0 | HA81: 0 | HB81: 0 | HC81: 0 | HD81: 0 | HE81: 0 | HF81: 0 | HG81: 0 | HH81: 0 | HI81: 0 | HJ81: 0 | HK81: 0 | HL81: 0 | HM81: 0 | HN81: 0 | HO81: 0 | HP81: 0 | HQ81: 0 | HR81: 0 | HS81: 0 | HT81: 0 | HU81: 0 | HV81: 0 | HW81: 0 | HX81: 0 | HY81: 0 | HZ81: 0 | IA81: 0 | IB81: 0 | IC81: 0 | ID81: 0 | IE81: 0 | IF81: 0 | IG81: 0 | IH81: 0 | II81: 0 | IJ81: 0 | IK81: 0 | IL81: 0 | IM81: 0 | IN81: 0 | IO81: 0 | IP81: 0 | IQ81: 0 | IR81: 0 | IS81: 0 | IT81: 0 | IU81: 0 | IV81: 0 | IW81: 0 | IX81: 0 | IY81: 0 | IZ81: 0 | JA81: 0 | JB81: 0 | JC81: 0 | JD81: 0 | JE81: 0 | JF81: 0 | JG81: 0 | JH81: 0 | JI81: 0 | JJ81: 0 | JK81: 0 | JL81: 0 | JM81: 0 | JN81: 0 | JO81: 0 | JP81: 0 | JQ81: 0 | JR81: 0 | JS81: 0 | JT81: 0 | JU81: 0 | JV81: 0 | JW81: 0 | JX81: 0 | JY81: 0 | JZ81: 0 | KA81: 0 | KB81: 0
A82: 18359998 | B82: 65 | C82: 110700 | D82: 100000 | E82: 100000 | F82: 100000 | G82: 500000 | H82: 245904 | I82: 500000 | J82: 1000000 | K82: 120000 | L82: 100000 | M82: 150000 | N82: 332556 | O82: 100000 | P82: 727300 | Q82: 500000 | R82: 166278 | S82: 210000 | T82: 100000 | U82: 500000 | V82: 108800 | W82: 100000 | X82: 100000 | Y82: 100000 | Z82: 100000 | AA82: 135805 | AB82: 106692 | AC82: 420000 | AD82: 230325 | AE82: 200000 | AF82: 200000 | AG82: 100000 | AH82: 150000 | AI82: 150000 | AJ82: 200000 | AK82: 500000 | AL82: 102903 | AM82: 305705 | AN82: 200000 | AO82: 240219 | AP82: 110700 | AQ82: 200000 | AR82: 163200 | AS82: 500000 | AT82: 750000 | AU82: 500000 | AV82: 100000 | AW82: 1000000 | AX82: 110700 | AY82: 100000 | AZ82: 500500 | BA82: 108500 | BB82: 100000 | BC82: 167695 | BD82: 500000 | BE82: 500000 | BF82: 150000 | BG82: 333204 | BH82: 200000 | BI82: 1000000 | BJ82: 100000 | BK82: 300000 | BL82: 100000 | BM82: 100000 | BN82: 167312 | BO82: 1085000 | GF82: 0 | GG82: 0 | GH82: 0 | GI82: 0 | GJ82: 0 | GK82: 0 | GL82: 0 | GM82: 0 | GN82: 0 | GO82: 0 | GP82: 0 | GQ82: 0 | GR82: 0 | GS82: 0 | GT82: 0 | GU82: 0 | GV82: 0 | GW82: 0 | GX82: 0 | GY82: 0 | GZ82: 0 | HA82: 0 | HB82: 0 | HC82: 0 | HD82: 0 | HE82: 0 | HF82: 0 | HG82: 0 | HH82: 0 | HI82: 0 | HJ82: 0 | HK82: 0 | HL82: 0 | HM82: 0 | HN82: 0 | HO82: 0 | HP82: 0 | HQ82: 0 | HR82: 0 | HS82: 0 | HT82: 0 | HU82: 0 | HV82: 0 | HW82: 0 | HX82: 0 | HY82: 0 | HZ82: 0 | IA82: 0 | IB82: 0 | IC82: 0 | ID82: 0 | IE82: 0 | IF82: 0 | IG82: 0 | IH82: 0 | II82: 0 | IJ82: 0 | IK82: 0 | IL82: 0 | IM82: 0 | IN82: 0 | IO82: 0 | IP82: 0 | IQ82: 0 | IR82: 0 | IS82: 0 | IT82: 0 | IU82: 0 | IV82: 0 | IW82: 0 | IX82: 0 | IY82: 0 | IZ82: 0 | JA82: 0 | JB82: 0 | JC82: 0 | JD82: 0 | JE82: 0 | JF82: 0 | JG82: 0 | JH82: 0 | JI82: 0 | JJ82: 0 | JK82: 0 | JL82: 0 | JM82: 0 | JN82: 0 | JO82: 0 | JP82: 0 | JQ82: 0 | JR82: 0 | JS82: 0 | JT82: 0 | JU82: 0 | JV82: 0 | JW82: 0 | JX82: 0 | JY82: 0 | JZ82: =MAX(FZ82-$D$3,0) -> 0 | KA82: 0 | KB82: 0
A83: 21773681 | B83: 60 | C83: 628531 | D83: 110700 | E83: 103900 | F83: 100000 | G83: 500000 | H83: 500000 | I83: 271881 | J83: 500000 | K83: 7500000 | L83: 250000 | M83: 221704 | N83: 110700 | O83: 200000 | P83: 200000 | Q83: 100000 | R83: 150150 | S83: 226134 | T83: 200000 | U83: 113956 | V83: 100000 | W83: 110700 | X83: 626453 | Y83: 150000 | Z83: 100000 | AA83: 100000 | AB83: 100000 | AC83: 221400 | AD83: 100000 | AE83: 100000 | AF83: 100000 | AG83: 100000 | AH83: 135805 | AI83: 1000000 | AJ83: 200000 | AK83: 125290 | AL83: 150000 | AM83: 500000 | AN83: 108500 | AO83: 400000 | AP83: 500000 | AQ83: 250000 | AR83: 200000 | AS83: 300000 | AT83: 100000 | AU83: 300000 | AV83: 167520 | AW83: 100000 | AX83: 100000 | AY83: 150000 | AZ83: 300000 | BA83: 135696 | BB83: 600548 | BC83: 100000 | BD83: 197421 | BE83: 250000 | BF83: 200000 | BG83: 100000 | BH83: 100000 | BI83: 1000000 | BJ83: 106692 | GF83: 0 | GG83: 0 | GH83: 0 | GI83: 0 | GJ83: 0 | GK83: 0 | GL83: 0 | GM83: 0 | GN83: 0 | GO83: 0 | GP83: 0 | GQ83: 0 | GR83: 0 | GS83: 0 | GT83: 0 | GU83: 0 | GV83: 0 | GW83: 0 | GX83: 0 | GY83: 0 | GZ83: 0 | HA83: 0 | HB83: 0 | HC83: 0 | HD83: 0 | HE83: 0 | HF83: 0 | HG83: 0 | HH83: 0 | HI83: 0 | HJ83: 0 | HK83: 0 | HL83: 0 | HM83: 0 | HN83: 0 | HO83: 0 | HP83: 0 | HQ83: 0 | HR83: 0 | HS83: 0 | HT83: 0 | HU83: 0 | HV83: 0 | HW83: 0 | HX83: 0 | HY83: 0 | HZ83: 0 | IA83: 0 | IB83: 0 | IC83: 0 | ID83: 0 | IE83: 0 | IF83: 0 | IG83: 0 | IH83: 0 | II83: 0 | IJ83: 0 | IK83: 0 | IL83: 0 | IM83: 0 | IN83: 0 | IO83: 0 | IP83: 0 | IQ83: 0 | IR83: 0 | IS83: 0 | IT83: 0 | IU83: 0 | IV83: 0 | IW83: 0 | IX83: 0 | IY83: 0 | IZ83: 0 | JA83: 0 | JB83: 0 | JC83: 0 | JD83: 0 | JE83: 0 | JF83: 0 | JG83: 0 | JH83: 0 | JI83: 0 | JJ83: 0 | JK83: 0 | JL83: 0 | JM83: 0 | JN83: 0 | JO83: 0 | JP83: 0 | JQ83: 0 | JR83: 0 | JS83: 0 | JT83: 0 | JU83: 0 | JV83: 0 | JW83: 0 | JX83: 0 | JY83: 0 | JZ83: 0 | KA83: 0 | KB83: 0
A84: 24917995 | B84: 90 | C84: 100000 | D84: 100000 | E84: 720000 | F84: 100000 | G84: 200000 | H84: 150000 | I84: 200000 | J84: 150000 | K84: 125290 | L84: 500000 | M84: 300000 | N84: 109679 | O84: 200000 | P84: 100000 | Q84: 753437 | R84: 250000 | S84: 200000 | T84: 400000 | U84: 200000 | V84: 106082 | W84: 1000000 | X84: 1229520 | Y84: 226049 | Z84: 250000 | AA84: 565900 | AB84: 125000 | AC84: 139747 | AD84: 100000 | AE84: 700000 | AF84: 300000 | AG84: 313226 | AH84: 100000 | AI84: 250000 | AJ84: 100000 | AK84: 100000 | AL84: 200000 | AM84: 124091 | AN84: 169771 | AO84: 108500 | AP84: 1000000 | AQ84: 250000 | AR84: 113067 | AS84: 100000 | AT84: 210210 | AU84: 100000 | AV84: 100000 | AW84: 250000 | AX84: 1000000 | AY84: 300000 | AZ84: 100000 | BA84: 276853 | BB84: 500000 | BC84: 135941 | BD84: 100000 | BE84: 200000 | BF84: 100000 | BG84: 200000 | BH84: 613160 | BI84: 1500000 | BJ84: 100000 | BK84: 300000 | BL84: 133423 | BM84: 100000 | BN84: 100000 | BO84: 100000 | BP84: 120110 | BQ84: 250000 | BR84: 118048 | BS84: 438516 | BT84: 113025 | BU84: 400000 | BV84: 150000 | BW84: 102100 | BX84: 100000 | BY84: 250000 | BZ84: 128319 | CA84: 110700 | CB84: 100000 | CC84: 544000 | CD84: 100000 | CE84: 565900 | CF84: 200000 | CG84: 100000 | CH84: 116349 | CI84: 100000 | CJ84: 700000 | CK84: 125290 | CL84: 106692 | CM84: 500000 | CN84: 330000 | GF84: 0 | GG84: 0 | GH84: 0 | GI84: 0 | GJ84: 0 | GK84: 0 | GL84: 0 | GM84: 0 | GN84: 0 | GO84: 0 | GP84: 0 | GQ84: 0 | GR84: 0 | GS84: 0 | GT84: 0 | GU84: 0 | GV84: 0 | GW84: 0 | GX84: 0 | GY84: 0 | GZ84: 0 | HA84: 0 | HB84: 0 | HC84: 0 | HD84: 0 | HE84: 0 | HF84: 0 | HG84: 0 | HH84: 0 | HI84: 0 | HJ84: 0 | HK84: 0 | HL84: 0 | HM84: 0 | HN84: 0 | HO84: 0 | HP84: 0 | HQ84: 0 | HR84: 0 | HS84: 0 | HT84: 0 | HU84: 0 | HV84: 0 | HW84: 0 | HX84: 0 | HY84: 0 | HZ84: 0 | IA84: 0 | IB84: 0 | IC84: 0 | ID84: 0 | IE84: 0 | IF84: 0 | IG84: 0 | IH84: 0 | II84: 0 | IJ84: 0 | IK84: 0 | IL84: 0 | IM84: 0 | IN84: 0 | IO84: 0 | IP84: 0 | IQ84: 0 | IR84: 0 | IS84: 0 | IT84: 0 | IU84: 0 | IV84: 0 | IW84: 0 | IX84: 0 | IY84: 0 | IZ84: 0 | JA84: 0 | JB84: 0 | JC84: 0 | JD84: 0 | JE84: 0 | JF84: 0 | JG84: 0 | JH84: 0 | JI84: 0 | JJ84: 0 | JK84: 0 | JL84: 0 | JM84: 0 | JN84: 0 | JO84: 0 | JP84: 0 | JQ84: 0 | JR84: 0 | JS84: 0 | JT84: 0 | JU84: 0 | JV84: 0 | JW84: 0 | JX84: 0 | JY84: 0 | JZ84: 0 | KA84: 0 | KB84: 0
A85: 20008661 | B85: 63 | C85: 120110 | D85: 113956 | E85: 113025 | F85: 245904 | G85: 100000 | H85: 203804 | I85: 200000 | J85: 100000 | K85: 100000 | L85: 160000 | M85: 100000 | N85: 150000 | O85: 100000 | P85: 100000 | Q85: 100000 | R85: 1000000 | S85: 110700 | T85: 100000 | U85: 100000 | V85: 200000 | W85: 290874 | X85: 500000 | Y85: 125290 | Z85: 2000000 | AA85: 1039000 | AB85: 200000 | AC85: 100000 | AD85: 555339 | AE85: 750000 | AF85: 510500 | AG85: 500000 | AH85: 113956 | AI85: 500000 | AJ85: 164518 | AK85: 100000 | AL85: 100000 | AM85: 100000 | AN85: 100000 | AO85: 1250000 | AP85: 200000 | AQ85: 500000 | AR85: 1000000 | AS85: 100000 | AT85: 160000 | AU85: 750000 | AV85: 250000 | AW85: 250000 | AX85: 150000 | AY85: 100000 | AZ85: 215880 | BA85: 280000 | BB85: 250000 | BC85: 100000 | BD85: 200000 | BE85: 100000 | BF85: 300000 | BG85: 500000 | BH85: 100000 | BI85: 250000 | BJ85: 135805 | BK85: 500000 | BL85: 500000 | BM85: 600000 | GF85: 0 | GG85: 0 | GH85: 0 | GI85: 0 | GJ85: 0 | GK85: 0 | GL85: 0 | GM85: 0 | GN85: 0 | GO85: 0 | GP85: 0 | GQ85: 0 | GR85: 0 | GS85: 0 | GT85: 0 | GU85: 0 | GV85: 0 | GW85: 0 | GX85: 0 | GY85: 0 | GZ85: 0 | HA85: 0 | HB85: 0 | HC85: 0 | HD85: 0 | HE85: 0 | HF85: 0 | HG85: 0 | HH85: 0 | HI85: 0 | HJ85: 0 | HK85: 0 | HL85: 0 | HM85: 0 | HN85: 0 | HO85: 0 | HP85: 0 | HQ85: 0 | HR85: 0 | HS85: 0 | HT85: 0 | HU85: 0 | HV85: 0 | HW85: 0 | HX85: 0 | HY85: 0 | HZ85: 0 | IA85: 0 | IB85: 0 | IC85: 0 | ID85: 0 | IE85: 0 | IF85: 0 | IG85: 0 | IH85: 0 | II85: 0 | IJ85: 0 | IK85: 0 | IL85: 0 | IM85: 0 | IN85: 0 | IO85: 0 | IP85: 0 | IQ85: 0 | IR85: 0 | IS85: 0 | IT85: 0 | IU85: 0 | IV85: 0 | IW85: 0 | IX85: 0 | IY85: 0 | IZ85: 0 | JA85: 0 | JB85: 0 | JC85: 0 | JD85: 0 | JE85: 0 | JF85: 0 | JG85: 0 | JH85: 0 | JI85: 0 | JJ85: 0 | JK85: 0 | JL85: 0 | JM85: 0 | JN85: 0 | JO85: 0 | JP85: 0 | JQ85: 0 | JR85: 0 | JS85: 0 | JT85: 0 | JU85: 0 | JV85: 0 | JW85: 0 | JX85: 0 | JY85: 0 | JZ85: 0 | KA85: 0 | KB85: 0
A86: 13077588 | B86: 51 | C86: 250000 | D86: 250000 | E86: 128798 | F86: 100000 | G86: 1000000 | H86: 525000 | I86: 162877 | J86: 150000 | K86: 100000 | L86: 200000 | M86: 100000 | N86: 117433 | O86: 113180 | P86: 162750 | Q86: 200000 | R86: 100000 | S86: 200000 | T86: 152853 | U86: 250000 | V86: 100000 | W86: 300000 | X86: 100000 | Y86: 282562 | Z86: 100000 | AA86: 411200 | AB86: 100000 | AC86: 400000 | AD86: 108500 | AE86: 1107414 | AF86: 100000 | AG86: 200000 | AH86: 1430000 | AI86: 100000 | AJ86: 100000 | AK86: 100000 | AL86: 221704 | AM86: 108500 | AN86: 200000 | AO86: 400000 | AP86: 108800 | AQ86: 100000 | AR86: 100000 | AS86: 100000 | AT86: 113180 | AU86: 106692 | AV86: 135941 | AW86: 200000 | AX86: 230204 | AY86: 500000 | AZ86: 150000 | BA86: 1000000 | GF86: 0 | GG86: 0 | GH86: 0 | GI86: 0 | GJ86: 0 | GK86: 0 | GL86: 0 | GM86: 0 | GN86: 0 | GO86: 0 | GP86: 0 | GQ86: 0 | GR86: 0 | GS86: 0 | GT86: 0 | GU86: 0 | GV86: 0 | GW86: 0 | GX86: 0 | GY86: 0 | GZ86: 0 | HA86: 0 | HB86: 0 | HC86: 0 | HD86: 0 | HE86: 0 | HF86: 0 | HG86: 0 | HH86: 0 | HI86: 0 | HJ86: 0 | HK86: 0 | HL86: 0 | HM86: 0 | HN86: 0 | HO86: 0 | HP86: 0 | HQ86: 0 | HR86: 0 | HS86: 0 | HT86: 0 | HU86: 0 | HV86: 0 | HW86: 0 | HX86: 0 | HY86: 0 | HZ86: 0 | IA86: 0 | IB86: 0 | IC86: 0 | ID86: 0 | IE86: 0 | IF86: 0 | IG86: 0 | IH86: 0 | II86: 0 | IJ86: 0 | IK86: 0 | IL86: 0 | IM86: 0 | IN86: 0 | IO86: 0 | IP86: 0 | IQ86: 0 | IR86: 0 | IS86: 0 | IT86: 0 | IU86: 0 | IV86: 0 | IW86: 0 | IX86: 0 | IY86: 0 | IZ86: 0 | JA86: 0 | JB86: 0 | JC86: 0 | JD86: 0 | JE86: 0 | JF86: 0 | JG86: 0 | JH86: 0 | JI86: 0 | JJ86: 0 | JK86: 0 | JL86: 0 | JM86: =MAX(FM86-$D$3,0) -> 0 | JN86: 0 | JO86: 0 | JP86: 0 | JQ86: 0 | JR86: 0 | JS86: 0 | JT86: 0 | JU86: 0 | JV86: 0 | JW86: 0 | JX86: 0 | JY86: 0 | JZ86: 0 | KA86: 0 | KB86: 0
A87: 19747959 | B87: 76 | C87: 100000 | D87: 100000 | E87: 102100 | F87: 150000 | G87: 128319 | H87: 1000000 | I87: 122952 | J87: 500000 | K87: 400000 | L87: 500000 | M87: 300000 | N87: 104700 | O87: 500000 | P87: 500000 | Q87: 600000 | R87: 363650 | S87: 500000 | T87: 420000 | U87: 318537 | V87: 200000 | W87: 200000 | X87: 443408 | Y87: 200000 | Z87: 200000 | AA87: 180164 | AB87: 600000 | AC87: 100000 | AD87: 200000 | AE87: 207265 | AF87: 200000 | AG87: 614761 | AH87: 100000 | AI87: 300000 | AJ87: 100000 | AK87: 227912 | AL87: 523775 | AM87: 150000 | AN87: 650000 | AO87: 142583 | AP87: 100000 | AQ87: 150000 | AR87: 500000 | AS87: 100000 | AT87: 100000 | AU87: 115102 | AV87: 200000 | AW87: 200000 | AX87: 100000 | AY87: 100000 | AZ87: 200000 | BA87: 100000 | BB87: 1000000 | BC87: 100000 | BD87: 250000 | BE87: 100000 | BF87: 250580 | BG87: 102100 | BH87: 250000 | BI87: 100000 | BJ87: 523500 | BK87: 100000 | BL87: 100000 | BM87: 110741 | BN87: 300000 | BO87: 500000 | BP87: 250000 | BQ87: 100000 | BR87: 100000 | BS87: 100000 | BT87: 195810 | BU87: 100000 | BV87: 200000 | BW87: 100000 | BX87: 100000 | BY87: 100000 | BZ87: 400000 | GF87: 0 | GG87: 0 | GH87: 0 | GI87: 0 | GJ87: 0 | GK87: 0 | GL87: 0 | GM87: 0 | GN87: 0 | GO87: 0 | GP87: 0 | GQ87: 0 | GR87: 0 | GS87: 0 | GT87: 0 | GU87: 0 | GV87: 0 | GW87: 0 | GX87: 0 | GY87: 0 | GZ87: 0 | HA87: 0 | HB87: 0 | HC87: 0 | HD87: 0 | HE87: 0 | HF87: 0 | HG87: 0 | HH87: 0 | HI87: 0 | HJ87: 0 | HK87: 0 | HL87: 0 | HM87: 0 | HN87: 0 | HO87: 0 | HP87: 0 | HQ87: 0 | HR87: 0 | HS87: 0 | HT87: 0 | HU87: 0 | HV87: 0 | HW87: 0 | HX87: 0 | HY87: 0 | HZ87: 0 | IA87: 0 | IB87: 0 | IC87: 0 | ID87: 0 | IE87: 0 | IF87: 0 | IG87: 0 | IH87: 0 | II87: 0 | IJ87: 0 | IK87: 0 | IL87: 0 | IM87: 0 | IN87: 0 | IO87: 0 | IP87: 0 | IQ87: 0 | IR87: 0 | IS87: 0 | IT87: 0 | IU87: 0 | IV87: 0 | IW87: 0 | IX87: 0 | IY87: 0 | IZ87: 0 | JA87: 0 | JB87: 0 | JC87: 0 | JD87: 0 | JE87: 0 | JF87: 0 | JG87: 0 | JH87: 0 | JI87: 0 | JJ87: 0 | JK87: =MAX(FK87-$D$3,0) -> 0 | JL87: 0 | JM87: 0 | JN87: 0 | JO87: 0 | JP87: 0 | JQ87: 0 | JR87: 0 | JS87: 0 | JT87: 0 | JU87: 0 | JV87: 0 | JW87: 0 | JX87: 0 | JY87: 0 | JZ87: 0 | KA87: 0 | KB87: 0
A88: 15280826 | B88: 51 | C88: 100000 | D88: 100000 | E88: 565900 | F88: 100000 | G88: 212164 | H88: 100000 | I88: 200000 | J88: 1000000 | K88: 200000 | L88: 100000 | M88: 106692 | N88: 104700 | O88: 100000 | P88: 500000 | Q88: 500000 | R88: 110700 | S88: 100000 | T88: 305705 | U88: 101902 | V88: 300000 | W88: 100000 | X88: 452099 | Y88: 600000 | Z88: 150000 | AA88: 300000 | AB88: 500000 | AC88: 100000 | AD88: 100000 | AE88: 150000 | AF88: 500000 | AG88: 100000 | AH88: 100000 | AI88: 150000 | AJ88: 3063000 | AK88: 100000 | AL88: 100000 | AM88: 100000 | AN88: 565335 | AO88: 135941 | AP88: 400000 | AQ88: 300000 | AR88: 100000 | AS88: 380380 | AT88: 100000 | AU88: 100000 | AV88: 500000 | AW88: 106082 | AX88: 300000 | AY88: 127415 | AZ88: 127415 | BA88: 465396 | GF88: 0 | GG88: 0 | GH88: 0 | GI88: 0 | GJ88: 0 | GK88: 0 | GL88: 0 | GM88: 0 | GN88: 0 | GO88: 0 | GP88: 0 | GQ88: 0 | GR88: 0 | GS88: 0 | GT88: 0 | GU88: 0 | GV88: 0 | GW88: 0 | GX88: 0 | GY88: 0 | GZ88: 0 | HA88: 0 | HB88: 0 | HC88: 0 | HD88: 0 | HE88: 0 | HF88: 0 | HG88: 0 | HH88: 0 | HI88: 0 | HJ88: 0 | HK88: 0 | HL88: 0 | HM88: 0 | HN88: 0 | HO88: 0 | HP88: 0 | HQ88: 0 | HR88: 0 | HS88: 0 | HT88: 0 | HU88: 0 | HV88: 0 | HW88: 0 | HX88: 0 | HY88: 0 | HZ88: 0 | IA88: 0 | IB88: 0 | IC88: 0 | ID88: 0 | IE88: 0 | IF88: 0 | IG88: 0 | IH88: 0 | II88: 0 | IJ88: 0 | IK88: 0 | IL88: 0 | IM88: 0 | IN88: 0 | IO88: 0 | IP88: 0 | IQ88: 0 | IR88: 0 | IS88: 0 | IT88: 0 | IU88: 0 | IV88: 0 | IW88: 0 | IX88: 0 | IY88: 0 | IZ88: 0 | JA88: 0 | JB88: 0 | JC88: 0 | JD88: 0 | JE88: 0 | JF88: 0 | JG88: 0 | JH88: 0 | JI88: 0 | JJ88: 0 | JK88: 0 | JL88: 0 | JM88: 0 | JN88: 0 | JO88: 0 | JP88: 0 | JQ88: 0 | JR88: 0 | JS88: 0 | JT88: 0 | JU88: 0 | JV88: 0 | JW88: 0 | JX88: 0 | JY88: 0 | JZ88: 0 | KA88: 0 | KB88: 0
A89: 22586025 | B89: 66 | C89: 300000 | D89: 250000 | E89: 500000 | F89: 300000 | G89: 100000 | H89: 100000 | I89: 205806 | J89: 500000 | K89: 150000 | L89: 306300 | M89: 698732 | N89: 497169 | O89: 250000 | P89: 104755 | Q89: 200000 | R89: 150000 | S89: 200000 | T89: 110700 | U89: 300000 | V89: 122632 | W89: 200000 | X89: 125290 | Y89: 339851 | Z89: 100000 | AA89: 300000 | AB89: 261750 | AC89: 100000 | AD89: 200000 | AE89: 400000 | AF89: 270000 | AG89: 400000 | AH89: 339541 | AI89: 106692 | AJ89: 100000 | AK89: 500000 | AL89: 122224 | AM89: 1000000 | AN89: 500000 | AO89: 113067 | AP89: 659610 | AQ89: 1200000 | AR89: 100000 | AS89: 800000 | AT89: 100000 | AU89: 200000 | AV89: 250000 | AW89: 1000000 | AX89: 200000 | AY89: 100000 | AZ89: 1226318 | BA89: 100000 | BB89: 100000 | BC89: 100000 | BD89: 100000 | BE89: 100000 | BF89: 318537 | BG89: 200000 | BH89: 1000000 | BI89: 1000000 | BJ89: 100000 | BK89: 651000 | BL89: 300000 | BM89: 1000000 | BN89: 120110 | BO89: 600000 | BP89: 135941 | GF89: 0 | GG89: 0 | GH89: 0 | GI89: 0 | GJ89: 0 | GK89: 0 | GL89: 0 | GM89: 0 | GN89: 0 | GO89: 0 | GP89: 0 | GQ89: 0 | GR89: 0 | GS89: 0 | GT89: 0 | GU89: 0 | GV89: 0 | GW89: 0 | GX89: 0 | GY89: 0 | GZ89: 0 | HA89: 0 | HB89: 0 | HC89: 0 | HD89: 0 | HE89: 0 | HF89: 0 | HG89: 0 | HH89: 0 | HI89: 0 | HJ89: 0 | HK89: 0 | HL89: 0 | HM89: 0 | HN89: 0 | HO89: 0 | HP89: 0 | HQ89: 0 | HR89: 0 | HS89: 0 | HT89: 0 | HU89: 0 | HV89: 0 | HW89: 0 | HX89: 0 | HY89: 0 | HZ89: 0 | IA89: 0 | IB89: 0 | IC89: 0 | ID89: 0 | IE89: 0 | IF89: 0 | IG89: 0 | IH89: 0 | II89: 0 | IJ89: 0 | IK89: 0 | IL89: 0 | IM89: 0 | IN89: 0 | IO89: 0 | IP89: 0 | IQ89: 0 | IR89: 0 | IS89: 0 | IT89: 0 | IU89: 0 | IV89: 0 | IW89: 0 | IX89: =MAX(EX89-$D$3,0) -> 0 | IY89: 0 | IZ89: 0 | JA89: 0 | JB89: 0 | JC89: 0 | JD89: 0 | JE89: 0 | JF89: 0 | JG89: 0 | JH89: 0 | JI89: 0 | JJ89: 0 | JK89: 0 | JL89: 0 | JM89: 0 | JN89: 0 | JO89: 0 | JP89: 0 | JQ89: 0 | JR89: 0 | JS89: 0 | JT89: 0 | JU89: 0 | JV89: 0 | JW89: 0 | JX89: 0 | JY89: 0 | JZ89: 0 | KA89: 0 | KB89: 0
A90: 23666254 | B90: 67 | C90: 329036 | D90: 225000 | E90: 266806 | F90: 102800 | G90: 250000 | H90: 217567 | I90: 125165 | J90: 300000 | K90: 271881 | L90: 120110 | M90: 850000 | N90: 500000 | O90: 160160 | P90: 1591229 | Q90: 135941 | R90: 250000 | S90: 108800 | T90: 200000 | U90: 2771304 | V90: 395586 | W90: 200000 | X90: 100000 | Y90: 100000 | Z90: 200000 | AA90: 100000 | AB90: 300000 | AC90: 500000 | AD90: 100000 | AE90: 100000 | AF90: 600313 | AG90: 100000 | AH90: 500000 | AI90: 190840 | AJ90: 171000 | AK90: 100000 | AL90: 542500 | AM90: 200000 | AN90: 110852 | AO90: 1000000 | AP90: 110741 | AQ90: 600000 | AR90: 360000 | AS90: 100000 | AT90: 221400 | AU90: 100000 | AV90: 100000 | AW90: 100000 | AX90: 100000 | AY90: 1107000 | AZ90: 422075 | BA90: 100000 | BB90: 500000 | BC90: 261750 | BD90: 500000 | BE90: 500000 | BF90: 500000 | BG90: 164518 | BH90: 553500 | BI90: 200000 | BJ90: 200000 | BK90: 100000 | BL90: 217000 | BM90: 500000 | BN90: 125000 | BO90: 436380 | BP90: 1000000 | BQ90: 100000 | GF90: 0 | GG90: 0 | GH90: 0 | GI90: 0 | GJ90: 0 | GK90: 0 | GL90: 0 | GM90: 0 | GN90: 0 | GO90: 0 | GP90: 0 | GQ90: 0 | GR90: 0 | GS90: 0 | GT90: 0 | GU90: 0 | GV90: 0 | GW90: 0 | GX90: 0 | GY90: 0 | GZ90: 0 | HA90: 0 | HB90: 0 | HC90: 0 | HD90: 0 | HE90: 0 | HF90: 0 | HG90: 0 | HH90: 0 | HI90: 0 | HJ90: 0 | HK90: 0 | HL90: 0 | HM90: 0 | HN90: 0 | HO90: 0 | HP90: 0 | HQ90: 0 | HR90: 0 | HS90: 0 | HT90: 0 | HU90: 0 | HV90: 0 | HW90: 0 | HX90: 0 | HY90: 0 | HZ90: 0 | IA90: 0 | IB90: 0 | IC90: 0 | ID90: 0 | IE90: 0 | IF90: 0 | IG90: 0 | IH90: 0 | II90: 0 | IJ90: 0 | IK90: 0 | IL90: 0 | IM90: 0 | IN90: 0 | IO90: 0 | IP90: 0 | IQ90: 0 | IR90: 0 | IS90: 0 | IT90: 0 | IU90: 0 | IV90: 0 | IW90: 0 | IX90: 0 | IY90: 0 | IZ90: 0 | JA90: 0 | JB90: 0 | JC90: 0 | JD90: 0 | JE90: 0 | JF90: 0 | JG90: 0 | JH90: 0 | JI90: 0 | JJ90: 0 | JK90: 0 | JL90: 0 | JM90: 0 | JN90: 0 | JO90: 0 | JP90: 0 | JQ90: 0 | JR90: 0 | JS90: 0 | JT90: 0 | JU90: 0 | JV90: 0 | JW90: 0 | JX90: 0 | JY90: 0 | JZ90: 0 | KA90: 0 | KB90: 0
A91: 19471177 | B91: 68 | C91: 147754 | D91: 400000 | E91: 150000 | F91: 100000 | G91: 280000 | H91: 100000 | I91: 500000 | J91: 150000 | K91: 150000 | L91: 174525 | M91: 106534 | N91: 750000 | O91: 362857 | P91: 133404 | Q91: 237352 | R91: 200000 | S91: 133404 | T91: 100000 | U91: 100000 | V91: 100000 | W91: 300000 | X91: 100000 | Y91: 304089 | Z91: 221854 | AA91: 113180 | AB91: 122952 | AC91: 600000 | AD91: 360329 | AE91: 500000 | AF91: 200000 | AG91: 698732 | AH91: 250000 | AI91: 100000 | AJ91: 106692 | AK91: 106585 | AL91: 150000 | AM91: 200000 | AN91: 626453 | AO91: 104700 | AP91: 100000 | AQ91: 100000 | AR91: 100000 | AS91: 1274144 | AT91: 135941 | AU91: 500000 | AV91: 190000 | AW91: 125290 | AX91: 100000 | AY91: 200000 | AZ91: 200000 | BA91: 200000 | BB91: 200000 | BC91: 135941 | BD91: 200000 | BE91: 100000 | BF91: 221704 | BG91: 310000 | BH91: 100000 | BI91: 1500000 | BJ91: 2000000 | BK91: 150000 | BL91: 130679 | BM91: 200000 | BN91: 150000 | BO91: 800000 | BP91: 100000 | BQ91: 106082 | BR91: 300000 | GF91: 0 | GG91: 0 | GH91: 0 | GI91: 0 | GJ91: 0 | GK91: 0 | GL91: 0 | GM91: 0 | GN91: 0 | GO91: 0 | GP91: 0 | GQ91: 0 | GR91: 0 | GS91: 0 | GT91: 0 | GU91: 0 | GV91: 0 | GW91: 0 | GX91: 0 | GY91: 0 | GZ91: 0 | HA91: 0 | HB91: 0 | HC91: 0 | HD91: 0 | HE91: 0 | HF91: 0 | HG91: 0 | HH91: 0 | HI91: 0 | HJ91: 0 | HK91: 0 | HL91: 0 | HM91: 0 | HN91: 0 | HO91: 0 | HP91: 0 | HQ91: 0 | HR91: 0 | HS91: 0 | HT91: 0 | HU91: 0 | HV91: 0 | HW91: 0 | HX91: 0 | HY91: 0 | HZ91: 0 | IA91: 0 | IB91: 0 | IC91: 0 | ID91: 0 | IE91: 0 | IF91: 0 | IG91: 0 | IH91: 0 | II91: 0 | IJ91: 0 | IK91: 0 | IL91: 0 | IM91: 0 | IN91: 0 | IO91: 0 | IP91: 0 | IQ91: 0 | IR91: 0 | IS91: 0 | IT91: 0 | IU91: 0 | IV91: 0 | IW91: 0 | IX91: 0 | IY91: 0 | IZ91: 0 | JA91: 0 | JB91: 0 | JC91: 0 | JD91: 0 | JE91: 0 | JF91: 0 | JG91: 0 | JH91: 0 | JI91: 0 | JJ91: 0 | JK91: 0 | JL91: 0 | JM91: 0 | JN91: 0 | JO91: 0 | JP91: 0 | JQ91: 0 | JR91: 0 | JS91: 0 | JT91: 0 | JU91: 0 | JV91: 0 | JW91: 0 | JX91: 0 | JY91: 0 | JZ91: 0 | KA91: 0 | KB91: 0
A92: 15019949 | B92: 62 | C92: 100000 | D92: 100000 | E92: 100000 | F92: 226049 | G92: 100000 | H92: 100000 | I92: 110700 | J92: 100000 | K92: 250000 | L92: 100000 | M92: 400000 | N92: 257596 | O92: 565900 | P92: 100000 | Q92: 500000 | R92: 1000000 | S92: 450000 | T92: 620000 | U92: 679700 | V92: 116349 | W92: 543917 | X92: 100000 | Y92: 200000 | Z92: 100000 | AA92: 282668 | AB92: 100000 | AC92: 100000 | AD92: 300000 | AE92: 100000 | AF92: 120110 | AG92: 110000 | AH92: 340000 | AI92: 100000 | AJ92: 500000 | AK92: 174000 | AL92: 100000 | AM92: 150000 | AN92: 261358 | AO92: 100000 | AP92: 257257 | AQ92: 226360 | AR92: 300000 | AS92: 100000 | AT92: 200000 | AU92: 200000 | AV92: 250000 | AW92: 400000 | AX92: 312913 | AY92: 500000 | AZ92: 500000 | BA92: 180164 | BB92: 198000 | BC92: 200000 | BD92: 200000 | BE92: 300000 | BF92: 100000 | BG92: 122952 | BH92: 100000 | BI92: 113956 | BJ92: 100000 | BK92: 200000 | BL92: 200000 | GF92: 0 | GG92: 0 | GH92: =MAX(CH92-$D$3,0) -> 0 | GI92: 0 | GJ92: 0 | GK92: 0 | GL92: 0 | GM92: 0 | GN92: 0 | GO92: 0 | GP92: 0 | GQ92: 0 | GR92: 0 | GS92: 0 | GT92: 0 | GU92: 0 | GV92: 0 | GW92: 0 | GX92: 0 | GY92: 0 | GZ92: 0 | HA92: 0 | HB92: 0 | HC92: 0 | HD92: 0 | HE92: 0 | HF92: 0 | HG92: 0 | HH92: 0 | HI92: 0 | HJ92: 0 | HK92: 0 | HL92: 0 | HM92: 0 | HN92: 0 | HO92: 0 | HP92: 0 | HQ92: 0 | HR92: 0 | HS92: 0 | HT92: 0 | HU92: 0 | HV92: 0 | HW92: 0 | HX92: 0 | HY92: 0 | HZ92: 0 | IA92: 0 | IB92: 0 | IC92: 0 | ID92: 0 | IE92: 0 | IF92: 0 | IG92: 0 | IH92: 0 | II92: 0 | IJ92: 0 | IK92: 0 | IL92: 0 | IM92: 0 | IN92: 0 | IO92: 0 | IP92: 0 | IQ92: 0 | IR92: 0 | IS92: 0 | IT92: 0 | IU92: 0 | IV92: 0 | IW92: 0 | IX92: 0 | IY92: 0 | IZ92: 0 | JA92: 0 | JB92: 0 | JC92: 0 | JD92: 0 | JE92: 0 | JF92: 0 | JG92: 0 | JH92: 0 | JI92: 0 | JJ92: 0 | JK92: 0 | JL92: 0 | JM92: 0 | JN92: 0 | JO92: 0 | JP92: 0 | JQ92: 0 | JR92: 0 | JS92: 0 | JT92: 0 | JU92: 0 | JV92: 0 | JW92: 0 | JX92: 0 | JY92: 0 | JZ92: 0 | KA92: 0 | KB92: 0
A93: 19956707 | B93: 69 | C93: 300000 | D93: 500000 | E93: 254755 | F93: 420000 | G93: 300000 | H93: 100000 | I93: 200000 | J93: 500000 | K93: 200000 | L93: 200000 | M93: 120110 | N93: 750000 | O93: 200000 | P93: 160000 | Q93: 250000 | R93: 128798 | S93: 500000 | T93: 164518 | U93: 110700 | V93: 100000 | W93: 116349 | X93: 183947 | Y93: 200000 | Z93: 250000 | AA93: 250000 | AB93: 500000 | AC93: 150000 | AD93: 700000 | AE93: 200000 | AF93: 100000 | AG93: 348000 | AH93: 325500 | AI93: 118048 | AJ93: 150000 | AK93: 150000 | AL93: 271881 | AM93: 400000 | AN93: 116349 | AO93: 113956 | AP93: 150000 | AQ93: 113025 | AR93: 102903 | AS93: 135941 | AT93: 125165 | AU93: 1000000 | AV93: 100000 | AW93: 100000 | AX93: 100000 | AY93: 200000 | AZ93: 200000 | BA93: 1000000 | BB93: 200000 | BC93: 500000 | BD93: 200000 | BE93: 200000 | BF93: 200000 | BG93: 100000 | BH93: 200000 | BI93: 500000 | BJ93: 2214828 | BK93: 300000 | BL93: 300000 | BM93: 108800 | BN93: 100000 | BO93: 109679 | BP93: 139747 | BQ93: 500000 | BR93: 100000 | BS93: 553708 | GF93: 0 | GG93: 0 | GH93: 0 | GI93: 0 | GJ93: 0 | GK93: 0 | GL93: 0 | GM93: 0 | GN93: 0 | GO93: 0 | GP93: 0 | GQ93: 0 | GR93: 0 | GS93: 0 | GT93: 0 | GU93: 0 | GV93: 0 | GW93: 0 | GX93: 0 | GY93: 0 | GZ93: 0 | HA93: 0 | HB93: 0 | HC93: 0 | HD93: 0 | HE93: 0 | HF93: 0 | HG93: 0 | HH93: 0 | HI93: 0 | HJ93: 0 | HK93: 0 | HL93: 0 | HM93: 0 | HN93: 0 | HO93: 0 | HP93: 0 | HQ93: 0 | HR93: 0 | HS93: 0 | HT93: 0 | HU93: 0 | HV93: 0 | HW93: 0 | HX93: 0 | HY93: 0 | HZ93: 0 | IA93: 0 | IB93: 0 | IC93: 0 | ID93: 0 | IE93: 0 | IF93: 0 | IG93: 0 | IH93: 0 | II93: 0 | IJ93: 0 | IK93: 0 | IL93: 0 | IM93: 0 | IN93: 0 | IO93: 0 | IP93: 0 | IQ93: 0 | IR93: 0 | IS93: 0 | IT93: 0 | IU93: 0 | IV93: 0 | IW93: 0 | IX93: 0 | IY93: 0 | IZ93: 0 | JA93: 0 | JB93: 0 | JC93: 0 | JD93: 0 | JE93: 0 | JF93: 0 | JG93: 0 | JH93: 0 | JI93: 0 | JJ93: 0 | JK93: 0 | JL93: 0 | JM93: 0 | JN93: 0 | JO93: 0 | JP93: 0 | JQ93: 0 | JR93: 0 | JS93: 0 | JT93: 0 | JU93: 0 | JV93: 0 | JW93: 0 | JX93: 0 | JY93: 0 | JZ93: 0 | KA93: 0 | KB93: 0
A94: 18922256 | B94: 65 | C94: 1500000 | D94: 100000 | E94: 122952 | F94: 200000 | G94: 500000 | H94: 700000 | I94: 400209 | J94: 200000 | K94: 150000 | L94: 100000 | M94: 100000 | N94: 400000 | O94: 200000 | P94: 130679 | Q94: 100000 | R94: 204000 | S94: 250000 | T94: 250000 | U94: 200000 | V94: 100000 | W94: 300000 | X94: 100000 | Y94: 100000 | Z94: 300000 | AA94: 300000 | AB94: 500000 | AC94: 150000 | AD94: 100000 | AE94: 104755 | AF94: 300000 | AG94: 300000 | AH94: 1000000 | AI94: 108500 | AJ94: 100000 | AK94: 300000 | AL94: 250000 | AM94: 500000 | AN94: 500000 | AO94: 100000 | AP94: 500000 | AQ94: 150000 | AR94: 1750000 | AS94: 200000 | AT94: 200000 | AU94: 500000 | AV94: 300000 | AW94: 118048 | AX94: 135805 | AY94: 100000 | AZ94: 111068 | BA94: 300000 | BB94: 250000 | BC94: 200000 | BD94: 200000 | BE94: 565335 | BF94: 443408 | BG94: 500000 | BH94: 102800 | BI94: 110741 | BJ94: 250000 | BK94: 150000 | BL94: 113956 | BM94: 100000 | BN94: 150000 | BO94: 100000 | GF94: 0 | GG94: 0 | GH94: 0 | GI94: 0 | GJ94: 0 | GK94: 0 | GL94: 0 | GM94: 0 | GN94: 0 | GO94: 0 | GP94: 0 | GQ94: 0 | GR94: 0 | GS94: 0 | GT94: 0 | GU94: 0 | GV94: 0 | GW94: 0 | GX94: 0 | GY94: 0 | GZ94: 0 | HA94: 0 | HB94: 0 | HC94: 0 | HD94: 0 | HE94: 0 | HF94: 0 | HG94: 0 | HH94: 0 | HI94: 0 | HJ94: 0 | HK94: 0 | HL94: 0 | HM94: 0 | HN94: 0 | HO94: 0 | HP94: 0 | HQ94: 0 | HR94: 0 | HS94: 0 | HT94: 0 | HU94: 0 | HV94: 0 | HW94: 0 | HX94: 0 | HY94: 0 | HZ94: 0 | IA94: 0 | IB94: 0 | IC94: 0 | ID94: 0 | IE94: 0 | IF94: 0 | IG94: 0 | IH94: 0 | II94: 0 | IJ94: 0 | IK94: 0 | IL94: 0 | IM94: 0 | IN94: 0 | IO94: 0 | IP94: 0 | IQ94: 0 | IR94: 0 | IS94: 0 | IT94: 0 | IU94: 0 | IV94: 0 | IW94: 0 | IX94: 0 | IY94: 0 | IZ94: 0 | JA94: 0 | JB94: 0 | JC94: 0 | JD94: 0 | JE94: 0 | JF94: 0 | JG94: 0 | JH94: 0 | JI94: 0 | JJ94: 0 | JK94: 0 | JL94: 0 | JM94: 0 | JN94: 0 | JO94: 0 | JP94: 0 | JQ94: 0 | JR94: 0 | JS94: 0 | JT94: 0 | JU94: 0 | JV94: 0 | JW94: 0 | JX94: 0 | JY94: 0 | JZ94: 0 | KA94: 0 | KB94: 0
A95: 19935687 | B95: 59 | C95: 500000 | D95: 200200 | E95: 100100 | F95: 500000 | G95: 180000 | H95: 100000 | I95: 100000 | J95: 200000 | K95: 217600 | L95: 150000 | M95: 200000 | N95: 200000 | O95: 1252903 | P95: 424328 | Q95: 100000 | R95: 203706 | S95: 1200000 | T95: 150000 | U95: 250000 | V95: 1000000 | W95: 500000 | X95: 300000 | Y95: 100000 | Z95: 106082 | AA95: 553500 | AB95: 125165 | AC95: 135805 | AD95: 500000 | AE95: 100000 | AF95: 100000 | AG95: 113956 | AH95: 375495 | AI95: 367896 | AJ95: 530410 | AK95: 500000 | AL95: 100000 | AM95: 150000 | AN95: 679700 | AO95: 250000 | AP95: 2500000 | AQ95: 100000 | AR95: 500661 | AS95: 100000 | AT95: 100000 | AU95: 100000 | AV95: 100000 | AW95: 280000 | AX95: 500000 | AY95: 250000 | AZ95: 200000 | BA95: 127480 | BB95: 250000 | BC95: 100000 | BD95: 100000 | BE95: 110700 | BF95: 1000000 | BG95: 200000 | BH95: 400000 | BI95: 100000 | GF95: 0 | GG95: 0 | GH95: 0 | GI95: 0 | GJ95: 0 | GK95: 0 | GL95: 0 | GM95: 0 | GN95: 0 | GO95: 0 | GP95: 0 | GQ95: 0 | GR95: 0 | GS95: 0 | GT95: 0 | GU95: 0 | GV95: 0 | GW95: 0 | GX95: 0 | GY95: 0 | GZ95: 0 | HA95: 0 | HB95: 0 | HC95: 0 | HD95: 0 | HE95: 0 | HF95: 0 | HG95: 0 | HH95: 0 | HI95: 0 | HJ95: 0 | HK95: 0 | HL95: 0 | HM95: 0 | HN95: 0 | HO95: 0 | HP95: 0 | HQ95: 0 | HR95: 0 | HS95: 0 | HT95: 0 | HU95: 0 | HV95: 0 | HW95: 0 | HX95: 0 | HY95: 0 | HZ95: 0 | IA95: 0 | IB95: 0 | IC95: 0 | ID95: 0 | IE95: 0 | IF95: 0 | IG95: 0 | IH95: 0 | II95: 0 | IJ95: 0 | IK95: 0 | IL95: 0 | IM95: 0 | IN95: 0 | IO95: 0 | IP95: 0 | IQ95: 0 | IR95: 0 | IS95: 0 | IT95: 0 | IU95: 0 | IV95: 0 | IW95: 0 | IX95: 0 | IY95: 0 | IZ95: 0 | JA95: 0 | JB95: 0 | JC95: 0 | JD95: 0 | JE95: 0 | JF95: 0 | JG95: 0 | JH95: 0 | JI95: 0 | JJ95: 0 | JK95: 0 | JL95: 0 | JM95: 0 | JN95: 0 | JO95: 0 | JP95: 0 | JQ95: 0 | JR95: 0 | JS95: 0 | JT95: 0 | JU95: 0 | JV95: 0 | JW95: 0 | JX95: 0 | JY95: 0 | JZ95: 0 | KA95: 0 | KB95: 0
A96: 17675823 | B96: 67 | C96: 100000 | D96: 1000000 | E96: 100000 | F96: 542500 | G96: 542500 | H96: 100000 | I96: 221483 | J96: 236096 | K96: 150000 | L96: 300000 | M96: 250000 | N96: 100000 | O96: 200000 | P96: 100000 | Q96: 1252903 | R96: 1047000 | S96: 100000 | T96: 113956 | U96: 108500 | V96: 110700 | W96: 300000 | X96: 500000 | Y96: 139747 | Z96: 100000 | AA96: 500000 | AB96: 200000 | AC96: 300274 | AD96: 250000 | AE96: 100000 | AF96: 120120 | AG96: 100000 | AH96: 113180 | AI96: 500000 | AJ96: 100000 | AK96: 100000 | AL96: 360000 | AM96: 113025 | AN96: 122952 | AO96: 300000 | AP96: 1000000 | AQ96: 100000 | AR96: 600000 | AS96: 500000 | AT96: 113067 | AU96: 300000 | AV96: 100000 | AW96: 106585 | AX96: 100000 | AY96: 100000 | AZ96: 250000 | BA96: 250000 | BB96: 100000 | BC96: 100000 | BD96: 213780 | BE96: 1000000 | BF96: 113025 | BG96: 100000 | BH96: 100000 | BI96: 100000 | BJ96: 113180 | BK96: 300000 | BL96: 200000 | BM96: 100000 | BN96: 271250 | BO96: 150000 | BP96: 100000 | BQ96: 100000 | GF96: 0 | GG96: 0 | GH96: 0 | GI96: 0 | GJ96: 0 | GK96: 0 | GL96: 0 | GM96: 0 | GN96: 0 | GO96: 0 | GP96: 0 | GQ96: 0 | GR96: 0 | GS96: 0 | GT96: 0 | GU96: 0 | GV96: 0 | GW96: 0 | GX96: 0 | GY96: 0 | GZ96: 0 | HA96: 0 | HB96: 0 | HC96: 0 | HD96: 0 | HE96: 0 | HF96: 0 | HG96: 0 | HH96: 0 | HI96: 0 | HJ96: 0 | HK96: 0 | HL96: 0 | HM96: 0 | HN96: 0 | HO96: 0 | HP96: 0 | HQ96: 0 | HR96: 0 | HS96: 0 | HT96: 0 | HU96: 0 | HV96: 0 | HW96: 0 | HX96: 0 | HY96: 0 | HZ96: 0 | IA96: 0 | IB96: 0 | IC96: 0 | ID96: 0 | IE96: 0 | IF96: 0 | IG96: 0 | IH96: 0 | II96: 0 | IJ96: 0 | IK96: 0 | IL96: 0 | IM96: 0 | IN96: 0 | IO96: 0 | IP96: 0 | IQ96: 0 | IR96: 0 | IS96: 0 | IT96: 0 | IU96: 0 | IV96: 0 | IW96: 0 | IX96: 0 | IY96: 0 | IZ96: 0 | JA96: 0 | JB96: 0 | JC96: 0 | JD96: 0 | JE96: 0 | JF96: 0 | JG96: 0 | JH96: 0 | JI96: 0 | JJ96: 0 | JK96: 0 | JL96: 0 | JM96: 0 | JN96: 0 | JO96: 0 | JP96: 0 | JQ96: 0 | JR96: 0 | JS96: =MAX(FS96-$D$3,0) -> 0 | JT96: 0 | JU96: 0 | JV96: 0 | JW96: 0 | JX96: 0 | JY96: 0 | JZ96: 0 | KA96: 0 | KB96: 0
A97: 14880727 | B97: 61 | C97: 100000 | D97: 300000 | E97: 100000 | F97: 200000 | G97: 250580 | H97: 100000 | I97: 300000 | J97: 172654 | K97: 100000 | L97: 100000 | M97: 500000 | N97: 100000 | O97: 138249 | P97: 200000 | Q97: 200000 | R97: 200000 | S97: 500000 | T97: 200000 | U97: 100000 | V97: 250000 | W97: 100000 | X97: 375000 | Y97: 100000 | Z97: 400000 | AA97: 200000 | AB97: 250000 | AC97: 217600 | AD97: 150000 | AE97: 434000 | AF97: 100000 | AG97: 679700 | AH97: 174174 | AI97: 200000 | AJ97: 200000 | AK97: 163050 | AL97: 500000 | AM97: 500000 | AN97: 500000 | AO97: 500000 | AP97: 103900 | AQ97: 400000 | AR97: 318246 | AS97: 300000 | AT97: 100000 | AU97: 147902 | AV97: 120110 | AW97: 213169 | AX97: 200000 | AY97: 300000 | AZ97: 100000 | BA97: 500000 | BB97: 100000 | BC97: 133423 | BD97: 369388 | BE97: 160000 | BF97: 100000 | BG97: 100000 | BH97: 106082 | BI97: 553500 | BJ97: 100000 | BK97: 500000 | GF97: 0 | GG97: 0 | GH97: 0 | GI97: 0 | GJ97: 0 | GK97: 0 | GL97: 0 | GM97: 0 | GN97: 0 | GO97: 0 | GP97: 0 | GQ97: 0 | GR97: 0 | GS97: 0 | GT97: 0 | GU97: 0 | GV97: 0 | GW97: 0 | GX97: 0 | GY97: 0 | GZ97: 0 | HA97: 0 | HB97: 0 | HC97: 0 | HD97: 0 | HE97: 0 | HF97: 0 | HG97: 0 | HH97: 0 | HI97: 0 | HJ97: 0 | HK97: 0 | HL97: 0 | HM97: 0 | HN97: 0 | HO97: 0 | HP97: 0 | HQ97: 0 | HR97: 0 | HS97: 0 | HT97: 0 | HU97: 0 | HV97: 0 | HW97: 0 | HX97: 0 | HY97: 0 | HZ97: 0 | IA97: 0 | IB97: 0 | IC97: 0 | ID97: 0 | IE97: 0 | IF97: 0 | IG97: 0 | IH97: 0 | II97: 0 | IJ97: 0 | IK97: 0 | IL97: 0 | IM97: 0 | IN97: 0 | IO97: 0 | IP97: 0 | IQ97: 0 | IR97: 0 | IS97: 0 | IT97: 0 | IU97: 0 | IV97: 0 | IW97: 0 | IX97: 0 | IY97: 0 | IZ97: 0 | JA97: 0 | JB97: 0 | JC97: 0 | JD97: 0 | JE97: 0 | JF97: 0 | JG97: 0 | JH97: 0 | JI97: 0 | JJ97: 0 | JK97: 0 | JL97: 0 | JM97: 0 | JN97: 0 | JO97: 0 | JP97: 0 | JQ97: 0 | JR97: 0 | JS97: 0 | JT97: 0 | JU97: 0 | JV97: 0 | JW97: 0 | JX97: 0 | JY97: 0 | JZ97: 0 | KA97: 0 | KB97: 0
A98: 18056968 | B98: 63 | C98: 400000 | D98: 500000 | E98: 101800 | F98: 306300 | G98: 200000 | H98: 100000 | I98: 100000 | J98: 224000 | K98: 200000 | L98: 100000 | M98: 4800000 | N98: 100000 | O98: 100000 | P98: 271609 | Q98: 100000 | R98: 108500 | S98: 210000 | T98: 420000 | U98: 200000 | V98: 150000 | W98: 255250 | X98: 1000000 | Y98: 400000 | Z98: 519500 | AA98: 200000 | AB98: 250000 | AC98: 250000 | AD98: 295120 | AE98: 200000 | AF98: 100000 | AG98: 232790 | AH98: 108800 | AI98: 100000 | AJ98: 100000 | AK98: 221483 | AL98: 100000 | AM98: 200000 | AN98: 200000 | AO98: 100000 | AP98: 200000 | AQ98: 250000 | AR98: 200000 | AS98: 100000 | AT98: 100000 | AU98: 250000 | AV98: 138626 | AW98: 500000 | AX98: 100000 | AY98: 200000 | AZ98: 102100 | BA98: 250000 | BB98: 135941 | BC98: 300000 | BD98: 118048 | BE98: 150000 | BF98: 150000 | BG98: 250000 | BH98: 200000 | BI98: 110741 | BJ98: 150000 | BK98: 200000 | BL98: 226360 | BM98: 150000 | GF98: 0 | GG98: 0 | GH98: 0 | GI98: 0 | GJ98: 0 | GK98: 0 | GL98: 0 | GM98: 0 | GN98: 0 | GO98: 0 | GP98: 0 | GQ98: 0 | GR98: 0 | GS98: 0 | GT98: 0 | GU98: 0 | GV98: 0 | GW98: 0 | GX98: 0 | GY98: 0 | GZ98: 0 | HA98: 0 | HB98: 0 | HC98: 0 | HD98: 0 | HE98: 0 | HF98: 0 | HG98: 0 | HH98: 0 | HI98: 0 | HJ98: 0 | HK98: 0 | HL98: 0 | HM98: 0 | HN98: 0 | HO98: 0 | HP98: 0 | HQ98: 0 | HR98: 0 | HS98: 0 | HT98: 0 | HU98: 0 | HV98: 0 | HW98: 0 | HX98: =MAX(DX98-$D$3,0) -> 0 | HY98: 0 | HZ98: 0 | IA98: 0 | IB98: 0 | IC98: 0 | ID98: 0 | IE98: 0 | IF98: 0 | IG98: 0 | IH98: 0 | II98: 0 | IJ98: 0 | IK98: 0 | IL98: 0 | IM98: 0 | IN98: 0 | IO98: 0 | IP98: 0 | IQ98: 0 | IR98: 0 | IS98: 0 | IT98: 0 | IU98: 0 | IV98: 0 | IW98: 0 | IX98: 0 | IY98: 0 | IZ98: 0 | JA98: 0 | JB98: 0 | JC98: 0 | JD98: 0 | JE98: 0 | JF98: 0 | JG98: 0 | JH98: 0 | JI98: 0 | JJ98: 0 | JK98: 0 | JL98: 0 | JM98: 0 | JN98: 0 | JO98: 0 | JP98: 0 | JQ98: 0 | JR98: 0 | JS98: 0 | JT98: 0 | JU98: 0 | JV98: 0 | JW98: 0 | JX98: 0 | JY98: 0 | JZ98: 0 | KA98: 0 | KB98: 0
A99: 14878713 | B99: 63 | C99: 100000 | D99: 300000 | E99: 500000 | F99: 100000 | G99: 113180 | H99: 553500 | I99: 130986 | J99: 500000 | K99: 100000 | L99: 100000 | M99: 217000 | N99: 200000 | O99: 100000 | P99: 300000 | Q99: 510500 | R99: 510500 | S99: 100000 | T99: 250000 | U99: 120110 | V99: 300000 | W99: 108500 | X99: 110700 | Y99: 1500000 | Z99: 150000 | AA99: 100000 | AB99: 116349 | AC99: 200000 | AD99: 200000 | AE99: 100000 | AF99: 209400 | AG99: 100000 | AH99: 250000 | AI99: 500000 | AJ99: 100000 | AK99: 200000 | AL99: 517142 | AM99: 500000 | AN99: 150000 | AO99: 100000 | AP99: 200000 | AQ99: 100000 | AR99: 221483 | AS99: 200000 | AT99: 100000 | AU99: 205806 | AV99: 205806 | AW99: 100000 | AX99: 203804 | AY99: 100000 | AZ99: 108800 | BA99: 300000 | BB99: 100000 | BC99: 700000 | BD99: 100000 | BE99: 210000 | BF99: 100000 | BG99: 255250 | BH99: 100000 | BI99: 300000 | BJ99: 200000 | BK99: 200000 | BL99: 135941 | BM99: 113956 | GF99: 0 | GG99: 0 | GH99: 0 | GI99: 0 | GJ99: 0 | GK99: 0 | GL99: 0 | GM99: 0 | GN99: 0 | GO99: 0 | GP99: 0 | GQ99: 0 | GR99: 0 | GS99: 0 | GT99: 0 | GU99: 0 | GV99: 0 | GW99: 0 | GX99: 0 | GY99: 0 | GZ99: 0 | HA99: 0 | HB99: 0 | HC99: 0 | HD99: 0 | HE99: 0 | HF99: 0 | HG99: 0 | HH99: 0 | HI99: 0 | HJ99: 0 | HK99: 0 | HL99: 0 | HM99: 0 | HN99: 0 | HO99: 0 | HP99: 0 | HQ99: 0 | HR99: 0 | HS99: 0 | HT99: 0 | HU99: 0 | HV99: 0 | HW99: 0 | HX99: 0 | HY99: 0 | HZ99: 0 | IA99: 0 | IB99: 0 | IC99: 0 | ID99: 0 | IE99: 0 | IF99: 0 | IG99: 0 | IH99: 0 | II99: 0 | IJ99: 0 | IK99: 0 | IL99: 0 | IM99: 0 | IN99: 0 | IO99: 0 | IP99: 0 | IQ99: 0 | IR99: 0 | IS99: 0 | IT99: 0 | IU99: 0 | IV99: 0 | IW99: 0 | IX99: 0 | IY99: 0 | IZ99: 0 | JA99: 0 | JB99: 0 | JC99: 0 | JD99: 0 | JE99: 0 | JF99: 0 | JG99: 0 | JH99: 0 | JI99: 0 | JJ99: 0 | JK99: 0 | JL99: 0 | JM99: 0 | JN99: 0 | JO99: 0 | JP99: 0 | JQ99: 0 | JR99: 0 | JS99: 0 | JT99: 0 | JU99: 0 | JV99: 0 | JW99: 0 | JX99: 0 | JY99: 0 | JZ99: 0 | KA99: 0 | KB99: 0
A100: 11069413 | B100: 51 | C100: 500000 | D100: 1000000 | E100: 200000 | F100: 221704 | G100: 200000 | H100: 300000 | I100: 205806 | J100: 118266 | K100: 300000 | L100: 113025 | M100: 232557 | N100: 200000 | O100: 100000 | P100: 200000 | Q100: 100000 | R100: 100000 | S100: 100000 | T100: 200000 | U100: 162750 | V100: 100000 | W100: 250000 | X100: 100000 | Y100: 548393 | Z100: 209400 | AA100: 100000 | AB100: 100000 | AC100: 500000 | AD100: 108500 | AE100: 113025 | AF100: 175000 | AG100: 130130 | AH100: 384000 | AI100: 100000 | AJ100: 100000 | AK100: 300000 | AL100: 100000 | AM100: 100000 | AN100: 100000 | AO100: 750000 | AP100: 100000 | AQ100: 100000 | AR100: 108500 | AS100: 100000 | AT100: 125290 | AU100: 600000 | AV100: 113067 | AW100: 100000 | AX100: 500000 | AY100: 100000 | AZ100: 100000 | BA100: 100000 | GF100: 0 | GG100: 0 | GH100: 0 | GI100: 0 | GJ100: 0 | GK100: 0 | GL100: 0 | GM100: 0 | GN100: 0 | GO100: 0 | GP100: 0 | GQ100: 0 | GR100: 0 | GS100: 0 | GT100: 0 | GU100: 0 | GV100: 0 | GW100: 0 | GX100: 0 | GY100: 0 | GZ100: 0 | HA100: 0 | HB100: 0 | HC100: =MAX(DC100-$D$3,0) -> 0 | HD100: 0 | HE100: 0 | HF100: 0 | HG100: 0 | HH100: 0 | HI100: 0 | HJ100: 0 | HK100: 0 | HL100: 0 | HM100: 0 | HN100: 0 | HO100: 0 | HP100: 0 | HQ100: 0 | HR100: 0 | HS100: 0 | HT100: 0 | HU100: 0 | HV100: 0 | HW100: 0 | HX100: 0 | HY100: 0 | HZ100: 0 | IA100: 0 | IB100: 0 | IC100: 0 | ID100: 0 | IE100: 0 | IF100: 0 | IG100: 0 | IH100: 0 | II100: 0 | IJ100: 0 | IK100: 0 | IL100: 0 | IM100: 0 | IN100: 0 | IO100: 0 | IP100: 0 | IQ100: 0 | IR100: 0 | IS100: 0 | IT100: 0 | IU100: 0 | IV100: 0 | IW100: 0 | IX100: 0 | IY100: 0 | IZ100: 0 | JA100: 0 | JB100: 0 | JC100: 0 | JD100: 0 | JE100: 0 | JF100: 0 | JG100: 0 | JH100: 0 | JI100: 0 | JJ100: 0 | JK100: 0 | JL100: 0 | JM100: 0 | JN100: 0 | JO100: 0 | JP100: 0 | JQ100: 0 | JR100: 0 | JS100: 0 | JT100: 0 | JU100: 0 | JV100: 0 | JW100: 0 | JX100: 0 | JY100: 0 | JZ100: 0 | KA100: 0 | KB100: 0
A101: 21336774 | B101: 65 | C101: 727300 | D101: 200000 | E101: 100000 | F101: 100000 | G101: 200000 | H101: 100000 | I101: 200000 | J101: 200000 | K101: 150000 | L101: 110700 | M101: 250000 | N101: 200000 | O101: 135941 | P101: 100000 | Q101: 106585 | R101: 100000 | S101: 200000 | T101: 154354 | U101: 204000 | V101: 113180 | W101: 2000000 | X101: 1000000 | Y101: 250000 | Z101: 367896 | AA101: 100000 | AB101: 500000 | AC101: 100000 | AD101: 1359400 | AE101: 100000 | AF101: 110852 | AG101: 100100 | AH101: 106692 | AI101: 500000 | AJ101: 200000 | AK101: 900000 | AL101: 407820 | AM101: 147754 | AN101: 125165 | AO101: 360360 | AP101: 450000 | AQ101: 100000 | AR101: 245904 | AS101: 166754 | AT101: 200000 | AU101: 200000 | AV101: 200000 | AW101: 150000 | AX101: 500000 | AY101: 1131800 | AZ101: 2326981 | BA101: 120110 | BB101: 250000 | BC101: 100000 | BD101: 200000 | BE101: 110741 | BF101: 274196 | BG101: 200000 | BH101: 115102 | BI101: 576000 | BJ101: 100000 | BK101: 591625 | BL101: 100000 | BM101: 108783 | BN101: 300000 | BO101: 130679 | GF101: 0 | GG101: 0 | GH101: 0 | GI101: 0 | GJ101: 0 | GK101: 0 | GL101: 0 | GM101: 0 | GN101: 0 | GO101: 0 | GP101: 0 | GQ101: 0 | GR101: 0 | GS101: 0 | GT101: 0 | GU101: 0 | GV101: 0 | GW101: 0 | GX101: 0 | GY101: 0 | GZ101: 0 | HA101: 0 | HB101: 0 | HC101: 0 | HD101: 0 | HE101: 0 | HF101: 0 | HG101: 0 | HH101: 0 | HI101: 0 | HJ101: 0 | HK101: 0 | HL101: 0 | HM101: 0 | HN101: 0 | HO101: 0 | HP101: 0 | HQ101: 0 | HR101: 0 | HS101: 0 | HT101: 0 | HU101: 0 | HV101: 0 | HW101: 0 | HX101: 0 | HY101: 0 | HZ101: 0 | IA101: 0 | IB101: 0 | IC101: 0 | ID101: 0 | IE101: 0 | IF101: 0 | IG101: 0 | IH101: 0 | II101: 0 | IJ101: 0 | IK101: 0 | IL101: 0 | IM101: 0 | IN101: 0 | IO101: 0 | IP101: 0 | IQ101: 0 | IR101: 0 | IS101: 0 | IT101: 0 | IU101: 0 | IV101: 0 | IW101: 0 | IX101: 0 | IY101: 0 | IZ101: 0 | JA101: 0 | JB101: 0 | JC101: 0 | JD101: 0 | JE101: 0 | JF101: 0 | JG101: 0 | JH101: 0 | JI101: 0 | JJ101: 0 | JK101: 0 | JL101: 0 | JM101: 0 | JN101: 0 | JO101: 0 | JP101: 0 | JQ101: 0 | JR101: 0 | JS101: 0 | JT101: 0 | JU101: 0 | JV101: 0 | JW101: 0 | JX101: 0 | JY101: 0 | JZ101: 0 | KA101: 0 | KB101: 0
A102: 15163649 | B102: 59 | C102: 400000 | D102: 200000 | E102: 213382 | F102: 205600 | G102: 200000 | H102: 1200000 | I102: 200000 | J102: 122632 | K102: 200000 | L102: 500000 | M102: 271250 | N102: 300000 | O102: 700000 | P102: 200000 | Q102: 164480 | R102: 100000 | S102: 113180 | T102: 250000 | U102: 154200 | V102: 100000 | W102: 1500000 | X102: 500000 | Y102: 200000 | Z102: 204200 | AA102: 300000 | AB102: 100000 | AC102: 133404 | AD102: 110000 | AE102: 200000 | AF102: 127415 | AG102: 106585 | AH102: 416667 | AI102: 108500 | AJ102: 100000 | AK102: 100000 | AL102: 250000 | AM102: 150000 | AN102: 200000 | AO102: 100000 | AP102: 100000 | AQ102: 203804 | AR102: 200000 | AS102: 200000 | AT102: 500000 | AU102: 100000 | AV102: 200000 | AW102: 200000 | AX102: 400000 | AY102: 100000 | AZ102: 150000 | BA102: 349367 | BB102: 200200 | BC102: 300000 | BD102: 150000 | BE102: 108783 | BF102: 200000 | BG102: 100000 | BH102: 200000 | BI102: 500000 | GF102: 0 | GG102: 0 | GH102: 0 | GI102: 0 | GJ102: 0 | GK102: 0 | GL102: 0 | GM102: 0 | GN102: 0 | GO102: 0 | GP102: 0 | GQ102: 0 | GR102: 0 | GS102: 0 | GT102: 0 | GU102: 0 | GV102: 0 | GW102: 0 | GX102: 0 | GY102: 0 | GZ102: 0 | HA102: 0 | HB102: 0 | HC102: 0 | HD102: 0 | HE102: 0 | HF102: 0 | HG102: 0 | HH102: 0 | HI102: 0 | HJ102: 0 | HK102: 0 | HL102: 0 | HM102: 0 | HN102: 0 | HO102: 0 | HP102: 0 | HQ102: 0 | HR102: 0 | HS102: 0 | HT102: 0 | HU102: 0 | HV102: 0 | HW102: 0 | HX102: 0 | HY102: 0 | HZ102: 0 | IA102: 0 | IB102: 0 | IC102: 0 | ID102: 0 | IE102: 0 | IF102: 0 | IG102: 0 | IH102: 0 | II102: 0 | IJ102: 0 | IK102: 0 | IL102: 0 | IM102: 0 | IN102: 0 | IO102: 0 | IP102: 0 | IQ102: 0 | IR102: 0 | IS102: 0 | IT102: 0 | IU102: 0 | IV102: 0 | IW102: 0 | IX102: 0 | IY102: 0 | IZ102: 0 | JA102: 0 | JB102: 0 | JC102: 0 | JD102: 0 | JE102: 0 | JF102: 0 | JG102: 0 | JH102: 0 | JI102: 0 | JJ102: 0 | JK102: 0 | JL102: 0 | JM102: 0 | JN102: 0 | JO102: 0 | JP102: 0 | JQ102: 0 | JR102: 0 | JS102: 0 | JT102: 0 | JU102: 0 | JV102: 0 | JW102: 0 | JX102: 0 | JY102: 0 | JZ102: 0 | KA102: 0 | KB102: 0
A103: 25431633 | B103: 80 | C103: 100000 | D103: 100000 | E103: 200000 | F103: 500000 | G103: 125290 | H103: 500000 | I103: 122632 | J103: 100000 | K103: 100000 | L103: 300000 | M103: 200000 | N103: 250330 | O103: 100000 | P103: 187748 | Q103: 100000 | R103: 200000 | S103: 222136 | T103: 519500 | U103: 300000 | V103: 500000 | W103: 100000 | X103: 200000 | Y103: 100000 | Z103: 209619 | AA103: 113025 | AB103: 100000 | AC103: 630630 | AD103: 100000 | AE103: 100000 | AF103: 500000 | AG103: 118048 | AH103: 150000 | AI103: 100000 | AJ103: 400000 | AK103: 400000 | AL103: 250000 | AM103: 250000 | AN103: 250000 | AO103: 200000 | AP103: 100000 | AQ103: 792000 | AR103: 133023 | AS103: 643994 | AT103: 200000 | AU103: 250000 | AV103: 100000 | AW103: 125165 | AX103: 213382 | AY103: 100000 | AZ103: 5000000 | BA103: 113180 | BB103: 100000 | BC103: 300000 | BD103: 200000 | BE103: 162750 | BF103: 188371 | BG103: 271609 | BH103: 300000 | BI103: 101800 | BJ103: 332100 | BK103: 200000 | BL103: 100000 | BM103: 100000 | BN103: 250000 | BO103: 2000000 | BP103: 100000 | BQ103: 800000 | BR103: 200000 | BS103: 100000 | BT103: 100000 | BU103: 100000 | BV103: 200000 | BW103: 300000 | BX103: 120110 | BY103: 271250 | BZ103: 109679 | CA103: 100000 | CB103: 554262 | CC103: 200000 | CD103: 800000 | GF103: 0 | GG103: 0 | GH103: 0 | GI103: 0 | GJ103: 0 | GK103: 0 | GL103: 0 | GM103: 0 | GN103: 0 | GO103: 0 | GP103: 0 | GQ103: 0 | GR103: 0 | GS103: 0 | GT103: 0 | GU103: 0 | GV103: 0 | GW103: 0 | GX103: 0 | GY103: 0 | GZ103: 0 | HA103: 0 | HB103: 0 | HC103: 0 | HD103: 0 | HE103: 0 | HF103: 0 | HG103: 0 | HH103: 0 | HI103: 0 | HJ103: 0 | HK103: 0 | HL103: 0 | HM103: 0 | HN103: 0 | HO103: 0 | HP103: 0 | HQ103: 0 | HR103: 0 | HS103: 0 | HT103: 0 | HU103: 0 | HV103: 0 | HW103: 0 | HX103: 0 | HY103: 0 | HZ103: 0 | IA103: 0 | IB103: 0 | IC103: 0 | ID103: 0 | IE103: 0 | IF103: 0 | IG103: 0 | IH103: 0 | II103: 0 | IJ103: 0 | IK103: 0 | IL103: 0 | IM103: 0 | IN103: 0 | IO103: 0 | IP103: 0 | IQ103: 0 | IR103: 0 | IS103: 0 | IT103: 0 | IU103: 0 | IV103: 0 | IW103: 0 | IX103: 0 | IY103: 0 | IZ103: 0 | JA103: 0 | JB103: 0 | JC103: 0 | JD103: 0 | JE103: 0 | JF103: 0 | JG103: 0 | JH103: 0 | JI103: 0 | JJ103: 0 | JK103: 0 | JL103: 0 | JM103: 0 | JN103: 0 | JO103: 0 | JP103: 0 | JQ103: 0 | JR103: 0 | JS103: 0 | JT103: 0 | JU103: 0 | JV103: 0 | JW103: 0 | JX103: 0 | JY103: 0 | JZ103: 0 | KA103: 0 | KB103: 0
A104: 14612978 | B104: 52 | C104: 100000 | D104: 120110 | E104: 100000 | F104: 226360 | G104: 100000 | H104: 113025 | I104: 120110 | J104: 500000 | K104: 100000 | L104: 296132 | M104: 300000 | N104: 108500 | O104: 100000 | P104: 100000 | Q104: 100000 | R104: 250000 | S104: 375870 | T104: 102100 | U104: 300000 | V104: 108500 | W104: 104755 | X104: 100000 | Y104: 271958 | Z104: 420000 | AA104: 100000 | AB104: 100000 | AC104: 150000 | AD104: 500000 | AE104: 106692 | AF104: 200000 | AG104: 300000 | AH104: 100000 | AI104: 102100 | AJ104: 300000 | AK104: 200000 | AL104: 133404 | AM104: 900000 | AN104: 200000 | AO104: 200000 | AP104: 1000000 | AQ104: 1000000 | AR104: 1000000 | AS104: 587164 | AT104: 147902 | AU104: 110700 | AV104: 300000 | AW104: 257596 | AX104: 250000 | AY104: 100000 | AZ104: 500000 | BA104: 750000 | BB104: 500000 | GF104: 0 | GG104: 0 | GH104: 0 | GI104: 0 | GJ104: 0 | GK104: 0 | GL104: 0 | GM104: 0 | GN104: 0 | GO104: 0 | GP104: 0 | GQ104: 0 | GR104: 0 | GS104: 0 | GT104: 0 | GU104: 0 | GV104: 0 | GW104: 0 | GX104: 0 | GY104: 0 | GZ104: 0 | HA104: 0 | HB104: 0 | HC104: 0 | HD104: 0 | HE104: 0 | HF104: 0 | HG104: 0 | HH104: 0 | HI104: 0 | HJ104: 0 | HK104: 0 | HL104: 0 | HM104: 0 | HN104: 0 | HO104: 0 | HP104: 0 | HQ104: 0 | HR104: 0 | HS104: 0 | HT104: 0 | HU104: 0 | HV104: 0 | HW104: 0 | HX104: 0 | HY104: 0 | HZ104: 0 | IA104: 0 | IB104: 0 | IC104: 0 | ID104: 0 | IE104: 0 | IF104: 0 | IG104: 0 | IH104: 0 | II104: 0 | IJ104: 0 | IK104: 0 | IL104: 0 | IM104: 0 | IN104: 0 | IO104: 0 | IP104: 0 | IQ104: 0 | IR104: 0 | IS104: 0 | IT104: 0 | IU104: 0 | IV104: 0 | IW104: 0 | IX104: 0 | IY104: 0 | IZ104: 0 | JA104: 0 | JB104: 0 | JC104: 0 | JD104: 0 | JE104: 0 | JF104: 0 | JG104: 0 | JH104: 0 | JI104: 0 | JJ104: 0 | JK104: 0 | JL104: 0 | JM104: 0 | JN104: 0 | JO104: 0 | JP104: 0 | JQ104: 0 | JR104: 0 | JS104: 0 | JT104: 0 | JU104: 0 | JV104: 0 | JW104: 0 | JX104: 0 | JY104: 0 | JZ104: 0 | KA104: 0 | KB104: 0
A105: 16596334 | B105: 72 | C105: 100000 | D105: 102800 | E105: 250000 | F105: 100000 | G105: 200000 | H105: 110741 | I105: 1000000 | J105: 106692 | K105: 100000 | L105: 118325 | M105: 236096 | N105: 200000 | O105: 500000 | P105: 300000 | Q105: 250000 | R105: 150000 | S105: 100000 | T105: 250000 | U105: 110852 | V105: 500000 | W105: 339851 | X105: 100000 | Y105: 100000 | Z105: 205600 | AA105: 217000 | AB105: 100000 | AC105: 100000 | AD105: 336000 | AE105: 600000 | AF105: 100000 | AG105: 200000 | AH105: 100000 | AI105: 122952 | AJ105: 200000 | AK105: 100000 | AL105: 100000 | AM105: 100000 | AN105: 100000 | AO105: 250330 | AP105: 100000 | AQ105: 100000 | AR105: 100000 | AS105: 100000 | AT105: 108500 | AU105: 150000 | AV105: 300000 | AW105: 500000 | AX105: 418800 | AY105: 500000 | AZ105: 100000 | BA105: 130679 | BB105: 250330 | BC105: 300000 | BD105: 100000 | BE105: 100000 | BF105: 200000 | BG105: 300000 | BH105: 100000 | BI105: 100000 | BJ105: 217000 | BK105: 210000 | BL105: 100000 | BM105: 250000 | BN105: 100000 | BO105: 186000 | BP105: 250000 | BQ105: 2175666 | BR105: 200000 | BS105: 142120 | BT105: 200000 | BU105: 150000 | BV105: 100000 | GF105: 0 | GG105: 0 | GH105: 0 | GI105: 0 | GJ105: 0 | GK105: 0 | GL105: 0 | GM105: 0 | GN105: 0 | GO105: 0 | GP105: 0 | GQ105: 0 | GR105: 0 | GS105: 0 | GT105: 0 | GU105: 0 | GV105: 0 | GW105: 0 | GX105: 0 | GY105: 0 | GZ105: 0 | HA105: 0 | HB105: 0 | HC105: 0 | HD105: 0 | HE105: 0 | HF105: 0 | HG105: 0 | HH105: 0 | HI105: 0 | HJ105: 0 | HK105: 0 | HL105: 0 | HM105: 0 | HN105: 0 | HO105: 0 | HP105: 0 | HQ105: 0 | HR105: 0 | HS105: 0 | HT105: 0 | HU105: 0 | HV105: 0 | HW105: 0 | HX105: 0 | HY105: 0 | HZ105: 0 | IA105: 0 | IB105: 0 | IC105: 0 | ID105: 0 | IE105: 0 | IF105: 0 | IG105: 0 | IH105: 0 | II105: 0 | IJ105: 0 | IK105: 0 | IL105: 0 | IM105: 0 | IN105: 0 | IO105: 0 | IP105: 0 | IQ105: 0 | IR105: 0 | IS105: 0 | IT105: 0 | IU105: 0 | IV105: 0 | IW105: =MAX(EW105-$D$3,0) -> 0 | IX105: 0 | IY105: 0 | IZ105: 0 | JA105: 0 | JB105: 0 | JC105: 0 | JD105: 0 | JE105: 0 | JF105: 0 | JG105: 0 | JH105: 0 | JI105: 0 | JJ105: 0 | JK105: 0 | JL105: 0 | JM105: 0 | JN105: 0 | JO105: 0 | JP105: 0 | JQ105: 0 | JR105: 0 | JS105: 0 | JT105: 0 | JU105: 0 | JV105: 0 | JW105: 0 | JX105: 0 | JY105: 0 | JZ105: 0 | KA105: 0 | KB105: 0
